Workbook

Sheet GUIA PARA PREENCHIMENTO
A1: GUIA PARA PREENCHIMENTO
A3: 1 - Preencher apenas as guias azuis:
A5: 2 - Recomendamos preencher somente as células com fundo azul claro. As demais possuem fórmulas e sugerimos não alterá-las.

Sheet MODELO PROPOSTA
B2: MODELO DA PROPOSTA COMPLETA
B4: .
B5: I – FORMALIZAÇÃO
B7: PREGÃO ELETRÔNICO N. 90105/2025
B8: OBJETO: Prestação de serviços continuados na área de descrição individual e registro em sistema informatizado de documentos manuscritos, impressos e audiovisuais (em qualquer suporte e formato), sob custódia do Arquivo da Câmara dos Deputados, a serem executados com regime de dedicação exclusiva de mão de obra, pelo período de 12 (doze) meses.
B11: LICITANTE: _____________________________________________________
B12: CNPJ: ________________________________________________________
B13: ENDEREÇO COMPLETO: _________________________________________
B14: TELEFONE:_____________________________________________________
B15: E-MAIL: ________________________________________________________
B17: Apresentamos nossa proposta para o item único da presente licitação, de acordo com as disposições do Edital.
B18: Decorre do conteúdo da presente proposta a explicitação do seguinte PREÇO DE JULGAMENTO (GLOBAL ANUAL) PARA O ITEM:
B19: =Resumo!F41 -> 1373942.64
B20: =Extenso_Valor(B19) -> um milhão, trezentos e setenta e três mil, novecentos e quarenta e dois reais e sessenta e quatro centavos
B22: (por extenso)
B24: No valor proposto estão incluídos todos os custos e todas as despesas, diretas e indiretas, para a execução dos serviços objeto da licitação, em conformidade com as especificações e demais condições e exigências constantes do Edital.
B25: Informamos que eventuais rubricas dispostas em Acordo ou Convenção Coletiva de Trabalho que não se relacionem ao custo direto da venda do serviço, tais como “Participação nos Resultados” e “Abono substitutivo de Participação nos Resultados”, serão consideradas nos custos indiretos da proposta.
B26: O prazo de validade da presente proposta é de ______ (por extenso) dias. (observado o disposto no Título 4 do Edital).
B28: Convenção coletiva de trabalho ou a norma coletiva a que estamos obrigados:
B29: Justificativa para a adoção da Convenção:
B30: Data-Base:
B31: Número do Registro MTE:
B32: Atividade econômica preponderante (indicar conforme CNAE):
B34: Enquadramento Sindical (quem a representa legalmente):
B36: Cópia da carta ou registro sindical do sindicato ao qual ele declara ser enquadrado, em razão do regramento sindical previsto na CLT ou por força de decisão judicial:
B39: Regime de tributação da empresa:
B40: Empresa é beneficiada pela desoneração da folha de pagamento instituída pela Lei n. 12.546/2001, alterada pela Lei n. 13.161/2015 e pela Lei n. 14.973/2024?
B41: Empresa adere ao PAT (Programa de Alimentação do Trabalhador)?
B42: Na hipótese de adesão ao PAT e de previsão de qualquer desconto no valor do auxílio-alimentação em norma coletiva, os valores do auxílio-alimentação apresentados nesta proposta deverão corresponder aos valores líquidos efetivamente pagos pela empresa aos seus empregados.
B44: MODALIDADE DE GARANTIA
B45: De acordo com o disposto no Termo de Referência, informamos que, caso o objeto nos seja adjudicado, optaremos pela seguinte modalidade de garantia de execução do contrato (artigos 96 e seguintes da Lei 14.133/2021):
B46: Modalidades de garantia (art. 96, LEI)
B48: DECLARAÇÕES
B49: Declaramos que seremos responsáveis pelo descarte ambientalmente adequado de todos os resíduos gerados durante a execução dos serviços contratados – incluindo consumíveis, peças substituídas, embalagens e demais materiais – em conformidade com a legislação ambiental vigente, especialmente a Lei n. 9.605/1998 (Lei de Crimes Ambientais), a Lei n. 12.305/2010 (Política Nacional de Resíduos Sólidos) e a NBR 10.004 (classificação de resíduos sólidos).
B50: A SEREM PRESTADAS SOMENTE NA HIPÓTESE DE LICITANTE MICROEMPRESA OU EMPRESA DE PEQUENO PORTE, EM CONFORMIDADE COM OS ARTIGOS 17, 18, 30 E 31 DA LEI COMPLEMENTAR N. 123/2006, E O ACÓRDÃO TCU 2798/2010-PLENÁRIO Declaramos que: a) em se tratando dos serviços vedados descritos no artigo 17 da Lei Complementar n. 123/2006, notadamente os descritos no inciso XII (cessão ou locação de mão de obra), ressalvados os serviços listados nos § 5º-C, inciso VI, c/c § 5º-H do art. 18 ou no § 1º do art. 17 da referida Lei, a proposta apresentada não contempla qualquer benefício tributário referente ao SIMPLES NACIONAL, conforme os itens 4.20 e 4.21 do Edital; b) na hipótese de contratação desta Microempresa ou Empresa de Pequeno Porte inscrita no SIMPLES NACIONAL e executora de atividade vedada, ficamos sujeitos à exclusão obrigatória no SIMPLES NACIONAL a contar do mês seguinte ao da contratação, em consequência do que dispõem o artigo 17, inciso XII e o artigo 31, inciso II da Lei Complementar n, 123/2006, devendo entregar à Câmara dos Deputados, à título de comprovação, cópia de ofício – com comprovante de entrega e recebimento, que comunique a assinatura do contrato de prestação de serviços mediante cessão de mão de obra e encaminhado pela contratada à Secretaria Especial da Receita Federal do Brasil até o último dia útil do mês subsequente ao da contratação, consoante artigo 30, § 1º, inciso II da Lei Complementar n. 123/2006.
B53: A SEREM PRESTADAS SOMENTE NA HIPÓTESE DE LICITANTE BENEFICIADA PELA DESONERAÇÃO DA FOLHA DE PAGAMENTO INSTITUÍDA PELA LEI N. 12.546/2011, ALTERADA PELA LEI N. 13.161/2015 E PELA LEI N. 14.973/2024. Declaramos, sob as penas da Lei, que: a) recolhemos a contribuição previdenciária incidente sobre o valor da receita bruta, em substituição às contribuições previdenciárias incidentes sobre a folha de pagamento, previstas nos incisos I e III do caput do artigo 22 da Lei n. 8.212/1991, na forma do caput do artigo 9º-A da Lei n. 12.546/2011, alteradas pela Lei n. 13.161/2015 e pela Lei n. 14.973/2024; b) temos ciência que nossa manifestação, conforme alínea “a” anterior, será remetida à Secretaria Especial da Receita Federal do Brasil e que, em caso de constatação de falsidade, estará sujeita às sanções administrativas cabíveis, sem prejuízo do encaminhamento dos documentos ao Ministério Público para apuração de eventual responsabilidade criminal desta declarante; c) temos ciência de que a variação das alíquotas previstas no art. 9º-A da Lei n. 12.546/2011, incluído pela Lei n. 14.973/2024, bem como a transição gradual de reoneração da folha de pagamento, foram integralmente consideradas na formulação da presente proposta, não cabendo, em nenhuma hipótese, pedido de reequilíbrio econômico-financeiro, repactuação ou apostilamento, durante a vigência contratual ou em eventuais prorrogações, por se tratar de fato previsível e anterior à apresentação da proposta.
B57: NOTAS EXPLICATIVAS – PREMISSAS DE CÁLCULO (Conforme o item 4.5.1.4 do Termo de Referência) Abaixo apresentamos as notas explicativas com as premissas adotadas no cálculo dos encargos sociais e tributários, especialmente quanto à aplicação da Lei n. 14.973/2024, que trata da reoneração gradual da folha de pagamento. As informações apresentadas visam garantir a transparência e exequibilidade da proposta, demonstrando como os efeitos da referida lei foram integralmente considerados na composição dos preços. ________________________________________________________________________________________________________________________________________________________________________________________________________________ (Indicar os marcos anuais de transição das alíquotas considerados no cálculo; Descrever a metodologia de projeção dos custos até a reoneração total da folha; Confirmar que todos os impactos foram internalizados na proposta e não ensejarão pedido de reequilíbrio, repactuação ou apostilamento durante a vigência contratual ou prorrogações.)
B63: OU A SEREM PRESTADAS SOMENTE NA HIPÓTESE DE LICITANTE NÃO BENEFICIADA PELA DESONERAÇÃO DA FOLHA DE PAGAMENTO INSTITUÍDA PELA LEI N. 12.546, DE 2011, ALTERADA PELA LEI N. 13.161, DE 2015 Declaramos, sob as penas da Lei, que: a) não recolhemos a contribuição previdenciária incidente sobre o valor da receita bruta, em substituição às contribuições previdenciárias incidentes sobre a folha de pagamento, previstas nos incisos I e III do caput do artigo 22 da Lei n. 8.212/1991, na forma do caput do artigo 7º (ou 8º) da Lei n. 12.546/2011, alterada pela Lei n. 13.161/2015; b) temos ciência que nossa manifestação, conforme alínea “a” anterior, será remetida à Secretaria Especial da Receita Federal do Brasil e que, em caso de constatação de falsidade, estará sujeita às sanções administrativas cabíveis, sem prejuízo do encaminhamento dos documentos ao Ministério Público para apuração de eventual responsabilidade criminal desta declarante.
B77: A SEREM PRESTADAS SOMENTE PARA A LICITANTE QUE SEJA A ATUAL TITULAR DO CONTRATO QUE SERÁ SUCEDIDO PELA CONTRATAÇÃO DECORRENTE DO PREGÃO EM EPÍGRAFE, NA HIPÓTESE DE HAVER SALÁRIO(S) PRATICADO(S) NO CONTRATO VIGENTE SUPERIOR(ES) AOS MÍNIMOS FIXADOS NO EDITAL E QUE TENHA OPTADO POR TOMAR COMO BASE EM SEUS LANCES E NA PRESENTE PROPOSTA DE PREÇOS SALÁRIO(S) FIXADO(S) NESTE EDITAL: Declaramos que: a) estamos cientes de que deveremos apresentar à Câmara dos Deputados, no prazo improrrogável de 60 (sessenta) dias, contado da data de início da vigência do contrato, a convenção ou o acordo coletivo de trabalho, entabulado com a participação do sindicato dos trabalhadores, em que se autoriza a redução salarial, na forma do art. 7°, VI, da Constituição Federal, considerado, ainda, o disposto no subitem 10.9.2.1 do Título 10 da Minuta do Termo de Contrato anexa; b) estamos cientes de que, na hipótese de não cumprirmos o disposto no teor da declaração da alínea anterior (“a”) e não logrado êxito na contratação de remanescente, sendo necessária a realização de nova licitação, caso participemos do certame, deveremos tomar como base em nossos lances e em nossa proposta de preços o(s) salário(s) maior(es), absorvendo ou acrescentando eventual diferença no BDI, sob pena de desclassificação.
B92: É OBRIGATÓRIA A COMPROVAÇÃO A QUE SE REFERE O ITEM 4.2 DO TÍTULO 4 DO TERMO DE REFERÊNCIA (referente ao valor do Fator Acidentário de Prevenção (FAP)).
B97: DADOS PARA ASSINATURA DO CONTRATO
B98: Nome do signatário
B99: Cargo
B100: Qualificação (naturalidade e domicílio)
B101: OBS.: O signatário deve possuir poderes de administração estabelecidos em contrato social e/ou possuir procuração com poderes para assinar contratos em nome da empresa. A documentação comprobatória deverá ser encaminhada quando da assinatura do contrato.
B104: Brasília, de de 2025.
B106: Assinatura do representante legal da empresa
B109: Nome do representante legal da empresa

Sheet Remunerações
B1: QUADRO DE REMUNERAÇÕES
C3: ITEM | D3: POSTO DE TRABALHO | E3: QUANTIDADE | F3: SALÁRIO | G3: ADICIONAL DE PERICULOSIDADE | H3: ADICIONAL DE INSALUBRIDADE | I3: ADICIONAL NOTURNO | J3: OUTROS | K3: SALÁRIO COM ADICIONAIS
D4: POSTO DE TRABALHO - EQUIPE DE TRABALHO
C5: 1 | D5: =HLOOKUP($C5,'Dados Gerais'!$D$5:$H$68,6) -> TÉCNICO EM DESCRIÇÃO DE DOCUMENTOS DE ARQUIVO | E5: =HLOOKUP($C5,'Dados Gerais'!$D$5:$H$68,10) -> 8 | F5: =HLOOKUP($C5,'Dados Gerais'!$D$5:$H$68,8) -> 3779.26 | G5: =HLOOKUP($C5,'Dados Gerais'!$D$5:$H$68,26) -> 0 | H5: =HLOOKUP($C5,'Dados Gerais'!$D$5:$H$68,32) -> 0 | I5: =HLOOKUP($C5,'Dados Gerais'!$D$5:$H$68,47) -> 0 | J5: =HLOOKUP($C5,'Dados Gerais'!$D$5:$H$68,34) -> 0 | K5: =SUM(F5:J5) -> 3779.26 | N5: 3400.46 | O5: =(K5-N5)/N5 -> 0.1113966934
C6: 2 | D6: =HLOOKUP($C6,'Dados Gerais'!$D$5:$H$68,6) -> COORDENADOR DE DESCRIÇÃO DE DOCUMENTOS DE ARQUIVO | E6: =HLOOKUP($C6,'Dados Gerais'!$D$5:$H$68,10) -> 2 | F6: =HLOOKUP($C6,'Dados Gerais'!$D$5:$H$68,8) -> 6297.81 | G6: =HLOOKUP($C6,'Dados Gerais'!$D$5:$H$68,26) -> 0 | H6: =HLOOKUP($C6,'Dados Gerais'!$D$5:$H$68,32) -> 0 | I6: =HLOOKUP($C6,'Dados Gerais'!$D$5:$H$68,47) -> 0 | J6: =HLOOKUP($C6,'Dados Gerais'!$D$5:$H$68,34) -> 0 | K6: 6297.81 | N6: 5811.37 | O6: =(K6-N6)/N6 -> 0.0837048751
C7: 3 | D7: =HLOOKUP($C7,'Dados Gerais'!$D$5:$H$68,6) -> 0 | E7: =HLOOKUP($C7,'Dados Gerais'!$D$5:$H$68,10) -> 0 | F7: =HLOOKUP($C7,'Dados Gerais'!$D$5:$H$68,8) -> 0 | G7: =HLOOKUP($C7,'Dados Gerais'!$D$5:$H$68,26) -> 0 | H7: =HLOOKUP($C7,'Dados Gerais'!$D$5:$H$68,32) -> 0 | I7: =HLOOKUP($C7,'Dados Gerais'!$D$5:$H$68,47) -> 0 | J7: =HLOOKUP($C7,'Dados Gerais'!$D$5:$H$68,34) -> 0 | K7: 0
C8: 4 | D8: =HLOOKUP($C8,'Dados Gerais'!$D$5:$H$68,6) -> 0 | E8: =HLOOKUP($C8,'Dados Gerais'!$D$5:$H$68,10) -> 0 | F8: =HLOOKUP($C8,'Dados Gerais'!$D$5:$H$68,8) -> 0 | G8: =HLOOKUP($C8,'Dados Gerais'!$D$5:$H$68,26) -> 0 | H8: =HLOOKUP($C8,'Dados Gerais'!$D$5:$H$68,32) -> 0 | I8: =HLOOKUP($C8,'Dados Gerais'!$D$5:$H$68,47) -> 0 | J8: =HLOOKUP($C8,'Dados Gerais'!$D$5:$H$68,34) -> 0 | K8: 0
C9: 5 | D9: =HLOOKUP($C9,'Dados Gerais'!$D$5:$H$68,6) -> 0 | E9: =HLOOKUP($C9,'Dados Gerais'!$D$5:$H$68,10) -> 0 | F9: =HLOOKUP($C9,'Dados Gerais'!$D$5:$H$68,8) -> 0 | G9: =HLOOKUP($C9,'Dados Gerais'!$D$5:$H$68,26) -> 0 | H9: =HLOOKUP($C9,'Dados Gerais'!$D$5:$H$68,32) -> 0 | I9: =HLOOKUP($C9,'Dados Gerais'!$D$5:$H$68,47) -> 0 | J9: =HLOOKUP($C9,'Dados Gerais'!$D$5:$H$68,34) -> 0 | K9: 0
C10: 6 | D10: =HLOOKUP($C10,'Dados Gerais'!$D$5:$I$68,6) -> 0 | E10: =HLOOKUP($C10,'Dados Gerais'!$D$5:$I$68,10) -> 0 | F10: =HLOOKUP($C10,'Dados Gerais'!$D$5:$I$68,8) -> 0 | G10: =HLOOKUP($C10,'Dados Gerais'!$D$5:$H$68,26) -> 0 | H10: =HLOOKUP($C10,'Dados Gerais'!$D$5:$H$68,32) -> 0 | I10: =HLOOKUP($C10,'Dados Gerais'!$D$5:$H$68,47) -> 0 | J10: =HLOOKUP($C10,'Dados Gerais'!$D$5:$H$68,34) -> 0 | K10: 0
D12: TOTAL DE POSTOS | E12: =SUM(E5:E11) -> 10
G36: * Nota 1 - Considerou-se 5% de demitidos sem justa causa ao ano e recebendo aviso indenizado (30 dias de avisoprévio / 360 dias ao ano)

Sheet Resumo
B3: RESUMO - TOTAIS MENSAIS - FATURA ORDINÁRIA
C6: ITEM | D6: POSTO DE TRABALHO | E6: QUANTIDADE | F6: PREÇO UNIT | G6: PREÇO TOTAL (MENSAL)
C7: 1 | D7: =HLOOKUP(C7,'Dados Gerais'!$D$5:$BK$10,6) -> TÉCNICO EM DESCRIÇÃO DE DOCUMENTOS DE ARQUIVO | E7: =HLOOKUP(C7,'Dados Gerais'!$D$5:$BK$14,10) -> 8 | F7: ='1'!$E$112 -> 10314.78 | G7: =F7*E7 -> 82518.24
C8: 2 | D8: =HLOOKUP(C8,'Dados Gerais'!$D$5:$BK$10,6) -> COORDENADOR DE DESCRIÇÃO DE DOCUMENTOS DE ARQUIVO | E8: =HLOOKUP(C8,'Dados Gerais'!$D$5:$BK$14,10) -> 2 | F8: ='2'!$E$112 -> 15734.65 | G8: =F8*E8 -> 31469.3
D11: TOTAL MENSAL - SALÁRIOS | G11: =SUM(G7:G10) -> 113987.54
C14: ITEM | D14: DESCRIÇÃO | G14: PREÇO TOTAL (MENSAL)
C15: EQUIP | D15: EQUIPAMENTOS NÃO RELACIONADOS DIRETAMENTE A UM POSTO DE TRABALHO | G15: ='Não Rel - Depr'!M65 -> 0
C16: HEXTRA | D16: HORAS EXTRAS | G16: ='Não Rel - Depr'!M65 -> 0
C17: HNOT | D17: ADICIONAL DE HORAS NOTURNAS (SOB DEMANDA) | G17: 0
C18: SREP | D18: SISTEMA DE REGISTRO ELETRÔNICO DE PRESENÇA - SREP | G18: =SREP!$M$46 -> 507.68
C19: EPI - N.REL | D19: EQUIPAMENTOS DE PROTEÇÃO INDIVIDUAL NÃO RELACIONADOS DIRETAMENTE A UM POSTO DE TRABALHO | G19: ='Não Rel - EPI'!K31 -> 0
C20: EQUIP - N.REL | D20: EQUIPAMENTOS NÃO RELACIONADAS DIRETAMENTE A UM POSTO DE TRABALHO | G20: ='Não Rel - Depr'!M66 -> 0
C21: MAT | D21: MATERIAIS NÃO RELACIONADOS DIRETAMENTE A UM POSTO DE TRABALHO | G21: ='Não Rel - Mat Consumo'!L49 -> 0
C22: MAT CONS DURAVEL | D22: MATERIAIS DE CONSUMO DURÁVEL NÃO RELACIONADOS DIRETAMENTE A UM POSTO DE TRABALHO | G22: ='Não Rel - Mat Cons Durável'!L35 -> 0
C23: EQ SOB DEMANDA | D23: SERVIÇOS NÃO RELACIONADOS DIRETAMENTE A UM POSTO DE TRABALHO - AQUISIÇÃO SOB DEMANDA | G23: ='Não Rel - Serviços'!K10 -> 0
D25: TOTAL MENSAL | G25: =SUM(G15:G24) -> 507.68
D27: TOTAL MENSAL - ITENS ORDINÁRIOS
D28: DESCRIÇÃO
D29: Postos de Trabalho - Inclusive 13º Salário | F29: =G11 -> 113987.54
D30: Adicional de Horas Noturnas
D31: Sistema de Registro Eletrônico de Presença - SREP | F31: =G25 -> 507.68
D32: Equipamentos de Proteção Individual não relacionados diretamente a um posto de trabalho
D33: Equipamentos não relacionadas diretamente a um posto de trabalho
D34: Materiais de consumo não relacionados diretamente a um posto de trabalho
D35: Materiais de consumo duráveis não relacionados diretamente a um posto de trabalho
E37: TOTAL MENSAL DA CONTRATAÇÃO | F37: =SUM(F29:F31) -> 114495.22 | I37: =Extenso_Valor(F37) -> cento e quatorze mil, quatrocentos e noventa e cinco reais e vinte e dois centavos
D39: TOTAL ANUAL - ITENS ORDINÁRIOS
E41: 12 x TOTAL MENSAL | F41: =TRUNC(F37*12,2) -> 1373942.64 | I41: =Extenso_Valor(F41) -> um milhão, trezentos e setenta e três mil, novecentos e quarenta e dois reais e sessenta e quatro centavos
D43: TOTAL MENSAL - ITENS SOB DEMANDA
D44: DESCRIÇÃO
D45: Serviços não relacionados diretamente a um posto de trabalho - AQUISIÇÃO SOB DEMANDA
D49: TOTAL ANUAL - ITENS SOB DEMANDA
D53: TOTAL ANUAL GLOBAL DA CONTRATAÇÃO
F55: =F41 -> 1373942.64

Sheet 1
B2: PLANILHA DE ESTIMATIVA DE CUSTOS
B3: Padrão IN 05/2017 e IN 07/2018 - MPDG - Medição por posto presente
B5: 1 | D5: =HLOOKUP($B$5,'Dados Gerais'!$D$5:$E$20,6,0) -> TÉCNICO EM DESCRIÇÃO DE DOCUMENTOS DE ARQUIVO | E5: QUANTIDADE | F5: =HLOOKUP($B$5,'Dados Gerais'!$D$5:$BI$22,10) -> 8
B6: CCT | D6: =HLOOKUP($B$5,'Dados Gerais'!$D$5:$E$20,15,0) -> SINDPD/DF X SINDESEI/DF 2025/2026 Nº DF000717/2025 | E6: DATA-BASE | F6: =HLOOKUP($B$5,'Dados Gerais'!$D$5:$BI$22,16) -> 2025-05-01
B8: MÓDULO 1 - COMPOSIÇÃO DA REMUNERAÇÃO | F8: Valor
C9: A | D9: Salário-Base | F9: =HLOOKUP($B$5,'Dados Gerais'!$D$5:$BI$22,8) -> 3779.26
C10: B | D10: Adicional de Periculosidade | F10: =HLOOKUP($B$5,'Dados Gerais'!$D$5:$BI$39,25) -> 0
C11: C | D11: Adicional de Insalubridade | F11: =HLOOKUP($B$5,'Dados Gerais'!$D$5:$BI$39,31) -> 0
C12: D | D12: Adicional Noturno | F12: =HLOOKUP($B$5,'Dados Gerais'!$D$5:$BI$52,46) -> 0 | H12: * Nota 1 - O Módulo 1 refere-se ao valor mensal devido ao empregado pela prestação do serviço no período de 12 meses.
C13: E | D13: Adicional de Hora Extra | F13: =HLOOKUP($B$5,'Dados Gerais'!$D$5:$BI$69,63) -> 0 | H13: * Nota 2 - O adicional de hora extra no feriado trabalhado foi suprimido pela Lei 13.467/17
C14: F | D14: Gratificação | F14: =HLOOKUP($B$5,'Dados Gerais'!$D$5:$BI$69,33) -> 0 | H14: * Nota 3 - ART. 7º, § 2º, DA LEI Nº 605/49.Sendo mensalista o obreiro, o adicional noturno pago de forma fixa já é considerado integrado para os efeitos do pagamento do repouso semanal remunerado, nos termos do art. 7º, § 2º, da Lei nº 605/49.
C15: G | D15: Sobreaviso | F15: 0
D17: TOTAL DA REMUNERAÇÃO | F17: =TRUNC(SUM(F9:F15),2) -> 3779.26
B19: MÓDULO 2 - ENCARGOS E BENEFÍCIOS ANUAIS, MENSAIS E DIÁRIOS | E19: Percentuais | F19: Valor
B20: Submódulo 2.1 - 13º Salário e Adicional de Férias
C21: A | D21: 13º Salário | E21: ='Encargos Sociais'!$E$32 -> 0.0909 | F21: =ROUND(E21*F$17,2) -> 343.53 | H21: * Nota 1 - O 13º salário foi calculado dividindo-se por 11, para comportar os 11 meses presentes e ainda o ausente do posto
C22: B | D22: Adicional de Férias | E22: ='Encargos Sociais'!E31 -> 0.0303 | F22: =TRUNC(E22*(F$17),2) -> 114.51 | H22: * Nota 2 - O adicional de férias foi calculado dividindo-se por 11, para comportar os 11 meses presentes e ainda o ausente do posto
B24: Submódulo 2.2 - Encargos Previdenciários (GPS), Fundo de Garantia por Tempo de Serviço (FGTS) e Outras Contribuições
C25: A | D25: ='Encargos Sociais'!D14 -> INSS (art. 22, inciso I, Lei nº 8.212/91) | E25: ='Encargos Sociais'!E14 -> 0.2 | F25: =TRUNC(E25*($F$17+$F$21+$F$22+$F$80-$F$69),2) -> 930.6 | H25: * Nota 1 - Os percentuais dos encargos previdenciários, do FGTS e demais contribuições são estabelecidos por legislação vigente.
C26: B | D26: ='Encargos Sociais'!D15 -> Salário Educação (art. 3º, inciso I, Decreto nº 87.043/82) | E26: ='Encargos Sociais'!E15 -> 0.025 | F26: =TRUNC(E26*($F$17+$F$21+$F$22+$F$80),2) -> 116.41 | H26: * Nota 2 - O SAT, a depender do grau de risco do serviço, irá variar entre 1%, para risco leve, de 2%, para risco médio, e de 3% para risco grave.
C27: C | D27: ='Encargos Sociais'!D16 -> SAT/RAT (art. 22, II, Lei 8.212/91 e Anexo V, Decreto 6.042/07) - Enquadramento 9101-5/00 | E27: ='Encargos Sociais'!E16 -> 0.01 | F27: =TRUNC(E27*($F$17+$F$21+$F$22+$F$80),2) -> 46.56 | H27: * Nota 3 - Base de cálculo - remuneração + ausências + 13º salário + terço constitucional (férias) - exceto INSS sobre ausência por acidente de trabalho
C28: D | D28: ='Encargos Sociais'!D17 -> SESC ou SESI (art. 30, Lei nº 8.036/90 e art. 1º, Lei 8.154/90) | E28: ='Encargos Sociais'!E17 -> 0.015 | F28: 69.84
C29: E | D29: ='Encargos Sociais'!D18 -> SENAI ou SENAC (Decreto nº 2.318/86) | E29: ='Encargos Sociais'!E18 -> 0.01 | F29: 46.56
C30: F | D30: ='Encargos Sociais'!D19 -> SEBRAE (§ 3º, art. 8º, Lei 8.029/90, alterada pela Lei nº 8.154/90) | E30: ='Encargos Sociais'!E19 -> 0.006 | F30: 27.93
C31: G | D31: ='Encargos Sociais'!D20 -> INCRA (art. 1º, I, Decreto Lei 1.146/70 e Lei 7.787, de 30/06/89) | E31: ='Encargos Sociais'!E20 -> 0.002 | F31: 9.31
C32: H | D32: ='Encargos Sociais'!D21 -> FGTS (Lei Complementar nº 110/01 e art. 30, Lei nº 8.036/90) | E32: ='Encargos Sociais'!E21 -> 0.08 | F32: 372.51
C33: I | D33: ='Encargos Sociais'!D22 -> SECONCI (Convenções Coletivas de Trabalho da construção) | E33: ='Encargos Sociais'!E22 -> 0 | F33: 0
B35: Submódulo 2.3 - Benefícios Mensais e Diários
C36: A | D36: Auxílio Transporte | F36: =HLOOKUP($B$5,'Dados Gerais'!$D$5:$BI$95,82) -> 90.43 | H36: * Nota 1 - O valor informado deverá ser o custo real do benefício (descontado o valor eventualmente pago pelo empregado).
C37: B | D37: Auxílio Alimentação | F37: =HLOOKUP($B$5,'Dados Gerais'!$D$5:$BI$95,89) -> 1143.6 | H37: * Nota 2 - Observar a previsão dos benefícios contidos em Acordos, Convenções e Dissídios Coletivos de Trabalho e o disposto no art. 6º da IN 5/2017
C38: C | D38: Assistência Médica e Familiar | F38: =HLOOKUP($B$5,'Dados Gerais'!$D$5:$BI$103,97) -> 184.85
C39: D | D39: Seguro de vida / auxílio funeral | F39: =HLOOKUP($B$5,'Dados Gerais'!$D$5:$BI$121,114) -> 30.6
C40: E | D40: Assistência odontológica | F40: 0
C41: F | D41: Auxílio creche | F41: 0
C42: G | D42: Auxílio vestuário especial | F42: 0
C43: H | D43: Benefício social familiar | F43: 0
C44: I | D44: Outros (especificar) | F44: 0
C45: J | D45: Outros (especificar) | F45: 0
D47: QUADRO-RESUMO DO MÓDULO 2
D48: 2.1 - 13º salário e Adicional de Férias | E48: =SUM(E21:E22) -> 0.1212 | F48: =F21+F22 -> 458.04
D49: 2.2 - Encargos Previdenciários (GPS), Fundo de Garantia por Tempo de Serviço (FGTS) e Contribuições | E49: =SUM(E25:E33) -> 0.348 | F49: =SUM(F25:F33) -> 1619.72
D50: 2.3 - Benefícios Mensais e Diários | F50: =SUM(F36:F45) -> 1449.48
D52: TOTAL DOS ENCARGOS E BENEFÍCIOS | F52: =TRUNC(SUM(F48:F50),2) -> 3527.24
B54: MÓDULO 3 - PROVISÃO PARA RESCISÃO | E54: Percentuais | F54: Valor
C55: A | D55: ='Encargos Sociais'!D36 -> Aviso Prévio Indenizado (Art. 7º, inciso XXI, da CF/1988 e arts. 477, 487, §1º, e 491 da CLT) | E55: ='Encargos Sociais'!E36 -> 0.0042 | F55: =TRUNC(E55*($F$17+$F$48+$F$80),2) -> 19.55 | H55: * Nota 1 - Base de cálculo - remuneração + ausências + 1/3 férias + 13º
C56: B | D56: ='Encargos Sociais'!D37 -> Incidência do FGTS sobre o Aviso Prévio Indenizado (Súmula 305 TST) | E56: ='Encargos Sociais'!E37 -> 0.0003 | F56: =TRUNC(E56*($F$17+$F$48+$F$80),2) -> 1.39
C57: C | D57: ='Encargos Sociais'!D38 -> Multa do FGTS sobre o Aviso Prévio Indenizado (Art. 18, §1º, da Lei 8.036/1990) | E57: ='Encargos Sociais'!E38 -> 0 | F57: =TRUNC(E57*($F$17+$F$48+$F$80),2) -> 0 | H57: * Nota 2 - zerado pois foi considerada toda a incidência da multa do FGTS na letra F
C58: D | D58: ='Encargos Sociais'!D39 -> Aviso Prévio Trabalhado (Art. 488, parágrafo único, CLT) | E58: ='Encargos Sociais'!E39 -> 0.0194 | F58: =TRUNC(E58*($F$17),2) -> 73.31
C59: E | D59: ='Encargos Sociais'!D40 -> Incidência de GPS, FGTS e outras contribuições sobre o Aviso Prévio Trabalhado | E59: ='Encargos Sociais'!E40 -> 0.0068 | F59: =TRUNC(E59*($F$17),2) -> 25.69
C60: F | D60: ='Encargos Sociais'!D41 -> Multa do FGTS sobre o Aviso Prévio Trabalhado | E60: ='Encargos Sociais'!E41 -> 0.0382 | F60: =TRUNC(E60*($F$17+$F$48+$F$80),2) -> 177.87
D62: TOTAL DE PROVISÃO PARA RESCISÃO | F62: =TRUNC(SUM(F55:F60),2) -> 297.81
B64: MÓDULO 4 - CUSTO DO PROFISSIONAL AUSENTE | E64: Percentuais | F64: Valor
B65: Submódulo 4.1 - Ausências Legais
C66: A | D66: ='Encargos Sociais'!D25 -> Férias (Arts. 129 e 130, inc. I, da CLT) | E66: ='Encargos Sociais'!E25 -> 0.0909 | F66: =TRUNC(E66*$F$17,2) -> 343.53 | H66: * Nota 1 - O Módulo 4 refere-se às previsões para custear ausências do próprio profissional (titular do cargo)
C67: B | D67: ='Encargos Sociais'!D26 -> Ausências Legais (Arts. 131 e 473 da CLT) | E67: ='Encargos Sociais'!E26 -> 0.0079 | F67: 29.85 | H67: * Nota 2 - As férias foram calculadas dividindo-se por 11, para comportar os 11 meses presentes e ainda o ausente do posto
C68: C | D68: ='Encargos Sociais'!D27 -> Licença-Paternidade (Art. 7º, XIX, e art. 10, §1º, do ADCT, CF/1988 e Art. 1º, II, da Lei 11.770/2008) | E68: ='Encargos Sociais'!E27 -> 0.0008 | F68: 3.02
C69: D | D69: ='Encargos Sociais'!D28 -> Ausência por Acidente de Trabalho (Art. 131, III, da CLT) | E69: ='Encargos Sociais'!E28 -> 0.0009 | F69: 3.4
C70: E | D70: ='Encargos Sociais'!D29 -> Afastamento Maternidade (Art. 71 da Lei nº 8.213/1991) | E70: ='Encargos Sociais'!E29 -> 0.0033 | F70: 12.47
C71: F | D71: ='Encargos Sociais'!D30 -> Auxílio Enfermidade - Doença (Art. 59 da Lei nº 8.213/1991) | E71: ='Encargos Sociais'!E30 -> 0.0071 | F71: 26.83
B73: Submódulo 4.2 - Intrajornada
C74: A | D74: Intervalo para repouso ou alimentação | E74: ='Encargos Sociais'!E33 -> 0 | F74: =ROUND(E74*$F$17,2) -> 0
D76: QUADRO-RESUMO DO MÓDULO 4 | F76: Valor
D77: 4.1 - Ausências Legais | E77: =SUM(E66:E71) -> 0.1109 | F77: =SUM(F66:F71) -> 419.1
D78: 4.2 - Intrajornada | E78: =E74 -> 0 | F78: =ROUND(E78*$F$17,2) -> 0
D80: TOTAL DE CUSTO DO PROFISSIONAL AUSENTE E INTERVALO INTRAJORNADA | F80: =TRUNC(SUM(F77:F78),2) -> 419.1
B82: MÓDULO 5 - INSUMOS DIVERSOS | F82: Valor
C83: A | D83: Uniformes - aquisição | F83: =ROUND(HLOOKUP($B$5,Uniformes!$K$4:$M$6,3)/12,2) -> 25.45
C84: B | D84: Materiais de consumo relacionados ao posto - aquisição | F84: 0
C85: C | D85: Ferramentas relacionadas ao posto - remuneração da sua depreciação / manutenção | F85: 0
C86: D | D86: Equipamentos relacionados ao posto - remuneração da sua depreciação / manutenção | F86: 0
C87: E | D87: Equipamentos de Proteção Individual - EPI - aquisição | F87: =ROUND(HLOOKUP($B$5,EPI!$I$4:$K$6,3)/12,2) -> 63.44
D89: TOTAL DE INSUMOS DIVERSOS | F89: =SUM(F83:F88) -> 88.89 | H89: * Nota - Valores mensais por empregado
B91: MÓDULO 6 - CUSTOS INDIRETOS, TRIBUTOS E LUCRO - BDI | E91: Percentuais | F91: Valor
C92: A | D92: Custos Indiretos | E92: =BDI!$E$7 -> 0.039
C93: A.1 | D93: Administração Central | E93: =BDI!$E$8 -> 0.0054
C94: A.2 | D94: Seguros, Garantias e Riscos | E94: =BDI!$E$9 -> 0
C95: B | D95: Lucro | E95: =BDI!$E$11 -> 0.06
C96: C | D96: Tributos | E96: =SUM(E97:E98) -> 0.1108
C97: C.1 | D97: Tributos Federais (COFINS, PIS e CPRB) | E97: =BDI!$E$19 -> 0.0608
C98: C.2 | D98: Tributos Distritais (ISS) | E98: =BDI!$E$24 -> 0.05
C99: D | D99: Despesas Financeiras | E99: =BDI!$E$14 -> 0.006119366999
D101: TOTAL DE BDI | E101: =BDI!$E$26 -> 0.2715 | F101: =TRUNC(E101*E109,2) -> 2202.48
D103: QUADRO-RESUMO DO CUSTO MENSAL POR EMPREGADO | E103: Valor
D104: Módulo 1 - Composição da Remuneração | E104: =F17 -> 3779.26
D105: Módulo 2 - Encargos e Benefícios Anuais, Mensais e Diários | E105: =F52 -> 3527.24
D106: Módulo 3 - Provisão para Rescisão | E106: =F62 -> 297.81
D107: Módulo 4 - Custo do Profissional Ausente | E107: =F80 -> 419.1
D108: Módulo 5 - Insumos Diversos | E108: =F89 -> 88.89
D109: SUBTOTAL (A+B+C+D+E) | E109: =SUM(E104:E108) -> 8112.3
D110: Módulo 6 - Custos Indiretos, Tributos e Lucro | E110: =F101 -> 2202.48
D112: TOTAL DO POSTO | E112: =SUM(E109:E110) -> 10314.78

Sheet 2
B2: PLANILHA DE ESTIMATIVA DE CUSTOS
B3: Padrão IN 05/2017 e IN 07/2018 - MPDG - Medição por posto presente
B5: 2 | D5: =HLOOKUP($B$5,'Dados Gerais'!$D$5:$E$20,6,0) -> COORDENADOR DE DESCRIÇÃO DE DOCUMENTOS DE ARQUIVO | E5: QUANTIDADE | F5: =HLOOKUP($B$5,'Dados Gerais'!$D$5:$BI$22,10) -> 2
B6: CCT | D6: =HLOOKUP($B$5,'Dados Gerais'!$D$5:$E$20,15,0) -> SINDPD/DF X SINDESEI/DF 2025/2026 Nº DF000717/2025 | E6: DATA-BASE | F6: =HLOOKUP($B$5,'Dados Gerais'!$D$5:$BI$22,16) -> 2025-05-01
B8: MÓDULO 1 - COMPOSIÇÃO DA REMUNERAÇÃO | F8: Valor
C9: A | D9: Salário-Base | F9: =HLOOKUP($B$5,'Dados Gerais'!$D$5:$BI$22,8) -> 6297.81
C10: B | D10: Adicional de Periculosidade | F10: =HLOOKUP($B$5,'Dados Gerais'!$D$5:$BI$39,25) -> 0
C11: C | D11: Adicional de Insalubridade | F11: =HLOOKUP($B$5,'Dados Gerais'!$D$5:$BI$39,31) -> 0
C12: D | D12: Adicional Noturno | F12: =HLOOKUP($B$5,'Dados Gerais'!$D$5:$BI$52,46) -> 0 | H12: * Nota 1 - O Módulo 1 refere-se ao valor mensal devido ao empregado pela prestação do serviço no período de 12 meses.
C13: E | D13: Adicional de Hora Extra | F13: =HLOOKUP($B$5,'Dados Gerais'!$D$5:$BI$69,63) -> 0 | H13: * Nota 2 - O adicional de hora extra no feriado trabalhado foi suprimido pela Lei 13.467/17
C14: F | D14: Gratificação | F14: =HLOOKUP($B$5,'Dados Gerais'!$D$5:$BI$69,33) -> 0 | H14: * Nota 3 - ART. 7º, § 2º, DA LEI Nº 605/49.Sendo mensalista o obreiro, o adicional noturno pago de forma fixa já é considerado integrado para os efeitos do pagamento do repouso semanal remunerado, nos termos do art. 7º, § 2º, da Lei nº 605/49.
C15: G | D15: Sobreaviso | F15: 0
D17: TOTAL DA REMUNERAÇÃO | F17: =TRUNC(SUM(F9:F15),2) -> 6297.81
B19: MÓDULO 2 - ENCARGOS E BENEFÍCIOS ANUAIS, MENSAIS E DIÁRIOS | E19: Percentuais | F19: Valor
B20: Submódulo 2.1 - 13º Salário e Adicional de Férias
C21: A | D21: 13º Salário | E21: ='Encargos Sociais'!$E$32 -> 0.0909 | F21: =ROUND(E21*F$17,2) -> 572.47 | H21: * Nota 1 - O 13º salário foi calculado dividindo-se por 11, para comportar os 11 meses presentes e ainda o ausente do posto
C22: B | D22: Adicional de Férias | E22: ='Encargos Sociais'!E31 -> 0.0303 | F22: =TRUNC(E22*(F$17),2) -> 190.82 | H22: * Nota 2 - O adicional de férias foi calculado dividindo-se por 11, para comportar os 11 meses presentes e ainda o ausente do posto
B24: Submódulo 2.2 - Encargos Previdenciários (GPS), Fundo de Garantia por Tempo de Serviço (FGTS) e Outras Contribuições
C25: A | D25: ='Encargos Sociais'!D14 -> INSS (art. 22, inciso I, Lei nº 8.212/91) | E25: ='Encargos Sociais'!E14 -> 0.2 | F25: =TRUNC(E25*($F$17+$F$21+$F$22+$F$80-$F$69),2) -> 1550.76 | H25: * Nota 1 - Os percentuais dos encargos previdenciários, do FGTS e demais contribuições são estabelecidos por legislação vigente.
C26: B | D26: ='Encargos Sociais'!D15 -> Salário Educação (art. 3º, inciso I, Decreto nº 87.043/82) | E26: ='Encargos Sociais'!E15 -> 0.025 | F26: =TRUNC(E26*($F$17+$F$21+$F$22+$F$80),2) -> 193.98 | H26: * Nota 2 - O SAT, a depender do grau de risco do serviço, irá variar entre 1%, para risco leve, de 2%, para risco médio, e de 3% para risco grave.
C27: C | D27: ='Encargos Sociais'!D16 -> SAT/RAT (art. 22, II, Lei 8.212/91 e Anexo V, Decreto 6.042/07) - Enquadramento 9101-5/00 | E27: ='Encargos Sociais'!E16 -> 0.01 | F27: =TRUNC(E27*($F$17+$F$21+$F$22+$F$80),2) -> 77.59 | H27: * Nota 3 - Base de cálculo - remuneração + ausências + 13º salário + terço constitucional (férias) - exceto INSS sobre ausência por acidente de trabalho
C28: D | D28: ='Encargos Sociais'!D17 -> SESC ou SESI (art. 30, Lei nº 8.036/90 e art. 1º, Lei 8.154/90) | E28: ='Encargos Sociais'!E17 -> 0.015 | F28: 116.39
C29: E | D29: ='Encargos Sociais'!D18 -> SENAI ou SENAC (Decreto nº 2.318/86) | E29: ='Encargos Sociais'!E18 -> 0.01 | F29: 77.59
C30: F | D30: ='Encargos Sociais'!D19 -> SEBRAE (§ 3º, art. 8º, Lei 8.029/90, alterada pela Lei nº 8.154/90) | E30: ='Encargos Sociais'!E19 -> 0.006 | F30: 46.55
C31: G | D31: ='Encargos Sociais'!D20 -> INCRA (art. 1º, I, Decreto Lei 1.146/70 e Lei 7.787, de 30/06/89) | E31: ='Encargos Sociais'!E20 -> 0.002 | F31: 15.51
C32: H | D32: ='Encargos Sociais'!D21 -> FGTS (Lei Complementar nº 110/01 e art. 30, Lei nº 8.036/90) | E32: ='Encargos Sociais'!E21 -> 0.08 | F32: 620.76
C33: I | D33: ='Encargos Sociais'!D22 -> SECONCI (Convenções Coletivas de Trabalho da construção) | E33: ='Encargos Sociais'!E22 -> 0 | F33: 0
B35: Submódulo 2.3 - Benefícios Mensais e Diários
C36: A | D36: Auxílio Transporte | F36: =HLOOKUP($B$5,'Dados Gerais'!$D$5:$BI$95,82) -> 0 | H36: * Nota 1 - O valor informado deverá ser o custo real do benefício (descontado o valor eventualmente pago pelo empregado).
C37: B | D37: Auxílio Alimentação | F37: =HLOOKUP($B$5,'Dados Gerais'!$D$5:$BI$95,89) -> 1143.6 | H37: * Nota 2 - Observar a previsão dos benefícios contidos em Acordos, Convenções e Dissídios Coletivos de Trabalho e o disposto no art. 6º da IN 5/2017
C38: C | D38: Assistência Médica e Familiar | F38: =HLOOKUP($B$5,'Dados Gerais'!$D$5:$BI$103,97) -> 184.85
C39: D | D39: Seguro de vida / auxílio funeral | F39: =HLOOKUP($B$5,'Dados Gerais'!$D$5:$BI$121,114) -> 30.6
C40: E | D40: Assistência odontológica | F40: 0
C41: F | D41: Auxílio creche | F41: 0
C42: G | D42: Auxílio vestuário especial | F42: 0
C43: H | D43: Benefício social familiar | F43: 0
C44: I | D44: Outros (especificar) | F44: 0
C45: J | D45: Outros (especificar) | F45: 0
D47: QUADRO-RESUMO DO MÓDULO 2
D48: 2.1 - 13º salário e Adicional de Férias | E48: =SUM(E21:E22) -> 0.1212 | F48: =F21+F22 -> 763.29
D49: 2.2 - Encargos Previdenciários (GPS), Fundo de Garantia por Tempo de Serviço (FGTS) e Contribuições | E49: =SUM(E25:E33) -> 0.348 | F49: =SUM(F25:F33) -> 2699.13
D50: 2.3 - Benefícios Mensais e Diários | F50: =SUM(F36:F45) -> 1359.05
D52: TOTAL DOS ENCARGOS E BENEFÍCIOS | F52: =TRUNC(SUM(F48:F50),2) -> 4821.47
B54: MÓDULO 3 - PROVISÃO PARA RESCISÃO | E54: Percentuais | F54: Valor
C55: A | D55: ='Encargos Sociais'!D36 -> Aviso Prévio Indenizado (Art. 7º, inciso XXI, da CF/1988 e arts. 477, 487, §1º, e 491 da CLT) | E55: ='Encargos Sociais'!E36 -> 0.0042 | F55: =TRUNC(E55*($F$17+$F$48+$F$80),2) -> 32.58 | H55: * Nota 1 - Base de cálculo - remuneração + ausências + 1/3 férias + 13º
C56: B | D56: ='Encargos Sociais'!D37 -> Incidência do FGTS sobre o Aviso Prévio Indenizado (Súmula 305 TST) | E56: ='Encargos Sociais'!E37 -> 0.0003 | F56: =TRUNC(E56*($F$17+$F$48+$F$80),2) -> 2.32
C57: C | D57: ='Encargos Sociais'!D38 -> Multa do FGTS sobre o Aviso Prévio Indenizado (Art. 18, §1º, da Lei 8.036/1990) | E57: ='Encargos Sociais'!E38 -> 0 | F57: =TRUNC(E57*($F$17+$F$48+$F$80),2) -> 0 | H57: * Nota 2 - zerado pois foi considerada toda a incidência da multa do FGTS na letra F
C58: D | D58: ='Encargos Sociais'!D39 -> Aviso Prévio Trabalhado (Art. 488, parágrafo único, CLT) | E58: ='Encargos Sociais'!E39 -> 0.0194 | F58: =TRUNC(E58*($F$17),2) -> 122.17
C59: E | D59: ='Encargos Sociais'!D40 -> Incidência de GPS, FGTS e outras contribuições sobre o Aviso Prévio Trabalhado | E59: ='Encargos Sociais'!E40 -> 0.0068 | F59: =TRUNC(E59*($F$17),2) -> 42.82
C60: F | D60: ='Encargos Sociais'!D41 -> Multa do FGTS sobre o Aviso Prévio Trabalhado | E60: ='Encargos Sociais'!E41 -> 0.0382 | F60: =TRUNC(E60*($F$17+$F$48+$F$80),2) -> 296.41
D62: TOTAL DE PROVISÃO PARA RESCISÃO | F62: =TRUNC(SUM(F55:F60),2) -> 496.3
B64: MÓDULO 4 - CUSTO DO PROFISSIONAL AUSENTE | E64: Percentuais | F64: Valor
B65: Submódulo 4.1 - Ausências Legais
C66: A | D66: ='Encargos Sociais'!D25 -> Férias (Arts. 129 e 130, inc. I, da CLT) | E66: ='Encargos Sociais'!E25 -> 0.0909 | F66: =TRUNC(E66*$F$17,2) -> 572.47 | H66: * Nota 1 - O Módulo 4 refere-se às previsões para custear ausências do próprio profissional (titular do cargo)
C67: B | D67: ='Encargos Sociais'!D26 -> Ausências Legais (Arts. 131 e 473 da CLT) | E67: ='Encargos Sociais'!E26 -> 0.0079 | F67: 49.75 | H67: * Nota 2 - As férias foram calculadas dividindo-se por 11, para comportar os 11 meses presentes e ainda o ausente do posto
C68: C | D68: ='Encargos Sociais'!D27 -> Licença-Paternidade (Art. 7º, XIX, e art. 10, §1º, do ADCT, CF/1988 e Art. 1º, II, da Lei 11.770/2008) | E68: ='Encargos Sociais'!E27 -> 0.0008 | F68: 5.03
C69: D | D69: ='Encargos Sociais'!D28 -> Ausência por Acidente de Trabalho (Art. 131, III, da CLT) | E69: ='Encargos Sociais'!E28 -> 0.0009 | F69: 5.66
C70: E | D70: ='Encargos Sociais'!D29 -> Afastamento Maternidade (Art. 71 da Lei nº 8.213/1991) | E70: ='Encargos Sociais'!E29 -> 0.0033 | F70: 20.78
C71: F | D71: ='Encargos Sociais'!D30 -> Auxílio Enfermidade - Doença (Art. 59 da Lei nº 8.213/1991) | E71: ='Encargos Sociais'!E30 -> 0.0071 | F71: 44.71
B73: Submódulo 4.2 - Intrajornada
C74: A | D74: Intervalo para repouso ou alimentação | E74: ='Encargos Sociais'!E33 -> 0 | F74: =ROUND(E74*$F$17,2) -> 0
D76: QUADRO-RESUMO DO MÓDULO 4 | F76: Valor
D77: 4.1 - Ausências Legais | E77: =SUM(E66:E71) -> 0.1109 | F77: =SUM(F66:F71) -> 698.4
D78: 4.2 - Intrajornada | E78: =E74 -> 0 | F78: =ROUND(E78*$F$17,2) -> 0
D80: TOTAL DE CUSTO DO PROFISSIONAL AUSENTE E INTERVALO INTRAJORNADA | F80: =TRUNC(SUM(F77:F78),2) -> 698.4
B82: MÓDULO 5 - INSUMOS DIVERSOS | F82: Valor
C83: A | D83: Uniformes - aquisição | F83: =ROUND(HLOOKUP($B$5,Uniformes!$K$4:$M$6,3)/12,2) -> 25.45
C84: B | D84: Materiais de consumo relacionados ao posto - aquisição | F84: 0
C85: C | D85: Ferramentas relacionadas ao posto - remuneração da sua depreciação / manutenção | F85: 0
C86: D | D86: Equipamentos relacionados ao posto - remuneração da sua depreciação / manutenção | F86: 0
C87: E | D87: Equipamentos de Proteção Individual - EPI - aquisição | F87: =ROUND(HLOOKUP($B$5,EPI!$I$4:$K$6,3)/12,2) -> 35.45
D89: TOTAL DE INSUMOS DIVERSOS | F89: =SUM(F83:F88) -> 60.9 | H89: * Nota - Valores mensais por empregado
B91: MÓDULO 6 - CUSTOS INDIRETOS, TRIBUTOS E LUCRO - BDI | E91: Percentuais | F91: Valor
C92: A | D92: Custos Indiretos | E92: =BDI!$E$7 -> 0.039
C93: A.1 | D93: Administração Central | E93: =BDI!$E$8 -> 0.0054
C94: A.2 | D94: Seguros, Garantias e Riscos | E94: =BDI!$E$9 -> 0
C95: B | D95: Lucro | E95: =BDI!$E$11 -> 0.06
C96: C | D96: Tributos | E96: =SUM(E97:E98) -> 0.1108
C97: C.1 | D97: Tributos Federais (COFINS, PIS e CPRB) | E97: =BDI!$E$19 -> 0.0608
C98: C.2 | D98: Tributos Distritais (ISS) | E98: =BDI!$E$24 -> 0.05
C99: D | D99: Despesas Financeiras | E99: =BDI!$E$14 -> 0.006119366999
D101: TOTAL DE BDI | E101: =BDI!$E$26 -> 0.2715 | F101: =TRUNC(E101*E109,2) -> 3359.77
D103: QUADRO-RESUMO DO CUSTO MENSAL POR EMPREGADO | E103: Valor
D104: Módulo 1 - Composição da Remuneração | E104: =F17 -> 6297.81
D105: Módulo 2 - Encargos e Benefícios Anuais, Mensais e Diários | E105: =F52 -> 4821.47
D106: Módulo 3 - Provisão para Rescisão | E106: =F62 -> 496.3
D107: Módulo 4 - Custo do Profissional Ausente | E107: =F80 -> 698.4
D108: Módulo 5 - Insumos Diversos | E108: =F89 -> 60.9
D109: SUBTOTAL (A+B+C+D+E) | E109: =SUM(E104:E108) -> 12374.88
D110: Módulo 6 - Custos Indiretos, Tributos e Lucro | E110: =F101 -> 3359.77
D112: TOTAL DO POSTO | E112: =SUM(E109:E110) -> 15734.65

Sheet Dados Gerais
B3: INFORMAÇÕES DE ENTRADA
A5: =HLOOKUP($B$5,'Dados Gerais'!$D$5:$BI$22,8) ->  | D5: 1 | E5: 2 | F5: 3 | G5: 4 | H5: 5 | I5: 6 | J5: 7 | K5: 8 | L5: 9 | M5: 10 | N5: 11 | O5: 12 | P5: 13 | Q5: 14 | R5: 15 | S5: 16 | T5: 17 | U5: 18 | V5: 19 | W5: 20 | X5: 21 | Y5: 22 | Z5: 23 | AA5: 24 | AB5: 25 | AC5: 26 | AD5: 27 | AE5: 28 | AF5: 29 | AG5: 30 | AH5: 31 | AI5: 32 | AJ5: 33 | AK5: 34 | AL5: 35 | AM5: 36 | AN5: 37 | AO5: 38 | AP5: 39 | AQ5: 40 | AR5: 41 | AS5: 42 | AT5: 43 | AU5: 44 | AV5: 45 | AW5: 46 | AX5: 47 | AY5: 48 | AZ5: 49 | BA5: 50 | BB5: 51 | BC5: 52 | BD5: 53 | BE5: 54 | BF5: 55 | BG5: 56 | BH5: 57 | BI5: 58 | BJ5: 59 | BK5: 60
A6: =HLOOKUP($B$5,'Dados Gerais'!$D$5:$BI$39,25) ->  | D6: CARGO 1 | E6: CARGO 2 | F6: CARGO 3 | G6: CARGO 4 | H6: CARGO 5 | I6: CARGO 6 | J6: CARGO 7 | K6: CARGO 8 | L6: CARGO 9 | M6: CARGO 10 | N6: CARGO 11 | O6: CARGO 12 | P6: CARGO 13 | Q6: CARGO 14 | R6: CARGO 15 | S6: CARGO 16 | T6: CARGO 17 | U6: CARGO 18 | V6: CARGO 19 | W6: CARGO 20 | X6: CARGO 21 | Y6: CARGO 22 | Z6: CARGO 23 | AA6: CARGO 24 | AB6: CARGO 25 | AC6: CARGO 26 | AD6: CARGO 27 | AE6: CARGO 28 | AF6: CARGO 29 | AG6: CARGO 30 | AH6: CARGO 31 | AI6: CARGO 32 | AJ6: CARGO 33 | AK6: CARGO 34 | AL6: CARGO 35 | AM6: CARGO 36 | AN6: CARGO 37 | AO6: CARGO 38 | AP6: CARGO 39 | AQ6: CARGO 40 | AR6: CARGO 41 | AS6: CARGO 42 | AT6: CARGO 43 | AU6: CARGO 44 | AV6: CARGO 45 | AW6: CARGO 46 | AX6: CARGO 47 | AY6: CARGO 48 | AZ6: CARGO 49 | BA6: CARGO 50 | BB6: CARGO 51 | BC6: CARGO 52 | BD6: CARGO 53 | BE6: CARGO 54 | BF6: CARGO 55 | BG6: CARGO 56 | BH6: CARGO 57 | BI6: CARGO 58 | BJ6: CARGO 59 | BK6: CARGO 60
A7: =HLOOKUP($B$5,'Dados Gerais'!$D$5:$BI$39,31) ->  | B7: INFORMAÇÕES BÁSICAS
A8: =HLOOKUP($B$5,'Dados Gerais'!$D$5:$BI$52,46) -> 
A9: =HLOOKUP($B$5,'Dados Gerais'!$D$5:$BI$69,63) ->  | B9: DESCRIÇÃO DOS POSTOS DE SERVIÇO
A10: =HLOOKUP($B$5,'Dados Gerais'!$D$5:$BI$69,33) ->  | D10: TÉCNICO EM DESCRIÇÃO DE DOCUMENTOS DE ARQUIVO | E10: COORDENADOR DE DESCRIÇÃO DE DOCUMENTOS DE ARQUIVO
B11: REMUNERAÇÕES
D12: 3779.26 | E12: 6297.81
B13: QUANTIDADE DE POSTOS
D14: 8 | E14: 2
B15: JORNADA
C16: HORAS | D16: =40*5 -> 200 | E16: =40*5 -> 200
C17: DIAS/MÊS | D17: 22 | E17: 22
B18: CCT UTILIZADA
C19: SINDICATOS E REFERÊNCIA | D19: SINDPD/DF X SINDESEI/DF 2025/2026 Nº DF000717/2025 | E19: =D19 -> SINDPD/DF X SINDESEI/DF 2025/2026 Nº DF000717/2025
C20: DATA-BASE | D20: 2025-05-01 | E20: 2025-05-01
B22: ADICIONAIS LEGAIS E GRATIFICAÇÕES
B24: PERICULOSIDADE (PERCENTUAL)
D25: 0 | E25: 0
B26: BASE DE CÁLCULO DO ADICIONAL DE PERICULOSIDADE (SALÁRIO BÁSICO)
D27: =D12 -> 3779.26 | E27: =E12 -> 6297.81
B28: VALOR MENSAL DO ADICIONAL DE PERICULOSIDADE
D29: =ROUND(D25*D12,2) -> 0 | E29: 0
B30: INSALUBRIDADE (PERCENTUAL)
D31: 0 | E31: 0
B32: BASE DE CÁLCULO DO ADICIONAL DE INSALUBRIDADE (SALÁRIO MÍNIMO LEGAL)
D33: 1518 | E33: =D33 -> 1518
B34: VALOR MENSAL DO ADICIONAL DE INSALUBRIDADE
D35: =ROUND(D31*D12,2) -> 0 | E35: 0
B36: GRATIFICAÇÃO - VALOR MENSAL (R$)
D37: 0 | E37: 0
B39: ADICIONAL NOTURNO
B41: INCIDÊNCIA (PERCENTUAL)
D42: 0.2 | E42: 0.2
B43: HORAS REAIS POR DIA
D44: 0 | E44: 0
B45: HORAS FICTAS POR DIA
D46: =D44*8/7 -> 0 | E46: =E44*8/7 -> 0
B47: BASE DE CÁLCULO DO ADICIONAL NOTURNO (INCLUINDO ADICIONAIS E GRATIFICAÇÕES)
D48: =D12+D29+D35+D37 -> 3779.26 | E48: =E12+E29+E35+E37 -> 6297.81
B49: VALOR MENSAL DO ADICIONAL NOTURNO (HORA NORMAL + HORA REDUZIDA) - POR POSTO
D50: =ROUND(D46*D17*D42*D48/D16,2) -> 0 | E50: =ROUND(E46*E17*E42*E48/E16,2) -> 0
B52: ADICIONAL DE HORA EXTRA
B54: INCIDÊNCIA (PERCENTUAL 1)
D55: 0.5 | E55: 0.5
B56: HORAS EXTRAS POR MÊS (PERCENTUAL 1)
D57: 0 | E57: 0
B58: VALOR MENSAL DO ADICIONAL DE HORAS EXTRAS (PERCENTUAL 1) - POR POSTO
D59: =ROUND(D57*D55*D12/D16,2) -> 0 | E59: 0
B60: INCIDÊNCIA (PERCENTUAL 2)
D61: 1 | E61: 1
B62: HORAS EXTRAS POR MÊS (PERCENTUAL 2)
D63: 0 | E63: 0
B64: VALOR MENSAL DO ADICIONAL DE HORAS EXTRAS (PERCENTUAL 2) - POR POSTO
D65: =ROUND(D63*D61*D12/D16,2) -> 0 | E65: 0
B66: TOTAL MENSAL DOS ADICIONAIS DE HORAS EXTRAS - POR POSTO
D67: =D65+D59 -> 0 | E67: 0
B69: BENEFÍCIOS COMUNS - AUXÍLIO TRANSPORTE
B71: DISTRIBUIÇÃO ESTIMADA DE PROCEDÊNCIA
C72: Cidade-satélite | D72: 0.68 | E72: 0.68
C73: Região do entorno | D73: 0.32 | E73: 0.32
C74: Esplanada - apenas para os que vêm do entorno | D74: =D73 -> 0.32 | E74: =E73 -> 0.32
B75: VALORES DOS VALES
C76: Cidade-satélite | D76: 5.5 | E76: =D76 -> 5.5
C77: Região do entorno | D77: 8.09 | E77: =D77 -> 8.09
C78: Esplanada | D78: 2.75 | E78: =D78 -> 2.75
B79: VALOR MENSAL BRUTO DE PAGAMENTO - POR POSTO
D80: =ROUND((D72*D76+D73*D77+D74*D78)*2*D17,2) -> 317.19 | E80: =ROUND((E72*E76+E73*E77+E74*E78)*2*E17,2) -> 317.19
B81: PERCENTUAL DE DESCONTO
D82: 0.06 | E82: 0.06
B83: VALOR MENSAL DO DESCONTO - POR POSTO
D84: =ROUND(D82*D12,2) -> 226.76 | E84: =ROUND(E82*E12,2) -> 377.87
B85: VALOR MENSAL LÍQUIDO DO VALE TRANSPORTE - POR POSTO
D86: =IF(D80>D84,D80-D84,0) -> 90.43 | E86: =IF(E80>E84,E80-E84,0) -> 0
D87: =D86*D14 -> 723.44 | E87: 2962.54
B88: BENEFÍCIOS COMUNS - AUXÍLIO ALIMENTAÇÃO
C90: VALOR CCT | D90: =39+39*1/11 -> 42.54545455 | E90: =D90 -> 42.54545455
C91: VALOR CD | D91: =47.65*(1+1/11) -> 51.98181818 | E91: =D91 -> 51.98181818
B92: VALOR MENSAL DO AUXÍLIO ALIMENTAÇÃO - POR POSTO
D93: =ROUND(LARGE(D90:D91,1)*D17,2) -> 1143.6 | E93: =ROUND(LARGE(E90:E91,1)*E17,2) -> 1143.6
D94: =D93*D14 -> 9148.8 | E94: 10339.56
B95: BENEFÍCIOS ESPECIAIS - ASSISTÊNCIA MÉDICA E FAMILIAR
C97: OBRIGAÇÃO DE PAGTO | D97: SIM | E97: =D97 -> SIM
C98: VALOR CCT | D98: 184.85 | E98: =D98 -> 184.85
C99: VALOR MERCADO
B100: VALOR MENSAL DO AUXÍLIO ESPECIAL - ASSISTÊNCIA MÉDICA E FAMILIAR - POR POSTO
D101: =IF(D97="SIM",ROUND(SMALL(D98:D99,1),2),0) -> 184.85 | E101: =IF(E97="SIM",ROUND(SMALL(E98:E99,1),2),0) -> 184.85
B103: BENEFÍCIOS ESPECIAIS - SEGURO DE VIDA E AUXÍLIO-FUNERAL, AUX ODONT, AUX CRECHE
B105: SEGURO DE VIDA E AUXÍLIO FUNERAL / BSF - BENEFÍCIO SOCIAL FAMILAR
C106: OBRIGAÇÃO DE PAGTO | D106: SIM | E106: =D106 -> SIM
C107: VALOR CCT | D107: 30.6 | E107: =D107 -> 30.6
C108: VALOR MERCADO
B109: VALOR MENSAL DO AUXÍLIO ESPECIAL - SEGURO DE VIDA E AUXÍLIO FUNERAL - POR POSTO
D110: =IF(D106="SIM",ROUND(SMALL(D107:D108,1),2),0) -> 30.6 | E110: =IF(E106="SIM",ROUND(SMALL(E107:E108,1),2),0) -> 30.6
B111: REEMBOLSO CRECHE
C112: OBRIGAÇÃO DE PAGTO | D112: NÃO | E112: =D112 -> NÃO
C113: VALOR MÁXIMO
C114: PERCENTUAL= 4,59% - parâmetro de cálculo= 51,5% dos trabalhadores são mulheres, e 8,92% da população é de crianças entre 0 e 6 anos | D114: 0.0459 | E114: =D114 -> 0.0459
B115: VALOR MENSAL DO AUXÍLIO ESPECIAL - REEMBOLSO CRECHE - POR POSTO
D116: =ROUND(D113*D114,2) -> 0 | E116: =ROUND(E113*E114,2) -> 0
B117: TOTAL MENSAL DOS AUXÍLIOS ESPECIAIS - POR POSTO
D118: =+D110+D116 -> 30.6 | E118: =+E110+E116 -> 30.6

Sheet Encargos Sociais
B4: ENCARGOS SOCIAIS SOBRE A MÃO DE OBRA
E5: Percentuais
B7: Referência:
C8: SINAPI/MPU
B10: Categorias:
C11: TODAS
B13: GRUPO A: Encargos Sociais Básicos - Previdenciários (GPS), Fundo de Garantia por Tempo de Serviço (FGTS) e Outras Contribuições | E13: =ROUND(SUM(E14:E22),4) -> 0.348
C14: A | D14: INSS (art. 22, inciso I, Lei nº 8.212/91) | E14: 0.2
C15: B | D15: Salário Educação (art. 3º, inciso I, Decreto nº 87.043/82) | E15: 0.025 | G15: * Nota 1 - Os percentuais dos encargos previdenciários, do FGTS e demais contribuições são estabelecidos por legislação vigente.
C16: C | D16: SAT/RAT (art. 22, II, Lei 8.212/91 e Anexo V, Decreto 6.042/07) - Enquadramento 9101-5/00 | E16: 0.01 | G16: * Nota 2 - O SAT, a depender do grau de risco do serviço, irá variar entre 1%, para risco leve, de 2%, para risco médio, e de 3% para risco grave.
C17: D | D17: SESC ou SESI (art. 30, Lei nº 8.036/90 e art. 1º, Lei 8.154/90) | E17: 0.015 | G17: * Nota 3 - Os percentuais do Submódulo 2.2 incidem sobre o Módulo 1, o Submódulo 2.1, o Módulo 3, o Módulo 4 e o Módulo 6.
C18: E | D18: SENAI ou SENAC (Decreto nº 2.318/86) | E18: 0.01
C19: F | D19: SEBRAE (§ 3º, art. 8º, Lei 8.029/90, alterada pela Lei nº 8.154/90) | E19: 0.006
C20: G | D20: INCRA (art. 1º, I, Decreto Lei 1.146/70 e Lei 7.787, de 30/06/89) | E20: 0.002
C21: H | D21: FGTS (Lei Complementar nº 110/01 e art. 30, Lei nº 8.036/90) | E21: 0.08
C22: I | D22: SECONCI (Convenções Coletivas de Trabalho da construção) | E22: 0
B24: GRUPO B: Encargos Sociais Relacionados ao Custo do Profissional Ausente - Ausências Legais | E24: =ROUND(SUM(E25:E33),4) -> 0.2321
C25: A | D25: Férias (Arts. 129 e 130, inc. I, da CLT) | E25: =ROUND(1/11,4) -> 0.0909 | G25: * Nota 1 - As alíneas “A” a “F” referem-se somente ao custo que será pago ao repositor pelos dias trabalhados quando da necessidade de substituir a mão de obra alocada na prestação do serviço.
C26: B | D26: Ausências Legais (Arts. 131 e 473 da CLT) | E26: =ROUND(2/252,4) -> 0.0079 | G26: * Nota 2 - Adotou-se a estimativa do SINAPI de 2 dias por ano. Em 252 dias úteis por ano.
C27: C | D27: Licença-Paternidade (Art. 7º, XIX, e art. 10, §1º, do ADCT, CF/1988 e Art. 1º, II, da Lei 11.770/2008) | E27: =ROUND((5/(30*12))*0.0596,4) -> 0.0008 | G27: * Nota 3 - Utilizada a proporção de 50% para homens, 5 dias de afastamento, e a probabilidade de um trabalhador requerer a Licença Paternidade em 5,96%, conforme SINAPI (Anuário Estatístico da Previdência Social - 2017)
C28: D | D28: Ausência por Acidente de Trabalho (Art. 131, III, da CLT) | E28: =ROUND(0.0205*15/360,4) -> 0.0009 | G28: * Nota 4 - Utilzada a estatística de 2,05% dos contribuintes beneficiados com a emissão do auxílio, conforme Anuário Estatístico da Previdência Social. Afastamento de 15 dias a cargo da empresa.
C29: E | D29: Afastamento Maternidade (Art. 71 da Lei nº 8.213/1991) | E29: =ROUND(0.0508*(120/360)*(30+30*4/3)/360,4) -> 0.0033 | G29: * Nota 5 - Utilizada a estimativa de 120 dias de afastamento, e a probabilidade de uma trabalhadora requerer a Licença Maternidade em 5,08%, conforme SINAPI (citando dados do IBGE 2017) - A própria previdência paga o benefício pelos 120 dias, contudo o empregador arca com o 13º e com as férias
C30: F | D30: Auxílio Enfermidade - Doença (Art. 59 da Lei nº 8.213/1991) | E30: =ROUND(((0.0376*15)+2)/360,4) -> 0.0071 | G30: * Nota 6 - Utilizada a estatística de 3,76% dos contribuintes beneficiados com o auxílio, conforme Anuário Estatístico da Previdência Social de 2016 (acrescidos de 2 dias ao ano, para os quais o trabalhador nem requer o benefício da Previdência - conforme SINAPI)
C31: G | D31: Adicional de Férias (componente do Submódulo 2.1) | E31: =ROUND(1/3*1/11,4) -> 0.0303 | G31: * Nota 7 - O adicional de férias contido no Submódulo 2.1 corresponde a 1/3 da remuneração que, por sua vez, é dividida por 12 contome Nota 1.
C32: H | D32: 13º Salário (destacado na planilha de custos) | E32: =ROUND(1/11,4) -> 0.0909 | G32: * Nota 8 - Provisiona-se, mensalmente, o proporcional a 1/11 dos valores referentes a gratificação natalina
C33: I | D33: Intervalo para repouso ou alimentação (componente do Submódulo 4.2) | E33: 0
B35: GRUPO C: Encargos Sociais Relacionados à Previsão para Rescisão Trabalhista | E35: =ROUND(SUM(E36:E41),4) -> 0.0689
C36: A | D36: Aviso Prévio Indenizado (Art. 7º, inciso XXI, da CF/1988 e arts. 477, 487, §1º, e 491 da CLT) | E36: =ROUND(D54*30/360,4) -> 0.0042 | G36: * Nota 1 - Considerou-se 5% de demitidos sem justa causa ao ano e recebendo aviso indenizado (30 dias de aviso prévio / 360 dias ao ano)
C37: B | D37: Incidência do FGTS sobre o Aviso Prévio Indenizado (Súmula 305 TST) | E37: =ROUND(E21*E36,4) -> 0.0003
C38: C | D38: Multa do FGTS sobre o Aviso Prévio Indenizado (Art. 18, §1º, da Lei 8.036/1990) | E38: 0 | G38: * Nota 2 - como 100% da multa do FGTS está incidindo sobre o APT que será paga ao final do contrato, não é necessário prever a multa no API
C39: D | D39: Aviso Prévio Trabalhado (Art. 488, parágrafo único, CLT) | E39: =ROUND((7)*100%/(D56*30),4) -> 0.0194 | G39: * Nota 3 - Considerou-se demissões de 100% ao final do prazo do contrato. Assim, calcula-se 7 dias de aviso prévio trabalhado dividido pelo prazo do contrato.
C40: E | D40: Incidência de GPS, FGTS e outras contribuições sobre o Aviso Prévio Trabalhado | E40: =ROUND(E39*E13,4) -> 0.0068
C41: F | D41: Multa do FGTS sobre o Aviso Prévio Trabalhado | E41: =ROUND(((1+1/12+1/12+1/36)*0.4*E21),4) -> 0.0382 | G41: * Nota 4 - 40% multa para o empregador x 8% FGTS
B43: GRUPO D: Reincidências | E43: =ROUND(SUM(E44:E44),4) -> 0.0808
C44: A | D44: Reincidência do Grupo A sobre o Grupo B | E44: =ROUND(E13*E24,4) -> 0.0808
D46: SOMATÓRIO - ENCARGOS SOCIAIS SOBRE A MÃO DE OBRA | E46: =E43+E35+E24+E13 -> 0.7298
C50: ENCARGOS SEM O 13º
D51: =E46-E32-E32*E13 -> 0.6072668
C53: % DEMIDIDOS AO LONGO DO ANO
D54: 0.05
C55: PRAZO DO CONTRATO (EM MESES)
D56: 12

Sheet BDI
B3: COMPOSIÇÃO DA TAXA DE CUSTOS INDIRETOS, TRIBUTOS E LUCRO - BDI
B4: APLICAÇÃO: MÃO DE OBRA, 13º, MATERIAIS, EPC E EQUIPAMENTO DE REGISTRO DE FREQUÊNCIA | E4: Percentuais
B6: Custos Indiretos da Contratada | E6: =SUM(E7:E8) -> 0.0444
C7: A | D7: Administração Central | E7: 0.039 | G7: * Nota 1 - O Somatório da Administração Central com o Lucro deve ser inferior a 12%
C8: B | D8: Seguros, Garantias e Riscos | E8: 0.0054 | G8: * Nota 2 - O risco previsto para o porte do contrato majorado em mais 0,20% devido ao não pagamento dos insumos componentes do custo do posto quando da ausência do mesmo.
B10: Lucro | E10: =SUM(E11:E11) -> 0.06
C11: A | D11: Lucro Real sobre os Custos Administrados | E11: 0.06
B13: Despesas Financeiras | E13: =E14 -> 0.006119366999
C14: A | D14: Cálculo Baseado no Prazo para a Restituição dos Desembolsos Realizados pelo Contratado e na Taxa de Retorno Arbitrada | E14: =(1+E16)^(E15/252)-1 -> 0.006119366999 | G14: * Nota 1 - DF = [(1+TR)^(DU/252)]/100
C15: A.1 | D15: Dias Úteis Considerados | E15: 11 | G15: * Nota 2 - Diferença de dias entre o desembolso, pelo contratado, e o pagamento, pela Câmara
C16: A.2 | D16: Taxa de Retorno | E16: 0.15 | G16: * Nota 3 - A taxa sugerida é a meta da SELIC
B18: Impostos - Tributos Federais | E18: =SUM(E19:E21) -> 0.074
C19: A | D19: Contribuição para o Financiamento da Seguridade Social - COFINS | E19: =0.8*7.6% -> 0.0608 | G19: * Nota 1 - Redução de 20% considerando as deduções permitidas em Lei, conforme SENGE, citado pelo TCU - Acórdão 2622/2013
C20: B | D20: Programa de Integração Social - PIS | E20: =0.8*1.65% -> 0.0132 | G20: * Nota 2 - Redução de 20% considerando as deduções permitidas em Lei, conforme SENGE, citado pelo TCU - Acórdão 2622/2013
C21: C | D21: Contribuição Previdenciária sobre a Receita Bruta - CPRB | E21: 0 | G21: * Nota 3 - Lei 12.546/2011 - Verificar atualizações e setores beneficiados
B23: Impostos - Tributos Distritais | E23: =SUM(E24:E24) -> 0.05
C24: A | D24: Imposto sobre Serviço de Qualquer Natureza - ISS | E24: 0.05
D26: SOMATÓRIO - ENCARGOS SOCIAIS SOBRE A MÃO DE OBRA | E26: =ROUND((((1+E6)*(1+E10)*(1+E13)/(1-E18-E23))-1),4) -> 0.2715 | G26: * Nota 1 - [(1+AC+SGR)*(1+L)*(1+DF)/(1-CONFINS-PIS-CPRB-ISS)]-1
G36: * Nota 1 - Considerou-se 5% de demitidos sem justa causa ao ano e recebendo aviso indenizado (30 dias de avisoprévio / 360 dias ao ano)

Sheet Uniformes
K1: =K6/12 -> 25.4475
B4: UNIFORMES - AQUISIÇÃO | K4: 1 | M4: =K4+1 -> 2 | O4: =M4+1 -> 3 | Q4: =O4+1 -> 4 | S4: =Q4+1 -> 5 | U4: =S4+1 -> 6 | W4: =U4+1 -> 7 | Y4: =W4+1 -> 8 | AA4: =Y4+1 -> 9 | AC4: =AA4+1 -> 10 | AE4: =AC4+1 -> 11 | AG4: =AE4+1 -> 12 | AI4: =AG4+1 -> 13 | AK4: =AI4+1 -> 14 | AM4: =AK4+1 -> 15 | AO4: =AM4+1 -> 16 | AQ4: =AO4+1 -> 17 | AS4: =AQ4+1 -> 18 | AU4: =AS4+1 -> 19 | AW4: =AU4+1 -> 20 | AY4: =AW4+1 -> 21 | BA4: =AY4+1 -> 22 | BC4: =BA4+1 -> 23 | BE4: =BC4+1 -> 24 | BG4: =BE4+1 -> 25 | BI4: =BG4+1 -> 26 | BK4: =BI4+1 -> 27 | BM4: =BK4+1 -> 28 | BO4: =BM4+1 -> 29 | BQ4: =BO4+1 -> 30 | BS4: =BQ4+1 -> 31 | BU4: =BS4+1 -> 32 | BW4: =BU4+1 -> 33 | BY4: =BW4+1 -> 34 | CA4: =BY4+1 -> 35 | CC4: =CA4+1 -> 36 | CE4: =CC4+1 -> 37 | CG4: =CE4+1 -> 38 | CI4: =CG4+1 -> 39 | CK4: =CI4+1 -> 40 | CM4: =CK4+1 -> 41 | CO4: =CM4+1 -> 42 | CQ4: =CO4+1 -> 43 | CS4: =CQ4+1 -> 44 | CU4: =CS4+1 -> 45 | CW4: =CU4+1 -> 46 | CY4: =CW4+1 -> 47 | DA4: =CY4+1 -> 48 | DC4: =DA4+1 -> 49 | DE4: =DC4+1 -> 50 | DG4: =DE4+1 -> 51 | DI4: =DG4+1 -> 52 | DK4: =DI4+1 -> 53 | DM4: =DK4+1 -> 54 | DO4: =DM4+1 -> 55 | DQ4: =DO4+1 -> 56 | DS4: =DQ4+1 -> 57 | DU4: =DS4+1 -> 58 | DW4: =DU4+1 -> 59 | DY4: =DW4+1 -> 60
K6: =ROUND(SUM(L5:L53),2) -> 305.37 | M6: =ROUND(SUM(N5:N53),2) -> 305.37 | O6: =ROUND(SUM(P5:P53),2) -> 0 | Q6: =ROUND(SUM(R5:R53),2) -> 0 | S6: =ROUND(SUM(T5:T53),2) -> 0 | U6: =ROUND(SUM(V5:V53),2) -> 0 | W6: =ROUND(SUM(X5:X53),2) -> 0 | Y6: =ROUND(SUM(Z5:Z53),2) -> 0 | AA6: =ROUND(SUM(AB5:AB53),2) -> 0 | AC6: =ROUND(SUM(AD5:AD53),2) -> 0 | AE6: =ROUND(SUM(AF5:AF53),2) -> 0 | AG6: =ROUND(SUM(AH5:AH53),2) -> 0 | AI6: =ROUND(SUM(AJ5:AJ53),2) -> 0 | AK6: =ROUND(SUM(AL5:AL53),2) -> 0 | AM6: =ROUND(SUM(AN5:AN53),2) -> 0 | AO6: =ROUND(SUM(AP5:AP53),2) -> 0 | AQ6: =ROUND(SUM(AR5:AR53),2) -> 0 | AS6: =ROUND(SUM(AT5:AT53),2) -> 0 | AU6: =ROUND(SUM(AV5:AV53),2) -> 0 | AW6: =ROUND(SUM(AX5:AX53),2) -> 0 | AY6: =ROUND(SUM(AZ5:AZ53),2) -> 0 | BA6: =ROUND(SUM(BB5:BB53),2) -> 0 | BC6: =ROUND(SUM(BD5:BD53),2) -> 0 | BE6: =ROUND(SUM(BF5:BF53),2) -> 0 | BG6: =ROUND(SUM(BH5:BH53),2) -> 0 | BI6: =ROUND(SUM(BJ5:BJ53),2) -> 0 | BK6: =ROUND(SUM(BL5:BL53),2) -> 0 | BM6: =ROUND(SUM(BN5:BN53),2) -> 0 | BO6: =ROUND(SUM(BP5:BP53),2) -> 0 | BQ6: =ROUND(SUM(BR5:BR53),2) -> 0 | BS6: =ROUND(SUM(BT5:BT53),2) -> 0 | BU6: =ROUND(SUM(BV5:BV53),2) -> 0 | BW6: =ROUND(SUM(BX5:BX53),2) -> 0 | BY6: =ROUND(SUM(BZ5:BZ53),2) -> 0 | CA6: =ROUND(SUM(CB5:CB53),2) -> 0 | CC6: =ROUND(SUM(CD5:CD53),2) -> 0 | CE6: =ROUND(SUM(CF5:CF53),2) -> 0 | CG6: =ROUND(SUM(CH5:CH53),2) -> 0 | CI6: =ROUND(SUM(CJ5:CJ53),2) -> 0 | CK6: =ROUND(SUM(CL5:CL53),2) -> 0 | CM6: =ROUND(SUM(CN5:CN53),2) -> 0 | CO6: =ROUND(SUM(CP5:CP53),2) -> 0 | CQ6: =ROUND(SUM(CR5:CR53),2) -> 0 | CS6: =ROUND(SUM(CT5:CT53),2) -> 0 | CU6: =ROUND(SUM(CV5:CV53),2) -> 0 | CW6: =ROUND(SUM(CX5:CX53),2) -> 0 | CY6: =ROUND(SUM(CZ5:CZ53),2) -> 0 | DA6: =ROUND(SUM(DB5:DB53),2) -> 0 | DC6: =ROUND(SUM(DD5:DD53),2) -> 0 | DE6: =ROUND(SUM(DF5:DF53),2) -> 0 | DG6: =ROUND(SUM(DH5:DH53),2) -> 0 | DI6: =ROUND(SUM(DJ5:DJ53),2) -> 0 | DK6: =ROUND(SUM(DL5:DL53),2) -> 0 | DM6: =ROUND(SUM(DN5:DN53),2) -> 0 | DO6: =ROUND(SUM(DP5:DP53),2) -> 0 | DQ6: =ROUND(SUM(DR5:DR53),2) -> 0 | DS6: =ROUND(SUM(DT5:DT53),2) -> 0 | DU6: =ROUND(SUM(DV5:DV53),2) -> 0 | DW6: =ROUND(SUM(DX5:DX53),2) -> 0 | DY6: =ROUND(SUM(DZ5:DZ53),2) -> 0
C7: CATEGORIAS | H7: QUANTIDADE
K8: =IF($C8=K$4,1,0) -> 0 | M8: =IF($C8=M$4,1,0) -> 0
C9: 1 | D9: =HLOOKUP($C9,'Dados Gerais'!$D$5:$BK$10,6) -> TÉCNICO EM DESCRIÇÃO DE DOCUMENTOS DE ARQUIVO | H9: =HLOOKUP($C9,'Dados Gerais'!$D$5:$BK$14,10) -> 8 | K9: =IF($C9=K$4,1,0) -> 1 | M9: =IF($C10=M$4,1,0) -> 1 | O9: =IF($C9=O$4,1,0) -> 0 | Q9: =IF($C9=Q$4,1,0) -> 0 | S9: =IF($C9=S$4,1,0) -> 0 | U9: =IF($C9=U$4,1,0) -> 0 | W9: =IF($C9=W$4,1,0) -> 0 | Y9: =IF($C9=Y$4,1,0) -> 0 | AA9: =IF($C9=AA$4,1,0) -> 0 | AC9: =IF($C9=AC$4,1,0) -> 0 | AE9: =IF($C9=AE$4,1,0) -> 0 | AG9: =IF($C9=AG$4,1,0) -> 0 | AI9: =IF($C9=AI$4,1,0) -> 0 | AK9: =IF($C9=AK$4,1,0) -> 0 | AM9: =IF($C9=AM$4,1,0) -> 0 | AO9: =IF($C9=AO$4,1,0) -> 0 | AQ9: =IF($C9=AQ$4,1,0) -> 0 | AS9: =IF($C9=AS$4,1,0) -> 0 | AU9: =IF($C9=AU$4,1,0) -> 0 | AW9: =IF($C9=AW$4,1,0) -> 0 | AY9: =IF($C9=AY$4,1,0) -> 0 | BA9: =IF($C9=BA$4,1,0) -> 0 | BC9: =IF($C9=BC$4,1,0) -> 0 | BE9: =IF($C9=BE$4,1,0) -> 0 | BG9: =IF($C9=BG$4,1,0) -> 0 | BI9: =IF($C9=BI$4,1,0) -> 0 | BK9: =IF($C9=BK$4,1,0) -> 0 | BM9: =IF($C9=BM$4,1,0) -> 0 | BO9: =IF($C9=BO$4,1,0) -> 0 | BQ9: =IF($C9=BQ$4,1,0) -> 0 | BS9: =IF($C9=BS$4,1,0) -> 0 | BU9: =IF($C9=BU$4,1,0) -> 0 | BW9: =IF($C9=BW$4,1,0) -> 0 | BY9: =IF($C9=BY$4,1,0) -> 0 | CA9: =IF($C9=CA$4,1,0) -> 0 | CC9: =IF($C9=CC$4,1,0) -> 0 | CE9: =IF($C9=CE$4,1,0) -> 0 | CG9: =IF($C9=CG$4,1,0) -> 0 | CI9: =IF($C9=CI$4,1,0) -> 0 | CK9: =IF($C9=CK$4,1,0) -> 0 | CM9: =IF($C9=CM$4,1,0) -> 0 | CO9: =IF($C9=CO$4,1,0) -> 0 | CQ9: =IF($C9=CQ$4,1,0) -> 0 | CS9: =IF($C9=CS$4,1,0) -> 0 | CU9: =IF($C9=CU$4,1,0) -> 0 | CW9: =IF($C9=CW$4,1,0) -> 0 | CY9: =IF($C9=CY$4,1,0) -> 0 | DA9: =IF($C9=DA$4,1,0) -> 0 | DC9: =IF($C9=DC$4,1,0) -> 0 | DE9: =IF($C9=DE$4,1,0) -> 0 | DG9: =IF($C9=DG$4,1,0) -> 0 | DI9: =IF($C9=DI$4,1,0) -> 0 | DK9: =IF($C9=DK$4,1,0) -> 0 | DM9: =IF($C9=DM$4,1,0) -> 0 | DO9: =IF($C9=DO$4,1,0) -> 0 | DQ9: =IF($C9=DQ$4,1,0) -> 0 | DS9: =IF($C9=DS$4,1,0) -> 0 | DU9: =IF($C9=DU$4,1,0) -> 0 | DW9: =IF($C9=DW$4,1,0) -> 0 | DY9: =IF($C9=DY$4,1,0) -> 0
C10: 2 | D10: =HLOOKUP($C10,'Dados Gerais'!$D$5:$BK$10,6) -> COORDENADOR DE DESCRIÇÃO DE DOCUMENTOS DE ARQUIVO | H10: =HLOOKUP($C10,'Dados Gerais'!$D$5:$BK$14,10) -> 2
K11: =IF($C11=K$4,1,0) -> 0 | M11: =IF($C11=M$4,1,0) -> 0
C13: ITEM | D13: DESCRIÇÃO | E13: QUANT ANUAL POR POSTO | F13: Nº DE POSTOS | G13: QUANT ANUAL TOTAL | H13: VALOR
L14: =IF(SUM(K$8:K$11)>0,$E14*$H14,0) -> 0 | N14: =IF(SUM(M$8:M$11)>0,$E14*$H14,0) -> 0 | P14: =IF(SUM(O$8:O$11)>0,$E14*$H14,0) -> 0 | R14: =IF(SUM(Q$8:Q$11)>0,$E14*$H14,0) -> 0 | T14: =IF(SUM(S$8:S$11)>0,$E14*$H14,0) -> 0 | V14: =IF(SUM(U$8:U$11)>0,$E14*$H14,0) -> 0 | X14: =IF(SUM(W$8:W$11)>0,$E14*$H14,0) -> 0 | Z14: =IF(SUM(Y$8:Y$11)>0,$E14*$H14,0) -> 0 | AB14: =IF(SUM(AA$8:AA$11)>0,$E14*$H14,0) -> 0 | AD14: =IF(SUM(AC$8:AC$11)>0,$E14*$H14,0) -> 0 | AF14: =IF(SUM(AE$8:AE$11)>0,$E14*$H14,0) -> 0 | AH14: =IF(SUM(AG$8:AG$11)>0,$E14*$H14,0) -> 0 | AJ14: =IF(SUM(AI$8:AI$11)>0,$E14*$H14,0) -> 0 | AL14: =IF(SUM(AK$8:AK$11)>0,$E14*$H14,0) -> 0 | AN14: =IF(SUM(AM$8:AM$11)>0,$E14*$H14,0) -> 0 | AP14: =IF(SUM(AO$8:AO$11)>0,$E14*$H14,0) -> 0 | AR14: =IF(SUM(AQ$8:AQ$11)>0,$E14*$H14,0) -> 0 | AT14: =IF(SUM(AS$8:AS$11)>0,$E14*$H14,0) -> 0 | AV14: =IF(SUM(AU$8:AU$11)>0,$E14*$H14,0) -> 0 | AX14: =IF(SUM(AW$8:AW$11)>0,$E14*$H14,0) -> 0 | AZ14: =IF(SUM(AY$8:AY$11)>0,$E14*$H14,0) -> 0 | BB14: =IF(SUM(BA$8:BA$11)>0,$E14*$H14,0) -> 0 | BD14: =IF(SUM(BC$8:BC$11)>0,$E14*$H14,0) -> 0 | BF14: =IF(SUM(BE$8:BE$11)>0,$E14*$H14,0) -> 0 | BH14: =IF(SUM(BG$8:BG$11)>0,$E14*$H14,0) -> 0 | BJ14: =IF(SUM(BI$8:BI$11)>0,$E14*$H14,0) -> 0 | BL14: =IF(SUM(BK$8:BK$11)>0,$E14*$H14,0) -> 0 | BN14: =IF(SUM(BM$8:BM$11)>0,$E14*$H14,0) -> 0 | BP14: =IF(SUM(BO$8:BO$11)>0,$E14*$H14,0) -> 0 | BR14: =IF(SUM(BQ$8:BQ$11)>0,$E14*$H14,0) -> 0 | BT14: =IF(SUM(BS$8:BS$11)>0,$E14*$H14,0) -> 0 | BV14: =IF(SUM(BU$8:BU$11)>0,$E14*$H14,0) -> 0 | BX14: =IF(SUM(BW$8:BW$11)>0,$E14*$H14,0) -> 0 | BZ14: =IF(SUM(BY$8:BY$11)>0,$E14*$H14,0) -> 0 | CB14: =IF(SUM(CA$8:CA$11)>0,$E14*$H14,0) -> 0 | CD14: =IF(SUM(CC$8:CC$11)>0,$E14*$H14,0) -> 0 | CF14: =IF(SUM(CE$8:CE$11)>0,$E14*$H14,0) -> 0 | CH14: =IF(SUM(CG$8:CG$11)>0,$E14*$H14,0) -> 0 | CJ14: =IF(SUM(CI$8:CI$11)>0,$E14*$H14,0) -> 0 | CL14: =IF(SUM(CK$8:CK$11)>0,$E14*$H14,0) -> 0 | CN14: =IF(SUM(CM$8:CM$11)>0,$E14*$H14,0) -> 0 | CP14: =IF(SUM(CO$8:CO$11)>0,$E14*$H14,0) -> 0 | CR14: =IF(SUM(CQ$8:CQ$11)>0,$E14*$H14,0) -> 0 | CT14: =IF(SUM(CS$8:CS$11)>0,$E14*$H14,0) -> 0 | CV14: =IF(SUM(CU$8:CU$11)>0,$E14*$H14,0) -> 0 | CX14: =IF(SUM(CW$8:CW$11)>0,$E14*$H14,0) -> 0 | CZ14: =IF(SUM(CY$8:CY$11)>0,$E14*$H14,0) -> 0 | DB14: =IF(SUM(DA$8:DA$11)>0,$E14*$H14,0) -> 0 | DD14: =IF(SUM(DC$8:DC$11)>0,$E14*$H14,0) -> 0 | DF14: =IF(SUM(DE$8:DE$11)>0,$E14*$H14,0) -> 0 | DH14: =IF(SUM(DG$8:DG$11)>0,$E14*$H14,0) -> 0 | DJ14: =IF(SUM(DI$8:DI$11)>0,$E14*$H14,0) -> 0 | DL14: =IF(SUM(DK$8:DK$11)>0,$E14*$H14,0) -> 0 | DN14: =IF(SUM(DM$8:DM$11)>0,$E14*$H14,0) -> 0 | DP14: =IF(SUM(DO$8:DO$11)>0,$E14*$H14,0) -> 0 | DR14: =IF(SUM(DQ$8:DQ$11)>0,$E14*$H14,0) -> 0 | DT14: =IF(SUM(DS$8:DS$11)>0,$E14*$H14,0) -> 0 | DV14: =IF(SUM(DU$8:DU$11)>0,$E14*$H14,0) -> 0 | DX14: =IF(SUM(DW$8:DW$11)>0,$E14*$H14,0) -> 0 | DZ14: =IF(SUM(DY$8:DY$11)>0,$E14*$H14,0) -> 0
C15: 1 | D15: Jaleco em tecido pró-fit - 67% algodão e 33% poliéster, primeira qualidade, na cor branca, manga longa com punho - conforme modelo fornecido pelo órgão responsável. | E15: 3 | F15: =SUM(H9:H10) -> 10 | G15: =F15*E15 -> 30 | H15: 101.79 | L15: =IF(SUM(K$8:K$11)>0,$E15*$H15,0) -> 305.37 | N15: 305.37 | P15: 0 | R15: 0 | T15: 0 | V15: 0 | X15: 0 | Z15: 0 | AB15: 0 | AD15: 0 | AF15: 0 | AH15: 0 | AJ15: 0 | AL15: 0 | AN15: 0 | AP15: 0 | AR15: 0 | AT15: 0 | AV15: 0 | AX15: 0 | AZ15: 0 | BB15: 0 | BD15: 0 | BF15: 0 | BH15: 0 | BJ15: 0 | BL15: 0 | BN15: 0 | BP15: 0 | BR15: 0 | BT15: 0 | BV15: 0 | BX15: 0 | BZ15: 0 | CB15: 0 | CD15: 0 | CF15: 0 | CH15: 0 | CJ15: 0 | CL15: 0 | CN15: 0 | CP15: 0 | CR15: 0 | CT15: 0 | CV15: 0 | CX15: 0 | CZ15: 0 | DB15: 0 | DD15: 0 | DF15: 0 | DH15: 0 | DJ15: 0 | DL15: 0 | DN15: 0 | DP15: 0 | DR15: 0 | DT15: 0 | DV15: 0 | DX15: 0 | DZ15: 0
C16: 2 | L16: 0 | N16: 0 | P16: 0 | R16: 0 | T16: 0 | V16: 0 | X16: 0 | Z16: 0 | AB16: 0 | AD16: 0 | AF16: 0 | AH16: 0 | AJ16: 0 | AL16: 0 | AN16: 0 | AP16: 0 | AR16: 0 | AT16: 0 | AV16: 0 | AX16: 0 | AZ16: 0 | BB16: 0 | BD16: 0 | BF16: 0 | BH16: 0 | BJ16: 0 | BL16: 0 | BN16: 0 | BP16: 0 | BR16: 0 | BT16: 0 | BV16: 0 | BX16: 0 | BZ16: 0 | CB16: 0 | CD16: 0 | CF16: 0 | CH16: 0 | CJ16: 0 | CL16: 0 | CN16: 0 | CP16: 0 | CR16: 0 | CT16: 0 | CV16: 0 | CX16: 0 | CZ16: 0 | DB16: 0 | DD16: 0 | DF16: 0 | DH16: 0 | DJ16: 0 | DL16: 0 | DN16: 0 | DP16: 0 | DR16: 0 | DT16: 0 | DV16: 0 | DX16: 0 | DZ16: 0
C17: 3 | L17: 0 | N17: 0 | P17: 0 | R17: 0 | T17: 0 | V17: 0 | X17: 0 | Z17: 0 | AB17: 0 | AD17: 0 | AF17: 0 | AH17: 0 | AJ17: 0 | AL17: 0 | AN17: 0 | AP17: 0 | AR17: 0 | AT17: 0 | AV17: 0 | AX17: 0 | AZ17: 0 | BB17: 0 | BD17: 0 | BF17: 0 | BH17: 0 | BJ17: 0 | BL17: 0 | BN17: 0 | BP17: 0 | BR17: 0 | BT17: 0 | BV17: 0 | BX17: 0 | BZ17: 0 | CB17: 0 | CD17: 0 | CF17: 0 | CH17: 0 | CJ17: 0 | CL17: 0 | CN17: 0 | CP17: 0 | CR17: 0 | CT17: 0 | CV17: 0 | CX17: 0 | CZ17: 0 | DB17: 0 | DD17: 0 | DF17: 0 | DH17: 0 | DJ17: 0 | DL17: 0 | DN17: 0 | DP17: 0 | DR17: 0 | DT17: 0 | DV17: 0 | DX17: 0 | DZ17: 0
C18: 4 | L18: 0 | N18: 0 | P18: 0 | R18: 0 | T18: 0 | V18: 0 | X18: 0 | Z18: 0 | AB18: 0 | AD18: 0 | AF18: 0 | AH18: 0 | AJ18: 0 | AL18: 0 | AN18: 0 | AP18: 0 | AR18: 0 | AT18: 0 | AV18: 0 | AX18: 0 | AZ18: 0 | BB18: 0 | BD18: 0 | BF18: 0 | BH18: 0 | BJ18: 0 | BL18: 0 | BN18: 0 | BP18: 0 | BR18: 0 | BT18: 0 | BV18: 0 | BX18: 0 | BZ18: 0 | CB18: 0 | CD18: 0 | CF18: 0 | CH18: 0 | CJ18: 0 | CL18: 0 | CN18: 0 | CP18: 0 | CR18: 0 | CT18: 0 | CV18: 0 | CX18: 0 | CZ18: 0 | DB18: 0 | DD18: 0 | DF18: 0 | DH18: 0 | DJ18: 0 | DL18: 0 | DN18: 0 | DP18: 0 | DR18: 0 | DT18: 0 | DV18: 0 | DX18: 0 | DZ18: 0
C19: 5 | L19: 0 | N19: 0 | P19: 0 | R19: 0 | T19: 0 | V19: 0 | X19: 0 | Z19: 0 | AB19: 0 | AD19: 0 | AF19: 0 | AH19: 0 | AJ19: 0 | AL19: 0 | AN19: 0 | AP19: 0 | AR19: 0 | AT19: 0 | AV19: 0 | AX19: 0 | AZ19: 0 | BB19: 0 | BD19: 0 | BF19: 0 | BH19: 0 | BJ19: 0 | BL19: 0 | BN19: 0 | BP19: 0 | BR19: 0 | BT19: 0 | BV19: 0 | BX19: 0 | BZ19: 0 | CB19: 0 | CD19: 0 | CF19: 0 | CH19: 0 | CJ19: 0 | CL19: 0 | CN19: 0 | CP19: 0 | CR19: 0 | CT19: 0 | CV19: 0 | CX19: 0 | CZ19: 0 | DB19: 0 | DD19: 0 | DF19: 0 | DH19: 0 | DJ19: 0 | DL19: 0 | DN19: 0 | DP19: 0 | DR19: 0 | DT19: 0 | DV19: 0 | DX19: 0 | DZ19: 0
L20: 0 | N20: 0 | P20: 0 | R20: 0 | T20: 0 | V20: 0 | X20: 0 | Z20: 0 | AB20: 0 | AD20: 0 | AF20: 0 | AH20: 0 | AJ20: 0 | AL20: 0 | AN20: 0 | AP20: 0 | AR20: 0 | AT20: 0 | AV20: 0 | AX20: 0 | AZ20: 0 | BB20: 0 | BD20: 0 | BF20: 0 | BH20: 0 | BJ20: 0 | BL20: 0 | BN20: 0 | BP20: 0 | BR20: 0 | BT20: 0 | BV20: 0 | BX20: 0 | BZ20: 0 | CB20: 0 | CD20: 0 | CF20: 0 | CH20: 0 | CJ20: 0 | CL20: 0 | CN20: 0 | CP20: 0 | CR20: 0 | CT20: 0 | CV20: 0 | CX20: 0 | CZ20: 0 | DB20: 0 | DD20: 0 | DF20: 0 | DH20: 0 | DJ20: 0 | DL20: 0 | DN20: 0 | DP20: 0 | DR20: 0 | DT20: 0 | DV20: 0 | DX20: 0 | DZ20: 0
C22: CATEGORIAS | H22: QUANTIDADE
K23: =IF($C23=K$4,1,0) -> 0
D24: =HLOOKUP($C24,'Dados Gerais'!$D$5:$BK$10,6) ->  | H24: =HLOOKUP($C24,'Dados Gerais'!$D$5:$BK$14,10) ->  | K24: =IF($C24=K$4,1,0) -> 0 | M24: =IF($C24=M$4,1,0) -> 0 | O24: =IF($C24=O$4,1,0) -> 0 | Q24: =IF($C24=Q$4,1,0) -> 0 | S24: =IF($C24=S$4,1,0) -> 0 | U24: =IF($C24=U$4,1,0) -> 0 | W24: =IF($C24=W$4,1,0) -> 0 | Y24: =IF($C24=Y$4,1,0) -> 0 | AA24: =IF($C24=AA$4,1,0) -> 0 | AC24: =IF($C24=AC$4,1,0) -> 0 | AE24: =IF($C24=AE$4,1,0) -> 0 | AG24: =IF($C24=AG$4,1,0) -> 0 | AI24: =IF($C24=AI$4,1,0) -> 0 | AK24: =IF($C24=AK$4,1,0) -> 0 | AM24: =IF($C24=AM$4,1,0) -> 0 | AO24: =IF($C24=AO$4,1,0) -> 0 | AQ24: =IF($C24=AQ$4,1,0) -> 0 | AS24: =IF($C24=AS$4,1,0) -> 0 | AU24: =IF($C24=AU$4,1,0) -> 0 | AW24: =IF($C24=AW$4,1,0) -> 0 | AY24: =IF($C24=AY$4,1,0) -> 0 | BA24: =IF($C24=BA$4,1,0) -> 0 | BC24: =IF($C24=BC$4,1,0) -> 0 | BE24: =IF($C24=BE$4,1,0) -> 0 | BG24: =IF($C24=BG$4,1,0) -> 0 | BI24: =IF($C24=BI$4,1,0) -> 0 | BK24: =IF($C24=BK$4,1,0) -> 0 | BM24: =IF($C24=BM$4,1,0) -> 0 | BO24: =IF($C24=BO$4,1,0) -> 0 | BQ24: =IF($C24=BQ$4,1,0) -> 0 | BS24: =IF($C24=BS$4,1,0) -> 0 | BU24: =IF($C24=BU$4,1,0) -> 0 | BW24: =IF($C24=BW$4,1,0) -> 0 | BY24: =IF($C24=BY$4,1,0) -> 0 | CA24: =IF($C24=CA$4,1,0) -> 0 | CC24: =IF($C24=CC$4,1,0) -> 0 | CE24: =IF($C24=CE$4,1,0) -> 0 | CG24: =IF($C24=CG$4,1,0) -> 0 | CI24: =IF($C24=CI$4,1,0) -> 0 | CK24: =IF($C24=CK$4,1,0) -> 0 | CM24: =IF($C24=CM$4,1,0) -> 0 | CO24: =IF($C24=CO$4,1,0) -> 0 | CQ24: =IF($C24=CQ$4,1,0) -> 0 | CS24: =IF($C24=CS$4,1,0) -> 0 | CU24: =IF($C24=CU$4,1,0) -> 0 | CW24: =IF($C24=CW$4,1,0) -> 0 | CY24: =IF($C24=CY$4,1,0) -> 0 | DA24: =IF($C24=DA$4,1,0) -> 0 | DC24: =IF($C24=DC$4,1,0) -> 0 | DE24: =IF($C24=DE$4,1,0) -> 0 | DG24: =IF($C24=DG$4,1,0) -> 0 | DI24: =IF($C24=DI$4,1,0) -> 0 | DK24: =IF($C24=DK$4,1,0) -> 0 | DM24: =IF($C24=DM$4,1,0) -> 0 | DO24: =IF($C24=DO$4,1,0) -> 0 | DQ24: =IF($C24=DQ$4,1,0) -> 0 | DS24: =IF($C24=DS$4,1,0) -> 0 | DU24: =IF($C24=DU$4,1,0) -> 0 | DW24: =IF($C24=DW$4,1,0) -> 0 | DY24: =IF($C24=DY$4,1,0) -> 0
D25: =HLOOKUP($C25,'Dados Gerais'!$D$5:$BK$10,6) ->  | H25: =HLOOKUP($C25,'Dados Gerais'!$D$5:$BK$14,10) ->  | K25: =IF($C25=K$4,1,0) -> 0 | M25: =IF($C25=M$4,1,0) -> 0 | O25: =IF($C25=O$4,1,0) -> 0 | Q25: =IF($C25=Q$4,1,0) -> 0 | S25: =IF($C25=S$4,1,0) -> 0 | U25: =IF($C25=U$4,1,0) -> 0 | W25: =IF($C25=W$4,1,0) -> 0 | Y25: =IF($C25=Y$4,1,0) -> 0 | AA25: =IF($C25=AA$4,1,0) -> 0 | AC25: =IF($C25=AC$4,1,0) -> 0 | AE25: =IF($C25=AE$4,1,0) -> 0 | AG25: =IF($C25=AG$4,1,0) -> 0 | AI25: =IF($C25=AI$4,1,0) -> 0 | AK25: =IF($C25=AK$4,1,0) -> 0 | AM25: =IF($C25=AM$4,1,0) -> 0 | AO25: =IF($C25=AO$4,1,0) -> 0 | AQ25: =IF($C25=AQ$4,1,0) -> 0 | AS25: =IF($C25=AS$4,1,0) -> 0 | AU25: =IF($C25=AU$4,1,0) -> 0 | AW25: =IF($C25=AW$4,1,0) -> 0 | AY25: =IF($C25=AY$4,1,0) -> 0 | BA25: =IF($C25=BA$4,1,0) -> 0 | BC25: =IF($C25=BC$4,1,0) -> 0 | BE25: =IF($C25=BE$4,1,0) -> 0 | BG25: =IF($C25=BG$4,1,0) -> 0 | BI25: =IF($C25=BI$4,1,0) -> 0 | BK25: =IF($C25=BK$4,1,0) -> 0 | BM25: =IF($C25=BM$4,1,0) -> 0 | BO25: =IF($C25=BO$4,1,0) -> 0 | BQ25: =IF($C25=BQ$4,1,0) -> 0 | BS25: =IF($C25=BS$4,1,0) -> 0 | BU25: =IF($C25=BU$4,1,0) -> 0 | BW25: =IF($C25=BW$4,1,0) -> 0 | BY25: =IF($C25=BY$4,1,0) -> 0 | CA25: =IF($C25=CA$4,1,0) -> 0 | CC25: =IF($C25=CC$4,1,0) -> 0 | CE25: =IF($C25=CE$4,1,0) -> 0 | CG25: =IF($C25=CG$4,1,0) -> 0 | CI25: =IF($C25=CI$4,1,0) -> 0 | CK25: =IF($C25=CK$4,1,0) -> 0 | CM25: =IF($C25=CM$4,1,0) -> 0 | CO25: =IF($C25=CO$4,1,0) -> 0 | CQ25: =IF($C25=CQ$4,1,0) -> 0 | CS25: =IF($C25=CS$4,1,0) -> 0 | CU25: =IF($C25=CU$4,1,0) -> 0 | CW25: =IF($C25=CW$4,1,0) -> 0 | CY25: =IF($C25=CY$4,1,0) -> 0 | DA25: =IF($C25=DA$4,1,0) -> 0 | DC25: =IF($C25=DC$4,1,0) -> 0 | DE25: =IF($C25=DE$4,1,0) -> 0 | DG25: =IF($C25=DG$4,1,0) -> 0 | DI25: =IF($C25=DI$4,1,0) -> 0 | DK25: =IF($C25=DK$4,1,0) -> 0 | DM25: =IF($C25=DM$4,1,0) -> 0 | DO25: =IF($C25=DO$4,1,0) -> 0 | DQ25: =IF($C25=DQ$4,1,0) -> 0 | DS25: =IF($C25=DS$4,1,0) -> 0 | DU25: =IF($C25=DU$4,1,0) -> 0 | DW25: =IF($C25=DW$4,1,0) -> 0 | DY25: =IF($C25=DY$4,1,0) -> 0
K26: =IF($C26=K$4,1,0) -> 0
C28: ITEM | D28: DESCRIÇÃO | E28: QUANT ANUAL POR POSTO | F28: Nº DE POSTOS | G28: QUANT ANUAL TOTAL | H28: VALOR
L29: =IF(SUM(K$8:K$11)>0,$E29*$H29,0) -> 0 | N29: =IF(SUM(M$8:M$11)>0,$E29*$H29,0) -> 0 | P29: =IF(SUM(O$8:O$11)>0,$E29*$H29,0) -> 0 | R29: =IF(SUM(Q$8:Q$11)>0,$E29*$H29,0) -> 0 | T29: =IF(SUM(S$8:S$11)>0,$E29*$H29,0) -> 0 | V29: =IF(SUM(U$8:U$11)>0,$E29*$H29,0) -> 0 | X29: =IF(SUM(W$8:W$11)>0,$E29*$H29,0) -> 0 | Z29: =IF(SUM(Y$8:Y$11)>0,$E29*$H29,0) -> 0 | AB29: =IF(SUM(AA$8:AA$11)>0,$E29*$H29,0) -> 0 | AD29: =IF(SUM(AC$8:AC$11)>0,$E29*$H29,0) -> 0 | AF29: =IF(SUM(AE$8:AE$11)>0,$E29*$H29,0) -> 0 | AH29: =IF(SUM(AG$8:AG$11)>0,$E29*$H29,0) -> 0 | AJ29: =IF(SUM(AI$8:AI$11)>0,$E29*$H29,0) -> 0 | AL29: =IF(SUM(AK$8:AK$11)>0,$E29*$H29,0) -> 0 | AN29: =IF(SUM(AM$8:AM$11)>0,$E29*$H29,0) -> 0 | AP29: =IF(SUM(AO$8:AO$11)>0,$E29*$H29,0) -> 0 | AR29: =IF(SUM(AQ$8:AQ$11)>0,$E29*$H29,0) -> 0 | AT29: =IF(SUM(AS$8:AS$11)>0,$E29*$H29,0) -> 0 | AV29: =IF(SUM(AU$8:AU$11)>0,$E29*$H29,0) -> 0 | AX29: =IF(SUM(AW$8:AW$11)>0,$E29*$H29,0) -> 0 | AZ29: =IF(SUM(AY$8:AY$11)>0,$E29*$H29,0) -> 0 | BB29: =IF(SUM(BA$8:BA$11)>0,$E29*$H29,0) -> 0 | BD29: =IF(SUM(BC$8:BC$11)>0,$E29*$H29,0) -> 0 | BF29: =IF(SUM(BE$8:BE$11)>0,$E29*$H29,0) -> 0 | BH29: =IF(SUM(BG$8:BG$11)>0,$E29*$H29,0) -> 0 | BJ29: =IF(SUM(BI$8:BI$11)>0,$E29*$H29,0) -> 0 | BL29: =IF(SUM(BK$8:BK$11)>0,$E29*$H29,0) -> 0 | BN29: =IF(SUM(BM$8:BM$11)>0,$E29*$H29,0) -> 0 | BP29: =IF(SUM(BO$8:BO$11)>0,$E29*$H29,0) -> 0 | BR29: =IF(SUM(BQ$8:BQ$11)>0,$E29*$H29,0) -> 0 | BT29: =IF(SUM(BS$8:BS$11)>0,$E29*$H29,0) -> 0 | BV29: =IF(SUM(BU$8:BU$11)>0,$E29*$H29,0) -> 0 | BX29: =IF(SUM(BW$8:BW$11)>0,$E29*$H29,0) -> 0 | BZ29: =IF(SUM(BY$8:BY$11)>0,$E29*$H29,0) -> 0 | CB29: =IF(SUM(CA$8:CA$11)>0,$E29*$H29,0) -> 0 | CD29: =IF(SUM(CC$8:CC$11)>0,$E29*$H29,0) -> 0 | CF29: =IF(SUM(CE$8:CE$11)>0,$E29*$H29,0) -> 0 | CH29: =IF(SUM(CG$8:CG$11)>0,$E29*$H29,0) -> 0 | CJ29: =IF(SUM(CI$8:CI$11)>0,$E29*$H29,0) -> 0 | CL29: =IF(SUM(CK$8:CK$11)>0,$E29*$H29,0) -> 0 | CN29: =IF(SUM(CM$8:CM$11)>0,$E29*$H29,0) -> 0 | CP29: =IF(SUM(CO$8:CO$11)>0,$E29*$H29,0) -> 0 | CR29: =IF(SUM(CQ$8:CQ$11)>0,$E29*$H29,0) -> 0 | CT29: =IF(SUM(CS$8:CS$11)>0,$E29*$H29,0) -> 0 | CV29: =IF(SUM(CU$8:CU$11)>0,$E29*$H29,0) -> 0 | CX29: =IF(SUM(CW$8:CW$11)>0,$E29*$H29,0) -> 0 | CZ29: =IF(SUM(CY$8:CY$11)>0,$E29*$H29,0) -> 0 | DB29: =IF(SUM(DA$8:DA$11)>0,$E29*$H29,0) -> 0 | DD29: =IF(SUM(DC$8:DC$11)>0,$E29*$H29,0) -> 0 | DF29: =IF(SUM(DE$8:DE$11)>0,$E29*$H29,0) -> 0 | DH29: =IF(SUM(DG$8:DG$11)>0,$E29*$H29,0) -> 0 | DJ29: =IF(SUM(DI$8:DI$11)>0,$E29*$H29,0) -> 0 | DL29: =IF(SUM(DK$8:DK$11)>0,$E29*$H29,0) -> 0 | DN29: =IF(SUM(DM$8:DM$11)>0,$E29*$H29,0) -> 0 | DP29: =IF(SUM(DO$8:DO$11)>0,$E29*$H29,0) -> 0 | DR29: =IF(SUM(DQ$8:DQ$11)>0,$E29*$H29,0) -> 0 | DT29: =IF(SUM(DS$8:DS$11)>0,$E29*$H29,0) -> 0 | DV29: =IF(SUM(DU$8:DU$11)>0,$E29*$H29,0) -> 0 | DX29: =IF(SUM(DW$8:DW$11)>0,$E29*$H29,0) -> 0 | DZ29: =IF(SUM(DY$8:DY$11)>0,$E29*$H29,0) -> 0
C30: 7 | E30: 4 | F30: =H24+H25 ->  | G30: =F30*E30 ->  | L30: =IF(SUM(K$24:K$26)>0,$E30*$H30,0) -> 0 | N30: =IF(SUM(M$24:M$26)>0,$E30*$H30,0) -> 0 | P30: =IF(SUM(O$24:O$26)>0,$E30*$H30,0) -> 0 | R30: =IF(SUM(Q$24:Q$26)>0,$E30*$H30,0) -> 0 | T30: =IF(SUM(S$24:S$26)>0,$E30*$H30,0) -> 0 | V30: =IF(SUM(U$24:U$26)>0,$E30*$H30,0) -> 0 | X30: =IF(SUM(W$24:W$26)>0,$E30*$H30,0) -> 0 | Z30: =IF(SUM(Y$24:Y$26)>0,$E30*$H30,0) -> 0 | AB30: =IF(SUM(AA$24:AA$26)>0,$E30*$H30,0) -> 0 | AD30: 0 | AF30: 0 | AH30: 0 | AJ30: 0 | AL30: 0 | AN30: 0 | AP30: 0 | AR30: 0 | AT30: 0 | AV30: 0 | AX30: 0 | AZ30: 0 | BB30: 0 | BD30: 0 | BF30: 0 | BH30: 0 | BJ30: 0 | BL30: 0 | BN30: 0 | BP30: 0 | BR30: 0 | BT30: 0 | BV30: 0 | BX30: 0 | BZ30: 0 | CB30: 0 | CD30: 0 | CF30: 0 | CH30: 0 | CJ30: 0 | CL30: 0 | CN30: 0 | CP30: 0 | CR30: 0 | CT30: 0 | CV30: 0 | CX30: 0 | CZ30: 0 | DB30: 0 | DD30: 0 | DF30: 0 | DH30: 0 | DJ30: 0 | DL30: 0 | DN30: 0 | DP30: 0 | DR30: 0 | DT30: 0 | DV30: 0 | DX30: 0 | DZ30: 0
C31: 8 | E31: =E30 -> 4 | L31: 0 | N31: 0 | P31: 0 | R31: 0 | T31: 0 | V31: 0 | X31: 0 | Z31: 0 | AB31: 0 | AD31: 0 | AF31: 0 | AH31: 0 | AJ31: 0 | AL31: 0 | AN31: 0 | AP31: 0 | AR31: 0 | AT31: 0 | AV31: 0 | AX31: 0 | AZ31: 0 | BB31: 0 | BD31: 0 | BF31: 0 | BH31: 0 | BJ31: 0 | BL31: 0 | BN31: 0 | BP31: 0 | BR31: 0 | BT31: 0 | BV31: 0 | BX31: 0 | BZ31: 0 | CB31: 0 | CD31: 0 | CF31: 0 | CH31: 0 | CJ31: 0 | CL31: 0 | CN31: 0 | CP31: 0 | CR31: 0 | CT31: 0 | CV31: 0 | CX31: 0 | CZ31: 0 | DB31: 0 | DD31: 0 | DF31: 0 | DH31: 0 | DJ31: 0 | DL31: 0 | DN31: 0 | DP31: 0 | DR31: 0 | DT31: 0 | DV31: 0 | DX31: 0 | DZ31: 0
C32: 9 | E32: 4 | L32: 0 | N32: 0 | P32: 0 | R32: 0 | T32: 0 | V32: 0 | X32: 0 | Z32: 0 | AB32: 0 | AD32: 0 | AF32: 0 | AH32: 0 | AJ32: 0 | AL32: 0 | AN32: 0 | AP32: 0 | AR32: 0 | AT32: 0 | AV32: 0 | AX32: 0 | AZ32: 0 | BB32: 0 | BD32: 0 | BF32: 0 | BH32: 0 | BJ32: 0 | BL32: 0 | BN32: 0 | BP32: 0 | BR32: 0 | BT32: 0 | BV32: 0 | BX32: 0 | BZ32: 0 | CB32: 0 | CD32: 0 | CF32: 0 | CH32: 0 | CJ32: 0 | CL32: 0 | CN32: 0 | CP32: 0 | CR32: 0 | CT32: 0 | CV32: 0 | CX32: 0 | CZ32: 0 | DB32: 0 | DD32: 0 | DF32: 0 | DH32: 0 | DJ32: 0 | DL32: 0 | DN32: 0 | DP32: 0 | DR32: 0 | DT32: 0 | DV32: 0 | DX32: 0 | DZ32: 0
C33: 10 | E33: 4 | L33: 0 | N33: 0 | P33: 0 | R33: 0 | T33: 0 | V33: 0 | X33: 0 | Z33: 0 | AB33: 0 | AD33: 0 | AF33: 0 | AH33: 0 | AJ33: 0 | AL33: 0 | AN33: 0 | AP33: 0 | AR33: 0 | AT33: 0 | AV33: 0 | AX33: 0 | AZ33: 0 | BB33: 0 | BD33: 0 | BF33: 0 | BH33: 0 | BJ33: 0 | BL33: 0 | BN33: 0 | BP33: 0 | BR33: 0 | BT33: 0 | BV33: 0 | BX33: 0 | BZ33: 0 | CB33: 0 | CD33: 0 | CF33: 0 | CH33: 0 | CJ33: 0 | CL33: 0 | CN33: 0 | CP33: 0 | CR33: 0 | CT33: 0 | CV33: 0 | CX33: 0 | CZ33: 0 | DB33: 0 | DD33: 0 | DF33: 0 | DH33: 0 | DJ33: 0 | DL33: 0 | DN33: 0 | DP33: 0 | DR33: 0 | DT33: 0 | DV33: 0 | DX33: 0 | DZ33: 0
C34: 11 | E34: 4 | L34: 0 | N34: 0 | P34: 0 | R34: 0 | T34: 0 | V34: 0 | X34: 0 | Z34: 0 | AB34: 0 | AD34: 0 | AF34: 0 | AH34: 0 | AJ34: 0 | AL34: 0 | AN34: 0 | AP34: 0 | AR34: 0 | AT34: 0 | AV34: 0 | AX34: 0 | AZ34: 0 | BB34: 0 | BD34: 0 | BF34: 0 | BH34: 0 | BJ34: 0 | BL34: 0 | BN34: 0 | BP34: 0 | BR34: 0 | BT34: 0 | BV34: 0 | BX34: 0 | BZ34: 0 | CB34: 0 | CD34: 0 | CF34: 0 | CH34: 0 | CJ34: 0 | CL34: 0 | CN34: 0 | CP34: 0 | CR34: 0 | CT34: 0 | CV34: 0 | CX34: 0 | CZ34: 0 | DB34: 0 | DD34: 0 | DF34: 0 | DH34: 0 | DJ34: 0 | DL34: 0 | DN34: 0 | DP34: 0 | DR34: 0 | DT34: 0 | DV34: 0 | DX34: 0 | DZ34: 0
C35: 12 | E35: 4 | L35: 0 | N35: 0 | P35: 0 | R35: 0 | T35: 0 | V35: 0 | X35: 0 | Z35: 0 | AB35: 0 | AD35: 0 | AF35: 0 | AH35: 0 | AJ35: 0 | AL35: 0 | AN35: 0 | AP35: 0 | AR35: 0 | AT35: 0 | AV35: 0 | AX35: 0 | AZ35: 0 | BB35: 0 | BD35: 0 | BF35: 0 | BH35: 0 | BJ35: 0 | BL35: 0 | BN35: 0 | BP35: 0 | BR35: 0 | BT35: 0 | BV35: 0 | BX35: 0 | BZ35: 0 | CB35: 0 | CD35: 0 | CF35: 0 | CH35: 0 | CJ35: 0 | CL35: 0 | CN35: 0 | CP35: 0 | CR35: 0 | CT35: 0 | CV35: 0 | CX35: 0 | CZ35: 0 | DB35: 0 | DD35: 0 | DF35: 0 | DH35: 0 | DJ35: 0 | DL35: 0 | DN35: 0 | DP35: 0 | DR35: 0 | DT35: 0 | DV35: 0 | DX35: 0 | DZ35: 0
G36: * Nota 1 - Considerou-se 5% de demitidos sem justa causa ao ano e recebendo aviso indenizado (30 dias de avisoprévio / 360 dias ao ano) | L36: 0 | N36: 0 | P36: 0 | R36: 0 | T36: 0 | V36: 0 | X36: 0 | Z36: 0 | AB36: 0 | AD36: 0 | AF36: 0 | AH36: 0 | AJ36: 0 | AL36: 0 | AN36: 0 | AP36: 0 | AR36: 0 | AT36: 0 | AV36: 0 | AX36: 0 | AZ36: 0 | BB36: 0 | BD36: 0 | BF36: 0 | BH36: 0 | BJ36: 0 | BL36: 0 | BN36: 0 | BP36: 0 | BR36: 0 | BT36: 0 | BV36: 0 | BX36: 0 | BZ36: 0 | CB36: 0 | CD36: 0 | CF36: 0 | CH36: 0 | CJ36: 0 | CL36: 0 | CN36: 0 | CP36: 0 | CR36: 0 | CT36: 0 | CV36: 0 | CX36: 0 | CZ36: 0 | DB36: 0 | DD36: 0 | DF36: 0 | DH36: 0 | DJ36: 0 | DL36: 0 | DN36: 0 | DP36: 0 | DR36: 0 | DT36: 0 | DV36: 0 | DX36: 0 | DZ36: 0
C37: CATEGORIAS | H37: QUANTIDADE
K38: =IF($C38=K$4,1,0) -> 0
D39: =HLOOKUP($C39,'Dados Gerais'!$D$5:$BK$10,6) ->  | H39: =HLOOKUP($C39,'Dados Gerais'!$D$5:$BK$14,10) ->  | K39: =IF($C39=K$4,1,0) -> 0 | M39: =IF($C39=M$4,1,0) -> 0 | O39: =IF($C39=O$4,1,0) -> 0 | Q39: =IF($C39=Q$4,1,0) -> 0 | S39: =IF($C39=S$4,1,0) -> 0 | U39: =IF($C39=U$4,1,0) -> 0 | W39: =IF($C39=W$4,1,0) -> 0 | Y39: =IF($C39=Y$4,1,0) -> 0 | AA39: =IF($C39=AA$4,1,0) -> 0 | AC39: =IF($C39=AC$4,1,0) -> 0 | AE39: =IF($C39=AE$4,1,0) -> 0 | AG39: =IF($C39=AG$4,1,0) -> 0 | AI39: =IF($C39=AI$4,1,0) -> 0 | AK39: =IF($C39=AK$4,1,0) -> 0 | AM39: =IF($C39=AM$4,1,0) -> 0 | AO39: =IF($C39=AO$4,1,0) -> 0 | AQ39: =IF($C39=AQ$4,1,0) -> 0 | AS39: =IF($C39=AS$4,1,0) -> 0 | AU39: =IF($C39=AU$4,1,0) -> 0 | AW39: =IF($C39=AW$4,1,0) -> 0 | AY39: =IF($C39=AY$4,1,0) -> 0 | BA39: =IF($C39=BA$4,1,0) -> 0 | BC39: =IF($C39=BC$4,1,0) -> 0 | BE39: =IF($C39=BE$4,1,0) -> 0 | BG39: =IF($C39=BG$4,1,0) -> 0 | BI39: =IF($C39=BI$4,1,0) -> 0 | BK39: =IF($C39=BK$4,1,0) -> 0 | BM39: =IF($C39=BM$4,1,0) -> 0 | BO39: =IF($C39=BO$4,1,0) -> 0 | BQ39: =IF($C39=BQ$4,1,0) -> 0 | BS39: =IF($C39=BS$4,1,0) -> 0 | BU39: =IF($C39=BU$4,1,0) -> 0 | BW39: =IF($C39=BW$4,1,0) -> 0 | BY39: =IF($C39=BY$4,1,0) -> 0 | CA39: =IF($C39=CA$4,1,0) -> 0 | CC39: =IF($C39=CC$4,1,0) -> 0 | CE39: =IF($C39=CE$4,1,0) -> 0 | CG39: =IF($C39=CG$4,1,0) -> 0 | CI39: =IF($C39=CI$4,1,0) -> 0 | CK39: =IF($C39=CK$4,1,0) -> 0 | CM39: =IF($C39=CM$4,1,0) -> 0 | CO39: =IF($C39=CO$4,1,0) -> 0 | CQ39: =IF($C39=CQ$4,1,0) -> 0 | CS39: =IF($C39=CS$4,1,0) -> 0 | CU39: =IF($C39=CU$4,1,0) -> 0 | CW39: =IF($C39=CW$4,1,0) -> 0 | CY39: =IF($C39=CY$4,1,0) -> 0 | DA39: =IF($C39=DA$4,1,0) -> 0 | DC39: =IF($C39=DC$4,1,0) -> 0 | DE39: =IF($C39=DE$4,1,0) -> 0 | DG39: =IF($C39=DG$4,1,0) -> 0 | DI39: =IF($C39=DI$4,1,0) -> 0 | DK39: =IF($C39=DK$4,1,0) -> 0 | DM39: =IF($C39=DM$4,1,0) -> 0 | DO39: =IF($C39=DO$4,1,0) -> 0 | DQ39: =IF($C39=DQ$4,1,0) -> 0 | DS39: =IF($C39=DS$4,1,0) -> 0 | DU39: =IF($C39=DU$4,1,0) -> 0 | DW39: =IF($C39=DW$4,1,0) -> 0 | DY39: =IF($C39=DY$4,1,0) -> 0
D40: =HLOOKUP($C40,'Dados Gerais'!$D$5:$BK$10,6) ->  | H40: =HLOOKUP($C40,'Dados Gerais'!$D$5:$BK$14,10) ->  | K40: =IF($C40=K$4,1,0) -> 0 | M40: =IF($C40=M$4,1,0) -> 0 | O40: =IF($C40=O$4,1,0) -> 0 | Q40: =IF($C40=Q$4,1,0) -> 0 | S40: =IF($C40=S$4,1,0) -> 0 | U40: =IF($C40=U$4,1,0) -> 0 | W40: =IF($C40=W$4,1,0) -> 0 | Y40: =IF($C40=Y$4,1,0) -> 0 | AA40: =IF($C40=AA$4,1,0) -> 0 | AC40: =IF($C40=AC$4,1,0) -> 0 | AE40: =IF($C40=AE$4,1,0) -> 0 | AG40: =IF($C40=AG$4,1,0) -> 0 | AI40: =IF($C40=AI$4,1,0) -> 0 | AK40: =IF($C40=AK$4,1,0) -> 0 | AM40: =IF($C40=AM$4,1,0) -> 0 | AO40: =IF($C40=AO$4,1,0) -> 0 | AQ40: =IF($C40=AQ$4,1,0) -> 0 | AS40: =IF($C40=AS$4,1,0) -> 0 | AU40: =IF($C40=AU$4,1,0) -> 0 | AW40: =IF($C40=AW$4,1,0) -> 0 | AY40: =IF($C40=AY$4,1,0) -> 0 | BA40: =IF($C40=BA$4,1,0) -> 0 | BC40: =IF($C40=BC$4,1,0) -> 0 | BE40: =IF($C40=BE$4,1,0) -> 0 | BG40: =IF($C40=BG$4,1,0) -> 0 | BI40: =IF($C40=BI$4,1,0) -> 0 | BK40: =IF($C40=BK$4,1,0) -> 0 | BM40: =IF($C40=BM$4,1,0) -> 0 | BO40: =IF($C40=BO$4,1,0) -> 0 | BQ40: =IF($C40=BQ$4,1,0) -> 0 | BS40: =IF($C40=BS$4,1,0) -> 0 | BU40: =IF($C40=BU$4,1,0) -> 0 | BW40: =IF($C40=BW$4,1,0) -> 0 | BY40: =IF($C40=BY$4,1,0) -> 0 | CA40: =IF($C40=CA$4,1,0) -> 0 | CC40: =IF($C40=CC$4,1,0) -> 0 | CE40: =IF($C40=CE$4,1,0) -> 0 | CG40: =IF($C40=CG$4,1,0) -> 0 | CI40: =IF($C40=CI$4,1,0) -> 0 | CK40: =IF($C40=CK$4,1,0) -> 0 | CM40: =IF($C40=CM$4,1,0) -> 0 | CO40: =IF($C40=CO$4,1,0) -> 0 | CQ40: =IF($C40=CQ$4,1,0) -> 0 | CS40: =IF($C40=CS$4,1,0) -> 0 | CU40: =IF($C40=CU$4,1,0) -> 0 | CW40: =IF($C40=CW$4,1,0) -> 0 | CY40: =IF($C40=CY$4,1,0) -> 0 | DA40: =IF($C40=DA$4,1,0) -> 0 | DC40: =IF($C40=DC$4,1,0) -> 0 | DE40: =IF($C40=DE$4,1,0) -> 0 | DG40: =IF($C40=DG$4,1,0) -> 0 | DI40: =IF($C40=DI$4,1,0) -> 0 | DK40: =IF($C40=DK$4,1,0) -> 0 | DM40: =IF($C40=DM$4,1,0) -> 0 | DO40: =IF($C40=DO$4,1,0) -> 0 | DQ40: =IF($C40=DQ$4,1,0) -> 0 | DS40: =IF($C40=DS$4,1,0) -> 0 | DU40: =IF($C40=DU$4,1,0) -> 0 | DW40: =IF($C40=DW$4,1,0) -> 0 | DY40: =IF($C40=DY$4,1,0) -> 0
K41: =IF($C41=K$4,1,0) -> 0
C43: ITEM | D43: DESCRIÇÃO | E43: QUANT ANUAL POR POSTO | F43: Nº DE POSTOS | G43: QUANT ANUAL TOTAL | H43: VALOR
L44: =IF(SUM(K$8:K$11)>0,$E44*$H44,0) -> 0 | N44: =IF(SUM(M$8:M$11)>0,$E44*$H44,0) -> 0 | P44: =IF(SUM(O$8:O$11)>0,$E44*$H44,0) -> 0 | R44: =IF(SUM(Q$8:Q$11)>0,$E44*$H44,0) -> 0 | T44: =IF(SUM(S$8:S$11)>0,$E44*$H44,0) -> 0 | V44: =IF(SUM(U$8:U$11)>0,$E44*$H44,0) -> 0 | X44: =IF(SUM(W$8:W$11)>0,$E44*$H44,0) -> 0 | Z44: =IF(SUM(Y$8:Y$11)>0,$E44*$H44,0) -> 0 | AB44: =IF(SUM(AA$8:AA$11)>0,$E44*$H44,0) -> 0 | AD44: =IF(SUM(AC$8:AC$11)>0,$E44*$H44,0) -> 0 | AF44: =IF(SUM(AE$8:AE$11)>0,$E44*$H44,0) -> 0 | AH44: =IF(SUM(AG$8:AG$11)>0,$E44*$H44,0) -> 0 | AJ44: =IF(SUM(AI$8:AI$11)>0,$E44*$H44,0) -> 0 | AL44: =IF(SUM(AK$8:AK$11)>0,$E44*$H44,0) -> 0 | AN44: =IF(SUM(AM$8:AM$11)>0,$E44*$H44,0) -> 0 | AP44: =IF(SUM(AO$8:AO$11)>0,$E44*$H44,0) -> 0 | AR44: =IF(SUM(AQ$8:AQ$11)>0,$E44*$H44,0) -> 0 | AT44: =IF(SUM(AS$8:AS$11)>0,$E44*$H44,0) -> 0 | AV44: =IF(SUM(AU$8:AU$11)>0,$E44*$H44,0) -> 0 | AX44: =IF(SUM(AW$8:AW$11)>0,$E44*$H44,0) -> 0 | AZ44: =IF(SUM(AY$8:AY$11)>0,$E44*$H44,0) -> 0 | BB44: =IF(SUM(BA$8:BA$11)>0,$E44*$H44,0) -> 0 | BD44: =IF(SUM(BC$8:BC$11)>0,$E44*$H44,0) -> 0 | BF44: =IF(SUM(BE$8:BE$11)>0,$E44*$H44,0) -> 0 | BH44: =IF(SUM(BG$8:BG$11)>0,$E44*$H44,0) -> 0 | BJ44: =IF(SUM(BI$8:BI$11)>0,$E44*$H44,0) -> 0 | BL44: =IF(SUM(BK$8:BK$11)>0,$E44*$H44,0) -> 0 | BN44: =IF(SUM(BM$8:BM$11)>0,$E44*$H44,0) -> 0 | BP44: =IF(SUM(BO$8:BO$11)>0,$E44*$H44,0) -> 0 | BR44: =IF(SUM(BQ$8:BQ$11)>0,$E44*$H44,0) -> 0 | BT44: =IF(SUM(BS$8:BS$11)>0,$E44*$H44,0) -> 0 | BV44: =IF(SUM(BU$8:BU$11)>0,$E44*$H44,0) -> 0 | BX44: =IF(SUM(BW$8:BW$11)>0,$E44*$H44,0) -> 0 | BZ44: =IF(SUM(BY$8:BY$11)>0,$E44*$H44,0) -> 0 | CB44: =IF(SUM(CA$8:CA$11)>0,$E44*$H44,0) -> 0 | CD44: =IF(SUM(CC$8:CC$11)>0,$E44*$H44,0) -> 0 | CF44: =IF(SUM(CE$8:CE$11)>0,$E44*$H44,0) -> 0 | CH44: =IF(SUM(CG$8:CG$11)>0,$E44*$H44,0) -> 0 | CJ44: =IF(SUM(CI$8:CI$11)>0,$E44*$H44,0) -> 0 | CL44: =IF(SUM(CK$8:CK$11)>0,$E44*$H44,0) -> 0 | CN44: =IF(SUM(CM$8:CM$11)>0,$E44*$H44,0) -> 0 | CP44: =IF(SUM(CO$8:CO$11)>0,$E44*$H44,0) -> 0 | CR44: =IF(SUM(CQ$8:CQ$11)>0,$E44*$H44,0) -> 0 | CT44: =IF(SUM(CS$8:CS$11)>0,$E44*$H44,0) -> 0 | CV44: =IF(SUM(CU$8:CU$11)>0,$E44*$H44,0) -> 0 | CX44: =IF(SUM(CW$8:CW$11)>0,$E44*$H44,0) -> 0 | CZ44: =IF(SUM(CY$8:CY$11)>0,$E44*$H44,0) -> 0 | DB44: =IF(SUM(DA$8:DA$11)>0,$E44*$H44,0) -> 0 | DD44: =IF(SUM(DC$8:DC$11)>0,$E44*$H44,0) -> 0 | DF44: =IF(SUM(DE$8:DE$11)>0,$E44*$H44,0) -> 0 | DH44: =IF(SUM(DG$8:DG$11)>0,$E44*$H44,0) -> 0 | DJ44: =IF(SUM(DI$8:DI$11)>0,$E44*$H44,0) -> 0 | DL44: =IF(SUM(DK$8:DK$11)>0,$E44*$H44,0) -> 0 | DN44: =IF(SUM(DM$8:DM$11)>0,$E44*$H44,0) -> 0 | DP44: =IF(SUM(DO$8:DO$11)>0,$E44*$H44,0) -> 0 | DR44: =IF(SUM(DQ$8:DQ$11)>0,$E44*$H44,0) -> 0 | DT44: =IF(SUM(DS$8:DS$11)>0,$E44*$H44,0) -> 0 | DV44: =IF(SUM(DU$8:DU$11)>0,$E44*$H44,0) -> 0 | DX44: =IF(SUM(DW$8:DW$11)>0,$E44*$H44,0) -> 0 | DZ44: =IF(SUM(DY$8:DY$11)>0,$E44*$H44,0) -> 0
C45: 13 | E45: 4 | F45: =H39+H40 ->  | G45: =F45*E45 ->  | L45: =IF(SUM(K$38:K$41)>0,$E45*$H45,0) -> 0 | N45: =IF(SUM(M$38:M$41)>0,$E45*$H45,0) -> 0 | P45: =IF(SUM(O$38:O$41)>0,$E45*$H45,0) -> 0 | R45: =IF(SUM(Q$38:Q$41)>0,$E45*$H45,0) -> 0 | T45: =IF(SUM(S$38:S$41)>0,$E45*$H45,0) -> 0 | V45: =IF(SUM(U$38:U$41)>0,$E45*$H45,0) -> 0 | X45: =IF(SUM(W$38:W$41)>0,$E45*$H45,0) -> 0 | Z45: =IF(SUM(Y$38:Y$41)>0,$E45*$H45,0) -> 0 | AB45: =IF(SUM(AA$38:AA$41)>0,$E45*$H45,0) -> 0 | AD45: =IF(SUM(AC$8:AC$11)>0,$E45*$H45,0) -> 0 | AF45: =IF(SUM(AE$8:AE$11)>0,$E45*$H45,0) -> 0 | AH45: =IF(SUM(AG$8:AG$11)>0,$E45*$H45,0) -> 0 | AJ45: =IF(SUM(AI$8:AI$11)>0,$E45*$H45,0) -> 0 | AL45: =IF(SUM(AK$8:AK$11)>0,$E45*$H45,0) -> 0 | AN45: =IF(SUM(AM$8:AM$11)>0,$E45*$H45,0) -> 0 | AP45: =IF(SUM(AO$8:AO$11)>0,$E45*$H45,0) -> 0 | AR45: =IF(SUM(AQ$8:AQ$11)>0,$E45*$H45,0) -> 0 | AT45: =IF(SUM(AS$8:AS$11)>0,$E45*$H45,0) -> 0 | AV45: =IF(SUM(AU$8:AU$11)>0,$E45*$H45,0) -> 0 | AX45: =IF(SUM(AW$8:AW$11)>0,$E45*$H45,0) -> 0 | AZ45: =IF(SUM(AY$8:AY$11)>0,$E45*$H45,0) -> 0 | BB45: =IF(SUM(BA$8:BA$11)>0,$E45*$H45,0) -> 0 | BD45: =IF(SUM(BC$8:BC$11)>0,$E45*$H45,0) -> 0 | BF45: =IF(SUM(BE$8:BE$11)>0,$E45*$H45,0) -> 0 | BH45: =IF(SUM(BG$8:BG$11)>0,$E45*$H45,0) -> 0 | BJ45: =IF(SUM(BI$8:BI$11)>0,$E45*$H45,0) -> 0 | BL45: =IF(SUM(BK$8:BK$11)>0,$E45*$H45,0) -> 0 | BN45: =IF(SUM(BM$8:BM$11)>0,$E45*$H45,0) -> 0 | BP45: =IF(SUM(BO$8:BO$11)>0,$E45*$H45,0) -> 0 | BR45: =IF(SUM(BQ$8:BQ$11)>0,$E45*$H45,0) -> 0 | BT45: =IF(SUM(BS$8:BS$11)>0,$E45*$H45,0) -> 0 | BV45: =IF(SUM(BU$8:BU$11)>0,$E45*$H45,0) -> 0 | BX45: =IF(SUM(BW$8:BW$11)>0,$E45*$H45,0) -> 0 | BZ45: =IF(SUM(BY$8:BY$11)>0,$E45*$H45,0) -> 0 | CB45: =IF(SUM(CA$8:CA$11)>0,$E45*$H45,0) -> 0 | CD45: =IF(SUM(CC$8:CC$11)>0,$E45*$H45,0) -> 0 | CF45: =IF(SUM(CE$8:CE$11)>0,$E45*$H45,0) -> 0 | CH45: =IF(SUM(CG$8:CG$11)>0,$E45*$H45,0) -> 0 | CJ45: =IF(SUM(CI$8:CI$11)>0,$E45*$H45,0) -> 0 | CL45: =IF(SUM(CK$8:CK$11)>0,$E45*$H45,0) -> 0 | CN45: =IF(SUM(CM$8:CM$11)>0,$E45*$H45,0) -> 0 | CP45: =IF(SUM(CO$8:CO$11)>0,$E45*$H45,0) -> 0 | CR45: =IF(SUM(CQ$8:CQ$11)>0,$E45*$H45,0) -> 0 | CT45: =IF(SUM(CS$8:CS$11)>0,$E45*$H45,0) -> 0 | CV45: =IF(SUM(CU$8:CU$11)>0,$E45*$H45,0) -> 0 | CX45: =IF(SUM(CW$8:CW$11)>0,$E45*$H45,0) -> 0 | CZ45: =IF(SUM(CY$8:CY$11)>0,$E45*$H45,0) -> 0 | DB45: =IF(SUM(DA$8:DA$11)>0,$E45*$H45,0) -> 0 | DD45: =IF(SUM(DC$8:DC$11)>0,$E45*$H45,0) -> 0 | DF45: =IF(SUM(DE$8:DE$11)>0,$E45*$H45,0) -> 0 | DH45: =IF(SUM(DG$8:DG$11)>0,$E45*$H45,0) -> 0 | DJ45: =IF(SUM(DI$8:DI$11)>0,$E45*$H45,0) -> 0 | DL45: =IF(SUM(DK$8:DK$11)>0,$E45*$H45,0) -> 0 | DN45: =IF(SUM(DM$8:DM$11)>0,$E45*$H45,0) -> 0 | DP45: =IF(SUM(DO$8:DO$11)>0,$E45*$H45,0) -> 0 | DR45: =IF(SUM(DQ$8:DQ$11)>0,$E45*$H45,0) -> 0 | DT45: =IF(SUM(DS$8:DS$11)>0,$E45*$H45,0) -> 0 | DV45: =IF(SUM(DU$8:DU$11)>0,$E45*$H45,0) -> 0 | DX45: =IF(SUM(DW$8:DW$11)>0,$E45*$H45,0) -> 0 | DZ45: =IF(SUM(DY$8:DY$11)>0,$E45*$H45,0) -> 0
C46: 14 | E46: =E45 -> 4 | F46: =F45 ->  | G46: =F46*E46 ->  | L46: =IF(SUM(K$38:K$41)>0,$E46*$H46,0) -> 0 | N46: =IF(SUM(M$38:M$41)>0,$E46*$H46,0) -> 0 | P46: =IF(SUM(O$38:O$41)>0,$E46*$H46,0) -> 0 | R46: =IF(SUM(Q$38:Q$41)>0,$E46*$H46,0) -> 0 | T46: =IF(SUM(S$38:S$41)>0,$E46*$H46,0) -> 0 | V46: =IF(SUM(U$38:U$41)>0,$E46*$H46,0) -> 0 | X46: =IF(SUM(W$38:W$41)>0,$E46*$H46,0) -> 0 | Z46: =IF(SUM(Y$38:Y$41)>0,$E46*$H46,0) -> 0 | AB46: =IF(SUM(AA$38:AA$41)>0,$E46*$H46,0) -> 0 | AD46: =IF(SUM(AC$8:AC$11)>0,$E46*$H46,0) -> 0 | AF46: =IF(SUM(AE$8:AE$11)>0,$E46*$H46,0) -> 0 | AH46: =IF(SUM(AG$8:AG$11)>0,$E46*$H46,0) -> 0 | AJ46: =IF(SUM(AI$8:AI$11)>0,$E46*$H46,0) -> 0 | AL46: =IF(SUM(AK$8:AK$11)>0,$E46*$H46,0) -> 0 | AN46: =IF(SUM(AM$8:AM$11)>0,$E46*$H46,0) -> 0 | AP46: =IF(SUM(AO$8:AO$11)>0,$E46*$H46,0) -> 0 | AR46: =IF(SUM(AQ$8:AQ$11)>0,$E46*$H46,0) -> 0 | AT46: =IF(SUM(AS$8:AS$11)>0,$E46*$H46,0) -> 0 | AV46: =IF(SUM(AU$8:AU$11)>0,$E46*$H46,0) -> 0 | AX46: =IF(SUM(AW$8:AW$11)>0,$E46*$H46,0) -> 0 | AZ46: =IF(SUM(AY$8:AY$11)>0,$E46*$H46,0) -> 0 | BB46: =IF(SUM(BA$8:BA$11)>0,$E46*$H46,0) -> 0 | BD46: =IF(SUM(BC$8:BC$11)>0,$E46*$H46,0) -> 0 | BF46: =IF(SUM(BE$8:BE$11)>0,$E46*$H46,0) -> 0 | BH46: =IF(SUM(BG$8:BG$11)>0,$E46*$H46,0) -> 0 | BJ46: =IF(SUM(BI$8:BI$11)>0,$E46*$H46,0) -> 0 | BL46: =IF(SUM(BK$8:BK$11)>0,$E46*$H46,0) -> 0 | BN46: =IF(SUM(BM$8:BM$11)>0,$E46*$H46,0) -> 0 | BP46: =IF(SUM(BO$8:BO$11)>0,$E46*$H46,0) -> 0 | BR46: =IF(SUM(BQ$8:BQ$11)>0,$E46*$H46,0) -> 0 | BT46: =IF(SUM(BS$8:BS$11)>0,$E46*$H46,0) -> 0 | BV46: =IF(SUM(BU$8:BU$11)>0,$E46*$H46,0) -> 0 | BX46: =IF(SUM(BW$8:BW$11)>0,$E46*$H46,0) -> 0 | BZ46: =IF(SUM(BY$8:BY$11)>0,$E46*$H46,0) -> 0 | CB46: =IF(SUM(CA$8:CA$11)>0,$E46*$H46,0) -> 0 | CD46: =IF(SUM(CC$8:CC$11)>0,$E46*$H46,0) -> 0 | CF46: =IF(SUM(CE$8:CE$11)>0,$E46*$H46,0) -> 0 | CH46: =IF(SUM(CG$8:CG$11)>0,$E46*$H46,0) -> 0 | CJ46: =IF(SUM(CI$8:CI$11)>0,$E46*$H46,0) -> 0 | CL46: =IF(SUM(CK$8:CK$11)>0,$E46*$H46,0) -> 0 | CN46: =IF(SUM(CM$8:CM$11)>0,$E46*$H46,0) -> 0 | CP46: =IF(SUM(CO$8:CO$11)>0,$E46*$H46,0) -> 0 | CR46: =IF(SUM(CQ$8:CQ$11)>0,$E46*$H46,0) -> 0 | CT46: =IF(SUM(CS$8:CS$11)>0,$E46*$H46,0) -> 0 | CV46: =IF(SUM(CU$8:CU$11)>0,$E46*$H46,0) -> 0 | CX46: =IF(SUM(CW$8:CW$11)>0,$E46*$H46,0) -> 0 | CZ46: =IF(SUM(CY$8:CY$11)>0,$E46*$H46,0) -> 0 | DB46: =IF(SUM(DA$8:DA$11)>0,$E46*$H46,0) -> 0 | DD46: =IF(SUM(DC$8:DC$11)>0,$E46*$H46,0) -> 0 | DF46: =IF(SUM(DE$8:DE$11)>0,$E46*$H46,0) -> 0 | DH46: =IF(SUM(DG$8:DG$11)>0,$E46*$H46,0) -> 0 | DJ46: =IF(SUM(DI$8:DI$11)>0,$E46*$H46,0) -> 0 | DL46: =IF(SUM(DK$8:DK$11)>0,$E46*$H46,0) -> 0 | DN46: =IF(SUM(DM$8:DM$11)>0,$E46*$H46,0) -> 0 | DP46: =IF(SUM(DO$8:DO$11)>0,$E46*$H46,0) -> 0 | DR46: =IF(SUM(DQ$8:DQ$11)>0,$E46*$H46,0) -> 0 | DT46: =IF(SUM(DS$8:DS$11)>0,$E46*$H46,0) -> 0 | DV46: =IF(SUM(DU$8:DU$11)>0,$E46*$H46,0) -> 0 | DX46: =IF(SUM(DW$8:DW$11)>0,$E46*$H46,0) -> 0 | DZ46: =IF(SUM(DY$8:DY$11)>0,$E46*$H46,0) -> 0
C47: 15 | E47: =E46 -> 4 | F47: =F46 ->  | G47: =F47*E47 ->  | L47: =IF(SUM(K$38:K$41)>0,$E47*$H47,0) -> 0 | N47: =IF(SUM(M$38:M$41)>0,$E47*$H47,0) -> 0 | P47: =IF(SUM(O$38:O$41)>0,$E47*$H47,0) -> 0 | R47: =IF(SUM(Q$38:Q$41)>0,$E47*$H47,0) -> 0 | T47: =IF(SUM(S$38:S$41)>0,$E47*$H47,0) -> 0 | V47: =IF(SUM(U$38:U$41)>0,$E47*$H47,0) -> 0 | X47: =IF(SUM(W$38:W$41)>0,$E47*$H47,0) -> 0 | Z47: =IF(SUM(Y$38:Y$41)>0,$E47*$H47,0) -> 0 | AB47: =IF(SUM(AA$38:AA$41)>0,$E47*$H47,0) -> 0 | AD47: =IF(SUM(AC$8:AC$11)>0,$E47*$H47,0) -> 0 | AF47: =IF(SUM(AE$8:AE$11)>0,$E47*$H47,0) -> 0 | AH47: =IF(SUM(AG$8:AG$11)>0,$E47*$H47,0) -> 0 | AJ47: =IF(SUM(AI$8:AI$11)>0,$E47*$H47,0) -> 0 | AL47: =IF(SUM(AK$8:AK$11)>0,$E47*$H47,0) -> 0 | AN47: =IF(SUM(AM$8:AM$11)>0,$E47*$H47,0) -> 0 | AP47: =IF(SUM(AO$8:AO$11)>0,$E47*$H47,0) -> 0 | AR47: =IF(SUM(AQ$8:AQ$11)>0,$E47*$H47,0) -> 0 | AT47: =IF(SUM(AS$8:AS$11)>0,$E47*$H47,0) -> 0 | AV47: =IF(SUM(AU$8:AU$11)>0,$E47*$H47,0) -> 0 | AX47: =IF(SUM(AW$8:AW$11)>0,$E47*$H47,0) -> 0 | AZ47: =IF(SUM(AY$8:AY$11)>0,$E47*$H47,0) -> 0 | BB47: =IF(SUM(BA$8:BA$11)>0,$E47*$H47,0) -> 0 | BD47: =IF(SUM(BC$8:BC$11)>0,$E47*$H47,0) -> 0 | BF47: =IF(SUM(BE$8:BE$11)>0,$E47*$H47,0) -> 0 | BH47: =IF(SUM(BG$8:BG$11)>0,$E47*$H47,0) -> 0 | BJ47: =IF(SUM(BI$8:BI$11)>0,$E47*$H47,0) -> 0 | BL47: =IF(SUM(BK$8:BK$11)>0,$E47*$H47,0) -> 0 | BN47: =IF(SUM(BM$8:BM$11)>0,$E47*$H47,0) -> 0 | BP47: =IF(SUM(BO$8:BO$11)>0,$E47*$H47,0) -> 0 | BR47: =IF(SUM(BQ$8:BQ$11)>0,$E47*$H47,0) -> 0 | BT47: =IF(SUM(BS$8:BS$11)>0,$E47*$H47,0) -> 0 | BV47: =IF(SUM(BU$8:BU$11)>0,$E47*$H47,0) -> 0 | BX47: =IF(SUM(BW$8:BW$11)>0,$E47*$H47,0) -> 0 | BZ47: =IF(SUM(BY$8:BY$11)>0,$E47*$H47,0) -> 0 | CB47: =IF(SUM(CA$8:CA$11)>0,$E47*$H47,0) -> 0 | CD47: =IF(SUM(CC$8:CC$11)>0,$E47*$H47,0) -> 0 | CF47: =IF(SUM(CE$8:CE$11)>0,$E47*$H47,0) -> 0 | CH47: =IF(SUM(CG$8:CG$11)>0,$E47*$H47,0) -> 0 | CJ47: =IF(SUM(CI$8:CI$11)>0,$E47*$H47,0) -> 0 | CL47: =IF(SUM(CK$8:CK$11)>0,$E47*$H47,0) -> 0 | CN47: =IF(SUM(CM$8:CM$11)>0,$E47*$H47,0) -> 0 | CP47: =IF(SUM(CO$8:CO$11)>0,$E47*$H47,0) -> 0 | CR47: =IF(SUM(CQ$8:CQ$11)>0,$E47*$H47,0) -> 0 | CT47: =IF(SUM(CS$8:CS$11)>0,$E47*$H47,0) -> 0 | CV47: =IF(SUM(CU$8:CU$11)>0,$E47*$H47,0) -> 0 | CX47: =IF(SUM(CW$8:CW$11)>0,$E47*$H47,0) -> 0 | CZ47: =IF(SUM(CY$8:CY$11)>0,$E47*$H47,0) -> 0 | DB47: =IF(SUM(DA$8:DA$11)>0,$E47*$H47,0) -> 0 | DD47: =IF(SUM(DC$8:DC$11)>0,$E47*$H47,0) -> 0 | DF47: =IF(SUM(DE$8:DE$11)>0,$E47*$H47,0) -> 0 | DH47: =IF(SUM(DG$8:DG$11)>0,$E47*$H47,0) -> 0 | DJ47: =IF(SUM(DI$8:DI$11)>0,$E47*$H47,0) -> 0 | DL47: =IF(SUM(DK$8:DK$11)>0,$E47*$H47,0) -> 0 | DN47: =IF(SUM(DM$8:DM$11)>0,$E47*$H47,0) -> 0 | DP47: =IF(SUM(DO$8:DO$11)>0,$E47*$H47,0) -> 0 | DR47: =IF(SUM(DQ$8:DQ$11)>0,$E47*$H47,0) -> 0 | DT47: =IF(SUM(DS$8:DS$11)>0,$E47*$H47,0) -> 0 | DV47: =IF(SUM(DU$8:DU$11)>0,$E47*$H47,0) -> 0 | DX47: =IF(SUM(DW$8:DW$11)>0,$E47*$H47,0) -> 0 | DZ47: =IF(SUM(DY$8:DY$11)>0,$E47*$H47,0) -> 0

Sheet EPI
I2: =I6/12 -> 63.43666667 | K2: =K6/12 -> 35.45166667
B4: EQUIPAMENTOS DE PROTEÇÃO INDIVIDUAL - AQUISIÇÃO | I4: 1 | K4: =I4+1 -> 2 | M4: =K4+1 -> 3 | O4: =M4+1 -> 4 | Q4: =O4+1 -> 5 | S4: =Q4+1 -> 6 | U4: =S4+1 -> 7 | W4: =U4+1 -> 8 | Y4: =W4+1 -> 9 | AA4: =Y4+1 -> 10 | AC4: =AA4+1 -> 11 | AE4: =AC4+1 -> 12 | AG4: =AE4+1 -> 13 | AI4: =AG4+1 -> 14 | AK4: =AI4+1 -> 15 | AM4: =AK4+1 -> 16 | AO4: =AM4+1 -> 17 | AQ4: =AO4+1 -> 18 | AS4: =AQ4+1 -> 19 | AU4: =AS4+1 -> 20 | AW4: =AU4+1 -> 21 | AY4: =AW4+1 -> 22 | BA4: =AY4+1 -> 23 | BC4: =BA4+1 -> 24 | BE4: =BC4+1 -> 25 | BG4: =BE4+1 -> 26 | BI4: =BG4+1 -> 27 | BK4: =BI4+1 -> 28 | BM4: =BK4+1 -> 29 | BO4: =BM4+1 -> 30 | BQ4: =BO4+1 -> 31 | BS4: =BQ4+1 -> 32 | BU4: =BS4+1 -> 33 | BW4: =BU4+1 -> 34 | BY4: =BW4+1 -> 35 | CA4: =BY4+1 -> 36 | CC4: =CA4+1 -> 37 | CE4: =CC4+1 -> 38 | CG4: =CE4+1 -> 39 | CI4: =CG4+1 -> 40 | CK4: =CI4+1 -> 41 | CM4: =CK4+1 -> 42 | CO4: =CM4+1 -> 43 | CQ4: =CO4+1 -> 44 | CS4: =CQ4+1 -> 45 | CU4: =CS4+1 -> 46 | CW4: =CU4+1 -> 47 | CY4: =CW4+1 -> 48 | DA4: =CY4+1 -> 49 | DC4: =DA4+1 -> 50 | DE4: =DC4+1 -> 51 | DG4: =DE4+1 -> 52 | DI4: =DG4+1 -> 53 | DK4: =DI4+1 -> 54 | DM4: =DK4+1 -> 55 | DO4: =DM4+1 -> 56 | DQ4: =DO4+1 -> 57 | DS4: =DQ4+1 -> 58 | DU4: =DS4+1 -> 59 | DW4: =DU4+1 -> 60
I6: =ROUND(SUM(J5:J102),2) -> 761.24 | K6: =ROUND(SUM(L5:L102),2) -> 425.42 | M6: =ROUND(SUM(N5:N102),2) -> 0 | O6: =ROUND(SUM(P5:P102),2) -> 0 | Q6: =ROUND(SUM(R5:R102),2) -> 0 | S6: =ROUND(SUM(T5:T102),2) -> 0 | U6: =ROUND(SUM(V5:V102),2) -> 0 | W6: =ROUND(SUM(X5:X102),2) -> 0 | Y6: =ROUND(SUM(Z5:Z102),2) -> 0 | AA6: =ROUND(SUM(AB5:AB102),2) -> 0 | AC6: =ROUND(SUM(AD5:AD102),2) -> 0 | AE6: =ROUND(SUM(AF5:AF102),2) -> 0 | AG6: =ROUND(SUM(AH5:AH102),2) -> 0 | AI6: =ROUND(SUM(AJ5:AJ102),2) -> 0 | AK6: =ROUND(SUM(AL5:AL102),2) -> 0 | AM6: =ROUND(SUM(AN5:AN102),2) -> 0 | AO6: =ROUND(SUM(AP5:AP102),2) -> 0 | AQ6: =ROUND(SUM(AR5:AR102),2) -> 0 | AS6: =ROUND(SUM(AT5:AT102),2) -> 0 | AU6: =ROUND(SUM(AV5:AV102),2) -> 0 | AW6: =ROUND(SUM(AX5:AX102),2) -> 0 | AY6: =ROUND(SUM(AZ5:AZ102),2) -> 0 | BA6: =ROUND(SUM(BB5:BB102),2) -> 0 | BC6: =ROUND(SUM(BD5:BD102),2) -> 0 | BE6: =ROUND(SUM(BF5:BF102),2) -> 0 | BG6: =ROUND(SUM(BH5:BH102),2) -> 0 | BI6: =ROUND(SUM(BJ5:BJ102),2) -> 0 | BK6: =ROUND(SUM(BL5:BL102),2) -> 0 | BM6: =ROUND(SUM(BN5:BN102),2) -> 0 | BO6: =ROUND(SUM(BP5:BP102),2) -> 0 | BQ6: =ROUND(SUM(BR5:BR102),2) -> 0 | BS6: =ROUND(SUM(BT5:BT102),2) -> 0 | BU6: =ROUND(SUM(BV5:BV102),2) -> 0 | BW6: =ROUND(SUM(BX5:BX102),2) -> 0 | BY6: =ROUND(SUM(BZ5:BZ102),2) -> 0 | CA6: =ROUND(SUM(CB5:CB102),2) -> 0 | CC6: =ROUND(SUM(CD5:CD102),2) -> 0 | CE6: =ROUND(SUM(CF5:CF102),2) -> 0 | CG6: =ROUND(SUM(CH5:CH102),2) -> 0 | CI6: =ROUND(SUM(CJ5:CJ102),2) -> 0 | CK6: =ROUND(SUM(CL5:CL102),2) -> 0 | CM6: =ROUND(SUM(CN5:CN102),2) -> 0 | CO6: =ROUND(SUM(CP5:CP102),2) -> 0 | CQ6: =ROUND(SUM(CR5:CR102),2) -> 0 | CS6: =ROUND(SUM(CT5:CT102),2) -> 0 | CU6: =ROUND(SUM(CV5:CV102),2) -> 0 | CW6: =ROUND(SUM(CX5:CX102),2) -> 0 | CY6: =ROUND(SUM(CZ5:CZ102),2) -> 0 | DA6: =ROUND(SUM(DB5:DB102),2) -> 0 | DC6: =ROUND(SUM(DD5:DD102),2) -> 0 | DE6: =ROUND(SUM(DF5:DF102),2) -> 0 | DG6: =ROUND(SUM(DH5:DH102),2) -> 0 | DI6: =ROUND(SUM(DJ5:DJ102),2) -> 0 | DK6: =ROUND(SUM(DL5:DL102),2) -> 0 | DM6: =ROUND(SUM(DN5:DN102),2) -> 0 | DO6: =ROUND(SUM(DP5:DP102),2) -> 0 | DQ6: =ROUND(SUM(DR5:DR102),2) -> 0 | DS6: =ROUND(SUM(DT5:DT102),2) -> 0 | DU6: =ROUND(SUM(DV5:DV102),2) -> 0 | DW6: =ROUND(SUM(DX5:DX102),2) -> 0
C7: CATEGORIAS | F7: QUANTIDADE
I8: =IF($C8=I$4,1,0) -> 0
C9: 1 | D9: =HLOOKUP($C9,'Dados Gerais'!$D$5:$BK$10,6) -> TÉCNICO EM DESCRIÇÃO DE DOCUMENTOS DE ARQUIVO | F9: =HLOOKUP($C9,'Dados Gerais'!$D$5:$BK$14,10) -> 8 | I9: =IF($C9=I$4,1,0) -> 1 | K9: =IF($C9=K$4,1,0) -> 0 | M9: =IF($C9=M$4,1,0) -> 0 | O9: =IF($C9=O$4,1,0) -> 0 | Q9: =IF($C9=Q$4,1,0) -> 0 | S9: =IF($C9=S$4,1,0) -> 0 | U9: =IF($C9=U$4,1,0) -> 0 | W9: =IF($C9=W$4,1,0) -> 0 | Y9: =IF($C9=Y$4,1,0) -> 0 | AA9: =IF($C9=AA$4,1,0) -> 0 | AC9: =IF($C9=AC$4,1,0) -> 0 | AE9: =IF($C9=AE$4,1,0) -> 0 | AG9: =IF($C9=AG$4,1,0) -> 0 | AI9: =IF($C9=AI$4,1,0) -> 0 | AK9: =IF($C9=AK$4,1,0) -> 0 | AM9: =IF($C9=AM$4,1,0) -> 0 | AO9: =IF($C9=AO$4,1,0) -> 0 | AQ9: =IF($C9=AQ$4,1,0) -> 0 | AS9: =IF($C9=AS$4,1,0) -> 0 | AU9: =IF($C9=AU$4,1,0) -> 0 | AW9: =IF($C9=AW$4,1,0) -> 0 | AY9: =IF($C9=AY$4,1,0) -> 0 | BA9: =IF($C9=BA$4,1,0) -> 0 | BC9: =IF($C9=BC$4,1,0) -> 0 | BE9: =IF($C9=BE$4,1,0) -> 0 | BG9: =IF($C9=BG$4,1,0) -> 0 | BI9: =IF($C9=BI$4,1,0) -> 0 | BK9: =IF($C9=BK$4,1,0) -> 0 | BM9: =IF($C9=BM$4,1,0) -> 0 | BO9: =IF($C9=BO$4,1,0) -> 0 | BQ9: =IF($C9=BQ$4,1,0) -> 0 | BS9: =IF($C9=BS$4,1,0) -> 0 | BU9: =IF($C9=BU$4,1,0) -> 0 | BW9: =IF($C9=BW$4,1,0) -> 0 | BY9: =IF($C9=BY$4,1,0) -> 0 | CA9: =IF($C9=CA$4,1,0) -> 0 | CC9: =IF($C9=CC$4,1,0) -> 0 | CE9: =IF($C9=CE$4,1,0) -> 0 | CG9: =IF($C9=CG$4,1,0) -> 0 | CI9: =IF($C9=CI$4,1,0) -> 0 | CK9: =IF($C9=CK$4,1,0) -> 0 | CM9: =IF($C9=CM$4,1,0) -> 0 | CO9: =IF($C9=CO$4,1,0) -> 0 | CQ9: =IF($C9=CQ$4,1,0) -> 0 | CS9: =IF($C9=CS$4,1,0) -> 0 | CU9: =IF($C9=CU$4,1,0) -> 0 | CW9: =IF($C9=CW$4,1,0) -> 0 | CY9: =IF($C9=CY$4,1,0) -> 0 | DA9: =IF($C9=DA$4,1,0) -> 0 | DC9: =IF($C9=DC$4,1,0) -> 0 | DE9: =IF($C9=DE$4,1,0) -> 0 | DG9: =IF($C9=DG$4,1,0) -> 0 | DI9: =IF($C9=DI$4,1,0) -> 0 | DK9: =IF($C9=DK$4,1,0) -> 0 | DM9: =IF($C9=DM$4,1,0) -> 0 | DO9: =IF($C9=DO$4,1,0) -> 0 | DQ9: =IF($C9=DQ$4,1,0) -> 0 | DS9: =IF($C9=DS$4,1,0) -> 0 | DU9: =IF($C9=DU$4,1,0) -> 0 | DW9: =IF($C9=DW$4,1,0) -> 0
I10: =IF($C10=I$4,1,0) -> 0
C12: ITEM | D12: DESCRIÇÃO | E12: QUANT ANUAL POR POSTO | F12: VALOR
J13: =IF(SUM(I$8:I$10)>0,$E13*$F13,0) -> 0 | L13: =IF(SUM(K$8:K$10)>0,$E13*$F13,0) -> 0 | N13: =IF(SUM(M$8:M$10)>0,$E13*$F13,0) -> 0 | P13: =IF(SUM(O$8:O$10)>0,$E13*$F13,0) -> 0 | R13: =IF(SUM(Q$8:Q$10)>0,$E13*$F13,0) -> 0 | T13: =IF(SUM(S$8:S$10)>0,$E13*$F13,0) -> 0 | V13: =IF(SUM(U$8:U$10)>0,$E13*$F13,0) -> 0 | X13: =IF(SUM(W$8:W$10)>0,$E13*$F13,0) -> 0 | Z13: =IF(SUM(Y$8:Y$10)>0,$E13*$F13,0) -> 0 | AB13: =IF(SUM(AA$8:AA$10)>0,$E13*$F13,0) -> 0 | AD13: =IF(SUM(AC$8:AC$10)>0,$E13*$F13,0) -> 0 | AF13: =IF(SUM(AE$8:AE$10)>0,$E13*$F13,0) -> 0 | AH13: =IF(SUM(AG$8:AG$10)>0,$E13*$F13,0) -> 0 | AJ13: =IF(SUM(AI$8:AI$10)>0,$E13*$F13,0) -> 0 | AL13: =IF(SUM(AK$8:AK$10)>0,$E13*$F13,0) -> 0 | AN13: =IF(SUM(AM$8:AM$10)>0,$E13*$F13,0) -> 0 | AP13: =IF(SUM(AO$8:AO$10)>0,$E13*$F13,0) -> 0 | AR13: =IF(SUM(AQ$8:AQ$10)>0,$E13*$F13,0) -> 0 | AT13: =IF(SUM(AS$8:AS$10)>0,$E13*$F13,0) -> 0 | AV13: =IF(SUM(AU$8:AU$10)>0,$E13*$F13,0) -> 0 | AX13: =IF(SUM(AW$8:AW$10)>0,$E13*$F13,0) -> 0 | AZ13: =IF(SUM(AY$8:AY$10)>0,$E13*$F13,0) -> 0 | BB13: =IF(SUM(BA$8:BA$10)>0,$E13*$F13,0) -> 0 | BD13: =IF(SUM(BC$8:BC$10)>0,$E13*$F13,0) -> 0 | BF13: =IF(SUM(BE$8:BE$10)>0,$E13*$F13,0) -> 0 | BH13: =IF(SUM(BG$8:BG$10)>0,$E13*$F13,0) -> 0 | BJ13: =IF(SUM(BI$8:BI$10)>0,$E13*$F13,0) -> 0 | BL13: =IF(SUM(BK$8:BK$10)>0,$E13*$F13,0) -> 0 | BN13: =IF(SUM(BM$8:BM$10)>0,$E13*$F13,0) -> 0 | BP13: =IF(SUM(BO$8:BO$10)>0,$E13*$F13,0) -> 0 | BR13: =IF(SUM(BQ$8:BQ$10)>0,$E13*$F13,0) -> 0 | BT13: =IF(SUM(BS$8:BS$10)>0,$E13*$F13,0) -> 0 | BV13: =IF(SUM(BU$8:BU$10)>0,$E13*$F13,0) -> 0 | BX13: =IF(SUM(BW$8:BW$10)>0,$E13*$F13,0) -> 0 | BZ13: =IF(SUM(BY$8:BY$10)>0,$E13*$F13,0) -> 0 | CB13: =IF(SUM(CA$8:CA$10)>0,$E13*$F13,0) -> 0 | CD13: =IF(SUM(CC$8:CC$10)>0,$E13*$F13,0) -> 0 | CF13: =IF(SUM(CE$8:CE$10)>0,$E13*$F13,0) -> 0 | CH13: =IF(SUM(CG$8:CG$10)>0,$E13*$F13,0) -> 0 | CJ13: =IF(SUM(CI$8:CI$10)>0,$E13*$F13,0) -> 0 | CL13: =IF(SUM(CK$8:CK$10)>0,$E13*$F13,0) -> 0 | CN13: =IF(SUM(CM$8:CM$10)>0,$E13*$F13,0) -> 0 | CP13: =IF(SUM(CO$8:CO$10)>0,$E13*$F13,0) -> 0 | CR13: =IF(SUM(CQ$8:CQ$10)>0,$E13*$F13,0) -> 0 | CT13: =IF(SUM(CS$8:CS$10)>0,$E13*$F13,0) -> 0 | CV13: =IF(SUM(CU$8:CU$10)>0,$E13*$F13,0) -> 0 | CX13: =IF(SUM(CW$8:CW$10)>0,$E13*$F13,0) -> 0 | CZ13: =IF(SUM(CY$8:CY$10)>0,$E13*$F13,0) -> 0 | DB13: =IF(SUM(DA$8:DA$10)>0,$E13*$F13,0) -> 0 | DD13: =IF(SUM(DC$8:DC$10)>0,$E13*$F13,0) -> 0 | DF13: =IF(SUM(DE$8:DE$10)>0,$E13*$F13,0) -> 0 | DH13: =IF(SUM(DG$8:DG$10)>0,$E13*$F13,0) -> 0 | DJ13: =IF(SUM(DI$8:DI$10)>0,$E13*$F13,0) -> 0 | DL13: =IF(SUM(DK$8:DK$10)>0,$E13*$F13,0) -> 0 | DN13: =IF(SUM(DM$8:DM$10)>0,$E13*$F13,0) -> 0 | DP13: =IF(SUM(DO$8:DO$10)>0,$E13*$F13,0) -> 0 | DR13: =IF(SUM(DQ$8:DQ$10)>0,$E13*$F13,0) -> 0 | DT13: =IF(SUM(DS$8:DS$10)>0,$E13*$F13,0) -> 0 | DV13: =IF(SUM(DU$8:DU$10)>0,$E13*$F13,0) -> 0 | DX13: =IF(SUM(DW$8:DW$10)>0,$E13*$F13,0) -> 0
C14: 1 | D14: Óculos sobreposição INCOLOR, constituído de armação e visor confeccionados em uma única peça de policarbonato incolor com meia borda superior. As hastes do tipo espátula, são confeccionadas do mesmo material da armação, possui fendas para ventilação fixadas à armação. CA: 6942. MARCA DE REFERÊNCIA CARBOGRAFITE. | E14: 3 | F14: 31 | J14: =IF(SUM(I$8:I$10)>0,$E14*$F14,0) -> 93 | L14: =IF(SUM(K$8:K$10)>0,$E14*$F14,0) -> 0 | N14: =IF(SUM(M$8:M$10)>0,$E14*$F14,0) -> 0 | P14: =IF(SUM(O$8:O$10)>0,$E14*$F14,0) -> 0 | R14: =IF(SUM(Q$8:Q$10)>0,$E14*$F14,0) -> 0 | T14: =IF(SUM(S$8:S$10)>0,$E14*$F14,0) -> 0 | V14: =IF(SUM(U$8:U$10)>0,$E14*$F14,0) -> 0 | X14: =IF(SUM(W$8:W$10)>0,$E14*$F14,0) -> 0 | Z14: =IF(SUM(Y$8:Y$10)>0,$E14*$F14,0) -> 0 | AB14: =IF(SUM(AA$8:AA$10)>0,$E14*$F14,0) -> 0 | AD14: =IF(SUM(AC$8:AC$10)>0,$E14*$F14,0) -> 0 | AF14: =IF(SUM(AE$8:AE$10)>0,$E14*$F14,0) -> 0 | AH14: =IF(SUM(AG$8:AG$10)>0,$E14*$F14,0) -> 0 | AJ14: =IF(SUM(AI$8:AI$10)>0,$E14*$F14,0) -> 0 | AL14: =IF(SUM(AK$8:AK$10)>0,$E14*$F14,0) -> 0 | AN14: =IF(SUM(AM$8:AM$10)>0,$E14*$F14,0) -> 0 | AP14: =IF(SUM(AO$8:AO$10)>0,$E14*$F14,0) -> 0 | AR14: =IF(SUM(AQ$8:AQ$10)>0,$E14*$F14,0) -> 0 | AT14: =IF(SUM(AS$8:AS$10)>0,$E14*$F14,0) -> 0 | AV14: =IF(SUM(AU$8:AU$10)>0,$E14*$F14,0) -> 0 | AX14: =IF(SUM(AW$8:AW$10)>0,$E14*$F14,0) -> 0 | AZ14: =IF(SUM(AY$8:AY$10)>0,$E14*$F14,0) -> 0 | BB14: =IF(SUM(BA$8:BA$10)>0,$E14*$F14,0) -> 0 | BD14: =IF(SUM(BC$8:BC$10)>0,$E14*$F14,0) -> 0 | BF14: =IF(SUM(BE$8:BE$10)>0,$E14*$F14,0) -> 0 | BH14: =IF(SUM(BG$8:BG$10)>0,$E14*$F14,0) -> 0 | BJ14: =IF(SUM(BI$8:BI$10)>0,$E14*$F14,0) -> 0 | BL14: =IF(SUM(BK$8:BK$10)>0,$E14*$F14,0) -> 0 | BN14: =IF(SUM(BM$8:BM$10)>0,$E14*$F14,0) -> 0 | BP14: =IF(SUM(BO$8:BO$10)>0,$E14*$F14,0) -> 0 | BR14: =IF(SUM(BQ$8:BQ$10)>0,$E14*$F14,0) -> 0 | BT14: =IF(SUM(BS$8:BS$10)>0,$E14*$F14,0) -> 0 | BV14: =IF(SUM(BU$8:BU$10)>0,$E14*$F14,0) -> 0 | BX14: =IF(SUM(BW$8:BW$10)>0,$E14*$F14,0) -> 0 | BZ14: =IF(SUM(BY$8:BY$10)>0,$E14*$F14,0) -> 0 | CB14: =IF(SUM(CA$8:CA$10)>0,$E14*$F14,0) -> 0 | CD14: =IF(SUM(CC$8:CC$10)>0,$E14*$F14,0) -> 0 | CF14: =IF(SUM(CE$8:CE$10)>0,$E14*$F14,0) -> 0 | CH14: =IF(SUM(CG$8:CG$10)>0,$E14*$F14,0) -> 0 | CJ14: =IF(SUM(CI$8:CI$10)>0,$E14*$F14,0) -> 0 | CL14: =IF(SUM(CK$8:CK$10)>0,$E14*$F14,0) -> 0 | CN14: =IF(SUM(CM$8:CM$10)>0,$E14*$F14,0) -> 0 | CP14: =IF(SUM(CO$8:CO$10)>0,$E14*$F14,0) -> 0 | CR14: =IF(SUM(CQ$8:CQ$10)>0,$E14*$F14,0) -> 0 | CT14: =IF(SUM(CS$8:CS$10)>0,$E14*$F14,0) -> 0 | CV14: =IF(SUM(CU$8:CU$10)>0,$E14*$F14,0) -> 0 | CX14: =IF(SUM(CW$8:CW$10)>0,$E14*$F14,0) -> 0 | CZ14: =IF(SUM(CY$8:CY$10)>0,$E14*$F14,0) -> 0 | DB14: =IF(SUM(DA$8:DA$10)>0,$E14*$F14,0) -> 0 | DD14: =IF(SUM(DC$8:DC$10)>0,$E14*$F14,0) -> 0 | DF14: =IF(SUM(DE$8:DE$10)>0,$E14*$F14,0) -> 0 | DH14: =IF(SUM(DG$8:DG$10)>0,$E14*$F14,0) -> 0 | DJ14: =IF(SUM(DI$8:DI$10)>0,$E14*$F14,0) -> 0 | DL14: =IF(SUM(DK$8:DK$10)>0,$E14*$F14,0) -> 0 | DN14: =IF(SUM(DM$8:DM$10)>0,$E14*$F14,0) -> 0 | DP14: =IF(SUM(DO$8:DO$10)>0,$E14*$F14,0) -> 0 | DR14: =IF(SUM(DQ$8:DQ$10)>0,$E14*$F14,0) -> 0 | DT14: =IF(SUM(DS$8:DS$10)>0,$E14*$F14,0) -> 0 | DV14: =IF(SUM(DU$8:DU$10)>0,$E14*$F14,0) -> 0 | DX14: =IF(SUM(DW$8:DW$10)>0,$E14*$F14,0) -> 0
C15: 2 | D15: Luvas descartáveis de látex de borracha 100% natural, sem pó (powder-free), hipo-alergênica, não estéril, ambidestra, comprimento total aproximado de 24cm Tamanhos: P, M e G. com registro e aprovação na ANVISA. Caixa com 100 unidades | E15: 12 | F15: 29.3 | J15: =IF(SUM(I$8:I$10)>0,$E15*$F15,0) -> 351.6 | L15: =IF(SUM(K$8:K$10)>0,$E15*$F15,0) -> 0 | N15: =IF(SUM(M$33:M$36)>0,$E15*$F15,0) -> 0 | P15: =IF(SUM(O$33:O$36)>0,$E15*$F15,0) -> 0 | R15: =IF(SUM(Q$33:Q$36)>0,$E15*$F15,0) -> 0 | T15: =IF(SUM(S$33:S$36)>0,$E15*$F15,0) -> 0 | V15: =IF(SUM(U$33:U$36)>0,$E15*$F15,0) -> 0 | X15: =IF(SUM(W$33:W$36)>0,$E15*$F15,0) -> 0 | Z15: =IF(SUM(Y$33:Y$36)>0,$E15*$F15,0) -> 0 | AB15: =IF(SUM(AA$33:AA$36)>0,$E15*$F15,0) -> 0 | AD15: =IF(SUM(AC$33:AC$36)>0,$E15*$F15,0) -> 0 | AF15: =IF(SUM(AE$33:AE$36)>0,$E15*$F15,0) -> 0 | AH15: =IF(SUM(AG$33:AG$36)>0,$E15*$F15,0) -> 0 | AJ15: =IF(SUM(AI$33:AI$36)>0,$E15*$F15,0) -> 0 | AL15: =IF(SUM(AK$33:AK$36)>0,$E15*$F15,0) -> 0 | AN15: =IF(SUM(AM$33:AM$36)>0,$E15*$F15,0) -> 0 | AP15: =IF(SUM(AO$33:AO$36)>0,$E15*$F15,0) -> 0 | AR15: =IF(SUM(AQ$33:AQ$36)>0,$E15*$F15,0) -> 0 | AT15: =IF(SUM(AS$33:AS$36)>0,$E15*$F15,0) -> 0 | AV15: =IF(SUM(AU$33:AU$36)>0,$E15*$F15,0) -> 0 | AX15: =IF(SUM(AW$33:AW$36)>0,$E15*$F15,0) -> 0 | AZ15: =IF(SUM(AY$33:AY$36)>0,$E15*$F15,0) -> 0 | BB15: =IF(SUM(BA$33:BA$36)>0,$E15*$F15,0) -> 0 | BD15: =IF(SUM(BC$33:BC$36)>0,$E15*$F15,0) -> 0 | BF15: =IF(SUM(BE$33:BE$36)>0,$E15*$F15,0) -> 0 | BH15: =IF(SUM(BG$33:BG$36)>0,$E15*$F15,0) -> 0 | BJ15: =IF(SUM(BI$33:BI$36)>0,$E15*$F15,0) -> 0 | BL15: =IF(SUM(BK$33:BK$36)>0,$E15*$F15,0) -> 0 | BN15: =IF(SUM(BM$33:BM$36)>0,$E15*$F15,0) -> 0 | BP15: =IF(SUM(BO$33:BO$36)>0,$E15*$F15,0) -> 0 | BR15: =IF(SUM(BQ$33:BQ$36)>0,$E15*$F15,0) -> 0 | BT15: =IF(SUM(BS$33:BS$36)>0,$E15*$F15,0) -> 0 | BV15: =IF(SUM(BU$33:BU$36)>0,$E15*$F15,0) -> 0 | BX15: =IF(SUM(BW$33:BW$36)>0,$E15*$F15,0) -> 0 | BZ15: =IF(SUM(BY$33:BY$36)>0,$E15*$F15,0) -> 0 | CB15: =IF(SUM(CA$33:CA$36)>0,$E15*$F15,0) -> 0 | CD15: =IF(SUM(CC$33:CC$36)>0,$E15*$F15,0) -> 0 | CF15: =IF(SUM(CE$33:CE$36)>0,$E15*$F15,0) -> 0 | CH15: =IF(SUM(CG$33:CG$36)>0,$E15*$F15,0) -> 0 | CJ15: =IF(SUM(CI$33:CI$36)>0,$E15*$F15,0) -> 0 | CL15: =IF(SUM(CK$33:CK$36)>0,$E15*$F15,0) -> 0 | CN15: =IF(SUM(CM$33:CM$36)>0,$E15*$F15,0) -> 0 | CP15: =IF(SUM(CO$33:CO$36)>0,$E15*$F15,0) -> 0 | CR15: =IF(SUM(CQ$33:CQ$36)>0,$E15*$F15,0) -> 0 | CT15: =IF(SUM(CS$33:CS$36)>0,$E15*$F15,0) -> 0 | CV15: =IF(SUM(CU$33:CU$36)>0,$E15*$F15,0) -> 0 | CX15: =IF(SUM(CW$33:CW$36)>0,$E15*$F15,0) -> 0 | CZ15: =IF(SUM(CY$33:CY$36)>0,$E15*$F15,0) -> 0 | DB15: =IF(SUM(DA$33:DA$36)>0,$E15*$F15,0) -> 0 | DD15: =IF(SUM(DC$33:DC$36)>0,$E15*$F15,0) -> 0 | DF15: =IF(SUM(DE$33:DE$36)>0,$E15*$F15,0) -> 0 | DH15: =IF(SUM(DG$33:DG$36)>0,$E15*$F15,0) -> 0 | DJ15: =IF(SUM(DI$33:DI$36)>0,$E15*$F15,0) -> 0 | DL15: =IF(SUM(DK$33:DK$36)>0,$E15*$F15,0) -> 0 | DN15: =IF(SUM(DM$33:DM$36)>0,$E15*$F15,0) -> 0 | DP15: =IF(SUM(DO$33:DO$36)>0,$E15*$F15,0) -> 0 | DR15: =IF(SUM(DQ$33:DQ$36)>0,$E15*$F15,0) -> 0 | DT15: =IF(SUM(DS$33:DS$36)>0,$E15*$F15,0) -> 0 | DV15: =IF(SUM(DU$33:DU$36)>0,$E15*$F15,0) -> 0 | DX15: =IF(SUM(DW$33:DW$36)>0,$E15*$F15,0) -> 0
C16: 3 | D16: Luvas descartáveis de borracha sintética nitrílica, sem pó (powder-free), hipo-alergênica, com microtexturização na ponta dos dedos, ambidestra, comprimento total aproximado de 24cm. Tamanhos: P, M e G com registro e aprovação na ANVISA. Caixa com 100 unidades | E16: 4 | F16: 32.16 | J16: =IF(SUM(I$8:I$10)>0,$E16*$F16,0) -> 128.64 | L16: =IF(SUM(K$8:K$10)>0,$E16*$F16,0) -> 0 | N16: =IF(SUM(M$33:M$36)>0,$E16*$F16,0) -> 0 | P16: =IF(SUM(O$33:O$36)>0,$E16*$F16,0) -> 0 | R16: =IF(SUM(Q$33:Q$36)>0,$E16*$F16,0) -> 0 | T16: =IF(SUM(S$33:S$36)>0,$E16*$F16,0) -> 0 | V16: =IF(SUM(U$33:U$36)>0,$E16*$F16,0) -> 0 | X16: =IF(SUM(W$33:W$36)>0,$E16*$F16,0) -> 0 | Z16: =IF(SUM(Y$33:Y$36)>0,$E16*$F16,0) -> 0 | AB16: =IF(SUM(AA$33:AA$36)>0,$E16*$F16,0) -> 0 | AD16: =IF(SUM(AC$33:AC$36)>0,$E16*$F16,0) -> 0 | AF16: =IF(SUM(AE$33:AE$36)>0,$E16*$F16,0) -> 0 | AH16: =IF(SUM(AG$33:AG$36)>0,$E16*$F16,0) -> 0 | AJ16: =IF(SUM(AI$33:AI$36)>0,$E16*$F16,0) -> 0 | AL16: =IF(SUM(AK$33:AK$36)>0,$E16*$F16,0) -> 0 | AN16: =IF(SUM(AM$33:AM$36)>0,$E16*$F16,0) -> 0 | AP16: =IF(SUM(AO$33:AO$36)>0,$E16*$F16,0) -> 0 | AR16: =IF(SUM(AQ$33:AQ$36)>0,$E16*$F16,0) -> 0 | AT16: =IF(SUM(AS$33:AS$36)>0,$E16*$F16,0) -> 0 | AV16: =IF(SUM(AU$33:AU$36)>0,$E16*$F16,0) -> 0 | AX16: =IF(SUM(AW$33:AW$36)>0,$E16*$F16,0) -> 0 | AZ16: =IF(SUM(AY$33:AY$36)>0,$E16*$F16,0) -> 0 | BB16: =IF(SUM(BA$33:BA$36)>0,$E16*$F16,0) -> 0 | BD16: =IF(SUM(BC$33:BC$36)>0,$E16*$F16,0) -> 0 | BF16: =IF(SUM(BE$33:BE$36)>0,$E16*$F16,0) -> 0 | BH16: =IF(SUM(BG$33:BG$36)>0,$E16*$F16,0) -> 0 | BJ16: =IF(SUM(BI$33:BI$36)>0,$E16*$F16,0) -> 0 | BL16: =IF(SUM(BK$33:BK$36)>0,$E16*$F16,0) -> 0 | BN16: =IF(SUM(BM$33:BM$36)>0,$E16*$F16,0) -> 0 | BP16: =IF(SUM(BO$33:BO$36)>0,$E16*$F16,0) -> 0 | BR16: =IF(SUM(BQ$33:BQ$36)>0,$E16*$F16,0) -> 0 | BT16: =IF(SUM(BS$33:BS$36)>0,$E16*$F16,0) -> 0 | BV16: =IF(SUM(BU$33:BU$36)>0,$E16*$F16,0) -> 0 | BX16: =IF(SUM(BW$33:BW$36)>0,$E16*$F16,0) -> 0 | BZ16: =IF(SUM(BY$33:BY$36)>0,$E16*$F16,0) -> 0 | CB16: =IF(SUM(CA$33:CA$36)>0,$E16*$F16,0) -> 0 | CD16: =IF(SUM(CC$33:CC$36)>0,$E16*$F16,0) -> 0 | CF16: =IF(SUM(CE$33:CE$36)>0,$E16*$F16,0) -> 0 | CH16: =IF(SUM(CG$33:CG$36)>0,$E16*$F16,0) -> 0 | CJ16: =IF(SUM(CI$33:CI$36)>0,$E16*$F16,0) -> 0 | CL16: =IF(SUM(CK$33:CK$36)>0,$E16*$F16,0) -> 0 | CN16: =IF(SUM(CM$33:CM$36)>0,$E16*$F16,0) -> 0 | CP16: =IF(SUM(CO$33:CO$36)>0,$E16*$F16,0) -> 0 | CR16: =IF(SUM(CQ$33:CQ$36)>0,$E16*$F16,0) -> 0 | CT16: =IF(SUM(CS$33:CS$36)>0,$E16*$F16,0) -> 0 | CV16: =IF(SUM(CU$33:CU$36)>0,$E16*$F16,0) -> 0 | CX16: =IF(SUM(CW$33:CW$36)>0,$E16*$F16,0) -> 0 | CZ16: =IF(SUM(CY$33:CY$36)>0,$E16*$F16,0) -> 0 | DB16: =IF(SUM(DA$33:DA$36)>0,$E16*$F16,0) -> 0 | DD16: =IF(SUM(DC$33:DC$36)>0,$E16*$F16,0) -> 0 | DF16: =IF(SUM(DE$33:DE$36)>0,$E16*$F16,0) -> 0 | DH16: =IF(SUM(DG$33:DG$36)>0,$E16*$F16,0) -> 0 | DJ16: =IF(SUM(DI$33:DI$36)>0,$E16*$F16,0) -> 0 | DL16: =IF(SUM(DK$33:DK$36)>0,$E16*$F16,0) -> 0 | DN16: =IF(SUM(DM$33:DM$36)>0,$E16*$F16,0) -> 0 | DP16: =IF(SUM(DO$33:DO$36)>0,$E16*$F16,0) -> 0 | DR16: =IF(SUM(DQ$33:DQ$36)>0,$E16*$F16,0) -> 0 | DT16: =IF(SUM(DS$33:DS$36)>0,$E16*$F16,0) -> 0 | DV16: =IF(SUM(DU$33:DU$36)>0,$E16*$F16,0) -> 0 | DX16: =IF(SUM(DW$33:DW$36)>0,$E16*$F16,0) -> 0
C17: 4 | D17: Máscara cirúrgica tripla, cor branca, com elástico e clips nasais de alumínio, com mínimo de 14 cm de comprimento, atóxica, hipoalérgica, não estéril, sem látex, com registro e aprovação na ANVISA, caixa com 50 unidades. | E17: 10 | F17: 18.8 | J17: =IF(SUM(I$8:I$10)>0,$E17*$F17,0) -> 188 | L17: =IF(SUM(K$8:K$10)>0,$E17*$F17,0) -> 0 | N17: =IF(SUM(M$33:M$36)>0,$E17*$F17,0) -> 0 | P17: =IF(SUM(O$33:O$36)>0,$E17*$F17,0) -> 0 | R17: =IF(SUM(Q$33:Q$36)>0,$E17*$F17,0) -> 0 | T17: =IF(SUM(S$33:S$36)>0,$E17*$F17,0) -> 0 | V17: =IF(SUM(U$33:U$36)>0,$E17*$F17,0) -> 0 | X17: =IF(SUM(W$33:W$36)>0,$E17*$F17,0) -> 0 | Z17: =IF(SUM(Y$33:Y$36)>0,$E17*$F17,0) -> 0 | AB17: =IF(SUM(AA$33:AA$36)>0,$E17*$F17,0) -> 0 | AD17: =IF(SUM(AC$33:AC$36)>0,$E17*$F17,0) -> 0 | AF17: =IF(SUM(AE$33:AE$36)>0,$E17*$F17,0) -> 0 | AH17: =IF(SUM(AG$33:AG$36)>0,$E17*$F17,0) -> 0 | AJ17: =IF(SUM(AI$33:AI$36)>0,$E17*$F17,0) -> 0 | AL17: =IF(SUM(AK$33:AK$36)>0,$E17*$F17,0) -> 0 | AN17: =IF(SUM(AM$33:AM$36)>0,$E17*$F17,0) -> 0 | AP17: =IF(SUM(AO$33:AO$36)>0,$E17*$F17,0) -> 0 | AR17: =IF(SUM(AQ$33:AQ$36)>0,$E17*$F17,0) -> 0 | AT17: =IF(SUM(AS$33:AS$36)>0,$E17*$F17,0) -> 0 | AV17: =IF(SUM(AU$33:AU$36)>0,$E17*$F17,0) -> 0 | AX17: =IF(SUM(AW$33:AW$36)>0,$E17*$F17,0) -> 0 | AZ17: =IF(SUM(AY$33:AY$36)>0,$E17*$F17,0) -> 0 | BB17: =IF(SUM(BA$33:BA$36)>0,$E17*$F17,0) -> 0 | BD17: =IF(SUM(BC$33:BC$36)>0,$E17*$F17,0) -> 0 | BF17: =IF(SUM(BE$33:BE$36)>0,$E17*$F17,0) -> 0 | BH17: =IF(SUM(BG$33:BG$36)>0,$E17*$F17,0) -> 0 | BJ17: =IF(SUM(BI$33:BI$36)>0,$E17*$F17,0) -> 0 | BL17: =IF(SUM(BK$33:BK$36)>0,$E17*$F17,0) -> 0 | BN17: =IF(SUM(BM$33:BM$36)>0,$E17*$F17,0) -> 0 | BP17: =IF(SUM(BO$33:BO$36)>0,$E17*$F17,0) -> 0 | BR17: =IF(SUM(BQ$33:BQ$36)>0,$E17*$F17,0) -> 0 | BT17: =IF(SUM(BS$33:BS$36)>0,$E17*$F17,0) -> 0 | BV17: =IF(SUM(BU$33:BU$36)>0,$E17*$F17,0) -> 0 | BX17: =IF(SUM(BW$33:BW$36)>0,$E17*$F17,0) -> 0 | BZ17: =IF(SUM(BY$33:BY$36)>0,$E17*$F17,0) -> 0 | CB17: =IF(SUM(CA$33:CA$36)>0,$E17*$F17,0) -> 0 | CD17: =IF(SUM(CC$33:CC$36)>0,$E17*$F17,0) -> 0 | CF17: =IF(SUM(CE$33:CE$36)>0,$E17*$F17,0) -> 0 | CH17: =IF(SUM(CG$33:CG$36)>0,$E17*$F17,0) -> 0 | CJ17: =IF(SUM(CI$33:CI$36)>0,$E17*$F17,0) -> 0 | CL17: =IF(SUM(CK$33:CK$36)>0,$E17*$F17,0) -> 0 | CN17: =IF(SUM(CM$33:CM$36)>0,$E17*$F17,0) -> 0 | CP17: =IF(SUM(CO$33:CO$36)>0,$E17*$F17,0) -> 0 | CR17: =IF(SUM(CQ$33:CQ$36)>0,$E17*$F17,0) -> 0 | CT17: =IF(SUM(CS$33:CS$36)>0,$E17*$F17,0) -> 0 | CV17: =IF(SUM(CU$33:CU$36)>0,$E17*$F17,0) -> 0 | CX17: =IF(SUM(CW$33:CW$36)>0,$E17*$F17,0) -> 0 | CZ17: =IF(SUM(CY$33:CY$36)>0,$E17*$F17,0) -> 0 | DB17: =IF(SUM(DA$33:DA$36)>0,$E17*$F17,0) -> 0 | DD17: =IF(SUM(DC$33:DC$36)>0,$E17*$F17,0) -> 0 | DF17: =IF(SUM(DE$33:DE$36)>0,$E17*$F17,0) -> 0 | DH17: =IF(SUM(DG$33:DG$36)>0,$E17*$F17,0) -> 0 | DJ17: =IF(SUM(DI$33:DI$36)>0,$E17*$F17,0) -> 0 | DL17: =IF(SUM(DK$33:DK$36)>0,$E17*$F17,0) -> 0 | DN17: =IF(SUM(DM$33:DM$36)>0,$E17*$F17,0) -> 0 | DP17: =IF(SUM(DO$33:DO$36)>0,$E17*$F17,0) -> 0 | DR17: =IF(SUM(DQ$33:DQ$36)>0,$E17*$F17,0) -> 0 | DT17: =IF(SUM(DS$33:DS$36)>0,$E17*$F17,0) -> 0 | DV17: =IF(SUM(DU$33:DU$36)>0,$E17*$F17,0) -> 0 | DX17: =IF(SUM(DW$33:DW$36)>0,$E17*$F17,0) -> 0
C20: CATEGORIAS | F20: QUANTIDADE
I21: =IF($C21=I$4,1,0) -> 0 | K21: =IF($C21=K$4,1,0) -> 0
C22: 2 | D22: =HLOOKUP($C22,'Dados Gerais'!$D$5:$BK$10,6) -> COORDENADOR DE DESCRIÇÃO DE DOCUMENTOS DE ARQUIVO | F22: =HLOOKUP($C22,'Dados Gerais'!$D$5:$BK$14,10) -> 2 | I22: =IF($C22=I$4,1,0) -> 0 | K22: =IF($C22=K$4,1,0) -> 1 | M22: =IF($C22=M$4,1,0) -> 0 | O22: =IF($C22=O$4,1,0) -> 0 | Q22: =IF($C22=Q$4,1,0) -> 0 | S22: =IF($C22=S$4,1,0) -> 0 | U22: =IF($C22=U$4,1,0) -> 0 | W22: =IF($C22=W$4,1,0) -> 0 | Y22: =IF($C22=Y$4,1,0) -> 0 | AA22: =IF($C22=AA$4,1,0) -> 0 | AC22: =IF($C22=AC$4,1,0) -> 0 | AE22: =IF($C22=AE$4,1,0) -> 0 | AG22: =IF($C22=AG$4,1,0) -> 0 | AI22: =IF($C22=AI$4,1,0) -> 0 | AK22: =IF($C22=AK$4,1,0) -> 0 | AM22: =IF($C22=AM$4,1,0) -> 0 | AO22: =IF($C22=AO$4,1,0) -> 0 | AQ22: =IF($C22=AQ$4,1,0) -> 0 | AS22: =IF($C22=AS$4,1,0) -> 0 | AU22: =IF($C22=AU$4,1,0) -> 0 | AW22: =IF($C22=AW$4,1,0) -> 0 | AY22: =IF($C22=AY$4,1,0) -> 0 | BA22: =IF($C22=BA$4,1,0) -> 0 | BC22: =IF($C22=BC$4,1,0) -> 0 | BE22: =IF($C22=BE$4,1,0) -> 0 | BG22: =IF($C22=BG$4,1,0) -> 0 | BI22: =IF($C22=BI$4,1,0) -> 0 | BK22: =IF($C22=BK$4,1,0) -> 0 | BM22: =IF($C22=BM$4,1,0) -> 0 | BO22: =IF($C22=BO$4,1,0) -> 0 | BQ22: =IF($C22=BQ$4,1,0) -> 0 | BS22: =IF($C22=BS$4,1,0) -> 0 | BU22: =IF($C22=BU$4,1,0) -> 0 | BW22: =IF($C22=BW$4,1,0) -> 0 | BY22: =IF($C22=BY$4,1,0) -> 0 | CA22: =IF($C22=CA$4,1,0) -> 0 | CC22: =IF($C22=CC$4,1,0) -> 0 | CE22: =IF($C22=CE$4,1,0) -> 0 | CG22: =IF($C22=CG$4,1,0) -> 0 | CI22: =IF($C22=CI$4,1,0) -> 0 | CK22: =IF($C22=CK$4,1,0) -> 0 | CM22: =IF($C22=CM$4,1,0) -> 0 | CO22: =IF($C22=CO$4,1,0) -> 0 | CQ22: =IF($C22=CQ$4,1,0) -> 0 | CS22: =IF($C22=CS$4,1,0) -> 0 | CU22: =IF($C22=CU$4,1,0) -> 0 | CW22: =IF($C22=CW$4,1,0) -> 0 | CY22: =IF($C22=CY$4,1,0) -> 0 | DA22: =IF($C22=DA$4,1,0) -> 0 | DC22: =IF($C22=DC$4,1,0) -> 0 | DE22: =IF($C22=DE$4,1,0) -> 0 | DG22: =IF($C22=DG$4,1,0) -> 0 | DI22: =IF($C22=DI$4,1,0) -> 0 | DK22: =IF($C22=DK$4,1,0) -> 0 | DM22: =IF($C22=DM$4,1,0) -> 0 | DO22: =IF($C22=DO$4,1,0) -> 0 | DQ22: =IF($C22=DQ$4,1,0) -> 0 | DS22: =IF($C22=DS$4,1,0) -> 0 | DU22: =IF($C22=DU$4,1,0) -> 0 | DW22: =IF($C22=DW$4,1,0) -> 0
I23: =IF($C23=I$4,1,0) -> 0 | K23: =IF($C23=K$4,1,0) -> 0
C25: ITEM | D25: DESCRIÇÃO | E25: QUANT ANUAL POR POSTO | F25: VALOR
J26: =IF(SUM(I$8:I$10)>0,$E26*$F26,0) -> 0 | L26: =IF(SUM(K$8:K$10)>0,$E26*$F26,0) -> 0 | N26: =IF(SUM(M$8:M$10)>0,$E26*$F26,0) -> 0 | P26: =IF(SUM(O$8:O$10)>0,$E26*$F26,0) -> 0 | R26: =IF(SUM(Q$8:Q$10)>0,$E26*$F26,0) -> 0 | T26: =IF(SUM(S$8:S$10)>0,$E26*$F26,0) -> 0 | V26: =IF(SUM(U$8:U$10)>0,$E26*$F26,0) -> 0 | X26: =IF(SUM(W$8:W$10)>0,$E26*$F26,0) -> 0 | Z26: =IF(SUM(Y$8:Y$10)>0,$E26*$F26,0) -> 0 | AB26: =IF(SUM(AA$8:AA$10)>0,$E26*$F26,0) -> 0 | AD26: =IF(SUM(AC$8:AC$10)>0,$E26*$F26,0) -> 0 | AF26: =IF(SUM(AE$8:AE$10)>0,$E26*$F26,0) -> 0 | AH26: =IF(SUM(AG$8:AG$10)>0,$E26*$F26,0) -> 0 | AJ26: =IF(SUM(AI$8:AI$10)>0,$E26*$F26,0) -> 0 | AL26: =IF(SUM(AK$8:AK$10)>0,$E26*$F26,0) -> 0 | AN26: =IF(SUM(AM$8:AM$10)>0,$E26*$F26,0) -> 0 | AP26: =IF(SUM(AO$8:AO$10)>0,$E26*$F26,0) -> 0 | AR26: =IF(SUM(AQ$8:AQ$10)>0,$E26*$F26,0) -> 0 | AT26: =IF(SUM(AS$8:AS$10)>0,$E26*$F26,0) -> 0 | AV26: =IF(SUM(AU$8:AU$10)>0,$E26*$F26,0) -> 0 | AX26: =IF(SUM(AW$8:AW$10)>0,$E26*$F26,0) -> 0 | AZ26: =IF(SUM(AY$8:AY$10)>0,$E26*$F26,0) -> 0 | BB26: =IF(SUM(BA$8:BA$10)>0,$E26*$F26,0) -> 0 | BD26: =IF(SUM(BC$8:BC$10)>0,$E26*$F26,0) -> 0 | BF26: =IF(SUM(BE$8:BE$10)>0,$E26*$F26,0) -> 0 | BH26: =IF(SUM(BG$8:BG$10)>0,$E26*$F26,0) -> 0 | BJ26: =IF(SUM(BI$8:BI$10)>0,$E26*$F26,0) -> 0 | BL26: =IF(SUM(BK$8:BK$10)>0,$E26*$F26,0) -> 0 | BN26: =IF(SUM(BM$8:BM$10)>0,$E26*$F26,0) -> 0 | BP26: =IF(SUM(BO$8:BO$10)>0,$E26*$F26,0) -> 0 | BR26: =IF(SUM(BQ$8:BQ$10)>0,$E26*$F26,0) -> 0 | BT26: =IF(SUM(BS$8:BS$10)>0,$E26*$F26,0) -> 0 | BV26: =IF(SUM(BU$8:BU$10)>0,$E26*$F26,0) -> 0 | BX26: =IF(SUM(BW$8:BW$10)>0,$E26*$F26,0) -> 0 | BZ26: =IF(SUM(BY$8:BY$10)>0,$E26*$F26,0) -> 0 | CB26: =IF(SUM(CA$8:CA$10)>0,$E26*$F26,0) -> 0 | CD26: =IF(SUM(CC$8:CC$10)>0,$E26*$F26,0) -> 0 | CF26: =IF(SUM(CE$8:CE$10)>0,$E26*$F26,0) -> 0 | CH26: =IF(SUM(CG$8:CG$10)>0,$E26*$F26,0) -> 0 | CJ26: =IF(SUM(CI$8:CI$10)>0,$E26*$F26,0) -> 0 | CL26: =IF(SUM(CK$8:CK$10)>0,$E26*$F26,0) -> 0 | CN26: =IF(SUM(CM$8:CM$10)>0,$E26*$F26,0) -> 0 | CP26: =IF(SUM(CO$8:CO$10)>0,$E26*$F26,0) -> 0 | CR26: =IF(SUM(CQ$8:CQ$10)>0,$E26*$F26,0) -> 0 | CT26: =IF(SUM(CS$8:CS$10)>0,$E26*$F26,0) -> 0 | CV26: =IF(SUM(CU$8:CU$10)>0,$E26*$F26,0) -> 0 | CX26: =IF(SUM(CW$8:CW$10)>0,$E26*$F26,0) -> 0 | CZ26: =IF(SUM(CY$8:CY$10)>0,$E26*$F26,0) -> 0 | DB26: =IF(SUM(DA$8:DA$10)>0,$E26*$F26,0) -> 0 | DD26: =IF(SUM(DC$8:DC$10)>0,$E26*$F26,0) -> 0 | DF26: =IF(SUM(DE$8:DE$10)>0,$E26*$F26,0) -> 0 | DH26: =IF(SUM(DG$8:DG$10)>0,$E26*$F26,0) -> 0 | DJ26: =IF(SUM(DI$8:DI$10)>0,$E26*$F26,0) -> 0 | DL26: =IF(SUM(DK$8:DK$10)>0,$E26*$F26,0) -> 0 | DN26: =IF(SUM(DM$8:DM$10)>0,$E26*$F26,0) -> 0 | DP26: =IF(SUM(DO$8:DO$10)>0,$E26*$F26,0) -> 0 | DR26: =IF(SUM(DQ$8:DQ$10)>0,$E26*$F26,0) -> 0 | DT26: =IF(SUM(DS$8:DS$10)>0,$E26*$F26,0) -> 0 | DV26: =IF(SUM(DU$8:DU$10)>0,$E26*$F26,0) -> 0 | DX26: =IF(SUM(DW$8:DW$10)>0,$E26*$F26,0) -> 0
C27: 1 | D27: Óculos sobreposição INCOLOR, constituído de armação e visor confeccionados em uma única peça de policarbonato incolor com meia borda superior. As hastes do tipo espátula, são confeccionadas do mesmo material da armação, possui fendas para ventilação fixadas à armação. CA: 6942. MARCA DE REFERÊNCIA CARBOGRAFITE. | E27: 2 | F27: =F14 -> 31 | J27: =IF(SUM(I$21:I$23)>0,$E27*$F27,0) -> 0 | L27: =IF(SUM(K$21:K$23)>0,$E27*$F27,0) -> 62 | N27: =IF(SUM(M$8:M$10)>0,$E27*$F27,0) -> 0 | P27: =IF(SUM(O$8:O$10)>0,$E27*$F27,0) -> 0 | R27: =IF(SUM(Q$8:Q$10)>0,$E27*$F27,0) -> 0 | T27: =IF(SUM(S$8:S$10)>0,$E27*$F27,0) -> 0 | V27: =IF(SUM(U$8:U$10)>0,$E27*$F27,0) -> 0 | X27: =IF(SUM(W$8:W$10)>0,$E27*$F27,0) -> 0 | Z27: =IF(SUM(Y$8:Y$10)>0,$E27*$F27,0) -> 0 | AB27: =IF(SUM(AA$8:AA$10)>0,$E27*$F27,0) -> 0 | AD27: =IF(SUM(AC$8:AC$10)>0,$E27*$F27,0) -> 0 | AF27: =IF(SUM(AE$8:AE$10)>0,$E27*$F27,0) -> 0 | AH27: =IF(SUM(AG$8:AG$10)>0,$E27*$F27,0) -> 0 | AJ27: =IF(SUM(AI$8:AI$10)>0,$E27*$F27,0) -> 0 | AL27: =IF(SUM(AK$8:AK$10)>0,$E27*$F27,0) -> 0 | AN27: =IF(SUM(AM$8:AM$10)>0,$E27*$F27,0) -> 0 | AP27: =IF(SUM(AO$8:AO$10)>0,$E27*$F27,0) -> 0 | AR27: =IF(SUM(AQ$8:AQ$10)>0,$E27*$F27,0) -> 0 | AT27: =IF(SUM(AS$8:AS$10)>0,$E27*$F27,0) -> 0 | AV27: =IF(SUM(AU$8:AU$10)>0,$E27*$F27,0) -> 0 | AX27: =IF(SUM(AW$8:AW$10)>0,$E27*$F27,0) -> 0 | AZ27: =IF(SUM(AY$8:AY$10)>0,$E27*$F27,0) -> 0 | BB27: =IF(SUM(BA$8:BA$10)>0,$E27*$F27,0) -> 0 | BD27: =IF(SUM(BC$8:BC$10)>0,$E27*$F27,0) -> 0 | BF27: =IF(SUM(BE$8:BE$10)>0,$E27*$F27,0) -> 0 | BH27: =IF(SUM(BG$8:BG$10)>0,$E27*$F27,0) -> 0 | BJ27: =IF(SUM(BI$8:BI$10)>0,$E27*$F27,0) -> 0 | BL27: =IF(SUM(BK$8:BK$10)>0,$E27*$F27,0) -> 0 | BN27: =IF(SUM(BM$8:BM$10)>0,$E27*$F27,0) -> 0 | BP27: =IF(SUM(BO$8:BO$10)>0,$E27*$F27,0) -> 0 | BR27: =IF(SUM(BQ$8:BQ$10)>0,$E27*$F27,0) -> 0 | BT27: =IF(SUM(BS$8:BS$10)>0,$E27*$F27,0) -> 0 | BV27: =IF(SUM(BU$8:BU$10)>0,$E27*$F27,0) -> 0 | BX27: =IF(SUM(BW$8:BW$10)>0,$E27*$F27,0) -> 0 | BZ27: =IF(SUM(BY$8:BY$10)>0,$E27*$F27,0) -> 0 | CB27: =IF(SUM(CA$8:CA$10)>0,$E27*$F27,0) -> 0 | CD27: =IF(SUM(CC$8:CC$10)>0,$E27*$F27,0) -> 0 | CF27: =IF(SUM(CE$8:CE$10)>0,$E27*$F27,0) -> 0 | CH27: =IF(SUM(CG$8:CG$10)>0,$E27*$F27,0) -> 0 | CJ27: =IF(SUM(CI$8:CI$10)>0,$E27*$F27,0) -> 0 | CL27: =IF(SUM(CK$8:CK$10)>0,$E27*$F27,0) -> 0 | CN27: =IF(SUM(CM$8:CM$10)>0,$E27*$F27,0) -> 0 | CP27: =IF(SUM(CO$8:CO$10)>0,$E27*$F27,0) -> 0 | CR27: =IF(SUM(CQ$8:CQ$10)>0,$E27*$F27,0) -> 0 | CT27: =IF(SUM(CS$8:CS$10)>0,$E27*$F27,0) -> 0 | CV27: =IF(SUM(CU$8:CU$10)>0,$E27*$F27,0) -> 0 | CX27: =IF(SUM(CW$8:CW$10)>0,$E27*$F27,0) -> 0 | CZ27: =IF(SUM(CY$8:CY$10)>0,$E27*$F27,0) -> 0 | DB27: =IF(SUM(DA$8:DA$10)>0,$E27*$F27,0) -> 0 | DD27: =IF(SUM(DC$8:DC$10)>0,$E27*$F27,0) -> 0 | DF27: =IF(SUM(DE$8:DE$10)>0,$E27*$F27,0) -> 0 | DH27: =IF(SUM(DG$8:DG$10)>0,$E27*$F27,0) -> 0 | DJ27: =IF(SUM(DI$8:DI$10)>0,$E27*$F27,0) -> 0 | DL27: =IF(SUM(DK$8:DK$10)>0,$E27*$F27,0) -> 0 | DN27: =IF(SUM(DM$8:DM$10)>0,$E27*$F27,0) -> 0 | DP27: =IF(SUM(DO$8:DO$10)>0,$E27*$F27,0) -> 0 | DR27: =IF(SUM(DQ$8:DQ$10)>0,$E27*$F27,0) -> 0 | DT27: =IF(SUM(DS$8:DS$10)>0,$E27*$F27,0) -> 0 | DV27: =IF(SUM(DU$8:DU$10)>0,$E27*$F27,0) -> 0 | DX27: =IF(SUM(DW$8:DW$10)>0,$E27*$F27,0) -> 0
C28: 2 | D28: Luvas descartáveis de látex de borracha 100% natural, sem pó (powder-free), hipo-alergênica, não estéril, ambidestra, comprimento total aproximado de 24cm Tamanhos: P, M e G. com registro e aprovação na ANVISA. | E28: 7 | F28: =F15 -> 29.3 | J28: =IF(SUM(I$21:I$23)>0,$E28*$F28,0) -> 0 | L28: =IF(SUM(K$21:K$23)>0,$E28*$F28,0) -> 205.1 | N28: =IF(SUM(M$33:M$36)>0,$E28*$F28,0) -> 0 | P28: =IF(SUM(O$33:O$36)>0,$E28*$F28,0) -> 0 | R28: =IF(SUM(Q$33:Q$36)>0,$E28*$F28,0) -> 0 | T28: =IF(SUM(S$33:S$36)>0,$E28*$F28,0) -> 0 | V28: =IF(SUM(U$33:U$36)>0,$E28*$F28,0) -> 0 | X28: =IF(SUM(W$33:W$36)>0,$E28*$F28,0) -> 0 | Z28: =IF(SUM(Y$33:Y$36)>0,$E28*$F28,0) -> 0 | AB28: =IF(SUM(AA$33:AA$36)>0,$E28*$F28,0) -> 0 | AD28: =IF(SUM(AC$33:AC$36)>0,$E28*$F28,0) -> 0 | AF28: =IF(SUM(AE$33:AE$36)>0,$E28*$F28,0) -> 0 | AH28: =IF(SUM(AG$33:AG$36)>0,$E28*$F28,0) -> 0 | AJ28: =IF(SUM(AI$33:AI$36)>0,$E28*$F28,0) -> 0 | AL28: =IF(SUM(AK$33:AK$36)>0,$E28*$F28,0) -> 0 | AN28: =IF(SUM(AM$33:AM$36)>0,$E28*$F28,0) -> 0 | AP28: =IF(SUM(AO$33:AO$36)>0,$E28*$F28,0) -> 0 | AR28: =IF(SUM(AQ$33:AQ$36)>0,$E28*$F28,0) -> 0 | AT28: =IF(SUM(AS$33:AS$36)>0,$E28*$F28,0) -> 0 | AV28: =IF(SUM(AU$33:AU$36)>0,$E28*$F28,0) -> 0 | AX28: =IF(SUM(AW$33:AW$36)>0,$E28*$F28,0) -> 0 | AZ28: =IF(SUM(AY$33:AY$36)>0,$E28*$F28,0) -> 0 | BB28: =IF(SUM(BA$33:BA$36)>0,$E28*$F28,0) -> 0 | BD28: =IF(SUM(BC$33:BC$36)>0,$E28*$F28,0) -> 0 | BF28: =IF(SUM(BE$33:BE$36)>0,$E28*$F28,0) -> 0 | BH28: =IF(SUM(BG$33:BG$36)>0,$E28*$F28,0) -> 0 | BJ28: =IF(SUM(BI$33:BI$36)>0,$E28*$F28,0) -> 0 | BL28: =IF(SUM(BK$33:BK$36)>0,$E28*$F28,0) -> 0 | BN28: =IF(SUM(BM$33:BM$36)>0,$E28*$F28,0) -> 0 | BP28: =IF(SUM(BO$33:BO$36)>0,$E28*$F28,0) -> 0 | BR28: =IF(SUM(BQ$33:BQ$36)>0,$E28*$F28,0) -> 0 | BT28: =IF(SUM(BS$33:BS$36)>0,$E28*$F28,0) -> 0 | BV28: =IF(SUM(BU$33:BU$36)>0,$E28*$F28,0) -> 0 | BX28: =IF(SUM(BW$33:BW$36)>0,$E28*$F28,0) -> 0 | BZ28: =IF(SUM(BY$33:BY$36)>0,$E28*$F28,0) -> 0 | CB28: =IF(SUM(CA$33:CA$36)>0,$E28*$F28,0) -> 0 | CD28: =IF(SUM(CC$33:CC$36)>0,$E28*$F28,0) -> 0 | CF28: =IF(SUM(CE$33:CE$36)>0,$E28*$F28,0) -> 0 | CH28: =IF(SUM(CG$33:CG$36)>0,$E28*$F28,0) -> 0 | CJ28: =IF(SUM(CI$33:CI$36)>0,$E28*$F28,0) -> 0 | CL28: =IF(SUM(CK$33:CK$36)>0,$E28*$F28,0) -> 0 | CN28: =IF(SUM(CM$33:CM$36)>0,$E28*$F28,0) -> 0 | CP28: =IF(SUM(CO$33:CO$36)>0,$E28*$F28,0) -> 0 | CR28: =IF(SUM(CQ$33:CQ$36)>0,$E28*$F28,0) -> 0 | CT28: =IF(SUM(CS$33:CS$36)>0,$E28*$F28,0) -> 0 | CV28: =IF(SUM(CU$33:CU$36)>0,$E28*$F28,0) -> 0 | CX28: =IF(SUM(CW$33:CW$36)>0,$E28*$F28,0) -> 0 | CZ28: =IF(SUM(CY$33:CY$36)>0,$E28*$F28,0) -> 0 | DB28: =IF(SUM(DA$33:DA$36)>0,$E28*$F28,0) -> 0 | DD28: =IF(SUM(DC$33:DC$36)>0,$E28*$F28,0) -> 0 | DF28: =IF(SUM(DE$33:DE$36)>0,$E28*$F28,0) -> 0 | DH28: =IF(SUM(DG$33:DG$36)>0,$E28*$F28,0) -> 0 | DJ28: =IF(SUM(DI$33:DI$36)>0,$E28*$F28,0) -> 0 | DL28: =IF(SUM(DK$33:DK$36)>0,$E28*$F28,0) -> 0 | DN28: =IF(SUM(DM$33:DM$36)>0,$E28*$F28,0) -> 0 | DP28: =IF(SUM(DO$33:DO$36)>0,$E28*$F28,0) -> 0 | DR28: =IF(SUM(DQ$33:DQ$36)>0,$E28*$F28,0) -> 0 | DT28: =IF(SUM(DS$33:DS$36)>0,$E28*$F28,0) -> 0 | DV28: =IF(SUM(DU$33:DU$36)>0,$E28*$F28,0) -> 0 | DX28: =IF(SUM(DW$33:DW$36)>0,$E28*$F28,0) -> 0
C29: 3 | D29: Luva descartáveis de borracha sintética nitrílica, sem pó (powder-free), hipo-alergênica, com microtexturização na ponta dos dedos, ambidestra, comprimento total aproximado de 24cm. Tamanhos: P, M e G com registro e aprovação na ANVISA | E29: 2 | F29: =F16 -> 32.16 | J29: =IF(SUM(I$21:I$23)>0,$E29*$F29,0) -> 0 | L29: =IF(SUM(K$21:K$23)>0,$E29*$F29,0) -> 64.32 | N29: =IF(SUM(M$33:M$36)>0,$E29*$F29,0) -> 0 | P29: =IF(SUM(O$33:O$36)>0,$E29*$F29,0) -> 0 | R29: =IF(SUM(Q$33:Q$36)>0,$E29*$F29,0) -> 0 | T29: =IF(SUM(S$33:S$36)>0,$E29*$F29,0) -> 0 | V29: =IF(SUM(U$33:U$36)>0,$E29*$F29,0) -> 0 | X29: =IF(SUM(W$33:W$36)>0,$E29*$F29,0) -> 0 | Z29: =IF(SUM(Y$33:Y$36)>0,$E29*$F29,0) -> 0 | AB29: =IF(SUM(AA$33:AA$36)>0,$E29*$F29,0) -> 0 | AD29: =IF(SUM(AC$33:AC$36)>0,$E29*$F29,0) -> 0 | AF29: =IF(SUM(AE$33:AE$36)>0,$E29*$F29,0) -> 0 | AH29: =IF(SUM(AG$33:AG$36)>0,$E29*$F29,0) -> 0 | AJ29: =IF(SUM(AI$33:AI$36)>0,$E29*$F29,0) -> 0 | AL29: =IF(SUM(AK$33:AK$36)>0,$E29*$F29,0) -> 0 | AN29: =IF(SUM(AM$33:AM$36)>0,$E29*$F29,0) -> 0 | AP29: =IF(SUM(AO$33:AO$36)>0,$E29*$F29,0) -> 0 | AR29: =IF(SUM(AQ$33:AQ$36)>0,$E29*$F29,0) -> 0 | AT29: =IF(SUM(AS$33:AS$36)>0,$E29*$F29,0) -> 0 | AV29: =IF(SUM(AU$33:AU$36)>0,$E29*$F29,0) -> 0 | AX29: =IF(SUM(AW$33:AW$36)>0,$E29*$F29,0) -> 0 | AZ29: =IF(SUM(AY$33:AY$36)>0,$E29*$F29,0) -> 0 | BB29: =IF(SUM(BA$33:BA$36)>0,$E29*$F29,0) -> 0 | BD29: =IF(SUM(BC$33:BC$36)>0,$E29*$F29,0) -> 0 | BF29: =IF(SUM(BE$33:BE$36)>0,$E29*$F29,0) -> 0 | BH29: =IF(SUM(BG$33:BG$36)>0,$E29*$F29,0) -> 0 | BJ29: =IF(SUM(BI$33:BI$36)>0,$E29*$F29,0) -> 0 | BL29: =IF(SUM(BK$33:BK$36)>0,$E29*$F29,0) -> 0 | BN29: =IF(SUM(BM$33:BM$36)>0,$E29*$F29,0) -> 0 | BP29: =IF(SUM(BO$33:BO$36)>0,$E29*$F29,0) -> 0 | BR29: =IF(SUM(BQ$33:BQ$36)>0,$E29*$F29,0) -> 0 | BT29: =IF(SUM(BS$33:BS$36)>0,$E29*$F29,0) -> 0 | BV29: =IF(SUM(BU$33:BU$36)>0,$E29*$F29,0) -> 0 | BX29: =IF(SUM(BW$33:BW$36)>0,$E29*$F29,0) -> 0 | BZ29: =IF(SUM(BY$33:BY$36)>0,$E29*$F29,0) -> 0 | CB29: =IF(SUM(CA$33:CA$36)>0,$E29*$F29,0) -> 0 | CD29: =IF(SUM(CC$33:CC$36)>0,$E29*$F29,0) -> 0 | CF29: =IF(SUM(CE$33:CE$36)>0,$E29*$F29,0) -> 0 | CH29: =IF(SUM(CG$33:CG$36)>0,$E29*$F29,0) -> 0 | CJ29: =IF(SUM(CI$33:CI$36)>0,$E29*$F29,0) -> 0 | CL29: =IF(SUM(CK$33:CK$36)>0,$E29*$F29,0) -> 0 | CN29: =IF(SUM(CM$33:CM$36)>0,$E29*$F29,0) -> 0 | CP29: =IF(SUM(CO$33:CO$36)>0,$E29*$F29,0) -> 0 | CR29: =IF(SUM(CQ$33:CQ$36)>0,$E29*$F29,0) -> 0 | CT29: =IF(SUM(CS$33:CS$36)>0,$E29*$F29,0) -> 0 | CV29: =IF(SUM(CU$33:CU$36)>0,$E29*$F29,0) -> 0 | CX29: =IF(SUM(CW$33:CW$36)>0,$E29*$F29,0) -> 0 | CZ29: =IF(SUM(CY$33:CY$36)>0,$E29*$F29,0) -> 0 | DB29: =IF(SUM(DA$33:DA$36)>0,$E29*$F29,0) -> 0 | DD29: =IF(SUM(DC$33:DC$36)>0,$E29*$F29,0) -> 0 | DF29: =IF(SUM(DE$33:DE$36)>0,$E29*$F29,0) -> 0 | DH29: =IF(SUM(DG$33:DG$36)>0,$E29*$F29,0) -> 0 | DJ29: =IF(SUM(DI$33:DI$36)>0,$E29*$F29,0) -> 0 | DL29: =IF(SUM(DK$33:DK$36)>0,$E29*$F29,0) -> 0 | DN29: =IF(SUM(DM$33:DM$36)>0,$E29*$F29,0) -> 0 | DP29: =IF(SUM(DO$33:DO$36)>0,$E29*$F29,0) -> 0 | DR29: =IF(SUM(DQ$33:DQ$36)>0,$E29*$F29,0) -> 0 | DT29: =IF(SUM(DS$33:DS$36)>0,$E29*$F29,0) -> 0 | DV29: =IF(SUM(DU$33:DU$36)>0,$E29*$F29,0) -> 0 | DX29: =IF(SUM(DW$33:DW$36)>0,$E29*$F29,0) -> 0
C30: 4 | D30: Máscara cirúrgica tripla, cor branca, com elástico e clips nasais de alumínio, com mínimo de 14 cm de comprimento, atóxica, hipoalérgica, não estéril, sem látex, com registro e aprovação na ANVISA, caixa com 50 unidades. | E30: 5 | F30: =F17 -> 18.8 | J30: =IF(SUM(I$21:I$23)>0,$E30*$F30,0) -> 0 | L30: =IF(SUM(K$21:K$23)>0,$E30*$F30,0) -> 94 | N30: =IF(SUM(M$33:M$36)>0,$E30*$F30,0) -> 0 | P30: =IF(SUM(O$33:O$36)>0,$E30*$F30,0) -> 0 | R30: =IF(SUM(Q$33:Q$36)>0,$E30*$F30,0) -> 0 | T30: =IF(SUM(S$33:S$36)>0,$E30*$F30,0) -> 0 | V30: =IF(SUM(U$33:U$36)>0,$E30*$F30,0) -> 0 | X30: =IF(SUM(W$33:W$36)>0,$E30*$F30,0) -> 0 | Z30: =IF(SUM(Y$33:Y$36)>0,$E30*$F30,0) -> 0 | AB30: =IF(SUM(AA$33:AA$36)>0,$E30*$F30,0) -> 0 | AD30: =IF(SUM(AC$33:AC$36)>0,$E30*$F30,0) -> 0 | AF30: =IF(SUM(AE$33:AE$36)>0,$E30*$F30,0) -> 0 | AH30: =IF(SUM(AG$33:AG$36)>0,$E30*$F30,0) -> 0 | AJ30: =IF(SUM(AI$33:AI$36)>0,$E30*$F30,0) -> 0 | AL30: =IF(SUM(AK$33:AK$36)>0,$E30*$F30,0) -> 0 | AN30: =IF(SUM(AM$33:AM$36)>0,$E30*$F30,0) -> 0 | AP30: =IF(SUM(AO$33:AO$36)>0,$E30*$F30,0) -> 0 | AR30: =IF(SUM(AQ$33:AQ$36)>0,$E30*$F30,0) -> 0 | AT30: =IF(SUM(AS$33:AS$36)>0,$E30*$F30,0) -> 0 | AV30: =IF(SUM(AU$33:AU$36)>0,$E30*$F30,0) -> 0 | AX30: =IF(SUM(AW$33:AW$36)>0,$E30*$F30,0) -> 0 | AZ30: =IF(SUM(AY$33:AY$36)>0,$E30*$F30,0) -> 0 | BB30: =IF(SUM(BA$33:BA$36)>0,$E30*$F30,0) -> 0 | BD30: =IF(SUM(BC$33:BC$36)>0,$E30*$F30,0) -> 0 | BF30: =IF(SUM(BE$33:BE$36)>0,$E30*$F30,0) -> 0 | BH30: =IF(SUM(BG$33:BG$36)>0,$E30*$F30,0) -> 0 | BJ30: =IF(SUM(BI$33:BI$36)>0,$E30*$F30,0) -> 0 | BL30: =IF(SUM(BK$33:BK$36)>0,$E30*$F30,0) -> 0 | BN30: =IF(SUM(BM$33:BM$36)>0,$E30*$F30,0) -> 0 | BP30: =IF(SUM(BO$33:BO$36)>0,$E30*$F30,0) -> 0 | BR30: =IF(SUM(BQ$33:BQ$36)>0,$E30*$F30,0) -> 0 | BT30: =IF(SUM(BS$33:BS$36)>0,$E30*$F30,0) -> 0 | BV30: =IF(SUM(BU$33:BU$36)>0,$E30*$F30,0) -> 0 | BX30: =IF(SUM(BW$33:BW$36)>0,$E30*$F30,0) -> 0 | BZ30: =IF(SUM(BY$33:BY$36)>0,$E30*$F30,0) -> 0 | CB30: =IF(SUM(CA$33:CA$36)>0,$E30*$F30,0) -> 0 | CD30: =IF(SUM(CC$33:CC$36)>0,$E30*$F30,0) -> 0 | CF30: =IF(SUM(CE$33:CE$36)>0,$E30*$F30,0) -> 0 | CH30: =IF(SUM(CG$33:CG$36)>0,$E30*$F30,0) -> 0 | CJ30: =IF(SUM(CI$33:CI$36)>0,$E30*$F30,0) -> 0 | CL30: =IF(SUM(CK$33:CK$36)>0,$E30*$F30,0) -> 0 | CN30: =IF(SUM(CM$33:CM$36)>0,$E30*$F30,0) -> 0 | CP30: =IF(SUM(CO$33:CO$36)>0,$E30*$F30,0) -> 0 | CR30: =IF(SUM(CQ$33:CQ$36)>0,$E30*$F30,0) -> 0 | CT30: =IF(SUM(CS$33:CS$36)>0,$E30*$F30,0) -> 0 | CV30: =IF(SUM(CU$33:CU$36)>0,$E30*$F30,0) -> 0 | CX30: =IF(SUM(CW$33:CW$36)>0,$E30*$F30,0) -> 0 | CZ30: =IF(SUM(CY$33:CY$36)>0,$E30*$F30,0) -> 0 | DB30: =IF(SUM(DA$33:DA$36)>0,$E30*$F30,0) -> 0 | DD30: =IF(SUM(DC$33:DC$36)>0,$E30*$F30,0) -> 0 | DF30: =IF(SUM(DE$33:DE$36)>0,$E30*$F30,0) -> 0 | DH30: =IF(SUM(DG$33:DG$36)>0,$E30*$F30,0) -> 0 | DJ30: =IF(SUM(DI$33:DI$36)>0,$E30*$F30,0) -> 0 | DL30: =IF(SUM(DK$33:DK$36)>0,$E30*$F30,0) -> 0 | DN30: =IF(SUM(DM$33:DM$36)>0,$E30*$F30,0) -> 0 | DP30: =IF(SUM(DO$33:DO$36)>0,$E30*$F30,0) -> 0 | DR30: =IF(SUM(DQ$33:DQ$36)>0,$E30*$F30,0) -> 0 | DT30: =IF(SUM(DS$33:DS$36)>0,$E30*$F30,0) -> 0 | DV30: =IF(SUM(DU$33:DU$36)>0,$E30*$F30,0) -> 0 | DX30: =IF(SUM(DW$33:DW$36)>0,$E30*$F30,0) -> 0
J31: =IF(SUM(I$21:I$23)>0,$E31*$F31,0) -> 0 | L31: =IF(SUM(K$21:K$23)>0,$E31*$F31,0) -> 0
C32: CATEGORIAS | F32: QUANTIDADE
I33: =IF($C33=I$4,1,0) -> 0
D34: =HLOOKUP($C34,'Dados Gerais'!$D$5:$BK$10,6) ->  | F34: =HLOOKUP($C34,'Dados Gerais'!$D$5:$BK$14,10) ->  | I34: =IF($C34=I$4,1,0) -> 0 | K34: =IF($C34=K$4,1,0) -> 0 | M34: =IF($C34=M$4,1,0) -> 0 | O34: =IF($C34=O$4,1,0) -> 0 | Q34: =IF($C34=Q$4,1,0) -> 0 | S34: =IF($C34=S$4,1,0) -> 0 | U34: =IF($C34=U$4,1,0) -> 0 | W34: =IF($C34=W$4,1,0) -> 0 | Y34: =IF($C34=Y$4,1,0) -> 0 | AA34: =IF($C34=AA$4,1,0) -> 0 | AC34: =IF($C34=AC$4,1,0) -> 0 | AE34: =IF($C34=AE$4,1,0) -> 0 | AG34: =IF($C34=AG$4,1,0) -> 0 | AI34: =IF($C34=AI$4,1,0) -> 0 | AK34: =IF($C34=AK$4,1,0) -> 0 | AM34: =IF($C34=AM$4,1,0) -> 0 | AO34: =IF($C34=AO$4,1,0) -> 0 | AQ34: =IF($C34=AQ$4,1,0) -> 0 | AS34: =IF($C34=AS$4,1,0) -> 0 | AU34: =IF($C34=AU$4,1,0) -> 0 | AW34: =IF($C34=AW$4,1,0) -> 0 | AY34: =IF($C34=AY$4,1,0) -> 0 | BA34: =IF($C34=BA$4,1,0) -> 0 | BC34: =IF($C34=BC$4,1,0) -> 0 | BE34: =IF($C34=BE$4,1,0) -> 0 | BG34: =IF($C34=BG$4,1,0) -> 0 | BI34: =IF($C34=BI$4,1,0) -> 0 | BK34: =IF($C34=BK$4,1,0) -> 0 | BM34: =IF($C34=BM$4,1,0) -> 0 | BO34: =IF($C34=BO$4,1,0) -> 0 | BQ34: =IF($C34=BQ$4,1,0) -> 0 | BS34: =IF($C34=BS$4,1,0) -> 0 | BU34: =IF($C34=BU$4,1,0) -> 0 | BW34: =IF($C34=BW$4,1,0) -> 0 | BY34: =IF($C34=BY$4,1,0) -> 0 | CA34: =IF($C34=CA$4,1,0) -> 0 | CC34: =IF($C34=CC$4,1,0) -> 0 | CE34: =IF($C34=CE$4,1,0) -> 0 | CG34: =IF($C34=CG$4,1,0) -> 0 | CI34: =IF($C34=CI$4,1,0) -> 0 | CK34: =IF($C34=CK$4,1,0) -> 0 | CM34: =IF($C34=CM$4,1,0) -> 0 | CO34: =IF($C34=CO$4,1,0) -> 0 | CQ34: =IF($C34=CQ$4,1,0) -> 0 | CS34: =IF($C34=CS$4,1,0) -> 0 | CU34: =IF($C34=CU$4,1,0) -> 0 | CW34: =IF($C34=CW$4,1,0) -> 0 | CY34: =IF($C34=CY$4,1,0) -> 0 | DA34: =IF($C34=DA$4,1,0) -> 0 | DC34: =IF($C34=DC$4,1,0) -> 0 | DE34: =IF($C34=DE$4,1,0) -> 0 | DG34: =IF($C34=DG$4,1,0) -> 0 | DI34: =IF($C34=DI$4,1,0) -> 0 | DK34: =IF($C34=DK$4,1,0) -> 0 | DM34: =IF($C34=DM$4,1,0) -> 0 | DO34: =IF($C34=DO$4,1,0) -> 0 | DQ34: =IF($C34=DQ$4,1,0) -> 0 | DS34: =IF($C34=DS$4,1,0) -> 0 | DU34: =IF($C34=DU$4,1,0) -> 0 | DW34: =IF($C34=DW$4,1,0) -> 0
D35: =HLOOKUP($C35,'Dados Gerais'!$D$5:$BK$10,6) ->  | F35: =HLOOKUP($C35,'Dados Gerais'!$D$5:$BK$14,10) ->  | I35: =IF($C35=I$4,1,0) -> 0 | K35: =IF($C35=K$4,1,0) -> 0 | M35: =IF($C35=M$4,1,0) -> 0 | O35: =IF($C35=O$4,1,0) -> 0 | Q35: =IF($C35=Q$4,1,0) -> 0 | S35: =IF($C35=S$4,1,0) -> 0 | U35: =IF($C35=U$4,1,0) -> 0 | W35: =IF($C35=W$4,1,0) -> 0 | Y35: =IF($C35=Y$4,1,0) -> 0 | AA35: =IF($C35=AA$4,1,0) -> 0 | AC35: =IF($C35=AC$4,1,0) -> 0 | AE35: =IF($C35=AE$4,1,0) -> 0 | AG35: =IF($C35=AG$4,1,0) -> 0 | AI35: =IF($C35=AI$4,1,0) -> 0 | AK35: =IF($C35=AK$4,1,0) -> 0 | AM35: =IF($C35=AM$4,1,0) -> 0 | AO35: =IF($C35=AO$4,1,0) -> 0 | AQ35: =IF($C35=AQ$4,1,0) -> 0 | AS35: =IF($C35=AS$4,1,0) -> 0 | AU35: =IF($C35=AU$4,1,0) -> 0 | AW35: =IF($C35=AW$4,1,0) -> 0 | AY35: =IF($C35=AY$4,1,0) -> 0 | BA35: =IF($C35=BA$4,1,0) -> 0 | BC35: =IF($C35=BC$4,1,0) -> 0 | BE35: =IF($C35=BE$4,1,0) -> 0 | BG35: =IF($C35=BG$4,1,0) -> 0 | BI35: =IF($C35=BI$4,1,0) -> 0 | BK35: =IF($C35=BK$4,1,0) -> 0 | BM35: =IF($C35=BM$4,1,0) -> 0 | BO35: =IF($C35=BO$4,1,0) -> 0 | BQ35: =IF($C35=BQ$4,1,0) -> 0 | BS35: =IF($C35=BS$4,1,0) -> 0 | BU35: =IF($C35=BU$4,1,0) -> 0 | BW35: =IF($C35=BW$4,1,0) -> 0 | BY35: =IF($C35=BY$4,1,0) -> 0 | CA35: =IF($C35=CA$4,1,0) -> 0 | CC35: =IF($C35=CC$4,1,0) -> 0 | CE35: =IF($C35=CE$4,1,0) -> 0 | CG35: =IF($C35=CG$4,1,0) -> 0 | CI35: =IF($C35=CI$4,1,0) -> 0 | CK35: =IF($C35=CK$4,1,0) -> 0 | CM35: =IF($C35=CM$4,1,0) -> 0 | CO35: =IF($C35=CO$4,1,0) -> 0 | CQ35: =IF($C35=CQ$4,1,0) -> 0 | CS35: =IF($C35=CS$4,1,0) -> 0 | CU35: =IF($C35=CU$4,1,0) -> 0 | CW35: =IF($C35=CW$4,1,0) -> 0 | CY35: =IF($C35=CY$4,1,0) -> 0 | DA35: =IF($C35=DA$4,1,0) -> 0 | DC35: =IF($C35=DC$4,1,0) -> 0 | DE35: =IF($C35=DE$4,1,0) -> 0 | DG35: =IF($C35=DG$4,1,0) -> 0 | DI35: =IF($C35=DI$4,1,0) -> 0 | DK35: =IF($C35=DK$4,1,0) -> 0 | DM35: =IF($C35=DM$4,1,0) -> 0 | DO35: =IF($C35=DO$4,1,0) -> 0 | DQ35: =IF($C35=DQ$4,1,0) -> 0 | DS35: =IF($C35=DS$4,1,0) -> 0 | DU35: =IF($C35=DU$4,1,0) -> 0 | DW35: =IF($C35=DW$4,1,0) -> 0
G36: * Nota 1 - Considerou-se 5% de demitidos sem justa causa ao ano e recebendo aviso indenizado (30 dias de avisoprévio / 360 dias ao ano) | I36: =IF($C36=I$4,1,0) -> 0
C38: ITEM | D38: DESCRIÇÃO | E38: QUANT ANUAL POR POSTO | F38: VALOR
J39: =IF(SUM(I$8:I$10)>0,$E39*$F39,0) -> 0 | L39: =IF(SUM(K$8:K$10)>0,$E39*$F39,0) -> 0 | N39: =IF(SUM(M$8:M$10)>0,$E39*$F39,0) -> 0 | P39: =IF(SUM(O$8:O$10)>0,$E39*$F39,0) -> 0 | R39: =IF(SUM(Q$8:Q$10)>0,$E39*$F39,0) -> 0 | T39: =IF(SUM(S$8:S$10)>0,$E39*$F39,0) -> 0 | V39: =IF(SUM(U$8:U$10)>0,$E39*$F39,0) -> 0 | X39: =IF(SUM(W$8:W$10)>0,$E39*$F39,0) -> 0 | Z39: =IF(SUM(Y$8:Y$10)>0,$E39*$F39,0) -> 0 | AB39: =IF(SUM(AA$8:AA$10)>0,$E39*$F39,0) -> 0 | AD39: =IF(SUM(AC$8:AC$10)>0,$E39*$F39,0) -> 0 | AF39: =IF(SUM(AE$8:AE$10)>0,$E39*$F39,0) -> 0 | AH39: =IF(SUM(AG$8:AG$10)>0,$E39*$F39,0) -> 0 | AJ39: =IF(SUM(AI$8:AI$10)>0,$E39*$F39,0) -> 0 | AL39: =IF(SUM(AK$8:AK$10)>0,$E39*$F39,0) -> 0 | AN39: =IF(SUM(AM$8:AM$10)>0,$E39*$F39,0) -> 0 | AP39: =IF(SUM(AO$8:AO$10)>0,$E39*$F39,0) -> 0 | AR39: =IF(SUM(AQ$8:AQ$10)>0,$E39*$F39,0) -> 0 | AT39: =IF(SUM(AS$8:AS$10)>0,$E39*$F39,0) -> 0 | AV39: =IF(SUM(AU$8:AU$10)>0,$E39*$F39,0) -> 0 | AX39: =IF(SUM(AW$8:AW$10)>0,$E39*$F39,0) -> 0 | AZ39: =IF(SUM(AY$8:AY$10)>0,$E39*$F39,0) -> 0 | BB39: =IF(SUM(BA$8:BA$10)>0,$E39*$F39,0) -> 0 | BD39: =IF(SUM(BC$8:BC$10)>0,$E39*$F39,0) -> 0 | BF39: =IF(SUM(BE$8:BE$10)>0,$E39*$F39,0) -> 0 | BH39: =IF(SUM(BG$8:BG$10)>0,$E39*$F39,0) -> 0 | BJ39: =IF(SUM(BI$8:BI$10)>0,$E39*$F39,0) -> 0 | BL39: =IF(SUM(BK$8:BK$10)>0,$E39*$F39,0) -> 0 | BN39: =IF(SUM(BM$8:BM$10)>0,$E39*$F39,0) -> 0 | BP39: =IF(SUM(BO$8:BO$10)>0,$E39*$F39,0) -> 0 | BR39: =IF(SUM(BQ$8:BQ$10)>0,$E39*$F39,0) -> 0 | BT39: =IF(SUM(BS$8:BS$10)>0,$E39*$F39,0) -> 0 | BV39: =IF(SUM(BU$8:BU$10)>0,$E39*$F39,0) -> 0 | BX39: =IF(SUM(BW$8:BW$10)>0,$E39*$F39,0) -> 0 | BZ39: =IF(SUM(BY$8:BY$10)>0,$E39*$F39,0) -> 0 | CB39: =IF(SUM(CA$8:CA$10)>0,$E39*$F39,0) -> 0 | CD39: =IF(SUM(CC$8:CC$10)>0,$E39*$F39,0) -> 0 | CF39: =IF(SUM(CE$8:CE$10)>0,$E39*$F39,0) -> 0 | CH39: =IF(SUM(CG$8:CG$10)>0,$E39*$F39,0) -> 0 | CJ39: =IF(SUM(CI$8:CI$10)>0,$E39*$F39,0) -> 0 | CL39: =IF(SUM(CK$8:CK$10)>0,$E39*$F39,0) -> 0 | CN39: =IF(SUM(CM$8:CM$10)>0,$E39*$F39,0) -> 0 | CP39: =IF(SUM(CO$8:CO$10)>0,$E39*$F39,0) -> 0 | CR39: =IF(SUM(CQ$8:CQ$10)>0,$E39*$F39,0) -> 0 | CT39: =IF(SUM(CS$8:CS$10)>0,$E39*$F39,0) -> 0 | CV39: =IF(SUM(CU$8:CU$10)>0,$E39*$F39,0) -> 0 | CX39: =IF(SUM(CW$8:CW$10)>0,$E39*$F39,0) -> 0 | CZ39: =IF(SUM(CY$8:CY$10)>0,$E39*$F39,0) -> 0 | DB39: =IF(SUM(DA$8:DA$10)>0,$E39*$F39,0) -> 0 | DD39: =IF(SUM(DC$8:DC$10)>0,$E39*$F39,0) -> 0 | DF39: =IF(SUM(DE$8:DE$10)>0,$E39*$F39,0) -> 0 | DH39: =IF(SUM(DG$8:DG$10)>0,$E39*$F39,0) -> 0 | DJ39: =IF(SUM(DI$8:DI$10)>0,$E39*$F39,0) -> 0 | DL39: =IF(SUM(DK$8:DK$10)>0,$E39*$F39,0) -> 0 | DN39: =IF(SUM(DM$8:DM$10)>0,$E39*$F39,0) -> 0 | DP39: =IF(SUM(DO$8:DO$10)>0,$E39*$F39,0) -> 0 | DR39: =IF(SUM(DQ$8:DQ$10)>0,$E39*$F39,0) -> 0 | DT39: =IF(SUM(DS$8:DS$10)>0,$E39*$F39,0) -> 0 | DV39: =IF(SUM(DU$8:DU$10)>0,$E39*$F39,0) -> 0 | DX39: =IF(SUM(DW$8:DW$10)>0,$E39*$F39,0) -> 0
C40: 1 | D40: Calçado de segurança tipo sapato com resistência a objetos pontiagudos, fechamento em elástico, couro preto, forração em tecido, bico de composite, palmilha de montagem têxtil resistente à perfuração, solado de PU (poliuretano), bidensidade sem cadarço. Ref. MARLUVAS. | E40: 1 | J40: =IF(SUM(I$33:I$36)>0,$E40*$F40,0) -> 0 | L40: =IF(SUM(K$33:K$36)>0,$E40*$F40,0) -> 0 | N40: =IF(SUM(M$33:M$36)>0,$E40*$F40,0) -> 0 | P40: =IF(SUM(O$33:O$36)>0,$E40*$F40,0) -> 0 | R40: =IF(SUM(Q$33:Q$36)>0,$E40*$F40,0) -> 0 | T40: =IF(SUM(S$33:S$36)>0,$E40*$F40,0) -> 0 | V40: =IF(SUM(U$33:U$36)>0,$E40*$F40,0) -> 0 | X40: =IF(SUM(W$33:W$36)>0,$E40*$F40,0) -> 0 | Z40: =IF(SUM(Y$33:Y$36)>0,$E40*$F40,0) -> 0 | AB40: =IF(SUM(AA$33:AA$36)>0,$E40*$F40,0) -> 0 | AD40: =IF(SUM(AC$33:AC$36)>0,$E40*$F40,0) -> 0 | AF40: =IF(SUM(AE$33:AE$36)>0,$E40*$F40,0) -> 0 | AH40: =IF(SUM(AG$33:AG$36)>0,$E40*$F40,0) -> 0 | AJ40: =IF(SUM(AI$33:AI$36)>0,$E40*$F40,0) -> 0 | AL40: =IF(SUM(AK$33:AK$36)>0,$E40*$F40,0) -> 0 | AN40: =IF(SUM(AM$33:AM$36)>0,$E40*$F40,0) -> 0 | AP40: =IF(SUM(AO$33:AO$36)>0,$E40*$F40,0) -> 0 | AR40: =IF(SUM(AQ$33:AQ$36)>0,$E40*$F40,0) -> 0 | AT40: =IF(SUM(AS$33:AS$36)>0,$E40*$F40,0) -> 0 | AV40: =IF(SUM(AU$33:AU$36)>0,$E40*$F40,0) -> 0 | AX40: =IF(SUM(AW$33:AW$36)>0,$E40*$F40,0) -> 0 | AZ40: =IF(SUM(AY$33:AY$36)>0,$E40*$F40,0) -> 0 | BB40: =IF(SUM(BA$33:BA$36)>0,$E40*$F40,0) -> 0 | BD40: =IF(SUM(BC$33:BC$36)>0,$E40*$F40,0) -> 0 | BF40: =IF(SUM(BE$33:BE$36)>0,$E40*$F40,0) -> 0 | BH40: =IF(SUM(BG$33:BG$36)>0,$E40*$F40,0) -> 0 | BJ40: =IF(SUM(BI$33:BI$36)>0,$E40*$F40,0) -> 0 | BL40: =IF(SUM(BK$33:BK$36)>0,$E40*$F40,0) -> 0 | BN40: =IF(SUM(BM$33:BM$36)>0,$E40*$F40,0) -> 0 | BP40: =IF(SUM(BO$33:BO$36)>0,$E40*$F40,0) -> 0 | BR40: =IF(SUM(BQ$33:BQ$36)>0,$E40*$F40,0) -> 0 | BT40: =IF(SUM(BS$33:BS$36)>0,$E40*$F40,0) -> 0 | BV40: =IF(SUM(BU$33:BU$36)>0,$E40*$F40,0) -> 0 | BX40: =IF(SUM(BW$33:BW$36)>0,$E40*$F40,0) -> 0 | BZ40: =IF(SUM(BY$33:BY$36)>0,$E40*$F40,0) -> 0 | CB40: =IF(SUM(CA$33:CA$36)>0,$E40*$F40,0) -> 0 | CD40: =IF(SUM(CC$33:CC$36)>0,$E40*$F40,0) -> 0 | CF40: =IF(SUM(CE$33:CE$36)>0,$E40*$F40,0) -> 0 | CH40: =IF(SUM(CG$33:CG$36)>0,$E40*$F40,0) -> 0 | CJ40: =IF(SUM(CI$33:CI$36)>0,$E40*$F40,0) -> 0 | CL40: =IF(SUM(CK$33:CK$36)>0,$E40*$F40,0) -> 0 | CN40: =IF(SUM(CM$33:CM$36)>0,$E40*$F40,0) -> 0 | CP40: =IF(SUM(CO$33:CO$36)>0,$E40*$F40,0) -> 0 | CR40: =IF(SUM(CQ$33:CQ$36)>0,$E40*$F40,0) -> 0 | CT40: =IF(SUM(CS$33:CS$36)>0,$E40*$F40,0) -> 0 | CV40: =IF(SUM(CU$33:CU$36)>0,$E40*$F40,0) -> 0 | CX40: =IF(SUM(CW$33:CW$36)>0,$E40*$F40,0) -> 0 | CZ40: =IF(SUM(CY$33:CY$36)>0,$E40*$F40,0) -> 0 | DB40: =IF(SUM(DA$33:DA$36)>0,$E40*$F40,0) -> 0 | DD40: =IF(SUM(DC$33:DC$36)>0,$E40*$F40,0) -> 0 | DF40: =IF(SUM(DE$33:DE$36)>0,$E40*$F40,0) -> 0 | DH40: =IF(SUM(DG$33:DG$36)>0,$E40*$F40,0) -> 0 | DJ40: =IF(SUM(DI$33:DI$36)>0,$E40*$F40,0) -> 0 | DL40: =IF(SUM(DK$33:DK$36)>0,$E40*$F40,0) -> 0 | DN40: =IF(SUM(DM$33:DM$36)>0,$E40*$F40,0) -> 0 | DP40: =IF(SUM(DO$33:DO$36)>0,$E40*$F40,0) -> 0 | DR40: =IF(SUM(DQ$33:DQ$36)>0,$E40*$F40,0) -> 0 | DT40: =IF(SUM(DS$33:DS$36)>0,$E40*$F40,0) -> 0 | DV40: =IF(SUM(DU$33:DU$36)>0,$E40*$F40,0) -> 0 | DX40: =IF(SUM(DW$33:DW$36)>0,$E40*$F40,0) -> 0
C41: 2 | D41: Respirador purificador de ar tipo, peça semifacial filtrante para partículas (PFF2), com formato dobrável, solda ultra-sônica em todo o seu perímetro. Fita elástica branca fixada nas laterais externas do respirador, perfazendo uma alça na para fixação na parte superior da cabeça e a outra na parte inferior, para fixação na altura da nuca do usuário. A parte superior externa da peça possui tira de material metálico moldável, utilizada para ajuste no septo nasal. Com válvula de exalação. DEVERÁ APRESENTAR O SELO DE APROVAÇÃO DO INMETRO. Ref. 3M. Obs.: enquanto durarem os efeitos da pandemia da Covid-19 as máscaras devem ser fornecidas SEM a válvula de exalação | E41: 6 | J41: =IF(SUM(I$33:I$36)>0,$E41*$F41,0) -> 0 | L41: =IF(SUM(K$33:K$36)>0,$E41*$F41,0) -> 0 | N41: =IF(SUM(M$33:M$36)>0,$E41*$F41,0) -> 0 | P41: =IF(SUM(O$33:O$36)>0,$E41*$F41,0) -> 0 | R41: =IF(SUM(Q$33:Q$36)>0,$E41*$F41,0) -> 0 | T41: =IF(SUM(S$33:S$36)>0,$E41*$F41,0) -> 0 | V41: =IF(SUM(U$33:U$36)>0,$E41*$F41,0) -> 0 | X41: =IF(SUM(W$33:W$36)>0,$E41*$F41,0) -> 0 | Z41: =IF(SUM(Y$33:Y$36)>0,$E41*$F41,0) -> 0 | AB41: =IF(SUM(AA$33:AA$36)>0,$E41*$F41,0) -> 0 | AD41: =IF(SUM(AC$33:AC$36)>0,$E41*$F41,0) -> 0 | AF41: =IF(SUM(AE$33:AE$36)>0,$E41*$F41,0) -> 0 | AH41: =IF(SUM(AG$33:AG$36)>0,$E41*$F41,0) -> 0 | AJ41: =IF(SUM(AI$33:AI$36)>0,$E41*$F41,0) -> 0 | AL41: =IF(SUM(AK$33:AK$36)>0,$E41*$F41,0) -> 0 | AN41: =IF(SUM(AM$33:AM$36)>0,$E41*$F41,0) -> 0 | AP41: =IF(SUM(AO$33:AO$36)>0,$E41*$F41,0) -> 0 | AR41: =IF(SUM(AQ$33:AQ$36)>0,$E41*$F41,0) -> 0 | AT41: =IF(SUM(AS$33:AS$36)>0,$E41*$F41,0) -> 0 | AV41: =IF(SUM(AU$33:AU$36)>0,$E41*$F41,0) -> 0 | AX41: =IF(SUM(AW$33:AW$36)>0,$E41*$F41,0) -> 0 | AZ41: =IF(SUM(AY$33:AY$36)>0,$E41*$F41,0) -> 0 | BB41: =IF(SUM(BA$33:BA$36)>0,$E41*$F41,0) -> 0 | BD41: =IF(SUM(BC$33:BC$36)>0,$E41*$F41,0) -> 0 | BF41: =IF(SUM(BE$33:BE$36)>0,$E41*$F41,0) -> 0 | BH41: =IF(SUM(BG$33:BG$36)>0,$E41*$F41,0) -> 0 | BJ41: =IF(SUM(BI$33:BI$36)>0,$E41*$F41,0) -> 0 | BL41: =IF(SUM(BK$33:BK$36)>0,$E41*$F41,0) -> 0 | BN41: =IF(SUM(BM$33:BM$36)>0,$E41*$F41,0) -> 0 | BP41: =IF(SUM(BO$33:BO$36)>0,$E41*$F41,0) -> 0 | BR41: =IF(SUM(BQ$33:BQ$36)>0,$E41*$F41,0) -> 0 | BT41: =IF(SUM(BS$33:BS$36)>0,$E41*$F41,0) -> 0 | BV41: =IF(SUM(BU$33:BU$36)>0,$E41*$F41,0) -> 0 | BX41: =IF(SUM(BW$33:BW$36)>0,$E41*$F41,0) -> 0 | BZ41: =IF(SUM(BY$33:BY$36)>0,$E41*$F41,0) -> 0 | CB41: =IF(SUM(CA$33:CA$36)>0,$E41*$F41,0) -> 0 | CD41: =IF(SUM(CC$33:CC$36)>0,$E41*$F41,0) -> 0 | CF41: =IF(SUM(CE$33:CE$36)>0,$E41*$F41,0) -> 0 | CH41: =IF(SUM(CG$33:CG$36)>0,$E41*$F41,0) -> 0 | CJ41: =IF(SUM(CI$33:CI$36)>0,$E41*$F41,0) -> 0 | CL41: =IF(SUM(CK$33:CK$36)>0,$E41*$F41,0) -> 0 | CN41: =IF(SUM(CM$33:CM$36)>0,$E41*$F41,0) -> 0 | CP41: =IF(SUM(CO$33:CO$36)>0,$E41*$F41,0) -> 0 | CR41: =IF(SUM(CQ$33:CQ$36)>0,$E41*$F41,0) -> 0 | CT41: =IF(SUM(CS$33:CS$36)>0,$E41*$F41,0) -> 0 | CV41: =IF(SUM(CU$33:CU$36)>0,$E41*$F41,0) -> 0 | CX41: =IF(SUM(CW$33:CW$36)>0,$E41*$F41,0) -> 0 | CZ41: =IF(SUM(CY$33:CY$36)>0,$E41*$F41,0) -> 0 | DB41: =IF(SUM(DA$33:DA$36)>0,$E41*$F41,0) -> 0 | DD41: =IF(SUM(DC$33:DC$36)>0,$E41*$F41,0) -> 0 | DF41: =IF(SUM(DE$33:DE$36)>0,$E41*$F41,0) -> 0 | DH41: =IF(SUM(DG$33:DG$36)>0,$E41*$F41,0) -> 0 | DJ41: =IF(SUM(DI$33:DI$36)>0,$E41*$F41,0) -> 0 | DL41: =IF(SUM(DK$33:DK$36)>0,$E41*$F41,0) -> 0 | DN41: =IF(SUM(DM$33:DM$36)>0,$E41*$F41,0) -> 0 | DP41: =IF(SUM(DO$33:DO$36)>0,$E41*$F41,0) -> 0 | DR41: =IF(SUM(DQ$33:DQ$36)>0,$E41*$F41,0) -> 0 | DT41: =IF(SUM(DS$33:DS$36)>0,$E41*$F41,0) -> 0 | DV41: =IF(SUM(DU$33:DU$36)>0,$E41*$F41,0) -> 0 | DX41: =IF(SUM(DW$33:DW$36)>0,$E41*$F41,0) -> 0
C43: CATEGORIAS | F43: QUANTIDADE
I44: =IF($C44=I$4,1,0) -> 0
D45: =HLOOKUP($C45,'Dados Gerais'!$D$5:$BK$10,6) ->  | F45: =HLOOKUP($C45,'Dados Gerais'!$D$5:$BK$14,10) ->  | I45: =IF($C45=I$4,1,0) -> 0 | K45: =IF($C45=K$4,1,0) -> 0 | M45: =IF($C45=M$4,1,0) -> 0 | O45: =IF($C45=O$4,1,0) -> 0 | Q45: =IF($C45=Q$4,1,0) -> 0 | S45: =IF($C45=S$4,1,0) -> 0 | U45: =IF($C45=U$4,1,0) -> 0 | W45: =IF($C45=W$4,1,0) -> 0 | Y45: =IF($C45=Y$4,1,0) -> 0 | AA45: =IF($C45=AA$4,1,0) -> 0 | AC45: =IF($C45=AC$4,1,0) -> 0 | AE45: =IF($C45=AE$4,1,0) -> 0 | AG45: =IF($C45=AG$4,1,0) -> 0 | AI45: =IF($C45=AI$4,1,0) -> 0 | AK45: =IF($C45=AK$4,1,0) -> 0 | AM45: =IF($C45=AM$4,1,0) -> 0 | AO45: =IF($C45=AO$4,1,0) -> 0 | AQ45: =IF($C45=AQ$4,1,0) -> 0 | AS45: =IF($C45=AS$4,1,0) -> 0 | AU45: =IF($C45=AU$4,1,0) -> 0 | AW45: =IF($C45=AW$4,1,0) -> 0 | AY45: =IF($C45=AY$4,1,0) -> 0 | BA45: =IF($C45=BA$4,1,0) -> 0 | BC45: =IF($C45=BC$4,1,0) -> 0 | BE45: =IF($C45=BE$4,1,0) -> 0 | BG45: =IF($C45=BG$4,1,0) -> 0 | BI45: =IF($C45=BI$4,1,0) -> 0 | BK45: =IF($C45=BK$4,1,0) -> 0 | BM45: =IF($C45=BM$4,1,0) -> 0 | BO45: =IF($C45=BO$4,1,0) -> 0 | BQ45: =IF($C45=BQ$4,1,0) -> 0 | BS45: =IF($C45=BS$4,1,0) -> 0 | BU45: =IF($C45=BU$4,1,0) -> 0 | BW45: =IF($C45=BW$4,1,0) -> 0 | BY45: =IF($C45=BY$4,1,0) -> 0 | CA45: =IF($C45=CA$4,1,0) -> 0 | CC45: =IF($C45=CC$4,1,0) -> 0 | CE45: =IF($C45=CE$4,1,0) -> 0 | CG45: =IF($C45=CG$4,1,0) -> 0 | CI45: =IF($C45=CI$4,1,0) -> 0 | CK45: =IF($C45=CK$4,1,0) -> 0 | CM45: =IF($C45=CM$4,1,0) -> 0 | CO45: =IF($C45=CO$4,1,0) -> 0 | CQ45: =IF($C45=CQ$4,1,0) -> 0 | CS45: =IF($C45=CS$4,1,0) -> 0 | CU45: =IF($C45=CU$4,1,0) -> 0 | CW45: =IF($C45=CW$4,1,0) -> 0 | CY45: =IF($C45=CY$4,1,0) -> 0 | DA45: =IF($C45=DA$4,1,0) -> 0 | DC45: =IF($C45=DC$4,1,0) -> 0 | DE45: =IF($C45=DE$4,1,0) -> 0 | DG45: =IF($C45=DG$4,1,0) -> 0 | DI45: =IF($C45=DI$4,1,0) -> 0 | DK45: =IF($C45=DK$4,1,0) -> 0 | DM45: =IF($C45=DM$4,1,0) -> 0 | DO45: =IF($C45=DO$4,1,0) -> 0 | DQ45: =IF($C45=DQ$4,1,0) -> 0 | DS45: =IF($C45=DS$4,1,0) -> 0 | DU45: =IF($C45=DU$4,1,0) -> 0 | DW45: =IF($C45=DW$4,1,0) -> 0
I46: =IF($C46=I$4,1,0) -> 0
C48: ITEM | D48: DESCRIÇÃO | E48: QUANT ANUAL POR POSTO | F48: VALOR
J49: =IF(SUM(I$8:I$10)>0,$E49*$F49,0) -> 0 | L49: =IF(SUM(K$8:K$10)>0,$E49*$F49,0) -> 0 | N49: =IF(SUM(M$8:M$10)>0,$E49*$F49,0) -> 0 | P49: =IF(SUM(O$8:O$10)>0,$E49*$F49,0) -> 0 | R49: =IF(SUM(Q$8:Q$10)>0,$E49*$F49,0) -> 0 | T49: =IF(SUM(S$8:S$10)>0,$E49*$F49,0) -> 0 | V49: =IF(SUM(U$8:U$10)>0,$E49*$F49,0) -> 0 | X49: =IF(SUM(W$8:W$10)>0,$E49*$F49,0) -> 0 | Z49: =IF(SUM(Y$8:Y$10)>0,$E49*$F49,0) -> 0 | AB49: =IF(SUM(AA$8:AA$10)>0,$E49*$F49,0) -> 0 | AD49: =IF(SUM(AC$8:AC$10)>0,$E49*$F49,0) -> 0 | AF49: =IF(SUM(AE$8:AE$10)>0,$E49*$F49,0) -> 0 | AH49: =IF(SUM(AG$8:AG$10)>0,$E49*$F49,0) -> 0 | AJ49: =IF(SUM(AI$8:AI$10)>0,$E49*$F49,0) -> 0 | AL49: =IF(SUM(AK$8:AK$10)>0,$E49*$F49,0) -> 0 | AN49: =IF(SUM(AM$8:AM$10)>0,$E49*$F49,0) -> 0 | AP49: =IF(SUM(AO$8:AO$10)>0,$E49*$F49,0) -> 0 | AR49: =IF(SUM(AQ$8:AQ$10)>0,$E49*$F49,0) -> 0 | AT49: =IF(SUM(AS$8:AS$10)>0,$E49*$F49,0) -> 0 | AV49: =IF(SUM(AU$8:AU$10)>0,$E49*$F49,0) -> 0 | AX49: =IF(SUM(AW$8:AW$10)>0,$E49*$F49,0) -> 0 | AZ49: =IF(SUM(AY$8:AY$10)>0,$E49*$F49,0) -> 0 | BB49: =IF(SUM(BA$8:BA$10)>0,$E49*$F49,0) -> 0 | BD49: =IF(SUM(BC$8:BC$10)>0,$E49*$F49,0) -> 0 | BF49: =IF(SUM(BE$8:BE$10)>0,$E49*$F49,0) -> 0 | BH49: =IF(SUM(BG$8:BG$10)>0,$E49*$F49,0) -> 0 | BJ49: =IF(SUM(BI$8:BI$10)>0,$E49*$F49,0) -> 0 | BL49: =IF(SUM(BK$8:BK$10)>0,$E49*$F49,0) -> 0 | BN49: =IF(SUM(BM$8:BM$10)>0,$E49*$F49,0) -> 0 | BP49: =IF(SUM(BO$8:BO$10)>0,$E49*$F49,0) -> 0 | BR49: =IF(SUM(BQ$8:BQ$10)>0,$E49*$F49,0) -> 0 | BT49: =IF(SUM(BS$8:BS$10)>0,$E49*$F49,0) -> 0 | BV49: =IF(SUM(BU$8:BU$10)>0,$E49*$F49,0) -> 0 | BX49: =IF(SUM(BW$8:BW$10)>0,$E49*$F49,0) -> 0 | BZ49: =IF(SUM(BY$8:BY$10)>0,$E49*$F49,0) -> 0 | CB49: =IF(SUM(CA$8:CA$10)>0,$E49*$F49,0) -> 0 | CD49: =IF(SUM(CC$8:CC$10)>0,$E49*$F49,0) -> 0 | CF49: =IF(SUM(CE$8:CE$10)>0,$E49*$F49,0) -> 0 | CH49: =IF(SUM(CG$8:CG$10)>0,$E49*$F49,0) -> 0 | CJ49: =IF(SUM(CI$8:CI$10)>0,$E49*$F49,0) -> 0 | CL49: =IF(SUM(CK$8:CK$10)>0,$E49*$F49,0) -> 0 | CN49: =IF(SUM(CM$8:CM$10)>0,$E49*$F49,0) -> 0 | CP49: =IF(SUM(CO$8:CO$10)>0,$E49*$F49,0) -> 0 | CR49: =IF(SUM(CQ$8:CQ$10)>0,$E49*$F49,0) -> 0 | CT49: =IF(SUM(CS$8:CS$10)>0,$E49*$F49,0) -> 0 | CV49: =IF(SUM(CU$8:CU$10)>0,$E49*$F49,0) -> 0 | CX49: =IF(SUM(CW$8:CW$10)>0,$E49*$F49,0) -> 0 | CZ49: =IF(SUM(CY$8:CY$10)>0,$E49*$F49,0) -> 0 | DB49: =IF(SUM(DA$8:DA$10)>0,$E49*$F49,0) -> 0 | DD49: =IF(SUM(DC$8:DC$10)>0,$E49*$F49,0) -> 0 | DF49: =IF(SUM(DE$8:DE$10)>0,$E49*$F49,0) -> 0 | DH49: =IF(SUM(DG$8:DG$10)>0,$E49*$F49,0) -> 0 | DJ49: =IF(SUM(DI$8:DI$10)>0,$E49*$F49,0) -> 0 | DL49: =IF(SUM(DK$8:DK$10)>0,$E49*$F49,0) -> 0 | DN49: =IF(SUM(DM$8:DM$10)>0,$E49*$F49,0) -> 0 | DP49: =IF(SUM(DO$8:DO$10)>0,$E49*$F49,0) -> 0 | DR49: =IF(SUM(DQ$8:DQ$10)>0,$E49*$F49,0) -> 0 | DT49: =IF(SUM(DS$8:DS$10)>0,$E49*$F49,0) -> 0 | DV49: =IF(SUM(DU$8:DU$10)>0,$E49*$F49,0) -> 0 | DX49: =IF(SUM(DW$8:DW$10)>0,$E49*$F49,0) -> 0
C50: 1 | D50: Calçado de segurança tipo sapato com resistência a objetos pontiagudos, fechamento em elástico, couro preto, forração em tecido, bico de composite, palmilha de montagem têxtil resistente à perfuração, solado de PU (poliuretano), bidensidade sem cadarço. Ref. MARLUVAS. | E50: 3 | J50: =IF(SUM(I$44:I$46)>0,$E50*$F50,0) -> 0 | L50: =IF(SUM(K$44:K$46)>0,$E50*$F50,0) -> 0 | N50: =IF(SUM(M$44:M$46)>0,$E50*$F50,0) -> 0 | P50: =IF(SUM(O$44:O$46)>0,$E50*$F50,0) -> 0 | R50: =IF(SUM(Q$44:Q$46)>0,$E50*$F50,0) -> 0 | T50: =IF(SUM(S$44:S$46)>0,$E50*$F50,0) -> 0 | V50: =IF(SUM(U$44:U$46)>0,$E50*$F50,0) -> 0 | X50: =IF(SUM(W$44:W$46)>0,$E50*$F50,0) -> 0 | Z50: =IF(SUM(Y$44:Y$46)>0,$E50*$F50,0) -> 0 | AB50: =IF(SUM(AA$44:AA$46)>0,$E50*$F50,0) -> 0 | AD50: =IF(SUM(AC$44:AC$46)>0,$E50*$F50,0) -> 0 | AF50: =IF(SUM(AE$44:AE$46)>0,$E50*$F50,0) -> 0 | AH50: =IF(SUM(AG$44:AG$46)>0,$E50*$F50,0) -> 0 | AJ50: =IF(SUM(AI$44:AI$46)>0,$E50*$F50,0) -> 0 | AL50: =IF(SUM(AK$44:AK$46)>0,$E50*$F50,0) -> 0 | AN50: =IF(SUM(AM$44:AM$46)>0,$E50*$F50,0) -> 0 | AP50: =IF(SUM(AO$44:AO$46)>0,$E50*$F50,0) -> 0 | AR50: =IF(SUM(AQ$44:AQ$46)>0,$E50*$F50,0) -> 0 | AT50: =IF(SUM(AS$44:AS$46)>0,$E50*$F50,0) -> 0 | AV50: =IF(SUM(AU$44:AU$46)>0,$E50*$F50,0) -> 0 | AX50: =IF(SUM(AW$44:AW$46)>0,$E50*$F50,0) -> 0 | AZ50: =IF(SUM(AY$44:AY$46)>0,$E50*$F50,0) -> 0 | BB50: =IF(SUM(BA$44:BA$46)>0,$E50*$F50,0) -> 0 | BD50: =IF(SUM(BC$44:BC$46)>0,$E50*$F50,0) -> 0 | BF50: =IF(SUM(BE$44:BE$46)>0,$E50*$F50,0) -> 0 | BH50: =IF(SUM(BG$44:BG$46)>0,$E50*$F50,0) -> 0 | BJ50: =IF(SUM(BI$44:BI$46)>0,$E50*$F50,0) -> 0 | BL50: =IF(SUM(BK$44:BK$46)>0,$E50*$F50,0) -> 0 | BN50: =IF(SUM(BM$44:BM$46)>0,$E50*$F50,0) -> 0 | BP50: =IF(SUM(BO$44:BO$46)>0,$E50*$F50,0) -> 0 | BR50: =IF(SUM(BQ$44:BQ$46)>0,$E50*$F50,0) -> 0 | BT50: =IF(SUM(BS$44:BS$46)>0,$E50*$F50,0) -> 0 | BV50: =IF(SUM(BU$44:BU$46)>0,$E50*$F50,0) -> 0 | BX50: =IF(SUM(BW$44:BW$46)>0,$E50*$F50,0) -> 0 | BZ50: =IF(SUM(BY$44:BY$46)>0,$E50*$F50,0) -> 0 | CB50: =IF(SUM(CA$44:CA$46)>0,$E50*$F50,0) -> 0 | CD50: =IF(SUM(CC$44:CC$46)>0,$E50*$F50,0) -> 0 | CF50: =IF(SUM(CE$44:CE$46)>0,$E50*$F50,0) -> 0 | CH50: =IF(SUM(CG$44:CG$46)>0,$E50*$F50,0) -> 0 | CJ50: =IF(SUM(CI$44:CI$46)>0,$E50*$F50,0) -> 0 | CL50: =IF(SUM(CK$44:CK$46)>0,$E50*$F50,0) -> 0 | CN50: =IF(SUM(CM$44:CM$46)>0,$E50*$F50,0) -> 0 | CP50: =IF(SUM(CO$44:CO$46)>0,$E50*$F50,0) -> 0 | CR50: =IF(SUM(CQ$44:CQ$46)>0,$E50*$F50,0) -> 0 | CT50: =IF(SUM(CS$44:CS$46)>0,$E50*$F50,0) -> 0 | CV50: =IF(SUM(CU$44:CU$46)>0,$E50*$F50,0) -> 0 | CX50: =IF(SUM(CW$44:CW$46)>0,$E50*$F50,0) -> 0 | CZ50: =IF(SUM(CY$44:CY$46)>0,$E50*$F50,0) -> 0 | DB50: =IF(SUM(DA$44:DA$46)>0,$E50*$F50,0) -> 0 | DD50: =IF(SUM(DC$44:DC$46)>0,$E50*$F50,0) -> 0 | DF50: =IF(SUM(DE$44:DE$46)>0,$E50*$F50,0) -> 0 | DH50: =IF(SUM(DG$44:DG$46)>0,$E50*$F50,0) -> 0 | DJ50: =IF(SUM(DI$44:DI$46)>0,$E50*$F50,0) -> 0 | DL50: =IF(SUM(DK$44:DK$46)>0,$E50*$F50,0) -> 0 | DN50: =IF(SUM(DM$44:DM$46)>0,$E50*$F50,0) -> 0 | DP50: =IF(SUM(DO$44:DO$46)>0,$E50*$F50,0) -> 0 | DR50: =IF(SUM(DQ$44:DQ$46)>0,$E50*$F50,0) -> 0 | DT50: =IF(SUM(DS$44:DS$46)>0,$E50*$F50,0) -> 0 | DV50: =IF(SUM(DU$44:DU$46)>0,$E50*$F50,0) -> 0 | DX50: =IF(SUM(DW$44:DW$46)>0,$E50*$F50,0) -> 0
C51: 2 | D51: Respirador purificador de ar tipo, peça semifacial filtrante para partículas (PFF2), com formato dobrável, solda ultra-sônica em todo o seu perímetro. Fita elástica branca fixada nas laterais externas do respirador, perfazendo uma alça na para fixação na parte superior da cabeça e a outra na parte inferior, para fixação na altura da nuca do usuário. A parte superior externa da peça possui tira de material metálico moldável, utilizada para ajuste no septo nasal. Com válvula de exalação. DEVERÁ APRESENTAR O SELO DE APROVAÇÃO DO INMETRO. Ref. 3M. Obs.: enquanto durarem os efeitos da pandemia da Covid-19 as máscaras devem ser fornecidas SEM a válvula de exalação | E51: 6 | J51: =IF(SUM(I$44:I$46)>0,$E51*$F51,0) -> 0 | L51: 0 | N51: =IF(SUM(M$44:M$46)>0,$E51*$F51,0) -> 0 | P51: =IF(SUM(O$44:O$46)>0,$E51*$F51,0) -> 0 | R51: =IF(SUM(Q$44:Q$46)>0,$E51*$F51,0) -> 0 | T51: =IF(SUM(S$44:S$46)>0,$E51*$F51,0) -> 0 | V51: =IF(SUM(U$44:U$46)>0,$E51*$F51,0) -> 0 | X51: =IF(SUM(W$44:W$46)>0,$E51*$F51,0) -> 0 | Z51: =IF(SUM(Y$44:Y$46)>0,$E51*$F51,0) -> 0 | AB51: =IF(SUM(AA$44:AA$46)>0,$E51*$F51,0) -> 0 | AD51: =IF(SUM(AC$44:AC$46)>0,$E51*$F51,0) -> 0 | AF51: =IF(SUM(AE$44:AE$46)>0,$E51*$F51,0) -> 0 | AH51: =IF(SUM(AG$44:AG$46)>0,$E51*$F51,0) -> 0 | AJ51: =IF(SUM(AI$44:AI$46)>0,$E51*$F51,0) -> 0 | AL51: =IF(SUM(AK$44:AK$46)>0,$E51*$F51,0) -> 0 | AN51: =IF(SUM(AM$44:AM$46)>0,$E51*$F51,0) -> 0 | AP51: =IF(SUM(AO$44:AO$46)>0,$E51*$F51,0) -> 0 | AR51: =IF(SUM(AQ$44:AQ$46)>0,$E51*$F51,0) -> 0 | AT51: =IF(SUM(AS$44:AS$46)>0,$E51*$F51,0) -> 0 | AV51: =IF(SUM(AU$44:AU$46)>0,$E51*$F51,0) -> 0 | AX51: =IF(SUM(AW$44:AW$46)>0,$E51*$F51,0) -> 0 | AZ51: =IF(SUM(AY$44:AY$46)>0,$E51*$F51,0) -> 0 | BB51: =IF(SUM(BA$44:BA$46)>0,$E51*$F51,0) -> 0 | BD51: =IF(SUM(BC$44:BC$46)>0,$E51*$F51,0) -> 0 | BF51: =IF(SUM(BE$44:BE$46)>0,$E51*$F51,0) -> 0 | BH51: =IF(SUM(BG$44:BG$46)>0,$E51*$F51,0) -> 0 | BJ51: =IF(SUM(BI$44:BI$46)>0,$E51*$F51,0) -> 0 | BL51: =IF(SUM(BK$44:BK$46)>0,$E51*$F51,0) -> 0 | BN51: =IF(SUM(BM$44:BM$46)>0,$E51*$F51,0) -> 0 | BP51: =IF(SUM(BO$44:BO$46)>0,$E51*$F51,0) -> 0 | BR51: =IF(SUM(BQ$44:BQ$46)>0,$E51*$F51,0) -> 0 | BT51: =IF(SUM(BS$44:BS$46)>0,$E51*$F51,0) -> 0 | BV51: =IF(SUM(BU$44:BU$46)>0,$E51*$F51,0) -> 0 | BX51: =IF(SUM(BW$44:BW$46)>0,$E51*$F51,0) -> 0 | BZ51: =IF(SUM(BY$44:BY$46)>0,$E51*$F51,0) -> 0 | CB51: =IF(SUM(CA$44:CA$46)>0,$E51*$F51,0) -> 0 | CD51: =IF(SUM(CC$44:CC$46)>0,$E51*$F51,0) -> 0 | CF51: =IF(SUM(CE$44:CE$46)>0,$E51*$F51,0) -> 0 | CH51: =IF(SUM(CG$44:CG$46)>0,$E51*$F51,0) -> 0 | CJ51: =IF(SUM(CI$44:CI$46)>0,$E51*$F51,0) -> 0 | CL51: =IF(SUM(CK$44:CK$46)>0,$E51*$F51,0) -> 0 | CN51: =IF(SUM(CM$44:CM$46)>0,$E51*$F51,0) -> 0 | CP51: =IF(SUM(CO$44:CO$46)>0,$E51*$F51,0) -> 0 | CR51: =IF(SUM(CQ$44:CQ$46)>0,$E51*$F51,0) -> 0 | CT51: =IF(SUM(CS$44:CS$46)>0,$E51*$F51,0) -> 0 | CV51: =IF(SUM(CU$44:CU$46)>0,$E51*$F51,0) -> 0 | CX51: =IF(SUM(CW$44:CW$46)>0,$E51*$F51,0) -> 0 | CZ51: =IF(SUM(CY$44:CY$46)>0,$E51*$F51,0) -> 0 | DB51: =IF(SUM(DA$44:DA$46)>0,$E51*$F51,0) -> 0 | DD51: =IF(SUM(DC$44:DC$46)>0,$E51*$F51,0) -> 0 | DF51: =IF(SUM(DE$44:DE$46)>0,$E51*$F51,0) -> 0 | DH51: =IF(SUM(DG$44:DG$46)>0,$E51*$F51,0) -> 0 | DJ51: =IF(SUM(DI$44:DI$46)>0,$E51*$F51,0) -> 0 | DL51: =IF(SUM(DK$44:DK$46)>0,$E51*$F51,0) -> 0 | DN51: =IF(SUM(DM$44:DM$46)>0,$E51*$F51,0) -> 0 | DP51: =IF(SUM(DO$44:DO$46)>0,$E51*$F51,0) -> 0 | DR51: =IF(SUM(DQ$44:DQ$46)>0,$E51*$F51,0) -> 0 | DT51: =IF(SUM(DS$44:DS$46)>0,$E51*$F51,0) -> 0 | DV51: =IF(SUM(DU$44:DU$46)>0,$E51*$F51,0) -> 0 | DX51: =IF(SUM(DW$44:DW$46)>0,$E51*$F51,0) -> 0
C52: 3 | D52: Capacete de segurança em polietileno de alta densidade, na cor AMARELA, com aba frontal, casco com nervuras, com Faixa anti-suor, regulagem de tamanho com ajuste simples, com jugular. Ref.: MAS | E52: 1 | J52: 0 | L52: 0 | N52: =IF(SUM(M$44:M$46)>0,$E52*$F52,0) -> 0 | P52: =IF(SUM(O$44:O$46)>0,$E52*$F52,0) -> 0 | R52: =IF(SUM(Q$44:Q$46)>0,$E52*$F52,0) -> 0 | T52: =IF(SUM(S$44:S$46)>0,$E52*$F52,0) -> 0 | V52: =IF(SUM(U$44:U$46)>0,$E52*$F52,0) -> 0 | X52: =IF(SUM(W$44:W$46)>0,$E52*$F52,0) -> 0 | Z52: =IF(SUM(Y$44:Y$46)>0,$E52*$F52,0) -> 0 | AB52: =IF(SUM(AA$44:AA$46)>0,$E52*$F52,0) -> 0 | AD52: =IF(SUM(AC$44:AC$46)>0,$E52*$F52,0) -> 0 | AF52: =IF(SUM(AE$44:AE$46)>0,$E52*$F52,0) -> 0 | AH52: =IF(SUM(AG$44:AG$46)>0,$E52*$F52,0) -> 0 | AJ52: =IF(SUM(AI$44:AI$46)>0,$E52*$F52,0) -> 0 | AL52: =IF(SUM(AK$44:AK$46)>0,$E52*$F52,0) -> 0 | AN52: =IF(SUM(AM$44:AM$46)>0,$E52*$F52,0) -> 0 | AP52: =IF(SUM(AO$44:AO$46)>0,$E52*$F52,0) -> 0 | AR52: =IF(SUM(AQ$44:AQ$46)>0,$E52*$F52,0) -> 0 | AT52: =IF(SUM(AS$44:AS$46)>0,$E52*$F52,0) -> 0 | AV52: =IF(SUM(AU$44:AU$46)>0,$E52*$F52,0) -> 0 | AX52: =IF(SUM(AW$44:AW$46)>0,$E52*$F52,0) -> 0 | AZ52: =IF(SUM(AY$44:AY$46)>0,$E52*$F52,0) -> 0 | BB52: =IF(SUM(BA$44:BA$46)>0,$E52*$F52,0) -> 0 | BD52: =IF(SUM(BC$44:BC$46)>0,$E52*$F52,0) -> 0 | BF52: =IF(SUM(BE$44:BE$46)>0,$E52*$F52,0) -> 0 | BH52: =IF(SUM(BG$44:BG$46)>0,$E52*$F52,0) -> 0 | BJ52: =IF(SUM(BI$44:BI$46)>0,$E52*$F52,0) -> 0 | BL52: =IF(SUM(BK$44:BK$46)>0,$E52*$F52,0) -> 0 | BN52: =IF(SUM(BM$44:BM$46)>0,$E52*$F52,0) -> 0 | BP52: =IF(SUM(BO$44:BO$46)>0,$E52*$F52,0) -> 0 | BR52: =IF(SUM(BQ$44:BQ$46)>0,$E52*$F52,0) -> 0 | BT52: =IF(SUM(BS$44:BS$46)>0,$E52*$F52,0) -> 0 | BV52: =IF(SUM(BU$44:BU$46)>0,$E52*$F52,0) -> 0 | BX52: =IF(SUM(BW$44:BW$46)>0,$E52*$F52,0) -> 0 | BZ52: =IF(SUM(BY$44:BY$46)>0,$E52*$F52,0) -> 0 | CB52: =IF(SUM(CA$44:CA$46)>0,$E52*$F52,0) -> 0 | CD52: =IF(SUM(CC$44:CC$46)>0,$E52*$F52,0) -> 0 | CF52: =IF(SUM(CE$44:CE$46)>0,$E52*$F52,0) -> 0 | CH52: =IF(SUM(CG$44:CG$46)>0,$E52*$F52,0) -> 0 | CJ52: =IF(SUM(CI$44:CI$46)>0,$E52*$F52,0) -> 0 | CL52: =IF(SUM(CK$44:CK$46)>0,$E52*$F52,0) -> 0 | CN52: =IF(SUM(CM$44:CM$46)>0,$E52*$F52,0) -> 0 | CP52: =IF(SUM(CO$44:CO$46)>0,$E52*$F52,0) -> 0 | CR52: =IF(SUM(CQ$44:CQ$46)>0,$E52*$F52,0) -> 0 | CT52: =IF(SUM(CS$44:CS$46)>0,$E52*$F52,0) -> 0 | CV52: =IF(SUM(CU$44:CU$46)>0,$E52*$F52,0) -> 0 | CX52: =IF(SUM(CW$44:CW$46)>0,$E52*$F52,0) -> 0 | CZ52: =IF(SUM(CY$44:CY$46)>0,$E52*$F52,0) -> 0 | DB52: =IF(SUM(DA$44:DA$46)>0,$E52*$F52,0) -> 0 | DD52: =IF(SUM(DC$44:DC$46)>0,$E52*$F52,0) -> 0 | DF52: =IF(SUM(DE$44:DE$46)>0,$E52*$F52,0) -> 0 | DH52: =IF(SUM(DG$44:DG$46)>0,$E52*$F52,0) -> 0 | DJ52: =IF(SUM(DI$44:DI$46)>0,$E52*$F52,0) -> 0 | DL52: =IF(SUM(DK$44:DK$46)>0,$E52*$F52,0) -> 0 | DN52: =IF(SUM(DM$44:DM$46)>0,$E52*$F52,0) -> 0 | DP52: =IF(SUM(DO$44:DO$46)>0,$E52*$F52,0) -> 0 | DR52: =IF(SUM(DQ$44:DQ$46)>0,$E52*$F52,0) -> 0 | DT52: =IF(SUM(DS$44:DS$46)>0,$E52*$F52,0) -> 0 | DV52: =IF(SUM(DU$44:DU$46)>0,$E52*$F52,0) -> 0 | DX52: =IF(SUM(DW$44:DW$46)>0,$E52*$F52,0) -> 0
C54: CATEGORIAS | F54: QUANTIDADE
I55: =IF($C55=I$4,1,0) -> 0
D56: =HLOOKUP($C56,'Dados Gerais'!$D$5:$BK$10,6) ->  | F56: =HLOOKUP($C56,'Dados Gerais'!$D$5:$BK$14,10) ->  | I56: =IF($C56=I$4,1,0) -> 0 | K56: =IF($C56=K$4,1,0) -> 0 | M56: =IF($C56=M$4,1,0) -> 0 | O56: =IF($C56=O$4,1,0) -> 0 | Q56: =IF($C56=Q$4,1,0) -> 0 | S56: =IF($C56=S$4,1,0) -> 0 | U56: =IF($C56=U$4,1,0) -> 0 | W56: =IF($C56=W$4,1,0) -> 0 | Y56: =IF($C56=Y$4,1,0) -> 0 | AA56: =IF($C56=AA$4,1,0) -> 0 | AC56: =IF($C56=AC$4,1,0) -> 0 | AE56: =IF($C56=AE$4,1,0) -> 0 | AG56: =IF($C56=AG$4,1,0) -> 0 | AI56: =IF($C56=AI$4,1,0) -> 0 | AK56: =IF($C56=AK$4,1,0) -> 0 | AM56: =IF($C56=AM$4,1,0) -> 0 | AO56: =IF($C56=AO$4,1,0) -> 0 | AQ56: =IF($C56=AQ$4,1,0) -> 0 | AS56: =IF($C56=AS$4,1,0) -> 0 | AU56: =IF($C56=AU$4,1,0) -> 0 | AW56: =IF($C56=AW$4,1,0) -> 0 | AY56: =IF($C56=AY$4,1,0) -> 0 | BA56: =IF($C56=BA$4,1,0) -> 0 | BC56: =IF($C56=BC$4,1,0) -> 0 | BE56: =IF($C56=BE$4,1,0) -> 0 | BG56: =IF($C56=BG$4,1,0) -> 0 | BI56: =IF($C56=BI$4,1,0) -> 0 | BK56: =IF($C56=BK$4,1,0) -> 0 | BM56: =IF($C56=BM$4,1,0) -> 0 | BO56: =IF($C56=BO$4,1,0) -> 0 | BQ56: =IF($C56=BQ$4,1,0) -> 0 | BS56: =IF($C56=BS$4,1,0) -> 0 | BU56: =IF($C56=BU$4,1,0) -> 0 | BW56: =IF($C56=BW$4,1,0) -> 0 | BY56: =IF($C56=BY$4,1,0) -> 0 | CA56: =IF($C56=CA$4,1,0) -> 0 | CC56: =IF($C56=CC$4,1,0) -> 0 | CE56: =IF($C56=CE$4,1,0) -> 0 | CG56: =IF($C56=CG$4,1,0) -> 0 | CI56: =IF($C56=CI$4,1,0) -> 0 | CK56: =IF($C56=CK$4,1,0) -> 0 | CM56: =IF($C56=CM$4,1,0) -> 0 | CO56: =IF($C56=CO$4,1,0) -> 0 | CQ56: =IF($C56=CQ$4,1,0) -> 0 | CS56: =IF($C56=CS$4,1,0) -> 0 | CU56: =IF($C56=CU$4,1,0) -> 0 | CW56: =IF($C56=CW$4,1,0) -> 0 | CY56: =IF($C56=CY$4,1,0) -> 0 | DA56: =IF($C56=DA$4,1,0) -> 0 | DC56: =IF($C56=DC$4,1,0) -> 0 | DE56: =IF($C56=DE$4,1,0) -> 0 | DG56: =IF($C56=DG$4,1,0) -> 0 | DI56: =IF($C56=DI$4,1,0) -> 0 | DK56: =IF($C56=DK$4,1,0) -> 0 | DM56: =IF($C56=DM$4,1,0) -> 0 | DO56: =IF($C56=DO$4,1,0) -> 0 | DQ56: =IF($C56=DQ$4,1,0) -> 0 | DS56: =IF($C56=DS$4,1,0) -> 0 | DU56: =IF($C56=DU$4,1,0) -> 0 | DW56: =IF($C56=DW$4,1,0) -> 0
I57: =IF($C57=I$4,1,0) -> 0
C59: ITEM | D59: DESCRIÇÃO | E59: QUANT ANUAL POR POSTO | F59: VALOR
J60: =IF(SUM(I$8:I$10)>0,$E60*$F60,0) -> 0 | L60: =IF(SUM(K$8:K$10)>0,$E60*$F60,0) -> 0 | N60: =IF(SUM(M$8:M$10)>0,$E60*$F60,0) -> 0 | P60: =IF(SUM(O$8:O$10)>0,$E60*$F60,0) -> 0 | R60: =IF(SUM(Q$8:Q$10)>0,$E60*$F60,0) -> 0 | T60: =IF(SUM(S$8:S$10)>0,$E60*$F60,0) -> 0 | V60: =IF(SUM(U$8:U$10)>0,$E60*$F60,0) -> 0 | X60: =IF(SUM(W$8:W$10)>0,$E60*$F60,0) -> 0 | Z60: =IF(SUM(Y$8:Y$10)>0,$E60*$F60,0) -> 0 | AB60: =IF(SUM(AA$8:AA$10)>0,$E60*$F60,0) -> 0 | AD60: =IF(SUM(AC$8:AC$10)>0,$E60*$F60,0) -> 0 | AF60: =IF(SUM(AE$8:AE$10)>0,$E60*$F60,0) -> 0 | AH60: =IF(SUM(AG$8:AG$10)>0,$E60*$F60,0) -> 0 | AJ60: =IF(SUM(AI$8:AI$10)>0,$E60*$F60,0) -> 0 | AL60: =IF(SUM(AK$8:AK$10)>0,$E60*$F60,0) -> 0 | AN60: =IF(SUM(AM$8:AM$10)>0,$E60*$F60,0) -> 0 | AP60: =IF(SUM(AO$8:AO$10)>0,$E60*$F60,0) -> 0 | AR60: =IF(SUM(AQ$8:AQ$10)>0,$E60*$F60,0) -> 0 | AT60: =IF(SUM(AS$8:AS$10)>0,$E60*$F60,0) -> 0 | AV60: =IF(SUM(AU$8:AU$10)>0,$E60*$F60,0) -> 0 | AX60: =IF(SUM(AW$8:AW$10)>0,$E60*$F60,0) -> 0 | AZ60: =IF(SUM(AY$8:AY$10)>0,$E60*$F60,0) -> 0 | BB60: =IF(SUM(BA$8:BA$10)>0,$E60*$F60,0) -> 0 | BD60: =IF(SUM(BC$8:BC$10)>0,$E60*$F60,0) -> 0 | BF60: =IF(SUM(BE$8:BE$10)>0,$E60*$F60,0) -> 0 | BH60: =IF(SUM(BG$8:BG$10)>0,$E60*$F60,0) -> 0 | BJ60: =IF(SUM(BI$8:BI$10)>0,$E60*$F60,0) -> 0 | BL60: =IF(SUM(BK$8:BK$10)>0,$E60*$F60,0) -> 0 | BN60: =IF(SUM(BM$8:BM$10)>0,$E60*$F60,0) -> 0 | BP60: =IF(SUM(BO$8:BO$10)>0,$E60*$F60,0) -> 0 | BR60: =IF(SUM(BQ$8:BQ$10)>0,$E60*$F60,0) -> 0 | BT60: =IF(SUM(BS$8:BS$10)>0,$E60*$F60,0) -> 0 | BV60: =IF(SUM(BU$8:BU$10)>0,$E60*$F60,0) -> 0 | BX60: =IF(SUM(BW$8:BW$10)>0,$E60*$F60,0) -> 0 | BZ60: =IF(SUM(BY$8:BY$10)>0,$E60*$F60,0) -> 0 | CB60: =IF(SUM(CA$8:CA$10)>0,$E60*$F60,0) -> 0 | CD60: =IF(SUM(CC$8:CC$10)>0,$E60*$F60,0) -> 0 | CF60: =IF(SUM(CE$8:CE$10)>0,$E60*$F60,0) -> 0 | CH60: =IF(SUM(CG$8:CG$10)>0,$E60*$F60,0) -> 0 | CJ60: =IF(SUM(CI$8:CI$10)>0,$E60*$F60,0) -> 0 | CL60: =IF(SUM(CK$8:CK$10)>0,$E60*$F60,0) -> 0 | CN60: =IF(SUM(CM$8:CM$10)>0,$E60*$F60,0) -> 0 | CP60: =IF(SUM(CO$8:CO$10)>0,$E60*$F60,0) -> 0 | CR60: =IF(SUM(CQ$8:CQ$10)>0,$E60*$F60,0) -> 0 | CT60: =IF(SUM(CS$8:CS$10)>0,$E60*$F60,0) -> 0 | CV60: =IF(SUM(CU$8:CU$10)>0,$E60*$F60,0) -> 0 | CX60: =IF(SUM(CW$8:CW$10)>0,$E60*$F60,0) -> 0 | CZ60: =IF(SUM(CY$8:CY$10)>0,$E60*$F60,0) -> 0 | DB60: =IF(SUM(DA$8:DA$10)>0,$E60*$F60,0) -> 0 | DD60: =IF(SUM(DC$8:DC$10)>0,$E60*$F60,0) -> 0 | DF60: =IF(SUM(DE$8:DE$10)>0,$E60*$F60,0) -> 0 | DH60: =IF(SUM(DG$8:DG$10)>0,$E60*$F60,0) -> 0 | DJ60: =IF(SUM(DI$8:DI$10)>0,$E60*$F60,0) -> 0 | DL60: =IF(SUM(DK$8:DK$10)>0,$E60*$F60,0) -> 0 | DN60: =IF(SUM(DM$8:DM$10)>0,$E60*$F60,0) -> 0 | DP60: =IF(SUM(DO$8:DO$10)>0,$E60*$F60,0) -> 0 | DR60: =IF(SUM(DQ$8:DQ$10)>0,$E60*$F60,0) -> 0 | DT60: =IF(SUM(DS$8:DS$10)>0,$E60*$F60,0) -> 0 | DV60: =IF(SUM(DU$8:DU$10)>0,$E60*$F60,0) -> 0 | DX60: =IF(SUM(DW$8:DW$10)>0,$E60*$F60,0) -> 0
C61: 1 | D61: Calçado de segurança tipo sapato com resistência a objetos pontiagudos, fechamento em elástico, couro preto, forração em tecido, bico de composite, palmilha de montagem têxtil resistente à perfuração, solado de PU (poliuretano), bidensidade sem cadarço. Ref. MARLUVAS. | E61: 4 | J61: =IF(SUM(I$55:I$57)>0,$E61*$F61,0) -> 0 | L61: =IF(SUM(K$55:K$57)>0,$E61*$F61,0) -> 0 | N61: =IF(SUM(M$55:M$57)>0,$E61*$F61,0) -> 0 | P61: =IF(SUM(O$55:O$57)>0,$E61*$F61,0) -> 0 | R61: =IF(SUM(Q$55:Q$57)>0,$E61*$F61,0) -> 0 | T61: =IF(SUM(S$55:S$57)>0,$E61*$F61,0) -> 0 | V61: =IF(SUM(U$55:U$57)>0,$E61*$F61,0) -> 0 | X61: =IF(SUM(W$55:W$57)>0,$E61*$F61,0) -> 0 | Z61: =IF(SUM(Y$55:Y$57)>0,$E61*$F61,0) -> 0 | AB61: =IF(SUM(AA$55:AA$57)>0,$E61*$F61,0) -> 0 | AD61: =IF(SUM(AC$55:AC$57)>0,$E61*$F61,0) -> 0 | AF61: =IF(SUM(AE$55:AE$57)>0,$E61*$F61,0) -> 0 | AH61: =IF(SUM(AG$55:AG$57)>0,$E61*$F61,0) -> 0 | AJ61: =IF(SUM(AI$55:AI$57)>0,$E61*$F61,0) -> 0 | AL61: =IF(SUM(AK$55:AK$57)>0,$E61*$F61,0) -> 0 | AN61: =IF(SUM(AM$55:AM$57)>0,$E61*$F61,0) -> 0 | AP61: =IF(SUM(AO$55:AO$57)>0,$E61*$F61,0) -> 0 | AR61: =IF(SUM(AQ$55:AQ$57)>0,$E61*$F61,0) -> 0 | AT61: =IF(SUM(AS$55:AS$57)>0,$E61*$F61,0) -> 0 | AV61: =IF(SUM(AU$55:AU$57)>0,$E61*$F61,0) -> 0 | AX61: =IF(SUM(AW$55:AW$57)>0,$E61*$F61,0) -> 0 | AZ61: =IF(SUM(AY$55:AY$57)>0,$E61*$F61,0) -> 0 | BB61: =IF(SUM(BA$55:BA$57)>0,$E61*$F61,0) -> 0 | BD61: =IF(SUM(BC$55:BC$57)>0,$E61*$F61,0) -> 0 | BF61: =IF(SUM(BE$55:BE$57)>0,$E61*$F61,0) -> 0 | BH61: =IF(SUM(BG$55:BG$57)>0,$E61*$F61,0) -> 0 | BJ61: =IF(SUM(BI$55:BI$57)>0,$E61*$F61,0) -> 0 | BL61: =IF(SUM(BK$55:BK$57)>0,$E61*$F61,0) -> 0 | BN61: =IF(SUM(BM$55:BM$57)>0,$E61*$F61,0) -> 0 | BP61: =IF(SUM(BO$55:BO$57)>0,$E61*$F61,0) -> 0 | BR61: =IF(SUM(BQ$55:BQ$57)>0,$E61*$F61,0) -> 0 | BT61: =IF(SUM(BS$55:BS$57)>0,$E61*$F61,0) -> 0 | BV61: =IF(SUM(BU$55:BU$57)>0,$E61*$F61,0) -> 0 | BX61: =IF(SUM(BW$55:BW$57)>0,$E61*$F61,0) -> 0 | BZ61: =IF(SUM(BY$55:BY$57)>0,$E61*$F61,0) -> 0 | CB61: =IF(SUM(CA$55:CA$57)>0,$E61*$F61,0) -> 0 | CD61: =IF(SUM(CC$55:CC$57)>0,$E61*$F61,0) -> 0 | CF61: =IF(SUM(CE$55:CE$57)>0,$E61*$F61,0) -> 0 | CH61: =IF(SUM(CG$55:CG$57)>0,$E61*$F61,0) -> 0 | CJ61: =IF(SUM(CI$55:CI$57)>0,$E61*$F61,0) -> 0 | CL61: =IF(SUM(CK$55:CK$57)>0,$E61*$F61,0) -> 0 | CN61: =IF(SUM(CM$55:CM$57)>0,$E61*$F61,0) -> 0 | CP61: =IF(SUM(CO$55:CO$57)>0,$E61*$F61,0) -> 0 | CR61: =IF(SUM(CQ$55:CQ$57)>0,$E61*$F61,0) -> 0 | CT61: =IF(SUM(CS$55:CS$57)>0,$E61*$F61,0) -> 0 | CV61: =IF(SUM(CU$55:CU$57)>0,$E61*$F61,0) -> 0 | CX61: =IF(SUM(CW$55:CW$57)>0,$E61*$F61,0) -> 0 | CZ61: =IF(SUM(CY$55:CY$57)>0,$E61*$F61,0) -> 0 | DB61: =IF(SUM(DA$55:DA$57)>0,$E61*$F61,0) -> 0 | DD61: =IF(SUM(DC$55:DC$57)>0,$E61*$F61,0) -> 0 | DF61: =IF(SUM(DE$55:DE$57)>0,$E61*$F61,0) -> 0 | DH61: =IF(SUM(DG$55:DG$57)>0,$E61*$F61,0) -> 0 | DJ61: =IF(SUM(DI$55:DI$57)>0,$E61*$F61,0) -> 0 | DL61: =IF(SUM(DK$55:DK$57)>0,$E61*$F61,0) -> 0 | DN61: =IF(SUM(DM$55:DM$57)>0,$E61*$F61,0) -> 0 | DP61: =IF(SUM(DO$55:DO$57)>0,$E61*$F61,0) -> 0 | DR61: =IF(SUM(DQ$55:DQ$57)>0,$E61*$F61,0) -> 0 | DT61: =IF(SUM(DS$55:DS$57)>0,$E61*$F61,0) -> 0 | DV61: =IF(SUM(DU$55:DU$57)>0,$E61*$F61,0) -> 0 | DX61: =IF(SUM(DW$55:DW$57)>0,$E61*$F61,0) -> 0
C62: 2 | D62: Luva de Segurança confeccionada em LÁTEX natural anatômica (esp. mínima 0,60mm), acabamento forrado em algodão flocado, antiderrapante na palma e dedos. Ref.: Mucambo | E62: 15 | J62: =IF(SUM(I$55:I$57)>0,$E62*$F62,0) -> 0 | L62: =IF(SUM(K$55:K$57)>0,$E62*$F62,0) -> 0 | N62: =IF(SUM(M$55:M$57)>0,$E62*$F62,0) -> 0 | P62: =IF(SUM(O$55:O$57)>0,$E62*$F62,0) -> 0 | R62: =IF(SUM(Q$55:Q$57)>0,$E62*$F62,0) -> 0 | T62: =IF(SUM(S$55:S$57)>0,$E62*$F62,0) -> 0 | V62: =IF(SUM(U$55:U$57)>0,$E62*$F62,0) -> 0 | X62: =IF(SUM(W$55:W$57)>0,$E62*$F62,0) -> 0 | Z62: =IF(SUM(Y$55:Y$57)>0,$E62*$F62,0) -> 0 | AB62: =IF(SUM(AA$55:AA$57)>0,$E62*$F62,0) -> 0 | AD62: =IF(SUM(AC$55:AC$57)>0,$E62*$F62,0) -> 0 | AF62: =IF(SUM(AE$55:AE$57)>0,$E62*$F62,0) -> 0 | AH62: =IF(SUM(AG$55:AG$57)>0,$E62*$F62,0) -> 0 | AJ62: =IF(SUM(AI$55:AI$57)>0,$E62*$F62,0) -> 0 | AL62: =IF(SUM(AK$55:AK$57)>0,$E62*$F62,0) -> 0 | AN62: =IF(SUM(AM$55:AM$57)>0,$E62*$F62,0) -> 0 | AP62: =IF(SUM(AO$55:AO$57)>0,$E62*$F62,0) -> 0 | AR62: =IF(SUM(AQ$55:AQ$57)>0,$E62*$F62,0) -> 0 | AT62: =IF(SUM(AS$55:AS$57)>0,$E62*$F62,0) -> 0 | AV62: =IF(SUM(AU$55:AU$57)>0,$E62*$F62,0) -> 0 | AX62: =IF(SUM(AW$55:AW$57)>0,$E62*$F62,0) -> 0 | AZ62: =IF(SUM(AY$55:AY$57)>0,$E62*$F62,0) -> 0 | BB62: =IF(SUM(BA$55:BA$57)>0,$E62*$F62,0) -> 0 | BD62: =IF(SUM(BC$55:BC$57)>0,$E62*$F62,0) -> 0 | BF62: =IF(SUM(BE$55:BE$57)>0,$E62*$F62,0) -> 0 | BH62: =IF(SUM(BG$55:BG$57)>0,$E62*$F62,0) -> 0 | BJ62: =IF(SUM(BI$55:BI$57)>0,$E62*$F62,0) -> 0 | BL62: =IF(SUM(BK$55:BK$57)>0,$E62*$F62,0) -> 0 | BN62: =IF(SUM(BM$55:BM$57)>0,$E62*$F62,0) -> 0 | BP62: =IF(SUM(BO$55:BO$57)>0,$E62*$F62,0) -> 0 | BR62: =IF(SUM(BQ$55:BQ$57)>0,$E62*$F62,0) -> 0 | BT62: =IF(SUM(BS$55:BS$57)>0,$E62*$F62,0) -> 0 | BV62: =IF(SUM(BU$55:BU$57)>0,$E62*$F62,0) -> 0 | BX62: =IF(SUM(BW$55:BW$57)>0,$E62*$F62,0) -> 0 | BZ62: =IF(SUM(BY$55:BY$57)>0,$E62*$F62,0) -> 0 | CB62: =IF(SUM(CA$55:CA$57)>0,$E62*$F62,0) -> 0 | CD62: =IF(SUM(CC$55:CC$57)>0,$E62*$F62,0) -> 0 | CF62: =IF(SUM(CE$55:CE$57)>0,$E62*$F62,0) -> 0 | CH62: =IF(SUM(CG$55:CG$57)>0,$E62*$F62,0) -> 0 | CJ62: =IF(SUM(CI$55:CI$57)>0,$E62*$F62,0) -> 0 | CL62: =IF(SUM(CK$55:CK$57)>0,$E62*$F62,0) -> 0 | CN62: =IF(SUM(CM$55:CM$57)>0,$E62*$F62,0) -> 0 | CP62: =IF(SUM(CO$55:CO$57)>0,$E62*$F62,0) -> 0 | CR62: =IF(SUM(CQ$55:CQ$57)>0,$E62*$F62,0) -> 0 | CT62: =IF(SUM(CS$55:CS$57)>0,$E62*$F62,0) -> 0 | CV62: =IF(SUM(CU$55:CU$57)>0,$E62*$F62,0) -> 0 | CX62: =IF(SUM(CW$55:CW$57)>0,$E62*$F62,0) -> 0 | CZ62: =IF(SUM(CY$55:CY$57)>0,$E62*$F62,0) -> 0 | DB62: =IF(SUM(DA$55:DA$57)>0,$E62*$F62,0) -> 0 | DD62: =IF(SUM(DC$55:DC$57)>0,$E62*$F62,0) -> 0 | DF62: =IF(SUM(DE$55:DE$57)>0,$E62*$F62,0) -> 0 | DH62: =IF(SUM(DG$55:DG$57)>0,$E62*$F62,0) -> 0 | DJ62: =IF(SUM(DI$55:DI$57)>0,$E62*$F62,0) -> 0 | DL62: =IF(SUM(DK$55:DK$57)>0,$E62*$F62,0) -> 0 | DN62: =IF(SUM(DM$55:DM$57)>0,$E62*$F62,0) -> 0 | DP62: =IF(SUM(DO$55:DO$57)>0,$E62*$F62,0) -> 0 | DR62: =IF(SUM(DQ$55:DQ$57)>0,$E62*$F62,0) -> 0 | DT62: =IF(SUM(DS$55:DS$57)>0,$E62*$F62,0) -> 0 | DV62: =IF(SUM(DU$55:DU$57)>0,$E62*$F62,0) -> 0 | DX62: =IF(SUM(DW$55:DW$57)>0,$E62*$F62,0) -> 0
C63: 3 | D63: Luva de segurança, confeccionada em borracha nitrílica, com resistência a produtos químicos; revestimento interno em flocos de algodão, antiderrapante na palma e dedos. Ref.: Danny | E63: 2 | J63: =IF(SUM(I$55:I$57)>0,$E63*$F63,0) -> 0 | L63: =IF(SUM(K$55:K$57)>0,$E63*$F63,0) -> 0 | N63: =IF(SUM(M$55:M$57)>0,$E63*$F63,0) -> 0 | P63: =IF(SUM(O$55:O$57)>0,$E63*$F63,0) -> 0 | R63: =IF(SUM(Q$55:Q$57)>0,$E63*$F63,0) -> 0 | T63: =IF(SUM(S$55:S$57)>0,$E63*$F63,0) -> 0 | V63: =IF(SUM(U$55:U$57)>0,$E63*$F63,0) -> 0 | X63: =IF(SUM(W$55:W$57)>0,$E63*$F63,0) -> 0 | Z63: =IF(SUM(Y$55:Y$57)>0,$E63*$F63,0) -> 0 | AB63: =IF(SUM(AA$55:AA$57)>0,$E63*$F63,0) -> 0 | AD63: =IF(SUM(AC$55:AC$57)>0,$E63*$F63,0) -> 0 | AF63: =IF(SUM(AE$55:AE$57)>0,$E63*$F63,0) -> 0 | AH63: =IF(SUM(AG$55:AG$57)>0,$E63*$F63,0) -> 0 | AJ63: =IF(SUM(AI$55:AI$57)>0,$E63*$F63,0) -> 0 | AL63: =IF(SUM(AK$55:AK$57)>0,$E63*$F63,0) -> 0 | AN63: =IF(SUM(AM$55:AM$57)>0,$E63*$F63,0) -> 0 | AP63: =IF(SUM(AO$55:AO$57)>0,$E63*$F63,0) -> 0 | AR63: =IF(SUM(AQ$55:AQ$57)>0,$E63*$F63,0) -> 0 | AT63: =IF(SUM(AS$55:AS$57)>0,$E63*$F63,0) -> 0 | AV63: =IF(SUM(AU$55:AU$57)>0,$E63*$F63,0) -> 0 | AX63: =IF(SUM(AW$55:AW$57)>0,$E63*$F63,0) -> 0 | AZ63: =IF(SUM(AY$55:AY$57)>0,$E63*$F63,0) -> 0 | BB63: =IF(SUM(BA$55:BA$57)>0,$E63*$F63,0) -> 0 | BD63: =IF(SUM(BC$55:BC$57)>0,$E63*$F63,0) -> 0 | BF63: =IF(SUM(BE$55:BE$57)>0,$E63*$F63,0) -> 0 | BH63: =IF(SUM(BG$55:BG$57)>0,$E63*$F63,0) -> 0 | BJ63: =IF(SUM(BI$55:BI$57)>0,$E63*$F63,0) -> 0 | BL63: =IF(SUM(BK$55:BK$57)>0,$E63*$F63,0) -> 0 | BN63: =IF(SUM(BM$55:BM$57)>0,$E63*$F63,0) -> 0 | BP63: =IF(SUM(BO$55:BO$57)>0,$E63*$F63,0) -> 0 | BR63: =IF(SUM(BQ$55:BQ$57)>0,$E63*$F63,0) -> 0 | BT63: =IF(SUM(BS$55:BS$57)>0,$E63*$F63,0) -> 0 | BV63: =IF(SUM(BU$55:BU$57)>0,$E63*$F63,0) -> 0 | BX63: =IF(SUM(BW$55:BW$57)>0,$E63*$F63,0) -> 0 | BZ63: =IF(SUM(BY$55:BY$57)>0,$E63*$F63,0) -> 0 | CB63: =IF(SUM(CA$55:CA$57)>0,$E63*$F63,0) -> 0 | CD63: =IF(SUM(CC$55:CC$57)>0,$E63*$F63,0) -> 0 | CF63: =IF(SUM(CE$55:CE$57)>0,$E63*$F63,0) -> 0 | CH63: =IF(SUM(CG$55:CG$57)>0,$E63*$F63,0) -> 0 | CJ63: =IF(SUM(CI$55:CI$57)>0,$E63*$F63,0) -> 0 | CL63: =IF(SUM(CK$55:CK$57)>0,$E63*$F63,0) -> 0 | CN63: =IF(SUM(CM$55:CM$57)>0,$E63*$F63,0) -> 0 | CP63: =IF(SUM(CO$55:CO$57)>0,$E63*$F63,0) -> 0 | CR63: =IF(SUM(CQ$55:CQ$57)>0,$E63*$F63,0) -> 0 | CT63: =IF(SUM(CS$55:CS$57)>0,$E63*$F63,0) -> 0 | CV63: =IF(SUM(CU$55:CU$57)>0,$E63*$F63,0) -> 0 | CX63: =IF(SUM(CW$55:CW$57)>0,$E63*$F63,0) -> 0 | CZ63: =IF(SUM(CY$55:CY$57)>0,$E63*$F63,0) -> 0 | DB63: =IF(SUM(DA$55:DA$57)>0,$E63*$F63,0) -> 0 | DD63: =IF(SUM(DC$55:DC$57)>0,$E63*$F63,0) -> 0 | DF63: =IF(SUM(DE$55:DE$57)>0,$E63*$F63,0) -> 0 | DH63: =IF(SUM(DG$55:DG$57)>0,$E63*$F63,0) -> 0 | DJ63: =IF(SUM(DI$55:DI$57)>0,$E63*$F63,0) -> 0 | DL63: =IF(SUM(DK$55:DK$57)>0,$E63*$F63,0) -> 0 | DN63: =IF(SUM(DM$55:DM$57)>0,$E63*$F63,0) -> 0 | DP63: =IF(SUM(DO$55:DO$57)>0,$E63*$F63,0) -> 0 | DR63: =IF(SUM(DQ$55:DQ$57)>0,$E63*$F63,0) -> 0 | DT63: =IF(SUM(DS$55:DS$57)>0,$E63*$F63,0) -> 0 | DV63: =IF(SUM(DU$55:DU$57)>0,$E63*$F63,0) -> 0 | DX63: =IF(SUM(DW$55:DW$57)>0,$E63*$F63,0) -> 0
C64: 4 | D64: Luvas em látex nitrílica, cor verde, antiderrapante na palma e face palmar dos dedos, 45cm de comprimento. Ref.: Kalipso ou similar. | E64: 1
C65: 5 | D65: Respirador purificador de ar tipo, peça semifacial filtrante para partículas (PFF2), com formato dobrável, solda ultra-sônica em todo o seu perímetro. Fita elástica branca fixada nas laterais externas do respirador, perfazendo uma alça na para fixação na parte superior da cabeça e a outra na parte inferior, para fixação na altura da nuca do usuário. A parte superior externa da peça possui tira de material metálico moldável, utilizada para ajuste no septo nasal. Com válvula de exalação. DEVERÁ APRESENTAR O SELO DE APROVAÇÃO DO INMETRO. Ref. 3M. Obs.: enquanto durarem os efeitos da pandemia da Covid-19 as máscaras devem ser fornecidas SEM a válvula de exalação | E65: 12 | J65: =IF(SUM(I$55:I$57)>0,$E65*$F65,0) -> 0 | L65: =IF(SUM(K$55:K$57)>0,$E65*$F65,0) -> 0 | N65: =IF(SUM(M$55:M$57)>0,$E65*$F65,0) -> 0 | P65: =IF(SUM(O$55:O$57)>0,$E65*$F65,0) -> 0 | R65: =IF(SUM(Q$55:Q$57)>0,$E65*$F65,0) -> 0 | T65: =IF(SUM(S$55:S$57)>0,$E65*$F65,0) -> 0 | V65: =IF(SUM(U$55:U$57)>0,$E65*$F65,0) -> 0 | X65: =IF(SUM(W$55:W$57)>0,$E65*$F65,0) -> 0 | Z65: =IF(SUM(Y$55:Y$57)>0,$E65*$F65,0) -> 0 | AB65: =IF(SUM(AA$55:AA$57)>0,$E65*$F65,0) -> 0 | AD65: =IF(SUM(AC$55:AC$57)>0,$E65*$F65,0) -> 0 | AF65: =IF(SUM(AE$55:AE$57)>0,$E65*$F65,0) -> 0 | AH65: =IF(SUM(AG$55:AG$57)>0,$E65*$F65,0) -> 0 | AJ65: =IF(SUM(AI$55:AI$57)>0,$E65*$F65,0) -> 0 | AL65: =IF(SUM(AK$55:AK$57)>0,$E65*$F65,0) -> 0 | AN65: =IF(SUM(AM$55:AM$57)>0,$E65*$F65,0) -> 0 | AP65: =IF(SUM(AO$55:AO$57)>0,$E65*$F65,0) -> 0 | AR65: =IF(SUM(AQ$55:AQ$57)>0,$E65*$F65,0) -> 0 | AT65: =IF(SUM(AS$55:AS$57)>0,$E65*$F65,0) -> 0 | AV65: =IF(SUM(AU$55:AU$57)>0,$E65*$F65,0) -> 0 | AX65: =IF(SUM(AW$55:AW$57)>0,$E65*$F65,0) -> 0 | AZ65: =IF(SUM(AY$55:AY$57)>0,$E65*$F65,0) -> 0 | BB65: =IF(SUM(BA$55:BA$57)>0,$E65*$F65,0) -> 0 | BD65: =IF(SUM(BC$55:BC$57)>0,$E65*$F65,0) -> 0 | BF65: =IF(SUM(BE$55:BE$57)>0,$E65*$F65,0) -> 0 | BH65: =IF(SUM(BG$55:BG$57)>0,$E65*$F65,0) -> 0 | BJ65: =IF(SUM(BI$55:BI$57)>0,$E65*$F65,0) -> 0 | BL65: =IF(SUM(BK$55:BK$57)>0,$E65*$F65,0) -> 0 | BN65: =IF(SUM(BM$55:BM$57)>0,$E65*$F65,0) -> 0 | BP65: =IF(SUM(BO$55:BO$57)>0,$E65*$F65,0) -> 0 | BR65: =IF(SUM(BQ$55:BQ$57)>0,$E65*$F65,0) -> 0 | BT65: =IF(SUM(BS$55:BS$57)>0,$E65*$F65,0) -> 0 | BV65: =IF(SUM(BU$55:BU$57)>0,$E65*$F65,0) -> 0 | BX65: =IF(SUM(BW$55:BW$57)>0,$E65*$F65,0) -> 0 | BZ65: =IF(SUM(BY$55:BY$57)>0,$E65*$F65,0) -> 0 | CB65: =IF(SUM(CA$55:CA$57)>0,$E65*$F65,0) -> 0 | CD65: =IF(SUM(CC$55:CC$57)>0,$E65*$F65,0) -> 0 | CF65: =IF(SUM(CE$55:CE$57)>0,$E65*$F65,0) -> 0 | CH65: =IF(SUM(CG$55:CG$57)>0,$E65*$F65,0) -> 0 | CJ65: =IF(SUM(CI$55:CI$57)>0,$E65*$F65,0) -> 0 | CL65: =IF(SUM(CK$55:CK$57)>0,$E65*$F65,0) -> 0 | CN65: =IF(SUM(CM$55:CM$57)>0,$E65*$F65,0) -> 0 | CP65: =IF(SUM(CO$55:CO$57)>0,$E65*$F65,0) -> 0 | CR65: =IF(SUM(CQ$55:CQ$57)>0,$E65*$F65,0) -> 0 | CT65: =IF(SUM(CS$55:CS$57)>0,$E65*$F65,0) -> 0 | CV65: =IF(SUM(CU$55:CU$57)>0,$E65*$F65,0) -> 0 | CX65: =IF(SUM(CW$55:CW$57)>0,$E65*$F65,0) -> 0 | CZ65: =IF(SUM(CY$55:CY$57)>0,$E65*$F65,0) -> 0 | DB65: =IF(SUM(DA$55:DA$57)>0,$E65*$F65,0) -> 0 | DD65: =IF(SUM(DC$55:DC$57)>0,$E65*$F65,0) -> 0 | DF65: =IF(SUM(DE$55:DE$57)>0,$E65*$F65,0) -> 0 | DH65: =IF(SUM(DG$55:DG$57)>0,$E65*$F65,0) -> 0 | DJ65: =IF(SUM(DI$55:DI$57)>0,$E65*$F65,0) -> 0 | DL65: =IF(SUM(DK$55:DK$57)>0,$E65*$F65,0) -> 0 | DN65: =IF(SUM(DM$55:DM$57)>0,$E65*$F65,0) -> 0 | DP65: =IF(SUM(DO$55:DO$57)>0,$E65*$F65,0) -> 0 | DR65: =IF(SUM(DQ$55:DQ$57)>0,$E65*$F65,0) -> 0 | DT65: =IF(SUM(DS$55:DS$57)>0,$E65*$F65,0) -> 0 | DV65: =IF(SUM(DU$55:DU$57)>0,$E65*$F65,0) -> 0 | DX65: =IF(SUM(DW$55:DW$57)>0,$E65*$F65,0) -> 0
I66: =SUMPRODUCT($E$14:$E$14,$F$14:$F$14)*(F9+#REF!) ->  | J66: anual | L66: anual | N66: anual | P66: anual | R66: anual | T66: anual | V66: anual | X66: anual | Z66: anual | AB66: anual | AD66: anual | AF66: anual | AH66: anual | AJ66: anual | AL66: anual | AN66: anual | AP66: anual | AR66: anual | AT66: anual | AV66: anual | AX66: anual | AZ66: anual | BB66: anual | BD66: anual | BF66: anual | BH66: anual | BJ66: anual | BL66: anual | BN66: anual | BP66: anual | BR66: anual | BT66: anual | BV66: anual | BX66: anual | BZ66: anual | CB66: anual | CD66: anual | CF66: anual | CH66: anual | CJ66: anual | CL66: anual | CN66: anual | CP66: anual | CR66: anual | CT66: anual | CV66: anual | CX66: anual | CZ66: anual | DB66: anual | DD66: anual | DF66: anual | DH66: anual | DJ66: anual | DL66: anual | DN66: anual | DP66: anual | DR66: anual | DT66: anual | DV66: anual | DX66: anual

Sheet SREP
B4: SISTEMA DE REGISTRO ELETRÔNICO DE PRESENÇA - SREP
C7: PAGAMENTO DA DEPRECIAÇÃO
C8: ITEM | D8: DESCRIÇÃO | E8: QUANT ANUAL | F8: CONTA SIAFI | G8: VALOR DE AQ. | H8: % RESIDUAL | I8: VIDA ÚTIL | J8: DEP. MENSAL | K8: CUSTO TOTAL | L8: BDI (%) | M8: PREÇO TOTAL | N8: FONTE | O8: REFERÊNCIA
C10: 1 | D10: Equipamento de Registro Eletrônico de Ponto, de parede, com teclado externo e leitor biométrico, em conformidade com a Portaria 1.510/2009 do MT | E10: 1 | F10: 12311.01.24 (máquinas e equip eletrônicos) | G10: 1618.61 | H10: 0.1 | I10: 10 | J10: =G10*(1-H10)/(I10*12) -> 12.139575 | K10: =J10*E10 -> 12.139575 | L10: =BDI!E26 -> 0.2715 | M10: =ROUND(K10*(1+L10),2) -> 15.44 | N10: COTAÇÃO
C13: PAGAMENTO DA MANUTENÇÃO
C14: ITEM | D14: DESCRIÇÃO | H14: K (calculado) | I14: MENSAL DEPR. | J14: % MAN X DEP | K14: MENSAL MAN. | L14: BDI (%) | M14: PREÇO TOTAL
C16: 2 | D16: Todos os itens | H16: =H23 -> 1.90003968 | I16: =K10 -> 12.139575 | J16: =H16 -> 1.90003968 | K16: =I16*H16 -> 23.0656742 | L16: =L10 -> 0.2715 | M16: =ROUND(K16*(1+L16),2) -> 29.33
E18: K1 | F18: K2 | G18: K3 | H18: K4
E19: 0.85 | F19: 1 | G19: 0.8 | H19: 1.4
E20: K5 | F20: K6 | G20: K7 | H20: K8
E21: 1 | F21: 0.6 | G21: 1.6 | H21: 1.1
E22: K9 | F22: K10 | G22: K11 | H22: RESULTADO
D23: * a descrição de cada coeficiente segue abaixo | E23: 1.5 | F23: 0.9 | G23: 1.4 | H23: =E19*F19*G19*H19*E21*F21*G21*H21*E23*F23*G23 -> 1.90003968
C26: PAGAMENTO DO SOFTWARE
C27: ITEM | D27: DESCRIÇÃO | I27: QUANTIDADE | J27: UNIDADE | K27: UNIT. MENSAL | L27: BDI (%) | M27: PREÇO TOTAL
C29: 3 | D29: Software Ponto Secullum 4 - manutenção e suporte técnico com backup - Web Nuvem - Mensalidade até 200 usuários | I29: 1 | J29: Licença/mês | K29: 359.17 | L29: =L35 -> 0.2715 | M29: =ROUND(K29*(1+L29),2) -> 456.68 | N29: COTAÇÃO
C32: MATERIAL DE CONSUMO ASSOCIADO
C33: ITEM | D33: DESCRIÇÃO | H33: QUANTID/ANO | I33: UNIDADE | J33: VALOR DE AQ. | K33: MENSAL MAT | L33: BDI (%) | M33: PREÇO TOTAL
C35: 4 | D35: Bobina térmica específica para o registrador eletrônico de ponto, com papel termossensível, superfície de impressão externa ao rolo, durabilidade de impressão mínima de 5 anos e comprimento mínimo de 300m | E35: * estimado um gasto anual de 2 bobinas por equipamento | H35: =ROUNDUP(SUM(Remunerações!E5:E6)*4*22*12*0.05/300,0) -> 2 | I35: Bobina | J35: 29.39 | K35: =J35*H35/12 -> 4.898333333 | L35: =L16 -> 0.2715 | M35: =ROUND(K35*(1+L35),2) -> 6.23 | N35: COTAÇÃO
C38: MATERIAL DE CONSUMO ASSOCIADO
C39: ITEM | D39: DESCRIÇÃO | M39: PREÇO TOTAL
C41: 1 | D41: Componente DEPRECIAÇÃO | M41: =M10 -> 15.44
C42: 2 | D42: Componente MANUTENÇÃO | M42: =M16 -> 29.33
C43: 3 | D43: Componente SOFTWARE | M43: =M29 -> 456.68
C44: 4 | D44: Componente MATERIAL DE CONSUMO ASSOCIADO | M44: =M35 -> 6.23
L46: SOMATÓRIO TOTAL MENSAL | M46: =SUM(M40:M45) -> 507.68
L47: SOMATÓRIO TOTAL ANUAL | M47: =M46*12 -> 6092.16
C50: MATERIAL DE CONSUMO ASSOCIADO
C51: MEMÓRIA DE CÁLCULO DO COEFICIENTE DE CORRELAÇÃO MANUTENÇÃO X DEPRECIAÇÃO (K)
C53: JUSTIFICATIVAS | E53: TIPO | F53: K1 | H53: Condições de Trab | I53: K4 | K53: Tempo Vida (anos) | L53: K6 | N53: Temperatura | O53: K8
E54: Guindaste | F54: 0.5 | H54: Em espera | I54: 0.4 | K54: 1 | L54: 0.6 | N54: Muito quente (> 40º C) | O54: 1.3
C55: K1 | D55: Considerado o valor médio de 0,85 | E55: Caminhão-comum | F55: 0.8 | H55: Leves | I55: 0.8 | K55: 2 | L55: 0.7 | N55: Quente (30º a 40º C) | O55: 1.1
C56: K2 | D56: Considerado o operador médio | E56: Fora-de-estrada | F56: 1 | H56: Médias | I56: 1 | K56: 3 | L56: 0.8 | N56: Médio (10º a 30º C) | O56: 1
C57: K3 | D57: Consideradas ferramentas de primeira qualidade | E57: Carregadeira | F57: 1 | H57: Pesadas | I57: 1.4 | K57: 4 | L57: 0.9 | N57: Frio (< 10º C) | O57: 1.2
C58: K4 | D58: Há todo o tipo de trabalho, foi considerado condições pesadas | E58: Escavadeira | F58: 1.4 | H58: Severas | I58: 2 | K58: 5 | L58: 1
C59: K5 | D59: Considerando manutenção normal | E59: Motoescrêiper | F59: 1.1 | K59: 6 | L59: 1 | N59: Ritmo de Trabalho | O59: K9
C60: K6 | D60: Equipamentos novos | E60: Trator de esteira | F60: 1.2 | H60: Manutenção | I60: K5 | K60: 7 | L60: 1 | N60: Folgado | O60: 0.9
C61: K7 | D61: 44h por dia, 252 dias por ano | H61: Excelente | I61: 0.6 | K61: 8 | L61: 1.2 | N61: Médio | O61: 1
C62: K8 | D62: Clima quente, acima de 30º C | E62: Qualid do Operador | F62: K2 | H62: Boa | I62: 0.8 | K62: 9 | L62: 1.3 | N62: Com pressa | O62: 1.5
C63: K9 | D63: Ritmo de trabalho usualmente com pressa | E63: Excelente | F63: 0.8 | H63: Média | I63: 1 | K63: 10 | L63: 1.4
C64: K10 | D64: Considerado o operador médio | E64: Boa | F64: 0.9 | H64: Ruim | I64: 1.5 | K64: 11 | L64: 2 | N64: Conh do Serviço | O64: K10
C65: K11 | D65: Foi considerada a opção de aluguel a terceiros, ainda que a simulação seja dos custos do contratado, contudo a execução dos serviços é em local de terceiros | E65: Média | F65: 1 | H65: Inexistente | I65: 3 | K65: 15 | L65: 2 | N65: Grande | O65: 0.8
E66: Ruim | F66: 1.2 | N66: Médio | O66: 0.9
E67: Péssima | F67: 2 | H67: Horas de Uso | I67: K7 | J67: 6000 | K67: 1 | N67: Pouco | O67: 1
H68: 1000 | I68: 0.5 | J68: 8000 | K68: 1.3
E69: Qualidade do Equip | F69: K3 | H69: 2000 | I69: 0.5 | J69: 10000 | K69: 1.6 | N69: Tipo do Serviço | O69: K11
E70: De primeira | F70: 0.8 | H70: 3000 | I70: 0.6 | J70: 12000 | K70: 1.9 | N70: Mina ou Pedreira | O70: 0.8
E71: Média | F71: 1 | H71: 4000 | I71: 0.7 | J71: 15000 | K71: 2.3 | N71: Construção Geral | O71: 1
E72: Ruim | F72: 1.5 | H72: 5000 | I72: 0.9 | J72: 20000 | K72: 3 | N72: Aluguel a Terceiros | O72: 1.4
E74: Fonte:
E75: MATTOS, Aldo Dórea. Como preparar orçamentos de obras. São Paulo: Pini, 2006. 281 p., il

Sheet Não Rel - EPI (hidden)
B4: EPIS NÃO RELACIONADOS DIRETAMENTE A UM POSTO DE TRABALHO - AQUISIÇÃO
D7: ITEM | E7: DESCRIÇÃO | F7: QUANT ANUAL | G7: UNIDADE | H7: CUSTO UNITÁRIO | I7: CUSTO ANUAL | J7: BDI (%) | K7: PREÇO TOTAL | L7: FONTE
D9: 1 | E9: Avental em PVC, 70 X 120CM de largura e comprimento (aproximadamente), corpo inteiro na frente, contendo tiras fixadas no avental, que deverão ser amarradas no pescoço e na cintura. REF.: MAICOL | F9: 34 | G9: UNID | I9: =H9*F9 -> 0 | J9: =BDI!E26 -> 0.2715 | K9: =ROUND(I9*(1+J9),2) -> 0 | L9: COTAÇÃO
D10: 2 | E10: Avental em PVC, com forro de poliéster, tipo barbeiro, manga longa, fechamento nas costas na altura dos ombros através de botões de pressão plásticos, duas tiras na cintura soldadas eletronicamente com fechamento através de fivela plástica tipo engate rápido, acabamento em solda eletrônica. Ref.: MAICOL | F10: 2 | G10: UNID | I10: =H10*F10 -> 0 | J10: =J9 -> 0.2715 | K10: =ROUND(I10*(1+J10),2) -> 0 | L10: COTAÇÃO
D11: 3 | E11: Bloqueador solar com fator de proteção solar no mínimo de 30 (UV FPS 30) com propriedade repelente a insetos. Inodoro. Bombonas (4 Litros). REF.: LUVEX. | F11: 2 | G11: UNID | I11: =H11*F11 -> 0 | J11: =J10 -> 0.2715 | K11: =ROUND(I11*(1+J11),2) -> 0 | L11: COTAÇÃO
D12: 4 | E12: Boné tipo Touca Árabe confeccionado em helanca com viés na aba, elástico interno traseiro para ajuste de tamanho, fechamento da saia em velcro. REF.: Nexus | F12: 40 | G12: UNID | I12: 0 | J12: 0.2715 | K12: 0 | L12: COTAÇÃO
D13: 5 | E13: Bota em PVC, impermeável, forrada internamente, cano medio. Ref. PEGA FORTE. | F13: 50 | G13: PARES | I13: 0 | J13: 0.2715 | K13: 0 | L13: COTAÇÃO
D14: 6 | E14: Capa para chuva com manga e capuz, fechamento frontal com botões plásticos de pressão, costura eletrônica. Ref.: Proticap | F14: 20 | G14: UNID | I14: 0 | J14: 0.2715 | K14: 0 | L14: COTAÇÃO
D15: 7 | E15: Capacete de segurança em polietileno de alta densidade, na cor AMARELA, com aba frontal, casco com nervuras, com Faixa anti-suor, regulagem de tamanho com ajuste simples, com jugular. Ref.: MSA | F15: 8 | G15: UNID | I15: 0 | J15: 0.2715 | K15: 0 | L15: COTAÇÃO
D16: 8 | E16: Cartucho químico para Vapores orgânicos e gases ácidos compatível com os respiradores (meia peça facial e peça facial completa). Ref. 3M Série 6000 | F16: 10 | G16: PARES | I16: 0 | J16: 0.2715 | K16: 0 | L16: COTAÇÃO
D17: 9 | E17: Cinto de segurança, tipo paraquedista, com talabarte duplo (comprimento aprox 1,50m) e absorvedor de energia, produzido em material sintético, com 2 pontos de ancoragem - Frontal e dorsal - ajuste nas pernas e cintura. Ref.: Gulin | F17: 6 | G17: CONJ | I17: 0 | J17: 0.2715 | K17: 0 | L17: COTAÇÃO
D18: 10 | E18: Corda de segurança semi-estática 12mm na cor branca, carga de ruptura 20kN. Trançado triplo e alma central. Trançado externo em multi filamento de poliamida, trançado intermediário e alerta visual em multi filamento de polipropileno, trançado interno em multi filamento de poliamida e alma central torcida em multi filamento de poliamida. Possui fita de identificação interna. Ref. ALTISEG | F18: 100 | G18: METROS | I18: 0 | J18: 0.2715 | K18: 0 | L18: COTAÇÃO
D19: 11 | E19: Fita de sinalização (zebrada), com listas laranja e preta intercaladas-rolo 180 m x 65 mm. Rolo de 200 Metros. Ref.: 3M | F19: 20 | G19: UNID | I19: 0 | J19: 0.2715 | K19: 0 | L19: COTAÇÃO
D20: 12 | E20: Jardineira impermeável, com peito alto, tiras fixas, reguláveis por argolas e com botas de PVC acoplados, tamanhos – botas 42,44. Deverá possuir Certificado de Aprovação aprovado pelo Ministério do Trabalho e Emprego e vigente. Ref.: Prot-cap. | F20: 10 | G20: UNID | I20: 0 | J20: 0.2715 | K20: 0 | L20: COTAÇÃO
D21: 13 | E21: Luva de segurança confeccionada em para-aramida e algodão tipo Jersey (felpudo), totalmente revestida na face palmar, pontas dos dedos e dorso em nitrílico, punho de segurança revestido em nitrílico. Para proteção das mãos do usuário contra agentes abrasivos, escoriantes, cortantes e perfurantes. Ref.: Volk, modelo Attack. | F21: 20 | G21: PARES | I21: 0 | J21: 0.2715 | K21: 0 | L21: COTAÇÃO
D22: 14 | E22: Luva de segurança confeccionada em vaqueta, com formato de 05 dedos, reforço na palma, reforço na costura entre o polegar e o indicador e entre os dedos anelares, punho curto (7 a 10 cm), elastico. Deverá possuir Certificado de Aprovação aprovado pelo Ministério do Trabalho e Emprego e vigente. Ref. Plascouro | F22: 10 | G22: PARES | I22: 0 | J22: 0.2715 | K22: 0 | L22: COTAÇÃO
D23: 15 | E23: Óculos de segurança constituídos de armação e visor confeccionados em uma única peça de policarbonato CINZA, anti-risco, apoio nasal de plástico maleável. Hastes emborrachadas. Ref.: 3M Virtua V4 | F23: 60 | G23: UNID | I23: 0 | J23: 0.2715 | K23: 0 | L23: COTAÇÃO
D24: 16 | E24: Óculos de segurança constituídos de armação e visor confeccionados em uma única peça de policarbonato INCOLOR, anti-risco, apoio nasal de plástico maleável. Hastes emborrachadas. Ref.: 3M Virtua V4 | F24: 240 | G24: UNID | I24: 0 | J24: 0.2715 | K24: 0 | L24: COTAÇÃO
D25: 17 | E25: Óculos sobreposição INCOLOR, constituído de armação e visor confeccionados em uma única peça de policarbonato incolor com meia borda superior. As hastes do tipo espátula, são confeccionadas do mesmo material da armação, possui fendas para ventilação fixadas à armação. REF. CARBOGRAFITE CA: 6942. | F25: 10 | G25: UNID | I25: 0 | J25: 0.2715 | K25: 0 | L25: COTAÇÃO
D26: 18 | E26: Protetor auricular tipo plug em silicone, lavável com proteção mínima de 15 dB(A) de atenuação pelo método NRRsf. REFERÊNCIA:3M | F26: 400 | G26: UNID | I26: =H26*F26 -> 0 | J26: 0.2715 | K26: =ROUND(I26*(1+J26),2) -> 0 | L26: COTAÇÃO
D27: 19 | E27: Respirador de meia peça facial completa, com duplo filtro Ref.: 3M, modelo 6200 | F27: 5 | G27: UNID | I27: =H27*F27 -> 0 | J27: 0.2715 | K27: =ROUND(I27*(1+J27),2) -> 0 | L27: COTAÇÃO
D28: 20 | E28: Respirador peça facial completa, com duplo filtro Ref.: 3M, modelo 6800 | F28: 3 | G28: UNID | I28: =H28*F28 -> 0 | J28: =J26 -> 0.2715 | K28: =ROUND(I28*(1+J28),2) -> 0 | L28: COTAÇÃO
D29: 21 | E29: Respirador purificador de ar tipo, peça semifacial filtrante para partículas (PFF2), com formato dobrável, solda ultra-sônica em todo o seu perímetro. Fita elástica branca fixada nas laterais externas do respirador, perfazendo uma alça na para fixação na parte superior da cabeça e a outra na parte inferior, para fixação na altura da nuca do usuário. A parte superior externa da peça possui tira de material metálico moldável, utilizada para ajuste no septo nasal. Com válvula de exalação. DEVERÁ APRESENTAR O SELO DE APROVAÇÃO DO INMETRO. Ref. 3M. Obs.: enquanto durarem os efeitos da pandemia da Covid-19 as máscaras devem ser fornecidas SEM a válvula de exalação | F29: 60 | G29: UNID | I29: =H29*F29 -> 0 | J29: =J27 -> 0.2715 | K29: =ROUND(I29*(1+J29),2) -> 0 | L29: COTAÇÃO
J31: SOMATÓRIO TOTAL MENSAL | K31: =K32/12 -> 0
J32: SOMATÓRIO TOTAL ANUAL | K32: =SUM(K8:K30) -> 0 | N32: =SUM($I$9:$I$29) -> 0 | O32: por ano sem bdi

Sheet Equip Rel (hidden)
C1: CÂMARA DOS DEPUTADOS
C2: DEPARTAMENTO TÉCNICO
C3: Coordenação de Planejamento e Gestão
C5: Data: | D5: ='Dados Gerais'!#REF! -> 
C6: Processo: | D6: ='Dados Gerais'!#REF! -> 
C7: Objeto: | D7: ='Dados Gerais'!#REF! -> 
B11: EQUIPAMENTOS RELACIONADOS AO POSTO - PAGAMENTO DA DEPRECIAÇÃO / MANUTENÇÃO | Q11: 1 | S11: =Q11+1 -> 2 | U11: =S11+1 -> 3 | W11: =U11+1 -> 4 | Y11: =W11+1 -> 5 | AA11: =Y11+1 -> 6 | AC11: =AA11+1 -> 7 | AE11: =AC11+1 -> 8 | AG11: =AE11+1 -> 9 | AI11: =AG11+1 -> 10 | AK11: =AI11+1 -> 11 | AM11: =AK11+1 -> 12 | AO11: =AM11+1 -> 13 | AQ11: =AO11+1 -> 14 | AS11: =AQ11+1 -> 15 | AU11: =AS11+1 -> 16 | AW11: =AU11+1 -> 17 | AY11: =AW11+1 -> 18 | BA11: =AY11+1 -> 19 | BC11: =BA11+1 -> 20 | BE11: =BC11+1 -> 21 | BG11: =BE11+1 -> 22 | BI11: =BG11+1 -> 23 | BK11: =BI11+1 -> 24 | BM11: =BK11+1 -> 25 | BO11: =BM11+1 -> 26 | BQ11: =BO11+1 -> 27 | BS11: =BQ11+1 -> 28 | BU11: =BS11+1 -> 29 | BW11: =BU11+1 -> 30 | BY11: =BW11+1 -> 31 | CA11: =BY11+1 -> 32 | CC11: =CA11+1 -> 33 | CE11: =CC11+1 -> 34 | CG11: =CE11+1 -> 35 | CI11: =CG11+1 -> 36 | CK11: =CI11+1 -> 37 | CM11: =CK11+1 -> 38 | CO11: =CM11+1 -> 39 | CQ11: =CO11+1 -> 40 | CS11: =CQ11+1 -> 41 | CU11: =CS11+1 -> 42 | CW11: =CU11+1 -> 43 | CY11: =CW11+1 -> 44 | DA11: =CY11+1 -> 45 | DC11: =DA11+1 -> 46 | DE11: =DC11+1 -> 47 | DG11: =DE11+1 -> 48 | DI11: =DG11+1 -> 49 | DK11: =DI11+1 -> 50 | DM11: =DK11+1 -> 51 | DO11: =DM11+1 -> 52 | DQ11: =DO11+1 -> 53 | DS11: =DQ11+1 -> 54 | DU11: =DS11+1 -> 55 | DW11: =DU11+1 -> 56 | DY11: =DW11+1 -> 57 | EA11: =DY11+1 -> 58 | EC11: =EA11+1 -> 59 | EE11: =EC11+1 -> 60
Q13: =SUM(R12:R61) -> 0 | S13: =SUM(T12:T61) -> 0 | U13: =SUM(V12:V61) -> 0 | W13: =SUM(X12:X61) -> 0 | Y13: =SUM(Z12:Z61) -> 0 | AA13: =SUM(AB12:AB61) -> 0 | AC13: =SUM(AD12:AD61) -> 0 | AE13: =SUM(AF12:AF61) -> 0 | AG13: =SUM(AH12:AH61) -> 0 | AI13: =SUM(AJ12:AJ61) -> 0 | AK13: =SUM(AL12:AL61) -> 0 | AM13: =SUM(AN12:AN61) -> 0 | AO13: =SUM(AP12:AP61) -> 0 | AQ13: =SUM(AR12:AR61) -> 0 | AS13: =SUM(AT12:AT61) -> 0 | AU13: =SUM(AV12:AV61) -> 0 | AW13: =SUM(AX12:AX61) -> 0 | AY13: =SUM(AZ12:AZ61) -> 0 | BA13: =SUM(BB12:BB61) -> 0 | BC13: =SUM(BD12:BD61) -> 0 | BE13: =SUM(BF12:BF61) -> 0 | BG13: =SUM(BH12:BH61) -> 0 | BI13: =SUM(BJ12:BJ61) -> 0 | BK13: =SUM(BL12:BL61) -> 0 | BM13: =SUM(BN12:BN61) -> 0 | BO13: =SUM(BP12:BP61) -> 0 | BQ13: =SUM(BR12:BR61) -> 0 | BS13: =SUM(BT12:BT61) -> 0 | BU13: =SUM(BV12:BV61) -> 0 | BW13: =SUM(BX12:BX61) -> 0 | BY13: =SUM(BZ12:BZ61) -> 0 | CA13: =SUM(CB12:CB61) -> 0 | CC13: =SUM(CD12:CD61) -> 0 | CE13: =SUM(CF12:CF61) -> 0 | CG13: =SUM(CH12:CH61) -> 0 | CI13: =SUM(CJ12:CJ61) -> 0 | CK13: =SUM(CL12:CL61) -> 0 | CM13: =SUM(CN12:CN61) -> 0 | CO13: =SUM(CP12:CP61) -> 0 | CQ13: =SUM(CR12:CR61) -> 0 | CS13: =SUM(CT12:CT61) -> 0 | CU13: =SUM(CV12:CV61) -> 0 | CW13: =SUM(CX12:CX61) -> 0 | CY13: =SUM(CZ12:CZ61) -> 0 | DA13: =SUM(DB12:DB61) -> 0 | DC13: =SUM(DD12:DD61) -> 0 | DE13: =SUM(DF12:DF61) -> 0 | DG13: =SUM(DH12:DH61) -> 0 | DI13: =SUM(DJ12:DJ61) -> 0 | DK13: =SUM(DL12:DL61) -> 0 | DM13: =SUM(DN12:DN61) -> 0 | DO13: =SUM(DP12:DP61) -> 0 | DQ13: =SUM(DR12:DR61) -> 0 | DS13: =SUM(DT12:DT61) -> 0 | DU13: =SUM(DV12:DV61) -> 0 | DW13: =SUM(DX12:DX61) -> 0 | DY13: =SUM(DZ12:DZ61) -> 0 | EA13: =SUM(EB12:EB61) -> 0 | EC13: =SUM(ED12:ED61) -> 0 | EE13: =SUM(EF12:EF61) -> 0
C14: CATEGORIAS | E14: QUANTIDADE
Q15: =IF($C15=Q$11,1,0) -> 0 | S15: =IF($C15=S$11,1,0) -> 0 | U15: =IF($C15=U$11,1,0) -> 0 | W15: =IF($C15=W$11,1,0) -> 0 | Y15: =IF($C15=Y$11,1,0) -> 0 | AA15: =IF($C15=AA$11,1,0) -> 0 | AC15: =IF($C15=AC$11,1,0) -> 0 | AE15: =IF($C15=AE$11,1,0) -> 0 | AG15: =IF($C15=AG$11,1,0) -> 0 | AI15: =IF($C15=AI$11,1,0) -> 0 | AK15: =IF($C15=AK$11,1,0) -> 0 | AM15: =IF($C15=AM$11,1,0) -> 0 | AO15: =IF($C15=AO$11,1,0) -> 0 | AQ15: =IF($C15=AQ$11,1,0) -> 0 | AS15: =IF($C15=AS$11,1,0) -> 0 | AU15: =IF($C15=AU$11,1,0) -> 0 | AW15: =IF($C15=AW$11,1,0) -> 0 | AY15: =IF($C15=AY$11,1,0) -> 0 | BA15: =IF($C15=BA$11,1,0) -> 0 | BC15: =IF($C15=BC$11,1,0) -> 0 | BE15: =IF($C15=BE$11,1,0) -> 0 | BG15: =IF($C15=BG$11,1,0) -> 0 | BI15: =IF($C15=BI$11,1,0) -> 0 | BK15: =IF($C15=BK$11,1,0) -> 0 | BM15: =IF($C15=BM$11,1,0) -> 0 | BO15: =IF($C15=BO$11,1,0) -> 0 | BQ15: =IF($C15=BQ$11,1,0) -> 0 | BS15: =IF($C15=BS$11,1,0) -> 0 | BU15: =IF($C15=BU$11,1,0) -> 0 | BW15: =IF($C15=BW$11,1,0) -> 0 | BY15: =IF($C15=BY$11,1,0) -> 0 | CA15: =IF($C15=CA$11,1,0) -> 0 | CC15: =IF($C15=CC$11,1,0) -> 0 | CE15: =IF($C15=CE$11,1,0) -> 0 | CG15: =IF($C15=CG$11,1,0) -> 0 | CI15: =IF($C15=CI$11,1,0) -> 0 | CK15: =IF($C15=CK$11,1,0) -> 0 | CM15: =IF($C15=CM$11,1,0) -> 0 | CO15: =IF($C15=CO$11,1,0) -> 0 | CQ15: =IF($C15=CQ$11,1,0) -> 0 | CS15: =IF($C15=CS$11,1,0) -> 0 | CU15: =IF($C15=CU$11,1,0) -> 0 | CW15: =IF($C15=CW$11,1,0) -> 0 | CY15: =IF($C15=CY$11,1,0) -> 0 | DA15: =IF($C15=DA$11,1,0) -> 0 | DC15: =IF($C15=DC$11,1,0) -> 0 | DE15: =IF($C15=DE$11,1,0) -> 0 | DG15: =IF($C15=DG$11,1,0) -> 0 | DI15: =IF($C15=DI$11,1,0) -> 0 | DK15: =IF($C15=DK$11,1,0) -> 0 | DM15: =IF($C15=DM$11,1,0) -> 0 | DO15: =IF($C15=DO$11,1,0) -> 0 | DQ15: =IF($C15=DQ$11,1,0) -> 0 | DS15: =IF($C15=DS$11,1,0) -> 0 | DU15: =IF($C15=DU$11,1,0) -> 0 | DW15: =IF($C15=DW$11,1,0) -> 0 | DY15: =IF($C15=DY$11,1,0) -> 0 | EA15: =IF($C15=EA$11,1,0) -> 0 | EC15: =IF($C15=EC$11,1,0) -> 0 | EE15: =IF($C15=EE$11,1,0) -> 0
D16: =HLOOKUP($C16,'Dados Gerais'!$D$5:$BK$10,6) ->  | E16: =HLOOKUP($C16,'Dados Gerais'!$D$5:$BK$14,10) ->  | Q16: =IF($C16=Q$11,1,0) -> 0 | S16: =IF($C16=S$11,1,0) -> 0 | U16: =IF($C16=U$11,1,0) -> 0 | W16: =IF($C16=W$11,1,0) -> 0 | Y16: =IF($C16=Y$11,1,0) -> 0 | AA16: =IF($C16=AA$11,1,0) -> 0 | AC16: =IF($C16=AC$11,1,0) -> 0 | AE16: =IF($C16=AE$11,1,0) -> 0 | AG16: =IF($C16=AG$11,1,0) -> 0 | AI16: =IF($C16=AI$11,1,0) -> 0 | AK16: =IF($C16=AK$11,1,0) -> 0 | AM16: =IF($C16=AM$11,1,0) -> 0 | AO16: =IF($C16=AO$11,1,0) -> 0 | AQ16: =IF($C16=AQ$11,1,0) -> 0 | AS16: =IF($C16=AS$11,1,0) -> 0 | AU16: =IF($C16=AU$11,1,0) -> 0 | AW16: =IF($C16=AW$11,1,0) -> 0 | AY16: =IF($C16=AY$11,1,0) -> 0 | BA16: =IF($C16=BA$11,1,0) -> 0 | BC16: =IF($C16=BC$11,1,0) -> 0 | BE16: =IF($C16=BE$11,1,0) -> 0 | BG16: =IF($C16=BG$11,1,0) -> 0 | BI16: =IF($C16=BI$11,1,0) -> 0 | BK16: =IF($C16=BK$11,1,0) -> 0 | BM16: =IF($C16=BM$11,1,0) -> 0 | BO16: =IF($C16=BO$11,1,0) -> 0 | BQ16: =IF($C16=BQ$11,1,0) -> 0 | BS16: =IF($C16=BS$11,1,0) -> 0 | BU16: =IF($C16=BU$11,1,0) -> 0 | BW16: =IF($C16=BW$11,1,0) -> 0 | BY16: =IF($C16=BY$11,1,0) -> 0 | CA16: =IF($C16=CA$11,1,0) -> 0 | CC16: =IF($C16=CC$11,1,0) -> 0 | CE16: =IF($C16=CE$11,1,0) -> 0 | CG16: =IF($C16=CG$11,1,0) -> 0 | CI16: =IF($C16=CI$11,1,0) -> 0 | CK16: =IF($C16=CK$11,1,0) -> 0 | CM16: =IF($C16=CM$11,1,0) -> 0 | CO16: =IF($C16=CO$11,1,0) -> 0 | CQ16: =IF($C16=CQ$11,1,0) -> 0 | CS16: =IF($C16=CS$11,1,0) -> 0 | CU16: =IF($C16=CU$11,1,0) -> 0 | CW16: =IF($C16=CW$11,1,0) -> 0 | CY16: =IF($C16=CY$11,1,0) -> 0 | DA16: =IF($C16=DA$11,1,0) -> 0 | DC16: =IF($C16=DC$11,1,0) -> 0 | DE16: =IF($C16=DE$11,1,0) -> 0 | DG16: =IF($C16=DG$11,1,0) -> 0 | DI16: =IF($C16=DI$11,1,0) -> 0 | DK16: =IF($C16=DK$11,1,0) -> 0 | DM16: =IF($C16=DM$11,1,0) -> 0 | DO16: =IF($C16=DO$11,1,0) -> 0 | DQ16: =IF($C16=DQ$11,1,0) -> 0 | DS16: =IF($C16=DS$11,1,0) -> 0 | DU16: =IF($C16=DU$11,1,0) -> 0 | DW16: =IF($C16=DW$11,1,0) -> 0 | DY16: =IF($C16=DY$11,1,0) -> 0 | EA16: =IF($C16=EA$11,1,0) -> 0 | EC16: =IF($C16=EC$11,1,0) -> 0 | EE16: =IF($C16=EE$11,1,0) -> 0
Q17: =IF($C17=Q$11,1,0) -> 0 | S17: =IF($C17=S$11,1,0) -> 0 | U17: =IF($C17=U$11,1,0) -> 0 | W17: =IF($C17=W$11,1,0) -> 0 | Y17: =IF($C17=Y$11,1,0) -> 0 | AA17: =IF($C17=AA$11,1,0) -> 0 | AC17: =IF($C17=AC$11,1,0) -> 0 | AE17: =IF($C17=AE$11,1,0) -> 0 | AG17: =IF($C17=AG$11,1,0) -> 0 | AI17: =IF($C17=AI$11,1,0) -> 0 | AK17: =IF($C17=AK$11,1,0) -> 0 | AM17: =IF($C17=AM$11,1,0) -> 0 | AO17: =IF($C17=AO$11,1,0) -> 0 | AQ17: =IF($C17=AQ$11,1,0) -> 0 | AS17: =IF($C17=AS$11,1,0) -> 0 | AU17: =IF($C17=AU$11,1,0) -> 0 | AW17: =IF($C17=AW$11,1,0) -> 0 | AY17: =IF($C17=AY$11,1,0) -> 0 | BA17: =IF($C17=BA$11,1,0) -> 0 | BC17: =IF($C17=BC$11,1,0) -> 0 | BE17: =IF($C17=BE$11,1,0) -> 0 | BG17: =IF($C17=BG$11,1,0) -> 0 | BI17: =IF($C17=BI$11,1,0) -> 0 | BK17: =IF($C17=BK$11,1,0) -> 0 | BM17: =IF($C17=BM$11,1,0) -> 0 | BO17: =IF($C17=BO$11,1,0) -> 0 | BQ17: =IF($C17=BQ$11,1,0) -> 0 | BS17: =IF($C17=BS$11,1,0) -> 0 | BU17: =IF($C17=BU$11,1,0) -> 0 | BW17: =IF($C17=BW$11,1,0) -> 0 | BY17: =IF($C17=BY$11,1,0) -> 0 | CA17: =IF($C17=CA$11,1,0) -> 0 | CC17: =IF($C17=CC$11,1,0) -> 0 | CE17: =IF($C17=CE$11,1,0) -> 0 | CG17: =IF($C17=CG$11,1,0) -> 0 | CI17: =IF($C17=CI$11,1,0) -> 0 | CK17: =IF($C17=CK$11,1,0) -> 0 | CM17: =IF($C17=CM$11,1,0) -> 0 | CO17: =IF($C17=CO$11,1,0) -> 0 | CQ17: =IF($C17=CQ$11,1,0) -> 0 | CS17: =IF($C17=CS$11,1,0) -> 0 | CU17: =IF($C17=CU$11,1,0) -> 0 | CW17: =IF($C17=CW$11,1,0) -> 0 | CY17: =IF($C17=CY$11,1,0) -> 0 | DA17: =IF($C17=DA$11,1,0) -> 0 | DC17: =IF($C17=DC$11,1,0) -> 0 | DE17: =IF($C17=DE$11,1,0) -> 0 | DG17: =IF($C17=DG$11,1,0) -> 0 | DI17: =IF($C17=DI$11,1,0) -> 0 | DK17: =IF($C17=DK$11,1,0) -> 0 | DM17: =IF($C17=DM$11,1,0) -> 0 | DO17: =IF($C17=DO$11,1,0) -> 0 | DQ17: =IF($C17=DQ$11,1,0) -> 0 | DS17: =IF($C17=DS$11,1,0) -> 0 | DU17: =IF($C17=DU$11,1,0) -> 0 | DW17: =IF($C17=DW$11,1,0) -> 0 | DY17: =IF($C17=DY$11,1,0) -> 0 | EA17: =IF($C17=EA$11,1,0) -> 0 | EC17: =IF($C17=EC$11,1,0) -> 0 | EE17: =IF($C17=EE$11,1,0) -> 0
C19: PAGAMENTO DA DEPRECIAÇÃO
C20: ITEM | D20: DESCRIÇÃO | E20: QUANT ANUAL | F20: CONTA SIAFI | G20: VALOR DE AQ. | H20: % RESIDUAL | I20: VIDA ÚTIL | J20: DEP. MENSAL | K20: CUSTO TOTAL | L20: BDI (%) | M20: PREÇO TOTAL | N20: FONTE | O20: REFERÊNCIA
J22: =G22*(1-H22)/(I22*12) ->  | K22: =J22*E22 ->  | L22: =BDI!E26 -> 0.2715 | M22: =ROUND(K22*(1+L22),2) ->  | N22: COTAÇÃO
C25: PAGAMENTO DA MANUTENÇÃO
C26: ITEM | D26: DESCRIÇÃO | H26: K (calculado) | I26: MENSAL DEPR. | J26: % MAN X DEP | K26: MENSAL MAN. | L26: BDI (%) | M26: PREÇO TOTAL
H28: =H35 -> 0.2395008 | I28: =M22 ->  | J28: =H28 -> 0.2395008 | K28: =I28*H28 ->  | L28: =L22 -> 0.2715 | M28: =ROUND(K28*(1+L28),2) -> 
E30: K1 | F30: K2 | G30: K3 | H30: K4
E31: 1 | F31: 1 | G31: 0.8 | H31: 0.8
E32: K5 | F32: K6 | G32: K7 | H32: K8
E33: 1 | F33: 0.6 | G33: 0.5 | H33: 1.1
E34: K9 | F34: K10 | G34: K11 | H34: RESULTADO
D35: * a descrição de cada coeficiente segue abaixo | E35: 0.9 | F35: 0.9 | G35: 1.4 | H35: =E31*F31*G31*H31*E33*F33*G33*H33*E35*F35*G35 -> 0.2395008
C38: MATERIAL DE CONSUMO ASSOCIADO
C39: ITEM | D39: DESCRIÇÃO | H39: QUANTID/ANO | I39: UNIDADE | J39: VALOR DE AQ. | K39: MENSAL MAT | L39: BDI (%) | M39: PREÇO TOTAL
K41: =J41*H41/12 -> 0 | L41: =L28 -> 0.2715 | M41: =ROUND(K41*(1+L41),2) -> 0
C44: MATERIAL DE CONSUMO ASSOCIADO
C45: ITEM | D45: DESCRIÇÃO | M45: PREÇO TOTAL
C47: 1 | D47: Componente DEPRECIAÇÃO - POR POSTO | M47: =M22 -> 
C48: 2 | D48: Componente MANUTENÇÃO - POR POSTO | M48: =M28 -> 
C49: 3 | D49: Componente MATERIAL DE CONSUMO ASSOCIADO - POR POSTO | M49: =M41 -> 0
L51: SOMATÓRIO TOTAL MENSAL - POR POSTO | M51: =SUM(M46:M50) ->  | R51: =IF(SUM(Q$15:Q$17)>0,$M51,0) -> 0 | T51: =IF(SUM(S$15:S$17)>0,$M51,0) -> 0 | V51: =IF(SUM(U$15:U$17)>0,$M51,0) -> 0 | X51: =IF(SUM(W$15:W$17)>0,$M51,0) -> 0 | Z51: =IF(SUM(Y$15:Y$17)>0,$M51,0) -> 0 | AB51: =IF(SUM(AA$15:AA$17)>0,$M51,0) -> 0 | AD51: =IF(SUM(AC$15:AC$17)>0,$M51,0) -> 0 | AF51: =IF(SUM(AE$15:AE$17)>0,$M51,0) -> 0 | AH51: =IF(SUM(AG$15:AG$17)>0,$M51,0) -> 0 | AJ51: =IF(SUM(AI$15:AI$17)>0,$M51,0) -> 0 | AL51: =IF(SUM(AK$15:AK$17)>0,$M51,0) -> 0 | AN51: =IF(SUM(AM$15:AM$17)>0,$M51,0) -> 0 | AP51: =IF(SUM(AO$15:AO$17)>0,$M51,0) -> 0 | AR51: =IF(SUM(AQ$15:AQ$17)>0,$M51,0) -> 0 | AT51: =IF(SUM(AS$15:AS$17)>0,$M51,0) -> 0 | AV51: =IF(SUM(AU$15:AU$17)>0,$M51,0) -> 0 | AX51: =IF(SUM(AW$15:AW$17)>0,$M51,0) -> 0 | AZ51: =IF(SUM(AY$15:AY$17)>0,$M51,0) -> 0 | BB51: =IF(SUM(BA$15:BA$17)>0,$M51,0) -> 0 | BD51: =IF(SUM(BC$15:BC$17)>0,$M51,0) -> 0 | BF51: =IF(SUM(BE$15:BE$17)>0,$M51,0) -> 0 | BH51: =IF(SUM(BG$15:BG$17)>0,$M51,0) -> 0 | BJ51: =IF(SUM(BI$15:BI$17)>0,$M51,0) -> 0 | BL51: =IF(SUM(BK$15:BK$17)>0,$M51,0) -> 0 | BN51: =IF(SUM(BM$15:BM$17)>0,$M51,0) -> 0 | BP51: =IF(SUM(BO$15:BO$17)>0,$M51,0) -> 0 | BR51: =IF(SUM(BQ$15:BQ$17)>0,$M51,0) -> 0 | BT51: =IF(SUM(BS$15:BS$17)>0,$M51,0) -> 0 | BV51: =IF(SUM(BU$15:BU$17)>0,$M51,0) -> 0 | BX51: =IF(SUM(BW$15:BW$17)>0,$M51,0) -> 0 | BZ51: =IF(SUM(BY$15:BY$17)>0,$M51,0) -> 0 | CB51: =IF(SUM(CA$15:CA$17)>0,$M51,0) -> 0 | CD51: =IF(SUM(CC$15:CC$17)>0,$M51,0) -> 0 | CF51: =IF(SUM(CE$15:CE$17)>0,$M51,0) -> 0 | CH51: =IF(SUM(CG$15:CG$17)>0,$M51,0) -> 0 | CJ51: =IF(SUM(CI$15:CI$17)>0,$M51,0) -> 0 | CL51: =IF(SUM(CK$15:CK$17)>0,$M51,0) -> 0 | CN51: =IF(SUM(CM$15:CM$17)>0,$M51,0) -> 0 | CP51: =IF(SUM(CO$15:CO$17)>0,$M51,0) -> 0 | CR51: =IF(SUM(CQ$15:CQ$17)>0,$M51,0) -> 0 | CT51: =IF(SUM(CS$15:CS$17)>0,$M51,0) -> 0 | CV51: =IF(SUM(CU$15:CU$17)>0,$M51,0) -> 0 | CX51: =IF(SUM(CW$15:CW$17)>0,$M51,0) -> 0 | CZ51: =IF(SUM(CY$15:CY$17)>0,$M51,0) -> 0 | DB51: =IF(SUM(DA$15:DA$17)>0,$M51,0) -> 0 | DD51: =IF(SUM(DC$15:DC$17)>0,$M51,0) -> 0 | DF51: =IF(SUM(DE$15:DE$17)>0,$M51,0) -> 0 | DH51: =IF(SUM(DG$15:DG$17)>0,$M51,0) -> 0 | DJ51: =IF(SUM(DI$15:DI$17)>0,$M51,0) -> 0 | DL51: =IF(SUM(DK$15:DK$17)>0,$M51,0) -> 0 | DN51: =IF(SUM(DM$15:DM$17)>0,$M51,0) -> 0 | DP51: =IF(SUM(DO$15:DO$17)>0,$M51,0) -> 0 | DR51: =IF(SUM(DQ$15:DQ$17)>0,$M51,0) -> 0 | DT51: =IF(SUM(DS$15:DS$17)>0,$M51,0) -> 0 | DV51: =IF(SUM(DU$15:DU$17)>0,$M51,0) -> 0 | DX51: =IF(SUM(DW$15:DW$17)>0,$M51,0) -> 0 | DZ51: =IF(SUM(DY$15:DY$17)>0,$M51,0) -> 0 | EB51: =IF(SUM(EA$15:EA$17)>0,$M51,0) -> 0 | ED51: =IF(SUM(EC$15:EC$17)>0,$M51,0) -> 0 | EF51: =IF(SUM(EE$15:EE$17)>0,$M51,0) -> 0
L52: SOMATÓRIO TOTAL ANUAL - POR POSTO | M52: =M51*12 -> 
C55: MATERIAL DE CONSUMO ASSOCIADO
C56: MEMÓRIA DE CÁLCULO DO COEFICIENTE DE CORRELAÇÃO MANUTENÇÃO X DEPRECIAÇÃO (K)
C58: JUSTIFICATIVAS | E58: TIPO | F58: K1 | H58: Condições de Trab | I58: K4 | K58: Tempo Vida (anos) | L58: K6 | N58: Temperatura | O58: K8
E59: Guindaste | F59: 0.5 | H59: Em espera | I59: 0.4 | K59: 1 | L59: 0.6 | N59: Muito quente (> 40º C) | O59: 1.3
C60: K1 | D60: Arbitrado 1 | E60: Caminhão-comum | F60: 0.8 | H60: Leves | I60: 0.8 | K60: 2 | L60: 0.7 | N60: Quente (30º a 40º C) | O60: 1.1
C61: K2 | D61: Considerado o operador médio | E61: Fora-de-estrada | F61: 1 | H61: Médias | I61: 1 | K61: 3 | L61: 0.8 | N61: Médio (10º a 30º C) | O61: 1
C62: K3 | D62: Consideradas ferramentas de primeira qualidade | E62: Carregadeira | F62: 1 | H62: Pesadas | I62: 1.4 | K62: 4 | L62: 0.9 | N62: Frio (< 10º C) | O62: 1.2
C63: K4 | D63: Consições leves | E63: Escavadeira | F63: 1.4 | H63: Severas | I63: 2 | K63: 5 | L63: 1
C64: K5 | D64: Considerando manutenção normal | E64: Motoescrêiper | F64: 1.1 | K64: 6 | L64: 1 | N64: Ritmo de Trabalho | O64: K9
C65: K6 | D65: Equipamentos novos | E65: Trator de esteira | F65: 1.2 | H65: Manutenção | I65: K5 | K65: 7 | L65: 1 | N65: Folgado | O65: 0.9
C66: K7 | D66: 220h por mês, 252 dias por ano | H66: Excelente | I66: 0.6 | K66: 8 | L66: 1.2 | N66: Médio | O66: 1
C67: K8 | D67: Clima quente, acima de 30º C | E67: Qualid do Operador | F67: K2 | H67: Boa | I67: 0.8 | K67: 9 | L67: 1.3 | N67: Com pressa | O67: 1.5
C68: K9 | D68: Ritmo de trabalho usualmente folgado | E68: Excelente | F68: 0.8 | H68: Média | I68: 1 | K68: 10 | L68: 1.4
C69: K10 | D69: Considerado o operador médio | E69: Boa | F69: 0.9 | H69: Ruim | I69: 1.5 | K69: 11 | L69: 2 | N69: Conh do Serviço | O69: K10
C70: K11 | D70: Foi considerada a opção de aluguel a terceiros, ainda que a simulação seja dos custos do contratado, contudo a execução dos serviços é em local de terceiros | E70: Média | F70: 1 | H70: Inexistente | I70: 3 | K70: 15 | L70: 2 | N70: Grande | O70: 0.8
E71: Ruim | F71: 1.2 | N71: Médio | O71: 0.9
E72: Péssima | F72: 2 | H72: Horas de Uso | I72: K7 | J72: 6000 | K72: 1 | N72: Pouco | O72: 1
H73: 1000 | I73: 0.5 | J73: 8000 | K73: 1.3
E74: Qualidade do Equip | F74: K3 | H74: 2000 | I74: 0.5 | J74: 10000 | K74: 1.6 | N74: Tipo do Serviço | O74: K11
E75: De primeira | F75: 0.8 | H75: 3000 | I75: 0.6 | J75: 12000 | K75: 1.9 | N75: Mina ou Pedreira | O75: 0.8
E76: Média | F76: 1 | H76: 4000 | I76: 0.7 | J76: 15000 | K76: 2.3 | N76: Construção Geral | O76: 1
E77: Ruim | F77: 1.5 | H77: 5000 | I77: 0.9 | J77: 20000 | K77: 3 | N77: Aluguel a Terceiros | O77: 1.4
E79: Fonte:
E80: MATTOS, Aldo Dórea. Como preparar orçamentos de obras. São Paulo: Pini, 2006. 281 p., il

Sheet Não Rel - Depr (hidden)
B4: EQUIPAMENTOS NÃO RELACIONADOS DIRETAMENTE A UM POSTO DE TRABALHO - PAGAMENTO DA DEPRECIAÇÃO / MANUTENÇÃO
C7: PAGAMENTO DA DEPRECIAÇÃO
C8: ITEM | D8: DESCRIÇÃO | E8: QUANT ANUAL | F8: CONTA SIAFI | G8: VALOR DE AQ. | H8: % RESIDUAL | I8: VIDA ÚTIL | J8: DEP. MENSAL | K8: CUSTO TOTAL | L8: BDI (%) | M8: PREÇO TOTAL | N8: FONTE | O8: REFERÊNCIA
C10: 1 | D10: Adaptador tipo engate rápido de metal 2” (Ref. Jacuzzi) | E10: 2 | F10: 12311.01.25 | H10: 0.1 | I10: 10 | J10: =G10*(1-H10)/(I10*12) -> 0 | K10: =J10*E10 -> 0 | L10: =BDI!$E$26 -> 0.2715 | M10: =ROUND(K10*(1+L10),2) -> 0 | N10: COTAÇÃO
C11: 2 | D11: Adaptador tipo engate rápido de metal 1 1/2” (Ref. Jacuzzi ) | E11: 2 | F11: 12311.01.25 | H11: 0.1 | I11: 10 | J11: 0 | K11: 0 | L11: =BDI!$E$26 -> 0.2715 | M11: 0 | N11: COTAÇÃO
C12: 3 | D12: Aspirador doméstico pequeno (ref. Eletrolux GT 2200 ou Leo da Soteco 12000 W) | E12: 4 | F12: 12311.01.25 | H12: 0.1 | I12: 10 | J12: 0 | K12: 0 | L12: =BDI!$E$26 -> 0.2715 | M12: 0 | N12: COTAÇÃO
C13: 4 | D13: Aspirador com elemento filtrante a base de combinação do separador com água (Ref. Pró-Áqua) | E13: 6 | F13: 12311.01.25 | H13: 0.1 | I13: 10 | J13: 0 | K13: 0 | L13: =BDI!$E$26 -> 0.2715 | M13: 0 | N13: COTAÇÃO
C14: 5 | D14: Aspirador industrial água e pó (ref. Eletrolux GT 3000 PRO ou A280 da Soteco) | E14: 11 | F14: 12311.01.25 | H14: 0.1 | I14: 10 | J14: 0 | K14: 0 | L14: =BDI!$E$26 -> 0.2715 | M14: 0 | N14: COTAÇÃO
C15: 6 | D15: Aspirador olímpico para piscina (Ref. Modelo VB –600 em bronze) | E15: 2 | F15: 12311.01.25 | H15: 0.1 | I15: 10 | J15: 0 | K15: 0 | L15: =BDI!$E$26 -> 0.2715 | M15: 0 | N15: COTAÇÃO
C16: 7 | D16: Cabo Extensor 06 metros, telescópico (ref. Braslimpia EX 600) | E16: 2 | F16: 12311.01.25 | H16: 0.1 | I16: 10 | J16: 0 | K16: 0 | L16: =BDI!$E$26 -> 0.2715 | M16: 0 | N16: COTAÇÃO
C17: 8 | D17: Carrinho funcional para limpeza, com sacos para reposição (ref. TTS 380 S, completo ou Tomki 1021) | E17: 6 | F17: 12311.01.25 | H17: 0.1 | I17: 10 | J17: 0 | K17: 0 | L17: =BDI!$E$26 -> 0.2715 | M17: 0 | N17: COTAÇÃO
C18: 9 | D18: Carro contêiner para coleta de lixo cap. 120 litros, c/ 02 rodízios pneumáticos (ref. Soluvan ou Contenur ou rubbermaid ou fiberglass ou outro de desempenho e qualidade similar ou superior) | E18: 7 | F18: 12311.01.25 | H18: 0.1 | I18: 10 | J18: 0 | K18: 0 | L18: =BDI!$E$26 -> 0.2715 | M18: 0 | N18: COTAÇÃO
C19: 10 | D19: Carro Container p/ Coleta de Lixo cap. 600 litros com 02 rodízios pneumáticos (Ref. Soluvam-Contenur- Rubbermaid - Fiberglass) | E19: 7 | F19: 12311.01.25 | H19: 0.1 | I19: 10 | J19: 0 | K19: 0 | L19: =BDI!$E$26 -> 0.2715 | M19: 0 | N19: COTAÇÃO
C20: 11 | D20: Conjunto motobomba, sucção, saída 2”, motor 1 ½” HP, trifásico, autoescovante (Ref. Mark) | E20: 2 | F20: 12311.01.25 | H20: 0.1 | I20: 10 | J20: 0 | K20: 0 | L20: =BDI!$E$26 -> 0.2715 | M20: 0 | N20: COTAÇÃO
C21: 12 | D21: Enceradeira industrial média 410 mm (ref. Bandeirante, Karcher, ou Cleaner) | E21: 15 | F21: 12311.01.25 | H21: 0.1 | I21: 10 | J21: =G21*(1-H21)/(I21*12) -> 0 | K21: =J21*E21 -> 0 | L21: =BDI!$E$26 -> 0.2715 | M21: =ROUND(K21*(1+L21),2) -> 0 | N21: COTAÇÃO
C22: 13 | D22: Enceradeira industrial grande 510 mm (ref. Bandeirante, Karcher,ou Cleaner) | E22: 5 | F22: 12311.01.25 | H22: 0.1 | I22: 10 | J22: 0 | K22: 0 | L22: =BDI!$E$26 -> 0.2715 | M22: 0 | N22: COTAÇÃO
C23: 14 | D23: Escada em alumínio com 06 degraus (ref Aluleve ou Artfactory) | E23: 8 | F23: 12311.01.25 | H23: 0.1 | I23: 10 | J23: 0 | K23: 0 | L23: =BDI!$E$26 -> 0.2715 | M23: 0 | N23: COTAÇÃO
C24: 15 | D24: Escada em alumínio com 16 degraus (ref. Aluleve ou Artfactory) | E24: 1 | F24: 12311.01.25 | H24: 0.1 | I24: 10 | J24: 0 | K24: 0 | L24: =BDI!$E$26 -> 0.2715 | M24: 0 | N24: COTAÇÃO
C25: 16 | D25: Escada extensiva em alumínio 11 degraus | E25: 1 | F25: 12311.01.25 | H25: 0.1 | I25: 10 | J25: 0 | K25: 0 | L25: =BDI!$E$26 -> 0.2715 | M25: 0 | N25: COTAÇÃO
C26: 17 | D26: Mini Kit Limpa-vidros combinado com guia removível, raspadores, luvas para lavagem e cabos de alumínio montáveis (ref. Bralimpia KT 900) | E26: 11 | F26: 12311.01.25 | H26: 0.1 | I26: 10 | J26: 0 | K26: 0 | L26: =BDI!$E$26 -> 0.2715 | M26: 0 | N26: COTAÇÃO
C27: 18 | D27: Lavadora de alta pressão (ref. Wap L2600 ou L2800 ou Eletrolux L2400) | E27: 2 | F27: 12311.01.25 | H27: 0.1 | I27: 10 | J27: 0 | K27: 0 | L27: =BDI!$E$26 -> 0.2715 | M27: 0 | N27: COTAÇÃO
C28: 19 | D28: Limpadora extratora para carpete (ref. Eletrolux Extracar 5002 Pro) | E28: 1 | F28: 12311.01.25 | H28: 0.1 | I28: 10 | J28: 0 | K28: 0 | L28: =BDI!$E$26 -> 0.2715 | M28: 0 | N28: COTAÇÃO
C29: 20 | D29: Lavadora e secadora automática de pisos, semi-tracionária, movida a bateria (ref. Plataforma LST-51B, Johnson Diversey Aquamat 45 ou Comac Simpla E/45B) | E29: 2 | F29: 12311.01.25 | H29: 0.1 | I29: 10 | J29: 0 | K29: 0 | L29: =BDI!$E$26 -> 0.2715 | M29: 0 | N29: COTAÇÃO
C30: 21 | D30: Limpadora a vapor de aquecimento rápido (ref. SKY VAP MAX ou Karcher) | E30: 8 | F30: 12311.01.25 | H30: 0.1 | I30: 10 | J30: 0 | K30: 0 | L30: =BDI!$E$26 -> 0.2715 | M30: 0 | N30: COTAÇÃO
C31: 22 | D31: Lavadora extratora para carpete tanque expansível 38 litros (ref. Tennant Lavadora 1240) | E31: 1 | F31: 12311.01.25 | H31: 0.1 | I31: 10 | J31: 0 | K31: 0 | L31: =BDI!$E$26 -> 0.2715 | M31: 0 | N31: COTAÇÃO
C32: 23 | D32: Lustradora Ultra Speed (ref. Platinum UHS 1600 da Plataforma) | E32: 4 | F32: 12311.01.25 | H32: 0.1 | I32: 10 | J32: 0 | K32: 0 | L32: =BDI!$E$26 -> 0.2715 | M32: 0 | N32: COTAÇÃO
C33: 24 | D33: Mangote flutuante 2”x25 metros (Ref. Jacuzzi) | E33: 8 | F33: 12311.01.25 | H33: 0.1 | I33: 10 | J33: 0 | K33: 0 | L33: =BDI!$E$26 -> 0.2715 | M33: 0 | N33: COTAÇÃO
C34: 25 | D34: Odorizador automático para sanitários, com refis e pilhas (ref. Columbus Brasil) | E34: 18 | F34: 12311.01.25 | H34: 0.1 | I34: 10 | J34: 0 | K34: 0 | L34: =BDI!$E$26 -> 0.2715 | M34: 0 | N34: COTAÇÃO
C35: 26 | D35: Odorizador de dispersão por gravidade para mictórios (ref. Columbus Brasil) | E35: 22 | F35: 12311.01.25 | H35: 0.1 | I35: 10 | J35: 0 | K35: 0 | L35: =BDI!$E$26 -> 0.2715 | M35: 0 | N35: COTAÇÃO
C36: 27 | D36: Rodo aspirador p/ pisos (ref. Floor VAC 1500 da Wap) | E36: 5 | F36: 12311.01.25 | H36: 0.1 | I36: 10 | J36: 0 | K36: 0 | L36: =BDI!$E$26 -> 0.2715 | M36: 0 | N36: COTAÇÃO
C37: 28 | D37: Varredora coletora para estacionamento (ref. Eureka Picobello 151 ou Karcher T500) | E37: 2 | F37: 12311.01.25 | H37: 0.1 | I37: 10 | J37: 0 | K37: 0 | L37: =BDI!$E$26 -> 0.2715 | M37: 0 | N37: COTAÇÃO
C40: PAGAMENTO DA MANUTENÇÃO
C41: ITEM | D41: DESCRIÇÃO | H41: K (calculado) | I41: MENSAL DEPR. | J41: % MAN X DEP | K41: MENSAL MAN. | L41: BDI (%) | M41: PREÇO TOTAL
H43: =H50 -> 0.424116 | I43: =SUM(M10:M37) -> 0 | J43: =H43 -> 0.424116 | K43: =I43*H43 -> 0 | L43: =BDI!E26 -> 0.2715 | M43: =ROUND(K43*(1+L43),2) -> 0
E45: K1 | F45: K2 | G45: K3 | H45: K4
E46: 0.85 | F46: 1 | G46: 0.8 | H46: 1
E47: K5 | F47: K6 | G47: K7 | H47: K8
E48: 1 | F48: 0.6 | G48: 0.5 | H48: 1.1
E49: K9 | F49: K10 | G49: K11 | H49: RESULTADO
D50: * a descrição de cada coeficiente segue abaixo | E50: 1.5 | F50: 0.9 | G50: 1.4 | H50: =E46*F46*G46*H46*E48*F48*G48*H48*E50*F50*G50 -> 0.424116
C53: MATERIAL DE CONSUMO ASSOCIADO
C54: ITEM | D54: DESCRIÇÃO | H54: QUANTID/ANO | I54: UNIDADE | J54: VALOR DE AQ. | K54: MENSAL MAT | L54: BDI (%) | M54: PREÇO TOTAL
K56: =J56*H56/12 -> 0 | L56: =BDI!E26 -> 0.2715 | M56: =ROUND(K56*(1+L56),2) -> 0
C59: MATERIAL DE CONSUMO ASSOCIADO
C60: ITEM | D60: DESCRIÇÃO | M60: PREÇO TOTAL
C62: 1 | D62: Componente DEPRECIAÇÃO | M62: =I43 -> 0
C63: 2 | D63: Componente MANUTENÇÃO | M63: =M43 -> 0
C64: 3 | D64: Componente MATERIAL DE CONSUMO ASSOCIADO | M64: =M56 -> 0
L66: SOMATÓRIO TOTAL MENSAL | M66: =SUM(M61:M65) -> 0
L67: SOMATÓRIO TOTAL ANUAL | M67: =M66*12 -> 0
C70: MATERIAL DE CONSUMO ASSOCIADO
C71: MEMÓRIA DE CÁLCULO DO COEFICIENTE DE CORRELAÇÃO MANUTENÇÃO X DEPRECIAÇÃO (K)
C73: JUSTIFICATIVAS | E73: TIPO | F73: K1 | H73: Condições de Trab | I73: K4 | K73: Tempo Vida (anos) | L73: K6 | N73: Temperatura | O73: K8
E74: Guindaste | F74: 0.5 | H74: Em espera | I74: 0.4 | K74: 1 | L74: 0.6 | N74: Muito quente (> 40º C) | O74: 1.3
C75: K1 | D75: Considerado o valor médio de 0,85 | E75: Caminhão-comum | F75: 0.8 | H75: Leves | I75: 0.8 | K75: 2 | L75: 0.7 | N75: Quente (30º a 40º C) | O75: 1.1
C76: K2 | D76: Considerado o operador médio | E76: Fora-de-estrada | F76: 1 | H76: Médias | I76: 1 | K76: 3 | L76: 0.8 | N76: Médio (10º a 30º C) | O76: 1
C77: K3 | D77: Consideradas ferramentas de primeira qualidade | E77: Carregadeira | F77: 1 | H77: Pesadas | I77: 1.4 | K77: 4 | L77: 0.9 | N77: Frio (< 10º C) | O77: 1.2
C78: K4 | D78: Há todo o tipo de trabalho, foi considerado o valor médio | E78: Escavadeira | F78: 1.4 | H78: Severas | I78: 2 | K78: 5 | L78: 1
C79: K5 | D79: Considerando manutenção normal | E79: Motoescrêiper | F79: 1.1 | K79: 6 | L79: 1 | N79: Ritmo de Trabalho | O79: K9
C80: K6 | D80: Equipamentos novos | E80: Trator de esteira | F80: 1.2 | H80: Manutenção | I80: K5 | K80: 7 | L80: 1 | N80: Folgado | O80: 0.9
C81: K7 | D81: 220h por mês, 252 dias por ano | H81: Excelente | I81: 0.6 | K81: 8 | L81: 1.2 | N81: Médio | O81: 1
C82: K8 | D82: Clima quente, acima de 30º C | E82: Qualid do Operador | F82: K2 | H82: Boa | I82: 0.8 | K82: 9 | L82: 1.3 | N82: Com pressa | O82: 1.5
C83: K9 | D83: Ritmo de trabalho usualmente com pressa | E83: Excelente | F83: 0.8 | H83: Média | I83: 1 | K83: 10 | L83: 1.4
C84: K10 | D84: Considerado o operador médio | E84: Boa | F84: 0.9 | H84: Ruim | I84: 1.5 | K84: 11 | L84: 2 | N84: Conh do Serviço | O84: K10
C85: K11 | D85: Foi considerada a opção de aluguel a terceiros, ainda que a simulação seja dos custos do contratado, contudo a execução dos serviços é em local de terceiros | E85: Média | F85: 1 | H85: Inexistente | I85: 3 | K85: 15 | L85: 2 | N85: Grande | O85: 0.8
E86: Ruim | F86: 1.2 | N86: Médio | O86: 0.9
E87: Péssima | F87: 2 | H87: Horas de Uso | I87: K7 | J87: 6000 | K87: 1 | N87: Pouco | O87: 1
H88: 1000 | I88: 0.5 | J88: 8000 | K88: 1.3
E89: Qualidade do Equip | F89: K3 | H89: 2000 | I89: 0.5 | J89: 10000 | K89: 1.6 | N89: Tipo do Serviço | O89: K11
E90: De primeira | F90: 0.8 | H90: 3000 | I90: 0.6 | J90: 12000 | K90: 1.9 | N90: Mina ou Pedreira | O90: 0.8
E91: Média | F91: 1 | H91: 4000 | I91: 0.7 | J91: 15000 | K91: 2.3 | N91: Construção Geral | O91: 1
E92: Ruim | F92: 1.5 | H92: 5000 | I92: 0.9 | J92: 20000 | K92: 3 | N92: Aluguel a Terceiros | O92: 1.4
E94: Fonte:
E95: MATTOS, Aldo Dórea. Como preparar orçamentos de obras. São Paulo: Pini, 2006. 281 p., il

Sheet Não Rel - Mat Consumo (hidden)
B4: MATERIAIS NÃO RELACIONADOS DIRETAMENTE A UM POSTO DE TRABALHO - AQUISIÇÃO SOB DEMANDA
C7: ITEM | D7: CÓDIGO | E7: DESCRIÇÃO | F7: QUANT MENSAL | G7: QUANT ANUAL | H7: UNIDADE | I7: CUSTO UNITÁRIO | J7: CUSTO TOTAL | K7: BDI (%) | L7: PREÇO TOTAL | M7: FONTE | N7: REFERÊNCIA
C9: 1 | E9: Água Sanitária | F9: 210 | G9: =F9*12 -> 2520 | H9: Litros | J9: =I9*G9 -> 0 | K9: =BDI!E26 -> 0.2715 | L9: =ROUND(J9*(1+K9),2) -> 0 | M9: Cotação
C10: 2 | E10: Álcool gel teor 70% para assepsia das mãos (ref. Prolink) | F10: 90 | G10: =F10*12 -> 1080 | H10: Refil | J10: =I10*G10 -> 0 | K10: =K9 -> 0.2715 | L10: =ROUND(J10*(1+K10),2) -> 0 | M10: Cotação
C11: 3 | E11: Álcool líquido teor 70% para desinfecção | F11: 180 | G11: 2160 | H11: Litros | J11: 0 | K11: =K10 -> 0.2715 | L11: 0 | M11: Cotação
C12: 4 | E12: Álcool isopropíllico | F12: 40 | G12: 480 | H12: Litros | J12: 0 | K12: 0.2715 | L12: 0 | M12: Cotação
C13: 5 | E13: Cera Líquida Incolor concentrada, diluição 1/10 ref. Audax | F13: 5 | G13: 60 | H13: Litros | J13: 0 | K13: 0.2715 | L13: 0 | M13: Cotação
C14: 6 | E14: Cera Impermeabilizante Acrílico (ref. Traffic, fabric. Johnson Diversey) Gl 5L | F14: 30 | G14: 360 | H14: Galão | J14: 0 | K14: 0.2715 | L14: 0 | M14: Cotação
C15: 7 | E15: Cloro granulado 10 Kg | F15: 12 | G15: 144 | H15: Balde 10 kg | J15: 0 | K15: 0.2715 | L15: 0 | M15: Cotação
C16: 8 | E16: Desinfetante líquido neutro (referência Vero Plus, diluição 1/100) 5 L | F16: 25 | G16: 300 | H16: Galão | J16: 0 | K16: 0.2715 | L16: 0 | M16: Cotação
C17: 9 | E17: Desodorizante (ref. Bom Ar) 360 ml | F17: 30 | G17: 360 | H17: Frasco | J17: 0 | K17: 0.2715 | L17: 0 | M17: Cotação
C18: 10 | E18: Detergente líquido neutro (ref. Bryo Plus, diluição 1/100) 5 L | F18: 25 | G18: 300 | H18: Galão | J18: 0 | K18: 0.2715 | L18: 0 | M18: Cotação
C19: 11 | E19: Disco para enceradeira restaurador para mármore 510mm, Cor roxo. (ref: 3M) | F19: 4 | G19: 48 | H19: Unidade | J19: 0 | K19: 0.2715 | L19: 0 | M19: Cotação
C20: 12 | E20: Disco p/ Polidora High Speed, polidor, para retirada de marcas, de fibra natural, 510 mm (ref. 3M - pêlo de porco – restaurador) | F20: 25 | G20: 300 | H20: Unidade | J20: 0 | K20: 0.2715 | L20: 0 | M20: Cotação
C21: 13 | E21: Disco para enceradeira restaurador para mármore diamante ref. 3M, cor roxo - 410 mm | F21: 4 | G21: 48 | H21: Unidade | J21: 0 | K21: 0.2715 | L21: 0 | M21: Cotação
C22: 14 | E22: Disco Removível para enceradeira, 410mm preto, verde, vermelho, amarelo ou branco (ref. 3M) | F22: 45 | G22: 540 | H22: Unidade | J22: 0 | K22: 0.2715 | L22: 0 | M22: Cotação
C23: 15 | E23: Disco Removível para enceradeira, 510mm, preto, verde, vermelho, amarelo ou branco (ref. 3M) | F23: 15 | G23: 180 | H23: Unidade | J23: 0 | K23: 0.2715 | L23: 0 | M23: Cotação
C24: 16 | E24: Escova de Nylon Multiuso Manual, 13 x 6,5 cm, fibras de aproximadamente 2,5 cm | F24: 20 | G24: 240 | H24: Unidade | J24: 0 | K24: 0.2715 | L24: 0 | M24: Cotação
C25: 17 | E25: Esponja Dupla Face (ref 3M) | F25: 140 | G25: 1680 | H25: Unidade | J25: 0 | K25: 0.2715 | L25: 0 | M25: Cotação
C26: 18 | E26: Flanela em Peça, 40x60 cm (ref. Copa Limpa) | F26: 80 | G26: 960 | H26: Unidade | J26: 0 | K26: 0.2715 | L26: 0 | M26: Cotação
C27: 19 | E27: Esponja de Aço 60g (ref. Bombril, Assolan) | F27: 38 | G27: 456 | H27: Unidade | J27: 0 | K27: 0.2715 | L27: 0 | M27: Cotação
C28: 20 | E28: Fita dupla face de silicone para instalação, largura de 19 mm, rolo com 20 metros (ref. 3M) | F28: 12 | G28: 144 | H28: Rolo | J28: 0 | K28: 0.2715 | L28: 0 | M28: Cotação
C29: 21 | E29: Limpa Carpete diluível 1/20 (Ref. Briosol, Zap ou Girassol) | F29: 20 | G29: 240 | H29: Litros | J29: 0 | K29: 0.2715 | L29: 0 | M29: Cotação
C30: 22 | E30: Limpador para superfície Inox em Spray à base de óleo mineral e emulsão de silicone (ref. 3M) Frasco 500 ml | F30: 10 | G30: 120 | H30: Frasco | J30: 0 | K30: 0.2715 | L30: 0 | M30: Cotação
C31: 23 | E31: Limpa Vidro (Ref. Start) 500 ml | F31: 60 | G31: 720 | H31: Unidade | J31: 0 | K31: 0.2715 | L31: 0 | M31: Cotação
C32: 24 | E32: Lustra Móveis (Ref. Worker) 250 ml | F32: 150 | G32: 1800 | H32: Unidade | J32: 0 | K32: 0.2715 | L32: 0 | M32: Cotação
C33: 25 | E33: Limpador Multi-Uso diluível 1/20 (Ref. Ajax Fresh) 500 ml | F33: 180 | G33: 2160 | H33: Unidade | J33: 0 | K33: 0.2715 | L33: 0 | M33: Cotação
C34: 26 | E34: Papel higiênico Interfolhado - caixa com 12.000 folhas, folha dupla, tamanho 21,6 x 11,00 cm (ref. Inovatta) | F34: 130 | G34: 1560 | H34: Caixa | J34: 0 | K34: 0.2715 | L34: 0 | M34: Cotação
C35: 27 | E35: Papel toalha interfolhado, caixa com 2.400 folhas, folha dupla, tamanho 23 x 20 cm (ref. Inovatta, Fabric ou Santher) | F35: 700 | G35: 8400 | H35: Caixa | J35: 0 | K35: 0.2715 | L35: 0 | M35: Cotação
C36: 28 | E36: Removedor p/ piso Impermeabilizado (ref. Jato da Johnson, Diversey, Start) 5 L | F36: 25 | G36: 300 | H36: Galão | J36: 0 | K36: 0.2715 | L36: 0 | M36: Cotação
C37: 29 | E37: Restaurador p/ piso Impermeabilizado (Sistema Metalic 100 UHS, diluível 1/8 até 1/20, fabric. Indeba) | F37: 7 | G37: 84 | H37: Galão | J37: 0 | K37: 0.2715 | L37: 0 | M37: Cotação
C38: 30 | E38: Sabão de Coco 100 gramas (ref. Minuano) 5 unid | F38: 40 | G38: 480 | H38: Pacote | J38: 0 | K38: 0.2715 | L38: 0 | M38: Cotação
C39: 31 | E39: Sabão em pó cx 1 Kg | F39: 5 | G39: 60 | H39: Caixa | J39: 0 | K39: 0.2715 | L39: 0 | M39: Cotação
C40: 32 | E40: Sabonete líquido Nobla 5 litros ref. Johnson Diversey | F40: 40 | G40: 480 | H40: Galão | J40: 0 | K40: 0.2715 | L40: 0 | M40: Cotação
C41: 33 | E41: Saco de Pano para Limpeza, tamanho 1,00 x 0,60 m (ref. Star Têxtil) | F41: 170 | G41: 2040 | H41: Unidade | J41: 0 | K41: 0.2715 | L41: 0 | M41: Cotação
C42: 34 | E42: Saco plástico p/ lixo 100 litros azul | F42: 7000 | G42: 84000 | H42: Unidade | J42: =I42*G42 -> 0 | K42: 0.2715 | L42: =ROUND(J42*(1+K42),2) -> 0 | M42: Cotação
C43: 35 | E43: Saco plástico p/ lixo 100 litros vermelho | F43: 7000 | G43: 84000 | H43: Unidade | J43: 0 | K43: 0.2715 | L43: 0 | M43: Cotação
C44: 36 | E44: Saco plástico p/ lixo 100 litros preto | F44: 9000 | G44: 108000 | H44: Unidade | J44: 0 | K44: 0.2715 | L44: 0 | M44: Cotação
C45: 37 | E45: Saco plástico azul para lixo 40 litros | F45: 3000 | G45: 36000 | H45: Unidade | J45: 0 | K45: 0.2715 | L45: 0 | M45: Cotação
C46: 38 | E46: Saco plástico p/ lixo 40 litros vermelho | F46: 3000 | G46: 36000 | H46: Unidade | J46: 0 | K46: 0.2715 | L46: 0 | M46: Cotação
C47: 39 | E47: Saco plástico p/ lixo 40 litros preto | F47: 3000 | G47: 36000 | H47: Unidade | J47: 0 | K47: 0.2715 | L47: 0 | M47: Cotação
K49: SOMATÓRIO TOTAL MENSAL | L49: =L50/12 -> 0
K50: SOMATÓRIO TOTAL ANUAL | L50: =SUM(L8:L48) -> 0

Sheet Não Rel - Mat Cons Durável (hidden)
B4: MATERIAIS DE CONSUMO PERMANENTE NÃO RELACIONADOS DIRETAMENTE A UM POSTO DE TRABALHO - AQUISIÇÃO SOB DEMANDA
C7: ITEM | D7: CÓDIGO | E7: DESCRIÇÃO | F7: ESTOQUE INICIAL | G7: QUANT ANUAL | H7: UNIDADE | I7: CUSTO UNITÁRIO | J7: CUSTO TOTAL | K7: BDI (%) | L7: PREÇO TOTAL | M7: FONTE | N7: REFERÊNCIA
C9: 1 | E9: Balde Plástico 12 Litros | F9: 60 | G9: 180 | H9: Unidade | J9: =I9*G9 -> 0 | K9: =BDI!E26 -> 0.2715 | L9: =ROUND(J9*(1+K9),2) -> 0 | M9: Cotação
C10: 2 | E10: Balde Plástico 20 Litros | F10: 30 | G10: 85 | H10: Unidade | J10: =I10*G10 -> 0 | K10: =K9 -> 0.2715 | L10: =ROUND(J10*(1+K10),2) -> 0 | M10: Cotação
C11: 3 | E11: Balde Plástico 60 Litros | F11: 5 | G11: 5 | H11: Unidade | J11: 0 | K11: =K10 -> 0.2715 | L11: 0 | M11: Cotação
C12: 4 | E12: Cabo anti-chamas 4x 6 mm² | F12: 200 | G12: 200 | H12: Metro | J12: 0 | K12: 0.2715 | L12: 0 | M12: Cotação
C13: 5 | E13: Dispenser para álcool gel | F13: 40 | G13: 80 | H13: Unidade | J13: 0 | K13: 0.2715 | L13: 0 | M13: Cotação
C14: 6 | E14: Conjunto completo mop úmido de microfibra, reservatório para líquidos com ejeção na manopla do cabo (ref. Rubbermaid ou similar) | F14: 6 | G14: 18 | H14: Unidade | J14: 0 | K14: 0.2715 | L14: 0 | M14: Cotação
C15: 7 | E15: Conjunto completo para limpeza de rodapé (cabo, suporte e fibra) ref. Bralimpia ST304 e FP262) | F15: 18 | G15: 30 | H15: Unidade | J15: 0 | K15: 0.2715 | L15: 0 | M15: Cotação
C16: 8 | E16: Conjunto completo para Mop pó, com amarração (cabo, armação e cabeleira) - ref Mop seco Euro CJ 60E) | F16: 30 | G16: 54 | H16: Unidade | J16: 0 | K16: 0.2715 | L16: 0 | M16: Cotação
C17: 9 | E17: Espátula de aço com cabo de madeira 4¨ 101x185mm, cabo amarelo (ref: max ferramentas) | F17: 15 | G17: 15 | H17: Unidade | J17: 0 | K17: 0.2715 | L17: 0 | M17: Cotação
C18: 10 | E18: Extensão com carretel 2x2,5mm2 x 50,00 m- suporte com carretel injetado em polipropileno com diâmetro de 290 mm com 3 tomadas universais. | F18: 15 | G18: 26 | H18: Unidade | J18: 0 | K18: 0.2715 | L18: 0 | M18: Cotação
C19: 11 | E19: Mangueira Top cristal Ø3/4'x 50 m PVC flexível, camada em poliester trançado, para pressões de 6 bar (ref. Tramontina Mult) | F19: 16 | G19: 16 | H19: Unidade | J19: 0 | K19: 0.2715 | L19: 0 | M19: Cotação
C20: 12 | E20: Pá p/ Lixo Plástica/Galvanizada com cabo longo 90 cm (ref. 15300 Tomki, São Bernardo, Madetec) | F20: 60 | G20: 120 | H20: Unidade | J20: 0 | K20: 0.2715 | L20: 0 | M20: Cotação
C21: 13 | E21: Placa de sinalização em vinil para piso molhado | F21: 80 | G21: 80 | H21: Unidade | J21: 0 | K21: 0.2715 | L21: 0 | M21: Cotação
C22: 14 | E22: Rodo 40cm de madeira/plástico (borracha dupla) com cabo 1,50 cm (ref. Tomki, Guirado, Bettani, Dalcim) | F22: 70 | G22: 130 | H22: Unidade | J22: 0 | K22: 0.2715 | L22: 0 | M22: Cotação
C23: 15 | E23: Rodo 60cm de madeira/plástico (borracha dupla) com cabo 1,50m (ref. Tomki, Guirado, Bettani, Dalcim) | F23: 30 | G23: 54 | H23: Unidade | J23: 0 | K23: 0.2715 | L23: 0 | M23: Cotação
C24: 16 | E24: Rodo de 90cm de madeira/plástico (borracha dupla) com cabo 1,50m (ref. Tomki, Guirado, Bettani, Dalcim) | F24: 20 | G24: 42 | H24: Unidade | J24: 0 | K24: 0.2715 | L24: 0 | M24: Cotação
C25: 17 | E25: Saco para aspirador doméstico pequeno descartável (ref. Eletrolux Silent Prof ou Leo da Soteco) | F25: 5 | G25: 5 | H25: Unidade | J25: 0 | K25: 0.2715 | L25: 0 | M25: Cotação
C26: 18 | E26: Saco para aspirador industrial água e pó descartável (ref. Karcher A2104 ou Eletrolux GT 3000 Pro) | F26: 5 | G26: 5 | H26: Unidade | J26: 0 | K26: 0.2715 | L26: 0 | M26: Cotação
C27: 19 | E27: Suporte para papel higiênico (ref. Santher) | F27: 354 | G27: 519 | H27: Unidade | J27: 0 | K27: 0.2715 | L27: 0 | M27: Cotação
C28: 20 | E28: Suporte para papel toalha (ref. Santher) | F28: 190 | G28: 300 | H28: Unidade | J28: 0 | K28: 0.2715 | L28: 0 | M28: Cotação
C29: 21 | E29: Suporte para saboneteira (ref. Santher) | F29: 205 | G29: 337 | H29: Unidade | J29: 0 | K29: 0.2715 | L29: 0 | M29: Cotação
C30: 22 | E30: Vassoura de Pêlo 40cm nylon com cabo 1,50m marcas Tommki (ref. Guirado, Bettani, Dalcim) | F30: 40 | G30: 84 | H30: Unidade | J30: 0 | K30: 0.2715 | L30: 0 | M30: Cotação
C31: 23 | E31: Vassoura de Pêlo 60cm nylon com cabo 1,50m marcas Tommki (ref. Guirado, Bettani, Dalcim) | F31: 30 | G31: 63 | H31: Unidade | J31: 0 | K31: 0.2715 | L31: 0 | M31: Cotação
C32: 24 | E32: Vassoura p/ Vaso Sanitário com cabo em plástico (ref. Guirado/ Bettani/ Dalcim) | F32: 60 | G32: 137 | H32: Unidade | J32: 0 | K32: 0.2715 | L32: 0 | M32: Cotação
C33: 25 | E33: Vassoura Piaçava nº 3 com cabo 1,50m (ref. Guirado, Bettani, Dalcim) | F33: 50 | G33: 105 | H33: Unidade | J33: 0 | K33: 0.2715 | L33: 0 | M33: Cotação
K35: SOMATÓRIO TOTAL MENSAL | L35: =L36/12 -> 0
K36: SOMATÓRIO TOTAL ANUAL | L36: =SUM(L8:L34) -> 0

Sheet Não Rel - Serviços (hidden)
B3: SERVIÇOS NÃO RELACIONADOS DIRETAMENTE A UM POSTO DE TRABALHO - AQUISIÇÃO SOB DEMANDA
C6: ITEM | D6: CÓDIGO | E6: DESCRIÇÃO | F6: QUANT ANUAL | G6: UNIDADE | H6: CUSTO UNITÁRIO | I6: CUSTO TOTAL | J6: BDI (%) | K6: PREÇO TOTAL | L6: FONTE | M6: REFERÊNCIA
C8: 1 | E8: SERVIÇOS DE DESINSETIZAÇÃO E DESRATIZAÇÃO (58.367,55 m²) | F8: 4 | G8: aplicações | I8: =H8*F8 -> 0 | J8: =BDI!E17 -> 0 | K8: =ROUND(I8*(1+J8),2) -> 0 | L8: Cotação
J10: SOMATÓRIO TOTAL MENSAL | K10: =K11/12 -> 0
J11: SOMATÓRIO TOTAL ANUAL | K11: =SUM(K7:K9) -> 0

Sheet Not. Demanda (hidden)
C1: CÂMARA DOS DEPUTADOS
C2: DEPARTAMENTO TÉCNICO
C3: Coordenação de Planejamento e Gestão
C5: Data: | D5: ='Dados Gerais'!#REF! -> 
C6: Processo: | D6: ='Dados Gerais'!#REF! -> 
C7: Objeto: | D7: ='Dados Gerais'!#REF! -> 
B11: ADICIONAL NOTURNO SOB DEMANDA
C14: CATEGORIAS | G14: HORAS / MÊS | H14: % NOTURNA
C16: 1 | D16: =HLOOKUP($C16,'Dados Gerais'!$D$5:$BK$10,6) -> TÉCNICO EM DESCRIÇÃO DE DOCUMENTOS DE ARQUIVO | G16: 0 | H16: 0.2
C17: 3 | D17: =HLOOKUP($C17,'Dados Gerais'!$D$5:$BK$10,6) -> 0 | G17: 0 | H17: 0.2
C20: AJUSTE DE HORAS FICTAS | E20: AJUSTE H.NOT | F20: HORA NORMAL | G20: H.FICTAS/MÊS | H20: H.ÚTEIS/MÊS
C22: 1 | D22: =HLOOKUP($C22,'Dados Gerais'!$D$5:$BK$10,6) -> TÉCNICO EM DESCRIÇÃO DE DOCUMENTOS DE ARQUIVO | E22: 52.5 | F22: 60 | G22: =G16*(F22/E22) -> 0 | H22: =HLOOKUP(C22,'Dados Gerais'!$D$5:$G$16,12,0) -> 200
C23: 3 | D23: =HLOOKUP($C23,'Dados Gerais'!$D$5:$BK$10,6) -> 0 | E23: 52.5 | F23: 60 | G23: =G17*(F23/E23) -> 0 | H23: =HLOOKUP(C23,'Dados Gerais'!$D$5:$G$16,12,0) -> 0
C26: VALOR DO ADICIONAL NOTURNO | F26: SALÁRIO MÊS | G26: VL.H.NORMAL | H26: ADIC.H.FICTAS
C28: 1 | D28: =HLOOKUP($C28,'Dados Gerais'!$D$5:$BK$10,6) -> TÉCNICO EM DESCRIÇÃO DE DOCUMENTOS DE ARQUIVO | F28: =HLOOKUP(C28,'Dados Gerais'!$D$5:$G$12,8,0) -> 3779.26 | G28: =F28/H22 -> 18.8963 | H28: =G28*(H16) -> 3.77926
C29: 3 | D29: =HLOOKUP($C29,'Dados Gerais'!$D$5:$BK$10,6) -> 0 | F29: =HLOOKUP(C29,'Dados Gerais'!$D$5:$G$12,8,0) -> 0 | G29: =F29/H23 ->  | H29: =G29*(H17) -> 
C32: RESUMO DO ADICIONAL NOTURNO SOB DEMANDA
C33: TOTAIS MENSAIS | G33: PREÇO MENSAL
C35: 1 | D35: =HLOOKUP($C35,'Dados Gerais'!$D$5:$BK$10,6) -> TÉCNICO EM DESCRIÇÃO DE DOCUMENTOS DE ARQUIVO | G35: =H28*G22 -> 0
C36: 3 | D36: =HLOOKUP($C36,'Dados Gerais'!$D$5:$BK$10,6) -> 0 | G36: =H29*G23 -> 
F38: SOMATÓRIO TOTAL MENSAL | G38: =SUM(G35:G37) -> 
F39: SOMATÓRIO TOTAL ANUAL | G39: =G38*12 -> 
C42: ENCARGOS SOCIAIS E BDI SOBRE ADICIONAL NOTURNO SOB DEMANDA
C43: TOTAIS MENSAIS | F43: PERCENTUAIS | G43: PREÇO MENSAL
D45: ENCARGOS SOCIAIS | F45: ='Encargos Sociais'!$E$45 -> 0 | G45: =F45*G38 -> 
D46: BDI | F46: =BDI!$E$26 -> 0.2715 | G46: =F46*(G38+G45) -> 
F48: SOMATÓRIO TOTAL MENSAL | G48: =SUM(G45:G47) -> 
F49: SOMATÓRIO TOTAL ANUAL | G49: =G48*12 -> 
C52: VALOR TOTAL ADICIONAL NOTURNO SOB DEMANDA (COM ENCARGOS SOCIAIS E BDI INCLUSOS)
C53: TOTAIS MENSAIS | F53: PERCENTUAIS | G53: PREÇO MENSAL
D55: ENCARGOS SOCIAIS | F55: ='Encargos Sociais'!$E$45 -> 0 | G55: =G35+G45 -> 
D56: BDI | F56: =BDI!$E$26 -> 0.2715 | G56: =G36+G46 -> 
F58: SOMATÓRIO TOTAL MENSAL | G58: =SUM(G55:G57) -> 
F59: SOMATÓRIO TOTAL ANUAL | G59: =G58*12 -> 

Sheet Mat Cons (hidden)
C1: CÂMARA DOS DEPUTADOS
C2: DEPARTAMENTO TÉCNICO
C3: Coordenação de Planejamento e Gestão
C5: Data: | D5: ='Dados Gerais'!#REF! -> 
C6: Processo: | D6: ='Dados Gerais'!#REF! -> 
C7: Objeto: | D7: ='Dados Gerais'!#REF! -> 
B11: MATERIAIS DE CONSUMO RELACIONADOS AO POSTO - AQUISIÇÃO | I11: 1 | K11: =I11+1 -> 2 | M11: =K11+1 -> 3 | O11: =M11+1 -> 4 | Q11: =O11+1 -> 5 | S11: =Q11+1 -> 6 | U11: =S11+1 -> 7 | W11: =U11+1 -> 8 | Y11: =W11+1 -> 9 | AA11: =Y11+1 -> 10 | AC11: =AA11+1 -> 11 | AE11: =AC11+1 -> 12 | AG11: =AE11+1 -> 13 | AI11: =AG11+1 -> 14 | AK11: =AI11+1 -> 15 | AM11: =AK11+1 -> 16 | AO11: =AM11+1 -> 17 | AQ11: =AO11+1 -> 18 | AS11: =AQ11+1 -> 19 | AU11: =AS11+1 -> 20 | AW11: =AU11+1 -> 21 | AY11: =AW11+1 -> 22 | BA11: =AY11+1 -> 23 | BC11: =BA11+1 -> 24 | BE11: =BC11+1 -> 25 | BG11: =BE11+1 -> 26 | BI11: =BG11+1 -> 27 | BK11: =BI11+1 -> 28 | BM11: =BK11+1 -> 29 | BO11: =BM11+1 -> 30 | BQ11: =BO11+1 -> 31 | BS11: =BQ11+1 -> 32 | BU11: =BS11+1 -> 33 | BW11: =BU11+1 -> 34 | BY11: =BW11+1 -> 35 | CA11: =BY11+1 -> 36 | CC11: =CA11+1 -> 37 | CE11: =CC11+1 -> 38 | CG11: =CE11+1 -> 39 | CI11: =CG11+1 -> 40 | CK11: =CI11+1 -> 41 | CM11: =CK11+1 -> 42 | CO11: =CM11+1 -> 43 | CQ11: =CO11+1 -> 44 | CS11: =CQ11+1 -> 45 | CU11: =CS11+1 -> 46 | CW11: =CU11+1 -> 47 | CY11: =CW11+1 -> 48 | DA11: =CY11+1 -> 49 | DC11: =DA11+1 -> 50 | DE11: =DC11+1 -> 51 | DG11: =DE11+1 -> 52 | DI11: =DG11+1 -> 53 | DK11: =DI11+1 -> 54 | DM11: =DK11+1 -> 55 | DO11: =DM11+1 -> 56 | DQ11: =DO11+1 -> 57 | DS11: =DQ11+1 -> 58 | DU11: =DS11+1 -> 59 | DW11: =DU11+1 -> 60
I13: =ROUND(SUM(J12:J65),2) -> 0 | K13: =ROUND(SUM(L12:L65),2) -> 0 | M13: =ROUND(SUM(N12:N65),2) -> 0 | O13: =ROUND(SUM(P12:P65),2) -> 0 | Q13: =ROUND(SUM(R12:R65),2) -> 0 | S13: =ROUND(SUM(T12:T65),2) -> 0 | U13: =ROUND(SUM(V12:V65),2) -> 0 | W13: =ROUND(SUM(X12:X65),2) -> 0 | Y13: =ROUND(SUM(Z12:Z65),2) -> 0 | AA13: =ROUND(SUM(AB12:AB65),2) -> 0 | AC13: =ROUND(SUM(AD12:AD65),2) -> 0 | AE13: =ROUND(SUM(AF12:AF65),2) -> 0 | AG13: =ROUND(SUM(AH12:AH65),2) -> 0 | AI13: =ROUND(SUM(AJ12:AJ65),2) -> 0 | AK13: =ROUND(SUM(AL12:AL65),2) -> 0 | AM13: =ROUND(SUM(AN12:AN65),2) -> 0 | AO13: =ROUND(SUM(AP12:AP65),2) -> 0 | AQ13: =ROUND(SUM(AR12:AR65),2) -> 0 | AS13: =ROUND(SUM(AT12:AT65),2) -> 0 | AU13: =ROUND(SUM(AV12:AV65),2) -> 0 | AW13: =ROUND(SUM(AX12:AX65),2) -> 0 | AY13: =ROUND(SUM(AZ12:AZ65),2) -> 0 | BA13: =ROUND(SUM(BB12:BB65),2) -> 0 | BC13: =ROUND(SUM(BD12:BD65),2) -> 0 | BE13: =ROUND(SUM(BF12:BF65),2) -> 0 | BG13: =ROUND(SUM(BH12:BH65),2) -> 0 | BI13: =ROUND(SUM(BJ12:BJ65),2) -> 0 | BK13: =ROUND(SUM(BL12:BL65),2) -> 0 | BM13: =ROUND(SUM(BN12:BN65),2) -> 0 | BO13: =ROUND(SUM(BP12:BP65),2) -> 0 | BQ13: =ROUND(SUM(BR12:BR65),2) -> 0 | BS13: =ROUND(SUM(BT12:BT65),2) -> 0 | BU13: =ROUND(SUM(BV12:BV65),2) -> 0 | BW13: =ROUND(SUM(BX12:BX65),2) -> 0 | BY13: =ROUND(SUM(BZ12:BZ65),2) -> 0 | CA13: =ROUND(SUM(CB12:CB65),2) -> 0 | CC13: =ROUND(SUM(CD12:CD65),2) -> 0 | CE13: =ROUND(SUM(CF12:CF65),2) -> 0 | CG13: =ROUND(SUM(CH12:CH65),2) -> 0 | CI13: =ROUND(SUM(CJ12:CJ65),2) -> 0 | CK13: =ROUND(SUM(CL12:CL65),2) -> 0 | CM13: =ROUND(SUM(CN12:CN65),2) -> 0 | CO13: =ROUND(SUM(CP12:CP65),2) -> 0 | CQ13: =ROUND(SUM(CR12:CR65),2) -> 0 | CS13: =ROUND(SUM(CT12:CT65),2) -> 0 | CU13: =ROUND(SUM(CV12:CV65),2) -> 0 | CW13: =ROUND(SUM(CX12:CX65),2) -> 0 | CY13: =ROUND(SUM(CZ12:CZ65),2) -> 0 | DA13: =ROUND(SUM(DB12:DB65),2) -> 0 | DC13: =ROUND(SUM(DD12:DD65),2) -> 0 | DE13: =ROUND(SUM(DF12:DF65),2) -> 0 | DG13: =ROUND(SUM(DH12:DH65),2) -> 0 | DI13: =ROUND(SUM(DJ12:DJ65),2) -> 0 | DK13: =ROUND(SUM(DL12:DL65),2) -> 0 | DM13: =ROUND(SUM(DN12:DN65),2) -> 0 | DO13: =ROUND(SUM(DP12:DP65),2) -> 0 | DQ13: =ROUND(SUM(DR12:DR65),2) -> 0 | DS13: =ROUND(SUM(DT12:DT65),2) -> 0 | DU13: =ROUND(SUM(DV12:DV65),2) -> 0 | DW13: =ROUND(SUM(DX12:DX65),2) -> 0
C14: CATEGORIAS | F14: QUANTIDADE
I15: =IF($C15=I$11,1,0) -> 0
I16: 0 | K16: =IF($C16=K$11,1,0) -> 0 | M16: =IF($C16=M$11,1,0) -> 0 | O16: =IF($C16=O$11,1,0) -> 0 | Q16: =IF($C16=Q$11,1,0) -> 0 | S16: =IF($C16=S$11,1,0) -> 0 | U16: =IF($C16=U$11,1,0) -> 0 | W16: =IF($C16=W$11,1,0) -> 0 | Y16: =IF($C16=Y$11,1,0) -> 0 | AA16: =IF($C16=AA$11,1,0) -> 0 | AC16: =IF($C16=AC$11,1,0) -> 0 | AE16: =IF($C16=AE$11,1,0) -> 0 | AG16: =IF($C16=AG$11,1,0) -> 0 | AI16: =IF($C16=AI$11,1,0) -> 0 | AK16: =IF($C16=AK$11,1,0) -> 0 | AM16: =IF($C16=AM$11,1,0) -> 0 | AO16: =IF($C16=AO$11,1,0) -> 0 | AQ16: =IF($C16=AQ$11,1,0) -> 0 | AS16: =IF($C16=AS$11,1,0) -> 0 | AU16: =IF($C16=AU$11,1,0) -> 0 | AW16: =IF($C16=AW$11,1,0) -> 0 | AY16: =IF($C16=AY$11,1,0) -> 0 | BA16: =IF($C16=BA$11,1,0) -> 0 | BC16: =IF($C16=BC$11,1,0) -> 0 | BE16: =IF($C16=BE$11,1,0) -> 0 | BG16: =IF($C16=BG$11,1,0) -> 0 | BI16: =IF($C16=BI$11,1,0) -> 0 | BK16: =IF($C16=BK$11,1,0) -> 0 | BM16: =IF($C16=BM$11,1,0) -> 0 | BO16: =IF($C16=BO$11,1,0) -> 0 | BQ16: =IF($C16=BQ$11,1,0) -> 0 | BS16: =IF($C16=BS$11,1,0) -> 0 | BU16: =IF($C16=BU$11,1,0) -> 0 | BW16: =IF($C16=BW$11,1,0) -> 0 | BY16: =IF($C16=BY$11,1,0) -> 0 | CA16: =IF($C16=CA$11,1,0) -> 0 | CC16: =IF($C16=CC$11,1,0) -> 0 | CE16: =IF($C16=CE$11,1,0) -> 0 | CG16: =IF($C16=CG$11,1,0) -> 0 | CI16: =IF($C16=CI$11,1,0) -> 0 | CK16: =IF($C16=CK$11,1,0) -> 0 | CM16: =IF($C16=CM$11,1,0) -> 0 | CO16: =IF($C16=CO$11,1,0) -> 0 | CQ16: =IF($C16=CQ$11,1,0) -> 0 | CS16: =IF($C16=CS$11,1,0) -> 0 | CU16: =IF($C16=CU$11,1,0) -> 0 | CW16: =IF($C16=CW$11,1,0) -> 0 | CY16: =IF($C16=CY$11,1,0) -> 0 | DA16: =IF($C16=DA$11,1,0) -> 0 | DC16: =IF($C16=DC$11,1,0) -> 0 | DE16: =IF($C16=DE$11,1,0) -> 0 | DG16: =IF($C16=DG$11,1,0) -> 0 | DI16: =IF($C16=DI$11,1,0) -> 0 | DK16: =IF($C16=DK$11,1,0) -> 0 | DM16: =IF($C16=DM$11,1,0) -> 0 | DO16: =IF($C16=DO$11,1,0) -> 0 | DQ16: =IF($C16=DQ$11,1,0) -> 0 | DS16: =IF($C16=DS$11,1,0) -> 0 | DU16: =IF($C16=DU$11,1,0) -> 0 | DW16: =IF($C16=DW$11,1,0) -> 0
I17: 0 | K17: 0 | M17: 0 | O17: 0 | Q17: 0 | S17: 0 | U17: 0 | W17: 0 | Y17: 0 | AA17: 0 | AC17: 0 | AE17: 0 | AG17: 0 | AI17: 0 | AK17: 0 | AM17: 0 | AO17: 0 | AQ17: 0 | AS17: 0 | AU17: 0 | AW17: 0 | AY17: 0 | BA17: 0 | BC17: 0 | BE17: 0 | BG17: 0 | BI17: 0 | BK17: 0 | BM17: 0 | BO17: 0 | BQ17: 0 | BS17: 0 | BU17: 0 | BW17: 0 | BY17: 0 | CA17: 0 | CC17: 0 | CE17: 0 | CG17: 0 | CI17: 0 | CK17: 0 | CM17: 0 | CO17: 0 | CQ17: 0 | CS17: 0 | CU17: 0 | CW17: 0 | CY17: 0 | DA17: 0 | DC17: 0 | DE17: 0 | DG17: 0 | DI17: 0 | DK17: 0 | DM17: 0 | DO17: 0 | DQ17: 0 | DS17: 0 | DU17: 0 | DW17: 0
I18: 0 | K18: 0 | M18: 0 | O18: 0 | Q18: 0 | S18: 0 | U18: 0 | W18: 0 | Y18: 0 | AA18: 0 | AC18: 0 | AE18: 0 | AG18: 0 | AI18: 0 | AK18: 0 | AM18: 0 | AO18: 0 | AQ18: 0 | AS18: 0 | AU18: 0 | AW18: 0 | AY18: 0 | BA18: 0 | BC18: 0 | BE18: 0 | BG18: 0 | BI18: 0 | BK18: 0 | BM18: 0 | BO18: 0 | BQ18: 0 | BS18: 0 | BU18: 0 | BW18: 0 | BY18: 0 | CA18: 0 | CC18: 0 | CE18: 0 | CG18: 0 | CI18: 0 | CK18: 0 | CM18: 0 | CO18: 0 | CQ18: 0 | CS18: 0 | CU18: 0 | CW18: 0 | CY18: 0 | DA18: 0 | DC18: 0 | DE18: 0 | DG18: 0 | DI18: 0 | DK18: 0 | DM18: 0 | DO18: 0 | DQ18: 0 | DS18: 0 | DU18: 0 | DW18: 0
I19: 0 | K19: 0 | M19: 0 | O19: 0 | Q19: 0 | S19: 0 | U19: 0 | W19: 0 | Y19: 0 | AA19: 0 | AC19: 0 | AE19: 0 | AG19: 0 | AI19: 0 | AK19: 0 | AM19: 0 | AO19: 0 | AQ19: 0 | AS19: 0 | AU19: 0 | AW19: 0 | AY19: 0 | BA19: 0 | BC19: 0 | BE19: 0 | BG19: 0 | BI19: 0 | BK19: 0 | BM19: 0 | BO19: 0 | BQ19: 0 | BS19: 0 | BU19: 0 | BW19: 0 | BY19: 0 | CA19: 0 | CC19: 0 | CE19: 0 | CG19: 0 | CI19: 0 | CK19: 0 | CM19: 0 | CO19: 0 | CQ19: 0 | CS19: 0 | CU19: 0 | CW19: 0 | CY19: 0 | DA19: 0 | DC19: 0 | DE19: 0 | DG19: 0 | DI19: 0 | DK19: 0 | DM19: 0 | DO19: 0 | DQ19: 0 | DS19: 0 | DU19: 0 | DW19: 0
I20: 0 | K20: 0 | M20: 0 | O20: 0 | Q20: 0 | S20: 0 | U20: 0 | W20: 0 | Y20: 0 | AA20: 0 | AC20: 0 | AE20: 0 | AG20: 0 | AI20: 0 | AK20: 0 | AM20: 0 | AO20: 0 | AQ20: 0 | AS20: 0 | AU20: 0 | AW20: 0 | AY20: 0 | BA20: 0 | BC20: 0 | BE20: 0 | BG20: 0 | BI20: 0 | BK20: 0 | BM20: 0 | BO20: 0 | BQ20: 0 | BS20: 0 | BU20: 0 | BW20: 0 | BY20: 0 | CA20: 0 | CC20: 0 | CE20: 0 | CG20: 0 | CI20: 0 | CK20: 0 | CM20: 0 | CO20: 0 | CQ20: 0 | CS20: 0 | CU20: 0 | CW20: 0 | CY20: 0 | DA20: 0 | DC20: 0 | DE20: 0 | DG20: 0 | DI20: 0 | DK20: 0 | DM20: 0 | DO20: 0 | DQ20: 0 | DS20: 0 | DU20: 0 | DW20: 0
I21: 0 | K21: 0 | M21: 0 | O21: 0 | Q21: 0 | S21: 0 | U21: 0 | W21: 0 | Y21: 0 | AA21: 0 | AC21: 0 | AE21: 0 | AG21: 0 | AI21: 0 | AK21: 0 | AM21: 0 | AO21: 0 | AQ21: 0 | AS21: 0 | AU21: 0 | AW21: 0 | AY21: 0 | BA21: 0 | BC21: 0 | BE21: 0 | BG21: 0 | BI21: 0 | BK21: 0 | BM21: 0 | BO21: 0 | BQ21: 0 | BS21: 0 | BU21: 0 | BW21: 0 | BY21: 0 | CA21: 0 | CC21: 0 | CE21: 0 | CG21: 0 | CI21: 0 | CK21: 0 | CM21: 0 | CO21: 0 | CQ21: 0 | CS21: 0 | CU21: 0 | CW21: 0 | CY21: 0 | DA21: 0 | DC21: 0 | DE21: 0 | DG21: 0 | DI21: 0 | DK21: 0 | DM21: 0 | DO21: 0 | DQ21: 0 | DS21: 0 | DU21: 0 | DW21: 0
I22: 0
C24: ITEM | D24: DESCRIÇÃO | E24: QUANT ANUAL | F24: VALOR
J25: =IF(SUM(I$15:I$22)>0,$E25*$F25,0) -> 0 | L25: =IF(SUM(K$15:K$22)>0,$E25*$F25,0) -> 0 | N25: =IF(SUM(M$15:M$22)>0,$E25*$F25,0) -> 0 | P25: =IF(SUM(O$15:O$22)>0,$E25*$F25,0) -> 0 | R25: =IF(SUM(Q$15:Q$22)>0,$E25*$F25,0) -> 0 | T25: =IF(SUM(S$15:S$22)>0,$E25*$F25,0) -> 0 | V25: =IF(SUM(U$15:U$22)>0,$E25*$F25,0) -> 0 | X25: =IF(SUM(W$15:W$22)>0,$E25*$F25,0) -> 0 | Z25: =IF(SUM(Y$15:Y$22)>0,$E25*$F25,0) -> 0 | AB25: =IF(SUM(AA$15:AA$22)>0,$E25*$F25,0) -> 0 | AD25: =IF(SUM(AC$15:AC$22)>0,$E25*$F25,0) -> 0 | AF25: =IF(SUM(AE$15:AE$22)>0,$E25*$F25,0) -> 0 | AH25: =IF(SUM(AG$15:AG$22)>0,$E25*$F25,0) -> 0 | AJ25: =IF(SUM(AI$15:AI$22)>0,$E25*$F25,0) -> 0 | AL25: =IF(SUM(AK$15:AK$22)>0,$E25*$F25,0) -> 0 | AN25: =IF(SUM(AM$15:AM$22)>0,$E25*$F25,0) -> 0 | AP25: =IF(SUM(AO$15:AO$22)>0,$E25*$F25,0) -> 0 | AR25: =IF(SUM(AQ$15:AQ$22)>0,$E25*$F25,0) -> 0 | AT25: =IF(SUM(AS$15:AS$22)>0,$E25*$F25,0) -> 0 | AV25: =IF(SUM(AU$15:AU$22)>0,$E25*$F25,0) -> 0 | AX25: =IF(SUM(AW$15:AW$22)>0,$E25*$F25,0) -> 0 | AZ25: =IF(SUM(AY$15:AY$22)>0,$E25*$F25,0) -> 0 | BB25: =IF(SUM(BA$15:BA$22)>0,$E25*$F25,0) -> 0 | BD25: =IF(SUM(BC$15:BC$22)>0,$E25*$F25,0) -> 0 | BF25: =IF(SUM(BE$15:BE$22)>0,$E25*$F25,0) -> 0 | BH25: =IF(SUM(BG$15:BG$22)>0,$E25*$F25,0) -> 0 | BJ25: =IF(SUM(BI$15:BI$22)>0,$E25*$F25,0) -> 0 | BL25: =IF(SUM(BK$15:BK$22)>0,$E25*$F25,0) -> 0 | BN25: =IF(SUM(BM$15:BM$22)>0,$E25*$F25,0) -> 0 | BP25: =IF(SUM(BO$15:BO$22)>0,$E25*$F25,0) -> 0 | BR25: =IF(SUM(BQ$15:BQ$22)>0,$E25*$F25,0) -> 0 | BT25: =IF(SUM(BS$15:BS$22)>0,$E25*$F25,0) -> 0 | BV25: =IF(SUM(BU$15:BU$22)>0,$E25*$F25,0) -> 0 | BX25: =IF(SUM(BW$15:BW$22)>0,$E25*$F25,0) -> 0 | BZ25: =IF(SUM(BY$15:BY$22)>0,$E25*$F25,0) -> 0 | CB25: =IF(SUM(CA$15:CA$22)>0,$E25*$F25,0) -> 0 | CD25: =IF(SUM(CC$15:CC$22)>0,$E25*$F25,0) -> 0 | CF25: =IF(SUM(CE$15:CE$22)>0,$E25*$F25,0) -> 0 | CH25: =IF(SUM(CG$15:CG$22)>0,$E25*$F25,0) -> 0 | CJ25: =IF(SUM(CI$15:CI$22)>0,$E25*$F25,0) -> 0 | CL25: =IF(SUM(CK$15:CK$22)>0,$E25*$F25,0) -> 0 | CN25: =IF(SUM(CM$15:CM$22)>0,$E25*$F25,0) -> 0 | CP25: =IF(SUM(CO$15:CO$22)>0,$E25*$F25,0) -> 0 | CR25: =IF(SUM(CQ$15:CQ$22)>0,$E25*$F25,0) -> 0 | CT25: =IF(SUM(CS$15:CS$22)>0,$E25*$F25,0) -> 0 | CV25: =IF(SUM(CU$15:CU$22)>0,$E25*$F25,0) -> 0 | CX25: =IF(SUM(CW$15:CW$22)>0,$E25*$F25,0) -> 0 | CZ25: =IF(SUM(CY$15:CY$22)>0,$E25*$F25,0) -> 0 | DB25: =IF(SUM(DA$15:DA$22)>0,$E25*$F25,0) -> 0 | DD25: =IF(SUM(DC$15:DC$22)>0,$E25*$F25,0) -> 0 | DF25: =IF(SUM(DE$15:DE$22)>0,$E25*$F25,0) -> 0 | DH25: =IF(SUM(DG$15:DG$22)>0,$E25*$F25,0) -> 0 | DJ25: =IF(SUM(DI$15:DI$22)>0,$E25*$F25,0) -> 0 | DL25: =IF(SUM(DK$15:DK$22)>0,$E25*$F25,0) -> 0 | DN25: =IF(SUM(DM$15:DM$22)>0,$E25*$F25,0) -> 0 | DP25: =IF(SUM(DO$15:DO$22)>0,$E25*$F25,0) -> 0 | DR25: =IF(SUM(DQ$15:DQ$22)>0,$E25*$F25,0) -> 0 | DT25: =IF(SUM(DS$15:DS$22)>0,$E25*$F25,0) -> 0 | DV25: =IF(SUM(DU$15:DU$22)>0,$E25*$F25,0) -> 0 | DX25: =IF(SUM(DW$15:DW$22)>0,$E25*$F25,0) -> 0
J26: =IF(SUM(I$15:I$22)>0,$E26*$F26,0) -> 0 | L26: =IF(SUM(K$15:K$22)>0,$E26*$F26,0) -> 0 | N26: =IF(SUM(M$15:M$22)>0,$E26*$F26,0) -> 0 | P26: =IF(SUM(O$15:O$22)>0,$E26*$F26,0) -> 0 | R26: =IF(SUM(Q$15:Q$22)>0,$E26*$F26,0) -> 0 | T26: =IF(SUM(S$15:S$22)>0,$E26*$F26,0) -> 0 | V26: =IF(SUM(U$15:U$22)>0,$E26*$F26,0) -> 0 | X26: =IF(SUM(W$15:W$22)>0,$E26*$F26,0) -> 0 | Z26: =IF(SUM(Y$15:Y$22)>0,$E26*$F26,0) -> 0 | AB26: =IF(SUM(AA$15:AA$22)>0,$E26*$F26,0) -> 0 | AD26: =IF(SUM(AC$15:AC$22)>0,$E26*$F26,0) -> 0 | AF26: =IF(SUM(AE$15:AE$22)>0,$E26*$F26,0) -> 0 | AH26: =IF(SUM(AG$15:AG$22)>0,$E26*$F26,0) -> 0 | AJ26: =IF(SUM(AI$15:AI$22)>0,$E26*$F26,0) -> 0 | AL26: =IF(SUM(AK$15:AK$22)>0,$E26*$F26,0) -> 0 | AN26: =IF(SUM(AM$15:AM$22)>0,$E26*$F26,0) -> 0 | AP26: =IF(SUM(AO$15:AO$22)>0,$E26*$F26,0) -> 0 | AR26: =IF(SUM(AQ$15:AQ$22)>0,$E26*$F26,0) -> 0 | AT26: =IF(SUM(AS$15:AS$22)>0,$E26*$F26,0) -> 0 | AV26: =IF(SUM(AU$15:AU$22)>0,$E26*$F26,0) -> 0 | AX26: =IF(SUM(AW$15:AW$22)>0,$E26*$F26,0) -> 0 | AZ26: =IF(SUM(AY$15:AY$22)>0,$E26*$F26,0) -> 0 | BB26: =IF(SUM(BA$15:BA$22)>0,$E26*$F26,0) -> 0 | BD26: =IF(SUM(BC$15:BC$22)>0,$E26*$F26,0) -> 0 | BF26: =IF(SUM(BE$15:BE$22)>0,$E26*$F26,0) -> 0 | BH26: =IF(SUM(BG$15:BG$22)>0,$E26*$F26,0) -> 0 | BJ26: =IF(SUM(BI$15:BI$22)>0,$E26*$F26,0) -> 0 | BL26: =IF(SUM(BK$15:BK$22)>0,$E26*$F26,0) -> 0 | BN26: =IF(SUM(BM$15:BM$22)>0,$E26*$F26,0) -> 0 | BP26: =IF(SUM(BO$15:BO$22)>0,$E26*$F26,0) -> 0 | BR26: =IF(SUM(BQ$15:BQ$22)>0,$E26*$F26,0) -> 0 | BT26: =IF(SUM(BS$15:BS$22)>0,$E26*$F26,0) -> 0 | BV26: =IF(SUM(BU$15:BU$22)>0,$E26*$F26,0) -> 0 | BX26: =IF(SUM(BW$15:BW$22)>0,$E26*$F26,0) -> 0 | BZ26: =IF(SUM(BY$15:BY$22)>0,$E26*$F26,0) -> 0 | CB26: =IF(SUM(CA$15:CA$22)>0,$E26*$F26,0) -> 0 | CD26: =IF(SUM(CC$15:CC$22)>0,$E26*$F26,0) -> 0 | CF26: =IF(SUM(CE$15:CE$22)>0,$E26*$F26,0) -> 0 | CH26: =IF(SUM(CG$15:CG$22)>0,$E26*$F26,0) -> 0 | CJ26: =IF(SUM(CI$15:CI$22)>0,$E26*$F26,0) -> 0 | CL26: =IF(SUM(CK$15:CK$22)>0,$E26*$F26,0) -> 0 | CN26: =IF(SUM(CM$15:CM$22)>0,$E26*$F26,0) -> 0 | CP26: =IF(SUM(CO$15:CO$22)>0,$E26*$F26,0) -> 0 | CR26: =IF(SUM(CQ$15:CQ$22)>0,$E26*$F26,0) -> 0 | CT26: =IF(SUM(CS$15:CS$22)>0,$E26*$F26,0) -> 0 | CV26: =IF(SUM(CU$15:CU$22)>0,$E26*$F26,0) -> 0 | CX26: =IF(SUM(CW$15:CW$22)>0,$E26*$F26,0) -> 0 | CZ26: =IF(SUM(CY$15:CY$22)>0,$E26*$F26,0) -> 0 | DB26: =IF(SUM(DA$15:DA$22)>0,$E26*$F26,0) -> 0 | DD26: =IF(SUM(DC$15:DC$22)>0,$E26*$F26,0) -> 0 | DF26: =IF(SUM(DE$15:DE$22)>0,$E26*$F26,0) -> 0 | DH26: =IF(SUM(DG$15:DG$22)>0,$E26*$F26,0) -> 0 | DJ26: =IF(SUM(DI$15:DI$22)>0,$E26*$F26,0) -> 0 | DL26: =IF(SUM(DK$15:DK$22)>0,$E26*$F26,0) -> 0 | DN26: =IF(SUM(DM$15:DM$22)>0,$E26*$F26,0) -> 0 | DP26: =IF(SUM(DO$15:DO$22)>0,$E26*$F26,0) -> 0 | DR26: =IF(SUM(DQ$15:DQ$22)>0,$E26*$F26,0) -> 0 | DT26: =IF(SUM(DS$15:DS$22)>0,$E26*$F26,0) -> 0 | DV26: =IF(SUM(DU$15:DU$22)>0,$E26*$F26,0) -> 0 | DX26: =IF(SUM(DW$15:DW$22)>0,$E26*$F26,0) -> 0
J27: =IF(SUM(I$15:I$22)>0,$E27*$F27,0) -> 0 | L27: =IF(SUM(K$15:K$22)>0,$E27*$F27,0) -> 0 | N27: =IF(SUM(M$15:M$22)>0,$E27*$F27,0) -> 0 | P27: =IF(SUM(O$15:O$22)>0,$E27*$F27,0) -> 0 | R27: =IF(SUM(Q$15:Q$22)>0,$E27*$F27,0) -> 0 | T27: =IF(SUM(S$15:S$22)>0,$E27*$F27,0) -> 0 | V27: =IF(SUM(U$15:U$22)>0,$E27*$F27,0) -> 0 | X27: =IF(SUM(W$15:W$22)>0,$E27*$F27,0) -> 0 | Z27: =IF(SUM(Y$15:Y$22)>0,$E27*$F27,0) -> 0 | AB27: =IF(SUM(AA$15:AA$22)>0,$E27*$F27,0) -> 0 | AD27: =IF(SUM(AC$15:AC$22)>0,$E27*$F27,0) -> 0 | AF27: =IF(SUM(AE$15:AE$22)>0,$E27*$F27,0) -> 0 | AH27: =IF(SUM(AG$15:AG$22)>0,$E27*$F27,0) -> 0 | AJ27: =IF(SUM(AI$15:AI$22)>0,$E27*$F27,0) -> 0 | AL27: =IF(SUM(AK$15:AK$22)>0,$E27*$F27,0) -> 0 | AN27: =IF(SUM(AM$15:AM$22)>0,$E27*$F27,0) -> 0 | AP27: =IF(SUM(AO$15:AO$22)>0,$E27*$F27,0) -> 0 | AR27: =IF(SUM(AQ$15:AQ$22)>0,$E27*$F27,0) -> 0 | AT27: =IF(SUM(AS$15:AS$22)>0,$E27*$F27,0) -> 0 | AV27: =IF(SUM(AU$15:AU$22)>0,$E27*$F27,0) -> 0 | AX27: =IF(SUM(AW$15:AW$22)>0,$E27*$F27,0) -> 0 | AZ27: =IF(SUM(AY$15:AY$22)>0,$E27*$F27,0) -> 0 | BB27: =IF(SUM(BA$15:BA$22)>0,$E27*$F27,0) -> 0 | BD27: =IF(SUM(BC$15:BC$22)>0,$E27*$F27,0) -> 0 | BF27: =IF(SUM(BE$15:BE$22)>0,$E27*$F27,0) -> 0 | BH27: =IF(SUM(BG$15:BG$22)>0,$E27*$F27,0) -> 0 | BJ27: =IF(SUM(BI$15:BI$22)>0,$E27*$F27,0) -> 0 | BL27: =IF(SUM(BK$15:BK$22)>0,$E27*$F27,0) -> 0 | BN27: =IF(SUM(BM$15:BM$22)>0,$E27*$F27,0) -> 0 | BP27: =IF(SUM(BO$15:BO$22)>0,$E27*$F27,0) -> 0 | BR27: =IF(SUM(BQ$15:BQ$22)>0,$E27*$F27,0) -> 0 | BT27: =IF(SUM(BS$15:BS$22)>0,$E27*$F27,0) -> 0 | BV27: =IF(SUM(BU$15:BU$22)>0,$E27*$F27,0) -> 0 | BX27: =IF(SUM(BW$15:BW$22)>0,$E27*$F27,0) -> 0 | BZ27: =IF(SUM(BY$15:BY$22)>0,$E27*$F27,0) -> 0 | CB27: =IF(SUM(CA$15:CA$22)>0,$E27*$F27,0) -> 0 | CD27: =IF(SUM(CC$15:CC$22)>0,$E27*$F27,0) -> 0 | CF27: =IF(SUM(CE$15:CE$22)>0,$E27*$F27,0) -> 0 | CH27: =IF(SUM(CG$15:CG$22)>0,$E27*$F27,0) -> 0 | CJ27: =IF(SUM(CI$15:CI$22)>0,$E27*$F27,0) -> 0 | CL27: =IF(SUM(CK$15:CK$22)>0,$E27*$F27,0) -> 0 | CN27: =IF(SUM(CM$15:CM$22)>0,$E27*$F27,0) -> 0 | CP27: =IF(SUM(CO$15:CO$22)>0,$E27*$F27,0) -> 0 | CR27: =IF(SUM(CQ$15:CQ$22)>0,$E27*$F27,0) -> 0 | CT27: =IF(SUM(CS$15:CS$22)>0,$E27*$F27,0) -> 0 | CV27: =IF(SUM(CU$15:CU$22)>0,$E27*$F27,0) -> 0 | CX27: =IF(SUM(CW$15:CW$22)>0,$E27*$F27,0) -> 0 | CZ27: =IF(SUM(CY$15:CY$22)>0,$E27*$F27,0) -> 0 | DB27: =IF(SUM(DA$15:DA$22)>0,$E27*$F27,0) -> 0 | DD27: =IF(SUM(DC$15:DC$22)>0,$E27*$F27,0) -> 0 | DF27: =IF(SUM(DE$15:DE$22)>0,$E27*$F27,0) -> 0 | DH27: =IF(SUM(DG$15:DG$22)>0,$E27*$F27,0) -> 0 | DJ27: =IF(SUM(DI$15:DI$22)>0,$E27*$F27,0) -> 0 | DL27: =IF(SUM(DK$15:DK$22)>0,$E27*$F27,0) -> 0 | DN27: =IF(SUM(DM$15:DM$22)>0,$E27*$F27,0) -> 0 | DP27: =IF(SUM(DO$15:DO$22)>0,$E27*$F27,0) -> 0 | DR27: =IF(SUM(DQ$15:DQ$22)>0,$E27*$F27,0) -> 0 | DT27: =IF(SUM(DS$15:DS$22)>0,$E27*$F27,0) -> 0 | DV27: =IF(SUM(DU$15:DU$22)>0,$E27*$F27,0) -> 0 | DX27: =IF(SUM(DW$15:DW$22)>0,$E27*$F27,0) -> 0
J28: =IF(SUM(I$15:I$22)>0,$E28*$F28,0) -> 0 | L28: =IF(SUM(K$15:K$22)>0,$E28*$F28,0) -> 0 | N28: =IF(SUM(M$15:M$22)>0,$E28*$F28,0) -> 0 | P28: =IF(SUM(O$15:O$22)>0,$E28*$F28,0) -> 0 | R28: =IF(SUM(Q$15:Q$22)>0,$E28*$F28,0) -> 0 | T28: =IF(SUM(S$15:S$22)>0,$E28*$F28,0) -> 0 | V28: =IF(SUM(U$15:U$22)>0,$E28*$F28,0) -> 0 | X28: =IF(SUM(W$15:W$22)>0,$E28*$F28,0) -> 0 | Z28: =IF(SUM(Y$15:Y$22)>0,$E28*$F28,0) -> 0 | AB28: =IF(SUM(AA$15:AA$22)>0,$E28*$F28,0) -> 0 | AD28: =IF(SUM(AC$15:AC$22)>0,$E28*$F28,0) -> 0 | AF28: =IF(SUM(AE$15:AE$22)>0,$E28*$F28,0) -> 0 | AH28: =IF(SUM(AG$15:AG$22)>0,$E28*$F28,0) -> 0 | AJ28: =IF(SUM(AI$15:AI$22)>0,$E28*$F28,0) -> 0 | AL28: =IF(SUM(AK$15:AK$22)>0,$E28*$F28,0) -> 0 | AN28: =IF(SUM(AM$15:AM$22)>0,$E28*$F28,0) -> 0 | AP28: =IF(SUM(AO$15:AO$22)>0,$E28*$F28,0) -> 0 | AR28: =IF(SUM(AQ$15:AQ$22)>0,$E28*$F28,0) -> 0 | AT28: =IF(SUM(AS$15:AS$22)>0,$E28*$F28,0) -> 0 | AV28: =IF(SUM(AU$15:AU$22)>0,$E28*$F28,0) -> 0 | AX28: =IF(SUM(AW$15:AW$22)>0,$E28*$F28,0) -> 0 | AZ28: =IF(SUM(AY$15:AY$22)>0,$E28*$F28,0) -> 0 | BB28: =IF(SUM(BA$15:BA$22)>0,$E28*$F28,0) -> 0 | BD28: =IF(SUM(BC$15:BC$22)>0,$E28*$F28,0) -> 0 | BF28: =IF(SUM(BE$15:BE$22)>0,$E28*$F28,0) -> 0 | BH28: =IF(SUM(BG$15:BG$22)>0,$E28*$F28,0) -> 0 | BJ28: =IF(SUM(BI$15:BI$22)>0,$E28*$F28,0) -> 0 | BL28: =IF(SUM(BK$15:BK$22)>0,$E28*$F28,0) -> 0 | BN28: =IF(SUM(BM$15:BM$22)>0,$E28*$F28,0) -> 0 | BP28: =IF(SUM(BO$15:BO$22)>0,$E28*$F28,0) -> 0 | BR28: =IF(SUM(BQ$15:BQ$22)>0,$E28*$F28,0) -> 0 | BT28: =IF(SUM(BS$15:BS$22)>0,$E28*$F28,0) -> 0 | BV28: =IF(SUM(BU$15:BU$22)>0,$E28*$F28,0) -> 0 | BX28: =IF(SUM(BW$15:BW$22)>0,$E28*$F28,0) -> 0 | BZ28: =IF(SUM(BY$15:BY$22)>0,$E28*$F28,0) -> 0 | CB28: =IF(SUM(CA$15:CA$22)>0,$E28*$F28,0) -> 0 | CD28: =IF(SUM(CC$15:CC$22)>0,$E28*$F28,0) -> 0 | CF28: =IF(SUM(CE$15:CE$22)>0,$E28*$F28,0) -> 0 | CH28: =IF(SUM(CG$15:CG$22)>0,$E28*$F28,0) -> 0 | CJ28: =IF(SUM(CI$15:CI$22)>0,$E28*$F28,0) -> 0 | CL28: =IF(SUM(CK$15:CK$22)>0,$E28*$F28,0) -> 0 | CN28: =IF(SUM(CM$15:CM$22)>0,$E28*$F28,0) -> 0 | CP28: =IF(SUM(CO$15:CO$22)>0,$E28*$F28,0) -> 0 | CR28: =IF(SUM(CQ$15:CQ$22)>0,$E28*$F28,0) -> 0 | CT28: =IF(SUM(CS$15:CS$22)>0,$E28*$F28,0) -> 0 | CV28: =IF(SUM(CU$15:CU$22)>0,$E28*$F28,0) -> 0 | CX28: =IF(SUM(CW$15:CW$22)>0,$E28*$F28,0) -> 0 | CZ28: =IF(SUM(CY$15:CY$22)>0,$E28*$F28,0) -> 0 | DB28: =IF(SUM(DA$15:DA$22)>0,$E28*$F28,0) -> 0 | DD28: =IF(SUM(DC$15:DC$22)>0,$E28*$F28,0) -> 0 | DF28: =IF(SUM(DE$15:DE$22)>0,$E28*$F28,0) -> 0 | DH28: =IF(SUM(DG$15:DG$22)>0,$E28*$F28,0) -> 0 | DJ28: =IF(SUM(DI$15:DI$22)>0,$E28*$F28,0) -> 0 | DL28: =IF(SUM(DK$15:DK$22)>0,$E28*$F28,0) -> 0 | DN28: =IF(SUM(DM$15:DM$22)>0,$E28*$F28,0) -> 0 | DP28: =IF(SUM(DO$15:DO$22)>0,$E28*$F28,0) -> 0 | DR28: =IF(SUM(DQ$15:DQ$22)>0,$E28*$F28,0) -> 0 | DT28: =IF(SUM(DS$15:DS$22)>0,$E28*$F28,0) -> 0 | DV28: =IF(SUM(DU$15:DU$22)>0,$E28*$F28,0) -> 0 | DX28: =IF(SUM(DW$15:DW$22)>0,$E28*$F28,0) -> 0

Sheet Mat Perm (hidden)
C1: CÂMARA DOS DEPUTADOS
C2: DEPARTAMENTO TÉCNICO
C3: Coordenação de Planejamento e Gestão
C5: Data: | D5: ='Dados Gerais'!#REF! -> 
C6: Processo: | D6: ='Dados Gerais'!#REF! -> 
C7: Objeto: | D7: ='Dados Gerais'!#REF! -> 
B11: MATERIAIS PERMANENTES RELACIONADOS AO POSTO - PAGAMENTO DA DEPRECIAÇÃO / MANUTENÇÃO | Q11: 1 | S11: =Q11+1 -> 2 | U11: =S11+1 -> 3 | W11: =U11+1 -> 4 | Y11: =W11+1 -> 5 | AA11: =Y11+1 -> 6 | AC11: =AA11+1 -> 7 | AE11: =AC11+1 -> 8 | AG11: =AE11+1 -> 9 | AI11: =AG11+1 -> 10 | AK11: =AI11+1 -> 11 | AM11: =AK11+1 -> 12 | AO11: =AM11+1 -> 13 | AQ11: =AO11+1 -> 14 | AS11: =AQ11+1 -> 15 | AU11: =AS11+1 -> 16 | AW11: =AU11+1 -> 17 | AY11: =AW11+1 -> 18 | BA11: =AY11+1 -> 19 | BC11: =BA11+1 -> 20 | BE11: =BC11+1 -> 21 | BG11: =BE11+1 -> 22 | BI11: =BG11+1 -> 23 | BK11: =BI11+1 -> 24 | BM11: =BK11+1 -> 25 | BO11: =BM11+1 -> 26 | BQ11: =BO11+1 -> 27 | BS11: =BQ11+1 -> 28 | BU11: =BS11+1 -> 29 | BW11: =BU11+1 -> 30 | BY11: =BW11+1 -> 31 | CA11: =BY11+1 -> 32 | CC11: =CA11+1 -> 33 | CE11: =CC11+1 -> 34 | CG11: =CE11+1 -> 35 | CI11: =CG11+1 -> 36 | CK11: =CI11+1 -> 37 | CM11: =CK11+1 -> 38 | CO11: =CM11+1 -> 39 | CQ11: =CO11+1 -> 40 | CS11: =CQ11+1 -> 41 | CU11: =CS11+1 -> 42 | CW11: =CU11+1 -> 43 | CY11: =CW11+1 -> 44 | DA11: =CY11+1 -> 45 | DC11: =DA11+1 -> 46 | DE11: =DC11+1 -> 47 | DG11: =DE11+1 -> 48 | DI11: =DG11+1 -> 49 | DK11: =DI11+1 -> 50 | DM11: =DK11+1 -> 51 | DO11: =DM11+1 -> 52 | DQ11: =DO11+1 -> 53 | DS11: =DQ11+1 -> 54 | DU11: =DS11+1 -> 55 | DW11: =DU11+1 -> 56 | DY11: =DW11+1 -> 57 | EA11: =DY11+1 -> 58 | EC11: =EA11+1 -> 59 | EE11: =EC11+1 -> 60
Q13: =SUM(R12:R94) -> 0 | S13: =SUM(T12:T94) -> 0 | U13: =SUM(V12:V94) -> 0 | W13: =SUM(X12:X94) -> 0 | Y13: =SUM(Z12:Z94) -> 0 | AA13: =SUM(AB12:AB94) -> 0 | AC13: =SUM(AD12:AD94) -> 0 | AE13: =SUM(AF12:AF94) -> 0 | AG13: =SUM(AH12:AH94) -> 0 | AI13: =SUM(AJ12:AJ94) -> 0 | AK13: =SUM(AL12:AL94) -> 0 | AM13: =SUM(AN12:AN94) -> 0 | AO13: =SUM(AP12:AP94) -> 0 | AQ13: =SUM(AR12:AR94) -> 0 | AS13: =SUM(AT12:AT94) -> 0 | AU13: =SUM(AV12:AV94) -> 0 | AW13: =SUM(AX12:AX94) -> 0 | AY13: =SUM(AZ12:AZ94) -> 0 | BA13: =SUM(BB12:BB94) -> 0 | BC13: =SUM(BD12:BD94) -> 0 | BE13: =SUM(BF12:BF94) -> 0 | BG13: =SUM(BH12:BH94) -> 0 | BI13: =SUM(BJ12:BJ94) -> 0 | BK13: =SUM(BL12:BL94) -> 0 | BM13: =SUM(BN12:BN94) -> 0 | BO13: =SUM(BP12:BP94) -> 0 | BQ13: =SUM(BR12:BR94) -> 0 | BS13: =SUM(BT12:BT94) -> 0 | BU13: =SUM(BV12:BV94) -> 0 | BW13: =SUM(BX12:BX94) -> 0 | BY13: =SUM(BZ12:BZ94) -> 0 | CA13: =SUM(CB12:CB94) -> 0 | CC13: =SUM(CD12:CD94) -> 0 | CE13: =SUM(CF12:CF94) -> 0 | CG13: =SUM(CH12:CH94) -> 0 | CI13: =SUM(CJ12:CJ94) -> 0 | CK13: =SUM(CL12:CL94) -> 0 | CM13: =SUM(CN12:CN94) -> 0 | CO13: =SUM(CP12:CP94) -> 0 | CQ13: =SUM(CR12:CR94) -> 0 | CS13: =SUM(CT12:CT94) -> 0 | CU13: =SUM(CV12:CV94) -> 0 | CW13: =SUM(CX12:CX94) -> 0 | CY13: =SUM(CZ12:CZ94) -> 0 | DA13: =SUM(DB12:DB94) -> 0 | DC13: =SUM(DD12:DD94) -> 0 | DE13: =SUM(DF12:DF94) -> 0 | DG13: =SUM(DH12:DH94) -> 0 | DI13: =SUM(DJ12:DJ94) -> 0 | DK13: =SUM(DL12:DL94) -> 0 | DM13: =SUM(DN12:DN94) -> 0 | DO13: =SUM(DP12:DP94) -> 0 | DQ13: =SUM(DR12:DR94) -> 0 | DS13: =SUM(DT12:DT94) -> 0 | DU13: =SUM(DV12:DV94) -> 0 | DW13: =SUM(DX12:DX94) -> 0 | DY13: =SUM(DZ12:DZ94) -> 0 | EA13: =SUM(EB12:EB94) -> 0 | EC13: =SUM(ED12:ED94) -> 0 | EE13: =SUM(EF12:EF94) -> 0
C14: CATEGORIAS | E14: QUANTIDADE
Q15: =IF($C15=Q$11,1,0) -> 0 | S15: =IF($C15=S$11,1,0) -> 0 | U15: =IF($C15=U$11,1,0) -> 0 | W15: =IF($C15=W$11,1,0) -> 0 | Y15: =IF($C15=Y$11,1,0) -> 0 | AA15: =IF($C15=AA$11,1,0) -> 0 | AC15: =IF($C15=AC$11,1,0) -> 0 | AE15: =IF($C15=AE$11,1,0) -> 0 | AG15: =IF($C15=AG$11,1,0) -> 0 | AI15: =IF($C15=AI$11,1,0) -> 0 | AK15: =IF($C15=AK$11,1,0) -> 0 | AM15: =IF($C15=AM$11,1,0) -> 0 | AO15: =IF($C15=AO$11,1,0) -> 0 | AQ15: =IF($C15=AQ$11,1,0) -> 0 | AS15: =IF($C15=AS$11,1,0) -> 0 | AU15: =IF($C15=AU$11,1,0) -> 0 | AW15: =IF($C15=AW$11,1,0) -> 0 | AY15: =IF($C15=AY$11,1,0) -> 0 | BA15: =IF($C15=BA$11,1,0) -> 0 | BC15: =IF($C15=BC$11,1,0) -> 0 | BE15: =IF($C15=BE$11,1,0) -> 0 | BG15: =IF($C15=BG$11,1,0) -> 0 | BI15: =IF($C15=BI$11,1,0) -> 0 | BK15: =IF($C15=BK$11,1,0) -> 0 | BM15: =IF($C15=BM$11,1,0) -> 0 | BO15: =IF($C15=BO$11,1,0) -> 0 | BQ15: =IF($C15=BQ$11,1,0) -> 0 | BS15: =IF($C15=BS$11,1,0) -> 0 | BU15: =IF($C15=BU$11,1,0) -> 0 | BW15: =IF($C15=BW$11,1,0) -> 0 | BY15: =IF($C15=BY$11,1,0) -> 0 | CA15: =IF($C15=CA$11,1,0) -> 0 | CC15: =IF($C15=CC$11,1,0) -> 0 | CE15: =IF($C15=CE$11,1,0) -> 0 | CG15: =IF($C15=CG$11,1,0) -> 0 | CI15: =IF($C15=CI$11,1,0) -> 0 | CK15: =IF($C15=CK$11,1,0) -> 0 | CM15: =IF($C15=CM$11,1,0) -> 0 | CO15: =IF($C15=CO$11,1,0) -> 0 | CQ15: =IF($C15=CQ$11,1,0) -> 0 | CS15: =IF($C15=CS$11,1,0) -> 0 | CU15: =IF($C15=CU$11,1,0) -> 0 | CW15: =IF($C15=CW$11,1,0) -> 0 | CY15: =IF($C15=CY$11,1,0) -> 0 | DA15: =IF($C15=DA$11,1,0) -> 0 | DC15: =IF($C15=DC$11,1,0) -> 0 | DE15: =IF($C15=DE$11,1,0) -> 0 | DG15: =IF($C15=DG$11,1,0) -> 0 | DI15: =IF($C15=DI$11,1,0) -> 0 | DK15: =IF($C15=DK$11,1,0) -> 0 | DM15: =IF($C15=DM$11,1,0) -> 0 | DO15: =IF($C15=DO$11,1,0) -> 0 | DQ15: =IF($C15=DQ$11,1,0) -> 0 | DS15: =IF($C15=DS$11,1,0) -> 0 | DU15: =IF($C15=DU$11,1,0) -> 0 | DW15: =IF($C15=DW$11,1,0) -> 0 | DY15: =IF($C15=DY$11,1,0) -> 0 | EA15: =IF($C15=EA$11,1,0) -> 0 | EC15: =IF($C15=EC$11,1,0) -> 0 | EE15: =IF($C15=EE$11,1,0) -> 0
D16: =HLOOKUP($C16,'Dados Gerais'!$D$5:$BK$10,6) ->  | E16: =HLOOKUP($C16,'Dados Gerais'!$D$5:$BK$14,10) ->  | Q16: 0 | S16: 0 | U16: 0 | W16: 0 | Y16: 0 | AA16: 0 | AC16: 0 | AE16: 0 | AG16: 0 | AI16: 0 | AK16: 0 | AM16: 0 | AO16: 0 | AQ16: 0 | AS16: 0 | AU16: 0 | AW16: 0 | AY16: 0 | BA16: 0 | BC16: 0 | BE16: 0 | BG16: 0 | BI16: 0 | BK16: 0 | BM16: 0 | BO16: 0 | BQ16: 0 | BS16: 0 | BU16: 0 | BW16: 0 | BY16: 0 | CA16: 0 | CC16: 0 | CE16: 0 | CG16: 0 | CI16: 0 | CK16: 0 | CM16: 0 | CO16: 0 | CQ16: 0 | CS16: 0 | CU16: 0 | CW16: 0 | CY16: 0 | DA16: 0 | DC16: 0 | DE16: 0 | DG16: 0 | DI16: 0 | DK16: 0 | DM16: 0 | DO16: 0 | DQ16: 0 | DS16: 0 | DU16: 0 | DW16: 0 | DY16: 0 | EA16: 0 | EC16: 0 | EE16: 0
D17: =HLOOKUP($C17,'Dados Gerais'!$D$5:$BK$10,6) ->  | E17: =HLOOKUP($C17,'Dados Gerais'!$D$5:$BK$14,10) ->  | Q17: 0 | S17: 0 | U17: 0 | W17: 0 | Y17: 0 | AA17: 0 | AC17: 0 | AE17: 0 | AG17: 0 | AI17: 0 | AK17: 0 | AM17: 0 | AO17: 0 | AQ17: 0 | AS17: 0 | AU17: 0 | AW17: 0 | AY17: 0 | BA17: 0 | BC17: 0 | BE17: 0 | BG17: 0 | BI17: 0 | BK17: 0 | BM17: 0 | BO17: 0 | BQ17: 0 | BS17: 0 | BU17: 0 | BW17: 0 | BY17: 0 | CA17: 0 | CC17: 0 | CE17: 0 | CG17: 0 | CI17: 0 | CK17: 0 | CM17: 0 | CO17: 0 | CQ17: 0 | CS17: 0 | CU17: 0 | CW17: 0 | CY17: 0 | DA17: 0 | DC17: 0 | DE17: 0 | DG17: 0 | DI17: 0 | DK17: 0 | DM17: 0 | DO17: 0 | DQ17: 0 | DS17: 0 | DU17: 0 | DW17: 0 | DY17: 0 | EA17: 0 | EC17: 0 | EE17: 0
D18: =HLOOKUP($C18,'Dados Gerais'!$D$5:$BK$10,6) ->  | E18: =HLOOKUP($C18,'Dados Gerais'!$D$5:$BK$14,10) ->  | Q18: 0 | S18: 0 | U18: 0 | W18: 0 | Y18: 0 | AA18: 0 | AC18: 0 | AE18: 0 | AG18: 0 | AI18: 0 | AK18: 0 | AM18: 0 | AO18: 0 | AQ18: 0 | AS18: 0 | AU18: 0 | AW18: 0 | AY18: 0 | BA18: 0 | BC18: 0 | BE18: 0 | BG18: 0 | BI18: 0 | BK18: 0 | BM18: 0 | BO18: 0 | BQ18: 0 | BS18: 0 | BU18: 0 | BW18: 0 | BY18: 0 | CA18: 0 | CC18: 0 | CE18: 0 | CG18: 0 | CI18: 0 | CK18: 0 | CM18: 0 | CO18: 0 | CQ18: 0 | CS18: 0 | CU18: 0 | CW18: 0 | CY18: 0 | DA18: 0 | DC18: 0 | DE18: 0 | DG18: 0 | DI18: 0 | DK18: 0 | DM18: 0 | DO18: 0 | DQ18: 0 | DS18: 0 | DU18: 0 | DW18: 0 | DY18: 0 | EA18: 0 | EC18: 0 | EE18: 0
D19: =HLOOKUP($C19,'Dados Gerais'!$D$5:$BK$10,6) ->  | E19: =HLOOKUP($C19,'Dados Gerais'!$D$5:$BK$14,10) ->  | Q19: 0 | S19: 0 | U19: 0 | W19: 0 | Y19: 0 | AA19: 0 | AC19: 0 | AE19: 0 | AG19: 0 | AI19: 0 | AK19: 0 | AM19: 0 | AO19: 0 | AQ19: 0 | AS19: 0 | AU19: 0 | AW19: 0 | AY19: 0 | BA19: 0 | BC19: 0 | BE19: 0 | BG19: 0 | BI19: 0 | BK19: 0 | BM19: 0 | BO19: 0 | BQ19: 0 | BS19: 0 | BU19: 0 | BW19: 0 | BY19: 0 | CA19: 0 | CC19: 0 | CE19: 0 | CG19: 0 | CI19: 0 | CK19: 0 | CM19: 0 | CO19: 0 | CQ19: 0 | CS19: 0 | CU19: 0 | CW19: 0 | CY19: 0 | DA19: 0 | DC19: 0 | DE19: 0 | DG19: 0 | DI19: 0 | DK19: 0 | DM19: 0 | DO19: 0 | DQ19: 0 | DS19: 0 | DU19: 0 | DW19: 0 | DY19: 0 | EA19: 0 | EC19: 0 | EE19: 0
D20: =HLOOKUP($C20,'Dados Gerais'!$D$5:$BK$10,6) ->  | E20: =HLOOKUP($C20,'Dados Gerais'!$D$5:$BK$14,10) ->  | Q20: 0 | S20: 0 | U20: 0 | W20: 0 | Y20: 0 | AA20: 0 | AC20: 0 | AE20: 0 | AG20: 0 | AI20: 0 | AK20: 0 | AM20: 0 | AO20: 0 | AQ20: 0 | AS20: 0 | AU20: 0 | AW20: 0 | AY20: 0 | BA20: 0 | BC20: 0 | BE20: 0 | BG20: 0 | BI20: 0 | BK20: 0 | BM20: 0 | BO20: 0 | BQ20: 0 | BS20: 0 | BU20: 0 | BW20: 0 | BY20: 0 | CA20: 0 | CC20: 0 | CE20: 0 | CG20: 0 | CI20: 0 | CK20: 0 | CM20: 0 | CO20: 0 | CQ20: 0 | CS20: 0 | CU20: 0 | CW20: 0 | CY20: 0 | DA20: 0 | DC20: 0 | DE20: 0 | DG20: 0 | DI20: 0 | DK20: 0 | DM20: 0 | DO20: 0 | DQ20: 0 | DS20: 0 | DU20: 0 | DW20: 0 | DY20: 0 | EA20: 0 | EC20: 0 | EE20: 0
D21: =HLOOKUP($C21,'Dados Gerais'!$D$5:$BK$10,6) ->  | E21: =HLOOKUP($C21,'Dados Gerais'!$D$5:$BK$14,10) ->  | Q21: 0 | S21: 0 | U21: 0 | W21: 0 | Y21: 0 | AA21: 0 | AC21: 0 | AE21: 0 | AG21: 0 | AI21: 0 | AK21: 0 | AM21: 0 | AO21: 0 | AQ21: 0 | AS21: 0 | AU21: 0 | AW21: 0 | AY21: 0 | BA21: 0 | BC21: 0 | BE21: 0 | BG21: 0 | BI21: 0 | BK21: 0 | BM21: 0 | BO21: 0 | BQ21: 0 | BS21: 0 | BU21: 0 | BW21: 0 | BY21: 0 | CA21: 0 | CC21: 0 | CE21: 0 | CG21: 0 | CI21: 0 | CK21: 0 | CM21: 0 | CO21: 0 | CQ21: 0 | CS21: 0 | CU21: 0 | CW21: 0 | CY21: 0 | DA21: 0 | DC21: 0 | DE21: 0 | DG21: 0 | DI21: 0 | DK21: 0 | DM21: 0 | DO21: 0 | DQ21: 0 | DS21: 0 | DU21: 0 | DW21: 0 | DY21: 0 | EA21: 0 | EC21: 0 | EE21: 0
Q22: 0 | S22: 0 | U22: 0 | W22: 0 | Y22: 0 | AA22: 0 | AC22: 0 | AE22: 0 | AG22: 0 | AI22: 0 | AK22: 0 | AM22: 0 | AO22: 0 | AQ22: 0 | AS22: 0 | AU22: 0 | AW22: 0 | AY22: 0 | BA22: 0 | BC22: 0 | BE22: 0 | BG22: 0 | BI22: 0 | BK22: 0 | BM22: 0 | BO22: 0 | BQ22: 0 | BS22: 0 | BU22: 0 | BW22: 0 | BY22: 0 | CA22: 0 | CC22: 0 | CE22: 0 | CG22: 0 | CI22: 0 | CK22: 0 | CM22: 0 | CO22: 0 | CQ22: 0 | CS22: 0 | CU22: 0 | CW22: 0 | CY22: 0 | DA22: 0 | DC22: 0 | DE22: 0 | DG22: 0 | DI22: 0 | DK22: 0 | DM22: 0 | DO22: 0 | DQ22: 0 | DS22: 0 | DU22: 0 | DW22: 0 | DY22: 0 | EA22: 0 | EC22: 0 | EE22: 0
C24: PAGAMENTO DA DEPRECIAÇÃO
C25: ITEM | D25: DESCRIÇÃO | E25: QUANT ANUAL | F25: CONTA SIAFI | G25: VALOR DE AQ. | H25: % RESIDUAL | I25: VIDA ÚTIL | J25: DEP. MENSAL | K25: CUSTO TOTAL | L25: BDI (%) | M25: PREÇO TOTAL | N25: FONTE | O25: REFERÊNCIA
F27: 12311.01.09 | G27: 89.34 | H27: 0.1 | I27: 10 | J27: =G27*(1-H27)/(I27*12) -> 0.67005 | K27: =J27*E27 -> 0 | L27: =BDI!$E$26 -> 0.2715 | M27: =ROUND(K27*(1+L27),2) -> 0 | N27: COTAÇÃO
F28: 12311.01.09 | G28: 39 | H28: 0.1 | I28: 10 | J28: =G28*(1-H28)/(I28*12) -> 0.2925 | K28: =J28*E28 -> 0 | L28: =BDI!$E$26 -> 0.2715 | M28: =ROUND(K28*(1+L28),2) -> 0 | N28: COTAÇÃO
F29: 12311.01.09 | G29: 22.08 | H29: 0.1 | I29: 10 | J29: 0.1656 | K29: 0 | L29: =BDI!$E$26 -> 0.2715 | M29: 0 | N29: COTAÇÃO
F30: 12311.01.09 | G30: 8.02 | H30: 0.1 | I30: 10 | J30: 0.06015 | K30: 0 | L30: =BDI!$E$26 -> 0.2715 | M30: 0 | N30: COTAÇÃO
F31: 12311.01.09 | G31: 15.64 | H31: 0.1 | I31: 10 | J31: 0.1173 | K31: 0 | L31: =BDI!$E$26 -> 0.2715 | M31: 0 | N31: COTAÇÃO
F32: 12311.01.09 | G32: 7.63 | H32: 0.1 | I32: 10 | J32: 0.057225 | K32: 0 | L32: =BDI!$E$26 -> 0.2715 | M32: 0 | N32: COTAÇÃO
F33: 12311.01.09 | G33: 21.48 | H33: 0.1 | I33: 10 | J33: 0.1611 | K33: 0 | L33: =BDI!$E$26 -> 0.2715 | M33: 0 | N33: COTAÇÃO
F34: 12311.01.09 | G34: 7.87 | H34: 0.1 | I34: 10 | J34: 0.059025 | K34: 0 | L34: =BDI!$E$26 -> 0.2715 | M34: 0 | N34: COTAÇÃO
F35: 12311.01.09 | G35: 6.73 | H35: 0.1 | I35: 10 | J35: 0.050475 | K35: 0 | L35: =BDI!$E$26 -> 0.2715 | M35: 0 | N35: COTAÇÃO
F36: 12311.01.09 | G36: 15.35 | H36: 0.1 | I36: 10 | J36: 0.115125 | K36: 0 | L36: =BDI!$E$26 -> 0.2715 | M36: 0 | N36: COTAÇÃO
F37: 12311.01.09 | G37: 12.86 | H37: 0.1 | I37: 10 | J37: 0.09645 | K37: 0 | L37: =BDI!$E$26 -> 0.2715 | M37: 0 | N37: COTAÇÃO
F38: 12311.01.09 | G38: 10.12 | H38: 0.1 | I38: 10 | J38: 0.0759 | K38: 0 | L38: =BDI!$E$26 -> 0.2715 | M38: 0 | N38: COTAÇÃO
F39: 12311.01.09 | G39: 61.31 | H39: 0.1 | I39: 10 | J39: 0.459825 | K39: 0 | L39: =BDI!$E$26 -> 0.2715 | M39: 0 | N39: COTAÇÃO
F40: 12311.01.09 | G40: 40.41 | H40: 0.1 | I40: 10 | J40: 0.303075 | K40: 0 | L40: =BDI!$E$26 -> 0.2715 | M40: 0 | N40: COTAÇÃO
F41: 12311.01.09 | G41: 120.53 | H41: 0.1 | I41: 10 | J41: 0.903975 | K41: 0 | L41: =BDI!$E$26 -> 0.2715 | M41: 0 | N41: COTAÇÃO
F42: 12311.01.09 | G42: 31.48 | H42: 0.1 | I42: 10 | J42: 0.2361 | K42: 0 | L42: =BDI!$E$26 -> 0.2715 | M42: 0 | N42: COTAÇÃO
F43: 12311.01.09 | G43: 191.93 | H43: 0.1 | I43: 10 | J43: 1.439475 | K43: 0 | L43: =BDI!$E$26 -> 0.2715 | M43: 0 | N43: COTAÇÃO
F44: 12311.01.09 | G44: 92.78 | H44: 0.1 | I44: 10 | J44: 0.69585 | K44: 0 | L44: =BDI!$E$26 -> 0.2715 | M44: 0 | N44: COTAÇÃO
F45: 12311.01.09 | G45: 36.01 | H45: 0.1 | I45: 10 | J45: 0.270075 | K45: 0 | L45: =BDI!$E$26 -> 0.2715 | M45: 0 | N45: COTAÇÃO
F46: 12311.01.09 | G46: 16.58 | H46: 0.1 | I46: 10 | J46: 0.12435 | K46: 0 | L46: =BDI!$E$26 -> 0.2715 | M46: 0 | N46: COTAÇÃO
F47: 12311.01.09 | G47: 57.93 | H47: 0.1 | I47: 10 | J47: 0.434475 | K47: 0 | L47: =BDI!$E$26 -> 0.2715 | M47: 0 | N47: COTAÇÃO
F48: 12311.01.09 | G48: 47.81 | H48: 0.1 | I48: 10 | J48: 0.358575 | K48: 0 | L48: =BDI!$E$26 -> 0.2715 | M48: 0 | N48: COTAÇÃO
F49: 12311.01.09 | G49: 31.18 | H49: 0.1 | I49: 10 | J49: 0.23385 | K49: 0 | L49: =BDI!$E$26 -> 0.2715 | M49: 0 | N49: COTAÇÃO
F50: 12311.01.09 | G50: 23.95 | H50: 0.1 | I50: 10 | J50: 0.179625 | K50: 0 | L50: =BDI!$E$26 -> 0.2715 | M50: 0 | N50: COTAÇÃO
F51: 12311.01.09 | G51: 35.04 | H51: 0.1 | I51: 10 | J51: 0.2628 | K51: 0 | L51: =BDI!$E$26 -> 0.2715 | M51: 0 | N51: COTAÇÃO
F52: 12311.01.09 | G52: 200.31 | H52: 0.1 | I52: 10 | J52: 1.502325 | K52: 0 | L52: =BDI!$E$26 -> 0.2715 | M52: 0 | N52: COTAÇÃO
F53: 12311.01.09 | G53: 79.59 | H53: 0.1 | I53: 10 | J53: 0.596925 | K53: 0 | L53: =BDI!$E$26 -> 0.2715 | M53: 0 | N53: COTAÇÃO
F54: 12311.01.09 | G54: 227.75 | H54: 0.1 | I54: 10 | J54: 1.708125 | K54: 0 | L54: =BDI!$E$26 -> 0.2715 | M54: 0 | N54: COTAÇÃO
F55: 12311.01.09 | G55: 127.59 | H55: 0.1 | I55: 10 | J55: 0.956925 | K55: 0 | L55: =BDI!$E$26 -> 0.2715 | M55: 0 | N55: COTAÇÃO
C58: PAGAMENTO DA MANUTENÇÃO
C59: ITEM | D59: DESCRIÇÃO | H59: K (calculado) | I59: MENSAL DEPR. | J59: % MAN X DEP | K59: MENSAL MAN. | L59: BDI (%) | M59: PREÇO TOTAL
H61: =H68 -> 0.424116 | I61: =SUM(M27:M55) -> 0 | J61: =H61 -> 0.424116 | K61: =I61*H61 -> 0 | L61: =L27 -> 0.2715 | M61: =ROUND(K61*(1+L61),2) -> 0
E63: K1 | F63: K2 | G63: K3 | H63: K4
E64: 0.85 | F64: 1 | G64: 0.8 | H64: 1
E65: K5 | F65: K6 | G65: K7 | H65: K8
E66: 1 | F66: 0.6 | G66: 0.5 | H66: 1.1
E67: K9 | F67: K10 | G67: K11 | H67: RESULTADO
D68: * a descrição de cada coeficiente segue abaixo | E68: 1.5 | F68: 0.9 | G68: 1.4 | H68: =E64*F64*G64*H64*E66*F66*G66*H66*E68*F68*G68 -> 0.424116
C71: MATERIAL DE CONSUMO ASSOCIADO
C72: ITEM | D72: DESCRIÇÃO | H72: QUANTID/ANO | I72: UNIDADE | J72: VALOR DE AQ. | K72: MENSAL MAT | L72: BDI (%) | M72: PREÇO TOTAL
K74: =J74*H74/12 -> 0 | L74: =L61 -> 0.2715 | M74: =ROUND(K74*(1+L74),2) -> 0
C77: MATERIAL DE CONSUMO ASSOCIADO
C78: ITEM | D78: DESCRIÇÃO | M78: PREÇO TOTAL
C80: 1 | D80: Componente DEPRECIAÇÃO - POR POSTO | M80: =I61 -> 0
C81: 2 | D81: Componente MANUTENÇÃO - POR POSTO | M81: =M61 -> 0
C82: 3 | D82: Componente MATERIAL DE CONSUMO ASSOCIADO - POR POSTO | M82: =M74 -> 0
L84: SOMATÓRIO TOTAL MENSAL - POR POSTO | M84: =SUM(M79:M83) -> 0 | R84: =IF(SUM(Q$15:Q$22)>0,$M84,0) -> 0 | T84: =IF(SUM(S$15:S$22)>0,$M84,0) -> 0 | V84: =IF(SUM(U$15:U$22)>0,$M84,0) -> 0 | X84: =IF(SUM(W$15:W$22)>0,$M84,0) -> 0 | Z84: =IF(SUM(Y$15:Y$22)>0,$M84,0) -> 0 | AB84: =IF(SUM(AA$15:AA$22)>0,$M84,0) -> 0 | AD84: =IF(SUM(AC$15:AC$22)>0,$M84,0) -> 0 | AF84: =IF(SUM(AE$15:AE$22)>0,$M84,0) -> 0 | AH84: =IF(SUM(AG$15:AG$22)>0,$M84,0) -> 0 | AJ84: =IF(SUM(AI$15:AI$22)>0,$M84,0) -> 0 | AL84: =IF(SUM(AK$15:AK$22)>0,$M84,0) -> 0 | AN84: =IF(SUM(AM$15:AM$22)>0,$M84,0) -> 0 | AP84: =IF(SUM(AO$15:AO$22)>0,$M84,0) -> 0 | AR84: =IF(SUM(AQ$15:AQ$22)>0,$M84,0) -> 0 | AT84: =IF(SUM(AS$15:AS$22)>0,$M84,0) -> 0 | AV84: =IF(SUM(AU$15:AU$22)>0,$M84,0) -> 0 | AX84: =IF(SUM(AW$15:AW$22)>0,$M84,0) -> 0 | AZ84: =IF(SUM(AY$15:AY$22)>0,$M84,0) -> 0 | BB84: =IF(SUM(BA$15:BA$22)>0,$M84,0) -> 0 | BD84: =IF(SUM(BC$15:BC$22)>0,$M84,0) -> 0 | BF84: =IF(SUM(BE$15:BE$22)>0,$M84,0) -> 0 | BH84: =IF(SUM(BG$15:BG$22)>0,$M84,0) -> 0 | BJ84: =IF(SUM(BI$15:BI$22)>0,$M84,0) -> 0 | BL84: =IF(SUM(BK$15:BK$22)>0,$M84,0) -> 0 | BN84: =IF(SUM(BM$15:BM$22)>0,$M84,0) -> 0 | BP84: =IF(SUM(BO$15:BO$22)>0,$M84,0) -> 0 | BR84: =IF(SUM(BQ$15:BQ$22)>0,$M84,0) -> 0 | BT84: =IF(SUM(BS$15:BS$22)>0,$M84,0) -> 0 | BV84: =IF(SUM(BU$15:BU$22)>0,$M84,0) -> 0 | BX84: =IF(SUM(BW$15:BW$22)>0,$M84,0) -> 0 | BZ84: =IF(SUM(BY$15:BY$22)>0,$M84,0) -> 0 | CB84: =IF(SUM(CA$15:CA$22)>0,$M84,0) -> 0 | CD84: =IF(SUM(CC$15:CC$22)>0,$M84,0) -> 0 | CF84: =IF(SUM(CE$15:CE$22)>0,$M84,0) -> 0 | CH84: =IF(SUM(CG$15:CG$22)>0,$M84,0) -> 0 | CJ84: =IF(SUM(CI$15:CI$22)>0,$M84,0) -> 0 | CL84: =IF(SUM(CK$15:CK$22)>0,$M84,0) -> 0 | CN84: =IF(SUM(CM$15:CM$22)>0,$M84,0) -> 0 | CP84: =IF(SUM(CO$15:CO$22)>0,$M84,0) -> 0 | CR84: =IF(SUM(CQ$15:CQ$22)>0,$M84,0) -> 0 | CT84: =IF(SUM(CS$15:CS$22)>0,$M84,0) -> 0 | CV84: =IF(SUM(CU$15:CU$22)>0,$M84,0) -> 0 | CX84: =IF(SUM(CW$15:CW$22)>0,$M84,0) -> 0 | CZ84: =IF(SUM(CY$15:CY$22)>0,$M84,0) -> 0 | DB84: =IF(SUM(DA$15:DA$22)>0,$M84,0) -> 0 | DD84: =IF(SUM(DC$15:DC$22)>0,$M84,0) -> 0 | DF84: =IF(SUM(DE$15:DE$22)>0,$M84,0) -> 0 | DH84: =IF(SUM(DG$15:DG$22)>0,$M84,0) -> 0 | DJ84: =IF(SUM(DI$15:DI$22)>0,$M84,0) -> 0 | DL84: =IF(SUM(DK$15:DK$22)>0,$M84,0) -> 0 | DN84: =IF(SUM(DM$15:DM$22)>0,$M84,0) -> 0 | DP84: =IF(SUM(DO$15:DO$22)>0,$M84,0) -> 0 | DR84: =IF(SUM(DQ$15:DQ$22)>0,$M84,0) -> 0 | DT84: =IF(SUM(DS$15:DS$22)>0,$M84,0) -> 0 | DV84: =IF(SUM(DU$15:DU$22)>0,$M84,0) -> 0 | DX84: =IF(SUM(DW$15:DW$22)>0,$M84,0) -> 0 | DZ84: =IF(SUM(DY$15:DY$22)>0,$M84,0) -> 0 | EB84: =IF(SUM(EA$15:EA$22)>0,$M84,0) -> 0 | ED84: =IF(SUM(EC$15:EC$22)>0,$M84,0) -> 0 | EF84: =IF(SUM(EE$15:EE$22)>0,$M84,0) -> 0
L85: SOMATÓRIO TOTAL ANUAL - POR POSTO | M85: =M84*12 -> 0
C88: MATERIAL DE CONSUMO ASSOCIADO
C89: MEMÓRIA DE CÁLCULO DO COEFICIENTE DE CORRELAÇÃO MANUTENÇÃO X DEPRECIAÇÃO (K)
C91: JUSTIFICATIVAS | E91: TIPO | F91: K1 | H91: Condições de Trab | I91: K4 | K91: Tempo Vida (anos) | L91: K6 | N91: Temperatura | O91: K8
E92: Guindaste | F92: 0.5 | H92: Em espera | I92: 0.4 | K92: 1 | L92: 0.6 | N92: Muito quente (> 40º C) | O92: 1.3
C93: K1 | D93: Considerado o valor médio de 0,85 | E93: Caminhão-comum | F93: 0.8 | H93: Leves | I93: 0.8 | K93: 2 | L93: 0.7 | N93: Quente (30º a 40º C) | O93: 1.1
C94: K2 | D94: Considerado o operador médio | E94: Fora-de-estrada | F94: 1 | H94: Médias | I94: 1 | K94: 3 | L94: 0.8 | N94: Médio (10º a 30º C) | O94: 1
C95: K3 | D95: Consideradas ferramentas de primeira qualidade | E95: Carregadeira | F95: 1 | H95: Pesadas | I95: 1.4 | K95: 4 | L95: 0.9 | N95: Frio (< 10º C) | O95: 1.2
C96: K4 | D96: Há todo o tipo de trabalho, foi considerado o valor médio | E96: Escavadeira | F96: 1.4 | H96: Severas | I96: 2 | K96: 5 | L96: 1
C97: K5 | D97: Considerando manutenção normal | E97: Motoescrêiper | F97: 1.1 | K97: 6 | L97: 1 | N97: Ritmo de Trabalho | O97: K9
C98: K6 | D98: Equipamentos novos | E98: Trator de esteira | F98: 1.2 | H98: Manutenção | I98: K5 | K98: 7 | L98: 1 | N98: Folgado | O98: 0.9
C99: K7 | D99: 220h por mês, 252 dias por ano | H99: Excelente | I99: 0.6 | K99: 8 | L99: 1.2 | N99: Médio | O99: 1
C100: K8 | D100: Clima quente, acima de 30º C | E100: Qualid do Operador | F100: K2 | H100: Boa | I100: 0.8 | K100: 9 | L100: 1.3 | N100: Com pressa | O100: 1.5
C101: K9 | D101: Ritmo de trabalho usualmente com pressa | E101: Excelente | F101: 0.8 | H101: Média | I101: 1 | K101: 10 | L101: 1.4
C102: K10 | D102: Considerado o operador médio | E102: Boa | F102: 0.9 | H102: Ruim | I102: 1.5 | K102: 11 | L102: 2 | N102: Conh do Serviço | O102: K10
C103: K11 | D103: Foi considerada a opção de aluguel a terceiros, ainda que a simulação seja dos custos do contratado, contudo a execução dos serviços é em local de terceiros | E103: Média | F103: 1 | H103: Inexistente | I103: 3 | K103: 15 | L103: 2 | N103: Grande | O103: 0.8
E104: Ruim | F104: 1.2 | N104: Médio | O104: 0.9
E105: Péssima | F105: 2 | H105: Horas de Uso | I105: K7 | J105: 6000 | K105: 1 | N105: Pouco | O105: 1
H106: 1000 | I106: 0.5 | J106: 8000 | K106: 1.3
E107: Qualidade do Equip | F107: K3 | H107: 2000 | I107: 0.5 | J107: 10000 | K107: 1.6 | N107: Tipo do Serviço | O107: K11
E108: De primeira | F108: 0.8 | H108: 3000 | I108: 0.6 | J108: 12000 | K108: 1.9 | N108: Mina ou Pedreira | O108: 0.8
E109: Média | F109: 1 | H109: 4000 | I109: 0.7 | J109: 15000 | K109: 2.3 | N109: Construção Geral | O109: 1
E110: Ruim | F110: 1.5 | H110: 5000 | I110: 0.9 | J110: 20000 | K110: 3 | N110: Aluguel a Terceiros | O110: 1.4
E112: Fonte:
E113: MATTOS, Aldo Dórea. Como preparar orçamentos de obras. São Paulo: Pini, 2006. 281 p., il
